Workbook

Sheet START
A1: Choose name from list

Sheet Instructions
D2: 2020
X4: Yes
X5: No
W7: Type of Entities Range: | X7: Parent Municipality
X8: Consolidated Information
W10: Date linked | X10: 4
W11: Date | X11: =VLOOKUP(X10,W39:X55,2) -> M04 October | Y11: 2013-08-01
W19: MTREF Range: | X19: 2014
X20: 2015
X21: 2016
X22: 2017
X23: 2018
X24: 2019
X25: 2020
X26: 2021
X27: 2022
X28: 2023
X29: 2024
X30: 2025
X31: 2026
X32: 2027
X33: 2028
W34: MTREF Linked:
W35: MTREF: | X35: 11
X36: =INDEX(X19:X32,X35,1) -> 2024
W37: Fin Year:
X38: =MTREF&"/"&RIGHT(MTREF,2)+1 -> 2024/25
V39: Date/type of report | W39: 1 | X39: M01 July
W40: 2 | X40: M02 August
W41: 3 | X41: M03 September
W42: 4 | X42: M04 October
W43: 5 | X43: M05 November
W44: 6 | X44: M06 December
W45: 7 | X45: M07 January
W46: 8 | X46: M08 February
W47: 9 | X47: M09 March
W48: 10 | X48: M10 April
W49: 11 | X49: M11 May
W50: 12 | X50: M12 June
W51: 13 | X51: Q1 First Quarter
W52: 14 | X52: Q2 Second Quarter
W53: 15 | X53: Q3 Third Quarter
W54: 16 | X54: Q4 Fourth Quarter
W55: 17 | X55: Mid-Year Assessment

Sheet Template names (hidden)
A1: Common sheet headings
A2: Head1 | B2: =HLOOKUP(MTREF,Headings,2) -> 2023/24 | C2: Prior year -1
A3: Head2 | B3: =HLOOKUP(MTREF,Headings,5) -> Budget Year 2024/25 | C3: Year of approved budget
A4: Head2A | B4: =HLOOKUP(MTREF,Headings,4) -> 2024/25 | C4: Approved budget year
A5: Head3 | B5: =HLOOKUP(MTREF,Headings,3) -> 2024/25 Medium Term Revenue & Expenditure Framework | C5: MTREF header name
A6: Head5 | B6: Audited Outcome
A7: Head5A | B7: Outcome
A8: Head5B | B8: Pre-audit outcome
A9: Head6 | B9: Original Budget
A10: Head7 | B10: Adjusted Budget
A11: Head8 | B11: Full Year Forecast
A12: Head9 | B12: =HLOOKUP(MTREF,Headings,5) -> Budget Year 2024/25 | C12: 1st year of MTREF | D12: Year1
A13: Head10 | B13: =HLOOKUP(MTREF,Headings,6) -> Budget Year +1 2025/26 | C13: 2nd year of MTREF | D13: Year2
A14: Head11 | B14: =HLOOKUP(MTREF,Headings,7) -> Budget Year +2 2026/27 | C14: 3rd year of MTREF | D14: Year3
A15: Head12 | B15: Forecast 2010/11 | D15: Year4
A16: Head13 | B16: Forecast 2011/12 | D16: Year5
A17: Head14 | B17: Forecast 2012/13 | D17: Year6
A18: Head15 | B18: Forecast 2013/14 | D18: Year7
A19: Head16 | B19: Forecast 2014/15 | D19: Year8
A20: Head17 | B20: Forecast 2015/16 | D20: Year9
A21: Head18 | B21: Forecast 2016/17 | D21: Year10
A22: Head19 | B22: Forecast 2017/18 | D22: Year11
A23: Head20 | B23: Forecast 2018/19 | D23: Year12
A24: Head21 | B24: Forecast 2019/20 | D24: Year13
A25: Head22 | B25: Forecast 2020/21 | D25: Year14
A26: Head23 | B26: Forecast 2021/22 | D26: Year15
A27: Head24 | B27: Description | D27: Desc
A28: Head25 | B28: Schedule of funding diligence | D28: fdil
A29: Head26 | B29: Vote Description | D29: VDesc
A30: Head27 | B30: Ref
A31: Head27a | B31: References
A32: Head28 | B32: Surplus/ (Deficit) for the year | D32: Result
A33: Head29 | B33: Annual target 2007/08
A34: Head30 | B34: Revised target 2007/08
A35: Head31 | B35: Quarter ended 30 September
A36: Head32 | B36: Quarter ended 31 December
A37: Head33 | B37: Quarter ended 31 March
A38: Head34 | B38: Quarter ended 30 June
A39: Head35 | B39: Variance explanation
A40: Head36 | B40: YTD Actual 31 Dec
A41: Head37 | B41: YTD Budget 31 Dec
A42: Head38 | B42: Monthly actual
A43: Head39 | B43: YearTD actual
A44: Head40 | B44: YearTD budget
A45: Head41 | B45: YTD variance
A46: Head42 | B46: Surplus/ (Deficit) for the yr/period
A47: Head43 | B47: =Head3&" Summary" -> 2024/25 Medium Term Revenue & Expenditure Framework Summary
A48: Head44 | B48: 1996 Census
A49: Head45 | B49: 2001 Census
A50: Head46 | B50: - Adjustments Budget - Month YYYY
A51: Head47 | B51: Previous target year to complete
A52: Head48 | B52: Present value
A53: Head49 | B53: Virement
A54: Head50 | B54: Other Adjusts.
A55: Head51 | B55: Accum. Funds
A56: Head52 | B56: Multi-year capital
A57: Head53 | B57: Unfore. Unavoid.
A58: Head54 | B58: Prior Adjusted
A59: Head55 | B59: Nat. or Prov. Govt
A60: Head56 | B60: Total Adjusts.
A61: Head57 | B61: =date -> M04 October
A62: Head58 | B62: Parent muni.
A63: Head59 | B63: Downward adjusts
A64: Head60 | B64: Month | C64: Report header part name | D64: =date -> M04 October
A65: SFPerf1 | B65: Budgeted Financial Performance
A66: SFPerf2 | B66: Forecast Financial Performance
A67: SFPos1 | B67: Budgeted Financial Position
A68: SFPos2 | B68: Forecast Financial Position
A69: Cash1 | B69: Budget Cash Flow
A70: Cash2 | B70: Forecast Cash Flow
A71: RandM | B71: Expenditure includes repairs & maintenance of R'000
A72: Standard nomenclature
A73: Muni | B73: ='Lookup and lists'!B27 -> FS184 Matjhabeng
A74: Municipal Entities | B74: 2 | C74: Type of report: | D74: 1
A75: =IF((MuniEntities=1)*(MuniType=2),"YES","NO") -> NO | B75: Does this municipality have entities (consolidated budget and entity budgets required)? YES/NO
A76: s71 (Monthly Mayor report) schedules and charts
A77: S71sum | B77: =IF(Consolques="YES",E77,F77) -> Table C1 Monthly Budget Statement Summary | D77: Table C1 | E77: =D77&"Consolidated Monthly Budget Statement Summary" -> Table C1 Consolidated Monthly Budget Statement Summary | F77: =D77&"Monthly Budget Statement Summary" -> Table C1 Monthly Budget Statement Summary
A78: S71C | B78: Table C3 Monthly Budget Statement - Financial Performance (revenue and expenditure by municipal vote) | D78: Table C3 | E78: =D78&"Consolidated Monthly Budget Statement - Financial Performance (revenue and expenditure by municipal vote) " -> Table C3 Consolidated Monthly Budget Statement - Financial Performance (revenue and expenditure by municipal vote) | F78: =D78&"Monthly Budget Statement - Financial Performance (revenue and expenditure by municipal vote)" -> Table C3 Monthly Budget Statement - Financial Performance (revenue and expenditure by municipal vote)
A79: S71A | B79: =IF(Consolques="YES",E79,F79) -> Table C2 Monthly Budget Statement - Financial Performance (functional classification) | D79: Table C2 | E79: =D79&"Consolidated Monthly Budget Statement - Financial Performance (functional classification) " -> Table C2 Consolidated Monthly Budget Statement - Financial Performance (functional classification) | F79: =D79&"Monthly Budget Statement - Financial Performance (functional classification)" -> Table C2 Monthly Budget Statement - Financial Performance (functional classification)
A80: S71B | B80: =IF(Consolques="YES",E80,F80) -> Table C4 Monthly Budget Statement - Financial Performance (revenue and expenditure) | D80: Table C4 | E80: =D80&"Consolidated Monthly Budget Statement - Financial Performance (revenue and expenditure) " -> Table C4 Consolidated Monthly Budget Statement - Financial Performance (revenue and expenditure) | F80: =D80&"Monthly Budget Statement - Financial Performance (revenue and expenditure)" -> Table C4 Monthly Budget Statement - Financial Performance (revenue and expenditure)
A81: S71D | B81: =IF(Consolques="YES",E81,F81) -> Table C5 Monthly Budget Statement - Capital Expenditure (municipal vote, functional classification and funding) | D81: Table C5 | E81: =D81&"Consolidated Monthly Budget Statement - Capital Expenditure (municipal vote, functional classification and funding " -> Table C5 Consolidated Monthly Budget Statement - Capital Expenditure (municipal vote, functional classification and funding | F81: =D81&"Monthly Budget Statement - Capital Expenditure (municipal vote, functional classification and funding)" -> Table C5 Monthly Budget Statement - Capital Expenditure (municipal vote, functional classification and funding)
A82: S71E | B82: Table C6 Monthly Budget Statement - Financial Position | D82: Table C6 | E82: =D82&"Consolidated Monthly Budget Statement - Financial Position " -> Table C6 Consolidated Monthly Budget Statement - Financial Position | F82: =D82&"Monthly Budget Statement - Financial Position" -> Table C6 Monthly Budget Statement - Financial Position
A83: S71F | B83: Table C7 Monthly Budget Statement - Cash Flow | D83: Table C7 | E83: =D83&"Consolidated Monthly Budget Statement - Cash Flow " -> Table C7 Consolidated Monthly Budget Statement - Cash Flow | F83: =D83&"Monthly Budget Statement - Cash Flow " -> Table C7 Monthly Budget Statement - Cash Flow
A84: S71G | B84: =D84&"Material variance explanations " -> Supporting Table SC1 Material variance explanations | D84: Supporting Table SC1
A85: S71H | B85: =D85&"Monthly Budget Statement - performance indicators " -> Supporting Table SC2 Monthly Budget Statement - performance indicators | D85: Supporting Table SC2
A86: S71I | B86: =D86&"Monthly Budget Statement - aged debtors" -> Supporting Table SC3 Monthly Budget Statement - aged debtors | D86: Supporting Table SC3
A87: S71J | B87: =D87&"Monthly Budget Statement - aged creditors " -> Supporting Table SC4 Monthly Budget Statement - aged creditors | D87: Supporting Table SC4
A88: S71K | B88: =D88&"Monthly Budget Statement - investment portfolio " -> Supporting Table SC5 Monthly Budget Statement - investment portfolio | D88: Supporting Table SC5
A89: S71L | B89: =D89&"Monthly Budget Statement - transfers and grant receipts " -> Supporting Table SC6 Monthly Budget Statement - transfers and grant receipts | D89: Supporting Table SC6
A90: S71M | B90: =D90&" Monthly Budget Statement - transfers and grant expenditure " -> Supporting Table SC7(1) Monthly Budget Statement - transfers and grant expenditure | D90: Supporting Table SC7(1)
A91: S71N | B91: =D91&"Monthly Budget Statement - councillor and staff benefits " -> Supporting Table SC8 Monthly Budget Statement - councillor and staff benefits | D91: Supporting Table SC8
A92: S71O | B92: =D92&"Monthly Budget Statement - actuals and revised targets for cash receipts" -> Supporting Table SC9 Monthly Budget Statement - actuals and revised targets for cash receipts | D92: Supporting Table SC9
A93: S71P | B93: =IF(Consolques="YES",E93,F93) -> NOT REQUIRED - municipality does not have entities or this is the parent municipality's budget | D93: Supporting Table SC10 | E93: =D93&"Monthly Budget Statement - Parent Municipality Financial Performance (revenue and expenditure) " -> Supporting Table SC10 Monthly Budget Statement - Parent Municipality Financial Performance (revenue and expenditure) | F93: NOT REQUIRED - municipality does not have entities or this is the parent municipality's budget
A94: S71Q | B94: NOT REQUIRED - municipality does not have entities or this is the parent municipality's budget | D94: Supporting Table SC11 | E94: =D94&"Monthly Budget Statement - summary of municipal entities" -> Supporting Table SC11 Monthly Budget Statement - summary of municipal entities | F94: NOT REQUIRED - municipality does not have entities or this is the parent municipality's budget
A95: S71R | B95: Supporting Table SC12 Monthly Budget Statement - capital expenditure trend | D95: Supporting Table SC12 | E95: =D95&"Consolidated Monthly Budget Statement - capital expenditure trend " -> Supporting Table SC12 Consolidated Monthly Budget Statement - capital expenditure trend | F95: =D95&"Monthly Budget Statement - capital expenditure trend" -> Supporting Table SC12 Monthly Budget Statement - capital expenditure trend
A96: S71Sa | B96: Supporting Table SC13a Monthly Budget Statement - capital expenditure on new assets by asset class | D96: Supporting Table SC13a | E96: =D96&"Consolidated Monthly Budget Statement - capital expenditure on new assets by asset class" -> Supporting Table SC13a Consolidated Monthly Budget Statement - capital expenditure on new assets by asset class | F96: =D96&"Monthly Budget Statement - capital expenditure on new assets by asset class" -> Supporting Table SC13a Monthly Budget Statement - capital expenditure on new assets by asset class
A97: S71Sb | B97: Supporting Table SC13b Monthly Budget Statement - capital expenditure on renewal of existing assets by asset class | D97: Supporting Table SC13b | E97: =D97&"Consolidated Monthly Budget Statement - capital expenditure on renewal of existing assets by asset class" -> Supporting Table SC13b Consolidated Monthly Budget Statement - capital expenditure on renewal of existing assets by asset class | F97: =D97&"Monthly Budget Statement - capital expenditure on renewal of existing assets by asset class" -> Supporting Table SC13b Monthly Budget Statement - capital expenditure on renewal of existing assets by asset class
A98: S71Sc | B98: Supporting Table SC13c Monthly Budget Statement - expenditure on repairs and maintenance by asset class | D98: Supporting Table SC13c | E98: =D98&"Consolidated Monthly Budget Statement - expenditure on repairs and maintenance by asset class" -> Supporting Table SC13c Consolidated Monthly Budget Statement - expenditure on repairs and maintenance by asset class | F98: =D98&"Monthly Budget Statement - expenditure on repairs and maintenance by asset class" -> Supporting Table SC13c Monthly Budget Statement - expenditure on repairs and maintenance by asset class
A99: S71Sd | B99: Supporting Table SC13d Monthly Budget Statement - depreciation by asset class | D99: Supporting Table SC13d | E99: =D99&"Consolidated Monthly Budget Statement - depreciation by asset class" -> Supporting Table SC13d Consolidated Monthly Budget Statement - depreciation by asset class | F99: =D99&"Monthly Budget Statement - depreciation by asset class" -> Supporting Table SC13d Monthly Budget Statement - depreciation by asset class
A100: S71Se | B100: =IF(Consolques="YES",E100,F100) -> Supporting Table SC13e Monthly Budget Statement - capital expenditure on upgrading of existing assets by asset class | D100: Supporting Table SC13e | E100: =D100&"Consolidated Monthly Budget Statement - capital expenditure on upgrading of existing assets by asset class" -> Supporting Table SC13e Consolidated Monthly Budget Statement - capital expenditure on upgrading of existing assets by asset class | F100: =D100&"Monthly Budget Statement - capital expenditure on upgrading of existing assets by asset class" -> Supporting Table SC13e Monthly Budget Statement - capital expenditure on upgrading of existing assets by asset class
B101: s71 charts listing
B102: =D102&Head2A&" Capital Expenditure Monthly Trend: actual v target" -> Chart C1 2024/25 Capital Expenditure Monthly Trend: actual v target | D102: Chart C1
B103: =D103&Head2A&" Capital Expenditure: YTD actual v YTD target" -> Chart C2 2024/25 Capital Expenditure: YTD actual v YTD target | D103: Chart C2
B104: =D104&"Aged Consumer Debtors Analysis" -> Chart C3 Aged Consumer Debtors Analysis | D104: Chart C3
B105: =D105&"Consumer Debtors (total by Debtor Customer Category)" -> Chart C4 Consumer Debtors (total by Debtor Customer Category) | D105: Chart C4
B106: =D106&"Aged Creditors Analysis" -> Chart C5 Aged Creditors Analysis | D106: Chart C5
A107: S71T | B107: =D107&" Monthly Budget Statement - Expenditure against approved rollovers" -> Supporting Table SC7(2) Monthly Budget Statement - Expenditure against approved rollovers | D107: Supporting Table SC7(2)

Sheet Lookup and lists (hidden)
A1: Description | B1: 2013 | C1: 2014 | D1: 2015 | E1: 2016 | F1: 2017 | G1: 2018 | H1: 2019 | I1: 2020 | J1: 2021 | K1: 2022 | L1: 2023 | M1: 2024 | N1: 2025 | O1: 2026 | Q1: Grants: | R1: National - opex | S1: Provincial - opex | T1: National - capex | U1: Provincial - capex | V1: YESNO
A2: ='Template names'!C2 -> Prior year -1 | B2: =B1-1&"/"&RIGHT(B1,2)-0 -> 2012/13 | C2: =C1-1&"/"&RIGHT(C1,2)-0 -> 2013/14 | D2: =D1-1&"/"&RIGHT(D1,2)-0 -> 2014/15 | E2: =E1-1&"/"&RIGHT(E1,2)-0 -> 2015/16 | F2: =F1-1&"/"&RIGHT(F1,2)-0 -> 2016/17 | G2: 2017/18 | H2: 2018/19 | I2: 2019/20 | J2: 2020/21 | K2: 2021/22 | L2: 2022/23 | M2: 2023/24 | N2: 2024/25 | O2: 2025/26 | R2: Local Government Equitable Share | S2: Health subsidy | T2: Municipal Infrastructure Grant (MIG) | U2: Agriculture | V2: Yes
A3: ='Template names'!C5 -> MTREF header name | B3: =B1&"/"&RIGHT(B1,2)+1&" Medium Term Revenue & Expenditure Framework" -> 2013/14 Medium Term Revenue & Expenditure Framework | C3: =C1&"/"&RIGHT(C1,2)+1&" Medium Term Revenue & Expenditure Framework" -> 2014/15 Medium Term Revenue & Expenditure Framework | D3: =D1&"/"&RIGHT(D1,2)+1&" Medium Term Revenue & Expenditure Framework" -> 2015/16 Medium Term Revenue & Expenditure Framework | E3: =E1&"/"&RIGHT(E1,2)+1&" Medium Term Revenue & Expenditure Framework" -> 2016/17 Medium Term Revenue & Expenditure Framework | F3: =F1&"/"&RIGHT(F1,2)+1&" Medium Term Revenue & Expenditure Framework" -> 2017/18 Medium Term Revenue & Expenditure Framework | G3: 2018/19 Medium Term Revenue & Expenditure Framework | H3: 2019/20 Medium Term Revenue & Expenditure Framework | I3: 2020/21 Medium Term Revenue & Expenditure Framework | J3: 2021/22 Medium Term Revenue & Expenditure Framework | K3: 2022/23 Medium Term Revenue & Expenditure Framework | L3: 2023/24 Medium Term Revenue & Expenditure Framework | M3: 2024/25 Medium Term Revenue & Expenditure Framework | N3: 2025/26 Medium Term Revenue & Expenditure Framework | O3: 2026/27 Medium Term Revenue & Expenditure Framework | R3: RSC Levy Replacement | S3: Ambulance subsidy | T3: Public Transport and Systems | U3: Education | V3: No
A4: ='Template names'!C4 -> Approved budget year | B4: =B1&"/"&RIGHT(B1,2)+1 -> 2013/14 | C4: =C1&"/"&RIGHT(C1,2)+1 -> 2014/15 | D4: =D1&"/"&RIGHT(D1,2)+1 -> 2015/16 | E4: =E1&"/"&RIGHT(E1,2)+1 -> 2016/17 | F4: =F1&"/"&RIGHT(F1,2)+1 -> 2017/18 | G4: 2018/19 | H4: 2019/20 | I4: 2020/21 | J4: 2021/22 | K4: 2022/23 | L4: 2023/24 | M4: 2024/25 | N4: 2025/26 | O4: 2026/27 | R4: Finance Management | S4: Housing | T4: Rural Transport Services and Infrastructure | U4: Health
A5: ='Template names'!C12 -> 1st year of MTREF | B5: ="Budget Year "&B1&"/"&RIGHT(B1,2)+1 -> Budget Year 2013/14 | C5: ="Budget Year "&C1&"/"&RIGHT(C1,2)+1 -> Budget Year 2014/15 | D5: ="Budget Year "&D1&"/"&RIGHT(D1,2)+1 -> Budget Year 2015/16 | E5: ="Budget Year "&E1&"/"&RIGHT(E1,2)+1 -> Budget Year 2016/17 | F5: ="Budget Year "&F1&"/"&RIGHT(F1,2)+1 -> Budget Year 2017/18 | G5: Budget Year 2018/19 | H5: Budget Year 2019/20 | I5: Budget Year 2020/21 | J5: Budget Year 2021/22 | K5: Budget Year 2022/23 | L5: Budget Year 2023/24 | M5: Budget Year 2024/25 | N5: Budget Year 2025/26 | O5: Budget Year 2026/27 | R5: Municipal Systems Improvement | S5: Sport and Recreation | T5: Regional Bulk Infrastructure | U5: Housing and Local Government
A6: ='Template names'!C13 -> 2nd year of MTREF | B6: ="Budget Year +1 "&B1+1&"/"&RIGHT(B1,2)+2 -> Budget Year +1 2014/15 | C6: ="Budget Year +1 "&C1+1&"/"&RIGHT(C1,2)+2 -> Budget Year +1 2015/16 | D6: ="Budget Year +1 "&D1+1&"/"&RIGHT(D1,2)+2 -> Budget Year +1 2016/17 | E6: ="Budget Year +1 "&E1+1&"/"&RIGHT(E1,2)+2 -> Budget Year +1 2017/18 | F6: ="Budget Year +1 "&F1+1&"/"&RIGHT(F1,2)+2 -> Budget Year +1 2018/19 | G6: Budget Year +1 2019/20 | H6: Budget Year +1 2020/21 | I6: Budget Year +1 2021/22 | J6: Budget Year +1 2022/23 | K6: Budget Year +1 2023/24 | L6: Budget Year +1 2024/25 | M6: Budget Year +1 2025/26 | N6: Budget Year +1 2026/27 | O6: Budget Year +1 2027/28 | R6: Water Services Operating Subsidy | T6: Rural Households Infrastructure | U6: Other Departments
A7: ='Template names'!C14 -> 3rd year of MTREF | B7: ="Budget Year +2 "&B1+2&"/"&RIGHT(B1,2)+3 -> Budget Year +2 2015/16 | C7: ="Budget Year +2 "&C1+2&"/"&RIGHT(C1,2)+3 -> Budget Year +2 2016/17 | D7: ="Budget Year +2 "&D1+2&"/"&RIGHT(D1,2)+3 -> Budget Year +2 2017/18 | E7: ="Budget Year +2 "&E1+2&"/"&RIGHT(E1,2)+3 -> Budget Year +2 2018/19 | F7: ="Budget Year +2 "&F1+2&"/"&RIGHT(F1,2)+3 -> Budget Year +2 2019/20 | G7: Budget Year +2 2020/21 | H7: Budget Year +2 2021/22 | I7: Budget Year +2 2022/23 | J7: Budget Year +2 2023/24 | K7: Budget Year +2 2024/25 | L7: Budget Year +2 2025/26 | M7: Budget Year +2 2026/27 | N7: Budget Year +2 2027/28 | O7: Budget Year +2 2028/29 | R7: Energy Efficiency and Demand Management | T7: Neighbourhood Development Partnership | U7: Public Works, Roads, Transport
A8: NOTE: This sheet should not be directly amended - select headings from sheet 'S' | R8: Integrated National Electrification Programme | T8: 2010 FIFA World Cup Stadiums Development | U8: Sport and Recreation
R9: Municipal Drought Relief
R10: 2010 FIFA World Cup Operating
R11: Electricity Demand Side Management
R12: EPWP Incentive
A26: Name link | B26: 49
A27: Name of Muni | B27: =INDEX(B28:B311,B26,1) -> FS184 Matjhabeng
B28: Choose name from list | C28: Set name on 'Instructions' sheet
B29: BUF Buffalo City | C29: EC EASTERN CAPE
B30: NMA Nelson Mandela Bay | C30: EC EASTERN CAPE
B31: EC101 Dr Beyers Naude | C31: EC EASTERN CAPE
B32: EC102 Blue Crane Route | C32: EC EASTERN CAPE
B33: EC104 Makana | C33: EC EASTERN CAPE
B34: EC105 Ndlambe | C34: EC EASTERN CAPE
B35: EC106 Sundays River Valley | C35: EC EASTERN CAPE
B36: EC108 Kouga | C36: EC EASTERN CAPE
B37: EC109 Kou-Kamma | C37: EC EASTERN CAPE
B38: DC10 Sarah Baartman | C38: EC EASTERN CAPE
B39: EC121 Mbhashe | C39: EC EASTERN CAPE
B40: EC122 Mnquma | C40: EC EASTERN CAPE
B41: EC123 Great Kei | C41: EC EASTERN CAPE
B42: EC124 Amahlathi | C42: EC EASTERN CAPE
B43: EC126 Ngqushwa | C43: EC EASTERN CAPE
B44: EC129 Raymond Mhlaba | C44: EC EASTERN CAPE
B45: DC12 Amathole | C45: EC EASTERN CAPE
B46: EC131 Inxuba Yethemba | C46: EC EASTERN CAPE
B47: EC135 Intsika Yethu | C47: EC EASTERN CAPE
B48: EC136 Emalahleni (Ec) | C48: EC EASTERN CAPE
B49: EC137 Engcobo | C49: EC EASTERN CAPE
B50: EC138 Sakhisizwe | C50: EC EASTERN CAPE
B51: EC139 Enoch Mgijima | C51: EC EASTERN CAPE
B52: DC13 Chris Hani | C52: EC EASTERN CAPE
B53: EC141 Elundini | C53: EC EASTERN CAPE
B54: EC142 Senqu | C54: EC EASTERN CAPE
B55: EC145 Walter Sisulu | C55: EC EASTERN CAPE
B56: DC14 Joe Gqabi | C56: EC EASTERN CAPE
B57: EC153 Ngquza Hills | C57: EC EASTERN CAPE
B58: EC154 Port St Johns | C58: EC EASTERN CAPE
B59: EC155 Nyandeni | C59: EC EASTERN CAPE
B60: EC156 Mhlontlo | C60: EC EASTERN CAPE
B61: EC157 King Sabata Dalindyebo | C61: EC EASTERN CAPE
B62: DC15 O .R. Tambo | C62: EC EASTERN CAPE
B63: EC441 Matatiele | C63: EC EASTERN CAPE
B64: EC442 Umzimvubu | C64: EC EASTERN CAPE
B65: EC443 Winnie Madikizela Mandela | C65: EC EASTERN CAPE
B66: EC444 Ntabankulu | C66: EC EASTERN CAPE
B67: DC44 Alfred Nzo | C67: EC EASTERN CAPE
B68: MAN Mangaung | C68: FS FREE STATE
B69: FS161 Letsemeng | C69: FS FREE STATE
B70: FS162 Kopanong | C70: FS FREE STATE
B71: FS163 Mohokare | C71: FS FREE STATE
B72: DC16 Xhariep | C72: FS FREE STATE
B73: FS181 Masilonyana | C73: FS FREE STATE
B74: FS182 Tokologo | C74: FS FREE STATE
B75: FS183 Tswelopele | C75: FS FREE STATE
B76: FS184 Matjhabeng | C76: FS FREE STATE
B77: FS185 Nala | C77: FS FREE STATE
B78: DC18 Lejweleputswa | C78: FS FREE STATE
B79: FS191 Setsoto | C79: FS FREE STATE
B80: FS192 Dihlabeng | C80: FS FREE STATE
B81: FS193 Nketoana | C81: FS FREE STATE
B82: FS194 Maluti-a-Phofung | C82: FS FREE STATE
B83: FS195 Phumelela | C83: FS FREE STATE
B84: FS196 Mantsopa | C84: FS FREE STATE
B85: DC19 Thabo Mofutsanyana | C85: FS FREE STATE
B86: FS201 Moqhaka | C86: FS FREE STATE
B87: FS203 Ngwathe | C87: FS FREE STATE
B88: FS204 Metsimaholo | C88: FS FREE STATE
B89: FS205 Mafube | C89: FS FREE STATE
B90: DC20 Fezile Dabi | C90: FS FREE STATE
B91: EKU City of Ekurhuleni | C91: GT GAUTENG
B92: JHB City Of Johannesburg | C92: GT GAUTENG
B93: TSH City Of Tshwane | C93: GT GAUTENG
B94: GT421 Emfuleni | C94: GT GAUTENG
B95: GT422 Midvaal | C95: GT GAUTENG
B96: GT423 Lesedi | C96: GT GAUTENG
B97: DC42 Sedibeng | C97: GT GAUTENG
B98: GT481 Mogale City | C98: GT GAUTENG
B99: GT484 Merafong City | C99: GT GAUTENG
B100: GT485 Rand West City | C100: GT GAUTENG
B101: DC48 West Rand | C101: GT GAUTENG
B102: ETH eThekwini | C102: KZN KWAZULU-NATAL
B103: KZN212 Umdoni | C103: KZN KWAZULU-NATAL
B104: KZN213 Umzumbe | C104: KZN KWAZULU-NATAL
B105: KZN214 uMuziwabantu | C105: KZN KWAZULU-NATAL
B106: KZN216 Ray Nkonyeni | C106: KZN KWAZULU-NATAL
B107: DC21 Ugu | C107: KZN KWAZULU-NATAL
B108: KZN221 uMshwathi | C108: KZN KWAZULU-NATAL
B109: KZN222 uMngeni | C109: KZN KWAZULU-NATAL
B110: KZN223 Mpofana | C110: KZN KWAZULU-NATAL
B111: KZN224 Impendle | C111: KZN KWAZULU-NATAL
B112: KZN225 Msunduzi | C112: KZN KWAZULU-NATAL
B113: KZN226 Mkhambathini | C113: KZN KWAZULU-NATAL
B114: KZN227 Richmond | C114: KZN KWAZULU-NATAL
B115: DC22 uMgungundlovu | C115: KZN KWAZULU-NATAL
B116: KZN235 Okhahlamba | C116: KZN KWAZULU-NATAL
B117: KZN237 Inkosi Langalibalele | C117: KZN KWAZULU-NATAL
B118: KZN238 Alfred Duma | C118: KZN KWAZULU-NATAL
B119: DC23 Uthukela | C119: KZN KWAZULU-NATAL
B120: KZN241 Endumeni | C120: KZN KWAZULU-NATAL
B121: KZN242 Nquthu | C121: KZN KWAZULU-NATAL
B122: KZN244 Msinga | C122: KZN KWAZULU-NATAL
B123: KZN245 Umvoti | C123: KZN KWAZULU-NATAL
B124: DC24 Umzinyathi | C124: KZN KWAZULU-NATAL
B125: KZN252 Newcastle | C125: KZN KWAZULU-NATAL
B126: KZN253 Emadlangeni | C126: KZN KWAZULU-NATAL
B127: KZN254 Dannhauser | C127: KZN KWAZULU-NATAL
B128: DC25 Amajuba | C128: KZN KWAZULU-NATAL
B129: KZN261 eDumbe | C129: KZN KWAZULU-NATAL
B130: KZN262 uPhongolo | C130: KZN KWAZULU-NATAL
B131: KZN263 Abaqulusi | C131: KZN KWAZULU-NATAL
B132: KZN265 Nongoma | C132: KZN KWAZULU-NATAL
B133: KZN266 Ulundi | C133: KZN KWAZULU-NATAL
B134: DC26 Zululand | C134: KZN KWAZULU-NATAL
B135: KZN271 Umhlabuyalingana | C135: KZN KWAZULU-NATAL
B136: KZN272 Jozini | C136: KZN KWAZULU-NATAL
B137: KZN275 Mtubatuba | C137: KZN KWAZULU-NATAL
B138: KZN276 Hlabisa Big Five | C138: KZN KWAZULU-NATAL
B139: DC27 Umkhanyakude | C139: KZN KWAZULU-NATAL
B140: KZN281 Mfolozi | C140: KZN KWAZULU-NATAL
B141: KZN282 uMhlathuze | C141: KZN KWAZULU-NATAL
B142: KZN284 uMlalazi | C142: KZN KWAZULU-NATAL
B143: KZN285 Mthonjaneni | C143: KZN KWAZULU-NATAL
B144: KZN286 Nkandla | C144: KZN KWAZULU-NATAL
B145: DC28 King Cetshwayo | C145: KZN KWAZULU-NATAL
B146: KZN291 Mandeni | C146: KZN KWAZULU-NATAL
B147: KZN292 KwaDukuza | C147: KZN KWAZULU-NATAL
B148: KZN293 Ndwedwe | C148: KZN KWAZULU-NATAL
B149: KZN294 Maphumulo | C149: KZN KWAZULU-NATAL
B150: DC29 iLembe | C150: KZN KWAZULU-NATAL
B151: KZN433 Greater Kokstad | C151: KZN KWAZULU-NATAL
B152: KZN434 Ubuhlebezwe | C152: KZN KWAZULU-NATAL
B153: KZN435 Umzimkhulu | C153: KZN KWAZULU-NATAL
B154: KZN436 Dr Nkosazana Dlamini Zuma | C154: KZN KWAZULU-NATAL
B155: DC43 Harry Gwala | C155: KZN KWAZULU-NATAL
B156: LIM331 Greater Giyani | C156: LIM LIMPOPO
B157: LIM332 Greater Letaba | C157: LIM LIMPOPO
B158: LIM333 Greater Tzaneen | C158: LIM LIMPOPO
B159: LIM334 Ba-Phalaborwa | C159: LIM LIMPOPO
B160: LIM335 Maruleng | C160: LIM LIMPOPO
B161: DC33 Mopani | C161: LIM LIMPOPO
B162: LIM341 Musina | C162: LIM LIMPOPO
B163: LIM343 Thulamela | C163: LIM LIMPOPO
B164: LIM344 Makhado | C164: LIM LIMPOPO
B165: LIM345 Collins Chabane | C165: LIM LIMPOPO
B166: DC34 Vhembe | C166: LIM LIMPOPO
B167: LIM351 Blouberg | C167: LIM LIMPOPO
B168: LIM353 Molemole | C168: LIM LIMPOPO
B169: LIM354 Polokwane | C169: LIM LIMPOPO
B170: LIM355 Lepelle-Nkumpi | C170: LIM LIMPOPO
B171: DC35 Capricorn | C171: LIM LIMPOPO
B172: LIM361 Thabazimbi | C172: LIM LIMPOPO
B173: LIM362 Lephalale | C173: LIM LIMPOPO
B174: LIM366 Bela Bela | C174: LIM LIMPOPO
B175: LIM367 Mogalakwena | C175: LIM LIMPOPO
B176: LIM368 Modimolle-Mookgopong | C176: LIM LIMPOPO
B177: DC36 Waterberg | C177: LIM LIMPOPO
B178: LIM471 Ephraim Mogale | C178: LIM LIMPOPO
B179: LIM472 Elias Motsoaledi | C179: LIM LIMPOPO
B180: LIM473 Makhuduthamaga | C180: LIM LIMPOPO
B181: LIM476 Tubatse Fetakgomo | C181: LIM LIMPOPO
B182: DC47 Sekhukhune | C182: LIM LIMPOPO
B183: MP301 Albert Luthuli | C183: MP MPUMALANGA
B184: MP302 Msukaligwa | C184: MP MPUMALANGA
B185: MP303 Mkhondo | C185: MP MPUMALANGA
B186: MP304 Pixley Ka Seme (MP) | C186: MP MPUMALANGA
B187: MP305 Lekwa | C187: MP MPUMALANGA
B188: MP306 Dipaleseng | C188: MP MPUMALANGA
B189: MP307 Govan Mbeki | C189: MP MPUMALANGA
B190: DC30 Gert Sibande | C190: MP MPUMALANGA
B191: MP311 Victor Khanye | C191: MP MPUMALANGA
B192: MP312 Emalahleni (Mp) | C192: MP MPUMALANGA
B193: MP313 Steve Tshwete | C193: MP MPUMALANGA
B194: MP314 Emakhazeni | C194: MP MPUMALANGA
B195: MP315 Thembisile Hani | C195: MP MPUMALANGA
B196: MP316 Dr J.S. Moroka | C196: MP MPUMALANGA
B197: DC31 Nkangala | C197: MP MPUMALANGA
B198: MP321 Thaba Chweu | C198: MP MPUMALANGA
B199: MP324 Nkomazi | C199: MP MPUMALANGA
B200: MP325 Bushbuckridge | C200: MP MPUMALANGA
B201: MP326 City of Mbombela | C201: MP MPUMALANGA
B202: DC32 Ehlanzeni | C202: MP MPUMALANGA
B203: NC451 Joe Morolong | C203: NC NORTHERN CAPE
B204: NC452 Ga-Segonyana | C204: NC NORTHERN CAPE
B205: NC453 Gamagara | C205: NC NORTHERN CAPE
B206: DC45 John Taolo Gaetsewe | C206: NC NORTHERN CAPE
B207: NC061 Richtersveld | C207: NC NORTHERN CAPE
B208: NC062 Nama Khoi | C208: NC NORTHERN CAPE
B209: NC064 Kamiesberg | C209: NC NORTHERN CAPE
B210: NC065 Hantam | C210: NC NORTHERN CAPE
B211: NC066 Karoo Hoogland | C211: NC NORTHERN CAPE
B212: NC067 Khai-Ma | C212: NC NORTHERN CAPE
B213: DC6 Namakwa | C213: NC NORTHERN CAPE
... 73 more rows

Sheet Org structure
A1: Organisational Structure Votes | C1: Organisational Structure Sub-Votes | E1: Display Sub-Votes
A2: =B2&" - "&C2 -> Vote 01 - Council General | B2: Vote 01 | C2: Council General
A3: =B4&" - "&C4 -> Vote 02 - Office Of The Executive Mayor | B3: 01.1 | C3: Council | D3: =CONCATENATE(B3, " - ", C3) -> 01.1 - Council | E3: 01.1 - Council
A4: =B8&" - "&C8 -> Vote 03 - Office Of The Speaker | B4: Vote 02 | C4: Office Of The Executive Mayor
A5: =B10&" - "&C10 -> Vote 04 - Council Whip | B5: 02.1 | C5: Office Of The Executive Mayor | D5: =CONCATENATE(B5, " - ", C5) -> 02.1 - Office Of The Executive Mayor | E5: 02.1 - Office Of The Executive Mayor
A6: =B15&" - "&C15 -> Vote 05 - Office Of The Municipal Manager | B6: 02.2 | C6: Mayorall Committee | D6: =CONCATENATE(B6, " - ", C6) -> 02.2 - Mayorall Committee | E6: 02.2 - Mayorall Committee
A7: =B24&" - "&C24 -> Vote 06 - Corporate Services | B7: 02.3 | C7: Council Whip | D7: =CONCATENATE(B7, " - ", C7) -> 02.3 - Council Whip | E7: 02.3 - Council Whip
A8: =B28&" - "&C28 -> Vote 07 - Finance | B8: Vote 03 | C8: Office Of The Speaker
A9: =B38&" - "&C38 -> Vote 08 - Human Resources | B9: 03.1 | C9: Office Of The Speaker | D9: =CONCATENATE(B9, " - ", C9) -> 03.1 - Office Of The Speaker | E9: 03.1 - Office Of The Speaker
A10: =B43&" - "&C43 -> Vote 09 - Community Services | B10: Vote 04 | C10: Council Whip
A11: =B57&" - "&C57 -> Vote 10 - Public Safety And Transport | B11: 04.1 | C11: Council Whip Admin | D11: =CONCATENATE(B11, " - ", C11) -> 04.1 - Council Whip Admin | E11: 04.1 - Council Whip Admin
A12: =B62&" - "&C62 -> Vote 11 - Economic Development | B12: 04.2 | C12: Mayor Personnel | D12: =CONCATENATE(B12, " - ", C12) -> 04.2 - Mayor Personnel | E12: 04.2 - Mayor Personnel
A13: =B66&" - "&C66 -> Vote 12 - Engineering Services | B13: 04.3 | C13: Speaker Personnel | D13: =CONCATENATE(B13, " - ", C13) -> 04.3 - Speaker Personnel | E13: 04.3 - Speaker Personnel
A14: =B74&" - "&C74 -> Vote 13 - Water/ Sewerage | B14: 04.4 | C14: Mmc Secretary | D14: =CONCATENATE(B14, " - ", C14) -> 04.4 - Mmc Secretary | E14: 04.4 - Mmc Secretary
A15: =B80&" - "&C80 -> Vote 14 - Electricity | B15: Vote 05 | C15: Office Of The Municipal Manager
A16: =B88&" - "&C88 -> Vote 15 - Other | B16: 05.1 | C16: Administration | D16: =CONCATENATE(B16, " - ", C16) -> 05.1 - Administration | E16: 05.1 - Administration
B17: 05.2 | C17: Integrated Development Management | D17: =CONCATENATE(B17, " - ", C17) -> 05.2 - Integrated Development Management | E17: 05.2 - Integrated Development Management
B18: 05.3 | C18: Internal Audit | D18: =CONCATENATE(B18, " - ", C18) -> 05.3 - Internal Audit | E18: 05.3 - Internal Audit
B19: 05.4 | C19: Organisation & Workstudy | D19: =CONCATENATE(B19, " - ", C19) -> 05.4 - Organisation & Workstudy | E19: 05.4 - Organisation & Workstudy
B20: 05.5 | C20: Information Communication Technology | D20: =CONCATENATE(B20, " - ", C20) -> 05.5 - Information Communication Technology | E20: 05.5 - Information Communication Technology
B21: 05.6 | C21: Unit Manager: Od | D21: =CONCATENATE(B21, " - ", C21) -> 05.6 - Unit Manager: Od | E21: 05.6 - Unit Manager: Od
B22: 05.7 | C22: Unit Manager: Virginia | D22: =CONCATENATE(B22, " - ", C22) -> 05.7 - Unit Manager: Virginia | E22: 05.7 - Unit Manager: Virginia
B23: 05.8 | C23: Legal Services | D23: =CONCATENATE(B23, " - ", C23) -> 05.8 - Legal Services | E23: 05.8 - Legal Services
B24: Vote 06 | C24: Corporate Services
B25: 06.1 | C25: Administration | D25: =CONCATENATE(B25, " - ", C25) -> 06.1 - Administration | E25: 06.1 - Administration
B26: 06.2 | C26: Libraries | D26: =CONCATENATE(B26, " - ", C26) -> 06.2 - Libraries | E26: 06.2 - Libraries
B27: 06.3 | C27: Halls And Offices | D27: =CONCATENATE(B27, " - ", C27) -> 06.3 - Halls And Offices | E27: 06.3 - Halls And Offices
B28: Vote 07 | C28: Finance
B29: 07.1 | C29: Administration | D29: =CONCATENATE(B29, " - ", C29) -> 07.1 - Administration | E29: 07.1 - Administration
B30: 07.2 | C30: Expenditure | D30: =CONCATENATE(B30, " - ", C30) -> 07.2 - Expenditure | E30: 07.2 - Expenditure
B31: 07.3 | C31: Salaries | D31: =CONCATENATE(B31, " - ", C31) -> 07.3 - Salaries | E31: 07.3 - Salaries
B32: 07.4 | C32: Supply Chain Management | D32: =CONCATENATE(B32, " - ", C32) -> 07.4 - Supply Chain Management | E32: 07.4 - Supply Chain Management
B33: 07.5 | C33: Budget Control | D33: =CONCATENATE(B33, " - ", C33) -> 07.5 - Budget Control | E33: 07.5 - Budget Control
B34: 07.6 | C34: Revenue | D34: =CONCATENATE(B34, " - ", C34) -> 07.6 - Revenue | E34: 07.6 - Revenue
B35: 07.7 | C35: Fresh Produce Market | D35: =CONCATENATE(B35, " - ", C35) -> 07.7 - Fresh Produce Market | E35: 07.7 - Fresh Produce Market
B36: 07.8 | C36: Valuation | D36: =CONCATENATE(B36, " - ", C36) -> 07.8 - Valuation | E36: 07.8 - Valuation
B37: 07.9 | C37: Credit Control | D37: =CONCATENATE(B37, " - ", C37) -> 07.9 - Credit Control | E37: 07.9 - Credit Control
B38: Vote 08 | C38: Human Resources
B39: 08.1 | C39: Administration | D39: =CONCATENATE(B39, " - ", C39) -> 08.1 - Administration | E39: 08.1 - Administration
B40: 08.2 | C40: Human Labour Relations | D40: =CONCATENATE(B40, " - ", C40) -> 08.2 - Human Labour Relations | E40: 08.2 - Human Labour Relations
B41: 08.3 | C41: Training | D41: =CONCATENATE(B41, " - ", C41) -> 08.3 - Training | E41: 08.3 - Training
B42: 08.4 | C42: Health & Safety | D42: =CONCATENATE(B42, " - ", C42) -> 08.4 - Health & Safety | E42: 08.4 - Health & Safety
B43: Vote 09 | C43: Community Services
B44: 09.1 | C44: Admin | D44: =CONCATENATE(B44, " - ", C44) -> 09.1 - Admin | E44: 09.1 - Admin
B45: 09.2 | C45: Welfare | D45: =CONCATENATE(B45, " - ", C45) -> 09.2 - Welfare | E45: 09.2 - Welfare
B46: 09.3 | C46: Environmental Health Services | D46: =CONCATENATE(B46, " - ", C46) -> 09.3 - Environmental Health Services | E46: 09.3 - Environmental Health Services
B47: 09.4 | C47: Parks & Recreation | D47: =CONCATENATE(B47, " - ", C47) -> 09.4 - Parks & Recreation | E47: 09.4 - Parks & Recreation
B48: 09.5 | C48: Cemetries | D48: =CONCATENATE(B48, " - ", C48) -> 09.5 - Cemetries | E48: 09.5 - Cemetries
B49: 09.6 | C49: Community Centres | D49: =CONCATENATE(B49, " - ", C49) -> 09.6 - Community Centres | E49: 09.6 - Community Centres
B50: 09.7 | C50: Swimming Pools | D50: =CONCATENATE(B50, " - ", C50) -> 09.7 - Swimming Pools | E50: 09.7 - Swimming Pools
B51: 09.8 | C51: Sportgrounds & Stadiums | D51: =CONCATENATE(B51, " - ", C51) -> 09.8 - Sportgrounds & Stadiums | E51: 09.8 - Sportgrounds & Stadiums
B52: 09.9 | C52: Recreation | D52: =CONCATENATE(B52, " - ", C52) -> 09.9 - Recreation | E52: 09.9 - Recreation
B53: 09.10 | C53: Public Open Spaces | D53: =CONCATENATE(B53, " - ", C53) -> 09.10 - Public Open Spaces | E53: 09.10 - Public Open Spaces
B54: 09.11 | C54: Workshop | D54: =CONCATENATE(B54, " - ", C54) -> 09.11 - Workshop | E54: 09.11 - Workshop
B55: 09.12 | C55: Refuse Removal | D55: =CONCATENATE(B55, " - ", C55) -> 09.12 - Refuse Removal | E55: 09.12 - Refuse Removal
B56: 09.13 | C56: Refuse Dumping Area | D56: =CONCATENATE(B56, " - ", C56) -> 09.13 - Refuse Dumping Area | E56: 09.13 - Refuse Dumping Area
B57: Vote 10 | C57: Public Safety And Transport
B58: 10.1 | C58: Traffic | D58: =CONCATENATE(B58, " - ", C58) -> 10.1 - Traffic | E58: 10.1 - Traffic
B59: 10.2 | C59: Disaster Management | D59: =CONCATENATE(B59, " - ", C59) -> 10.2 - Disaster Management | E59: 10.2 - Disaster Management
B60: 10.3 | C60: Security | D60: =CONCATENATE(B60, " - ", C60) -> 10.3 - Security | E60: 10.3 - Security
B61: 10.4 | C61: Fire Services | D61: =CONCATENATE(B61, " - ", C61) -> 10.4 - Fire Services | E61: 10.4 - Fire Services
B62: Vote 11 | C62: Economic Development
B63: 11.1 | C63: Administration | D63: =CONCATENATE(B63, " - ", C63) -> 11.1 - Administration | E63: 11.1 - Administration
B64: 11.2 | C64: Airport | D64: =CONCATENATE(B64, " - ", C64) -> 11.2 - Airport | E64: 11.2 - Airport
B65: 11.3 | C65: Spatial Planning | D65: =CONCATENATE(B65, " - ", C65) -> 11.3 - Spatial Planning | E65: 11.3 - Spatial Planning
B66: Vote 12 | C66: Engineering Services
B67: 12.1 | C67: Engineering Administration | D67: =CONCATENATE(B67, " - ", C67) -> 12.1 - Engineering Administration | E67: 12.1 - Engineering Administration
B68: 12.2 | C68: Planning | D68: =CONCATENATE(B68, " - ", C68) -> 12.2 - Planning | E68: 12.2 - Planning
B69: 12.3 | C69: Project Management Unit | D69: =CONCATENATE(B69, " - ", C69) -> 12.3 - Project Management Unit | E69: 12.3 - Project Management Unit
B70: 12.4 | C70: Intern Serv Building Workshop | D70: =CONCATENATE(B70, " - ", C70) -> 12.4 - Intern Serv Building Workshop | E70: 12.4 - Intern Serv Building Workshop
B71: 12.5 | C71: Roads | D71: =CONCATENATE(B71, " - ", C71) -> 12.5 - Roads | E71: 12.5 - Roads
B72: 12.6 | C72: Stormwater | D72: =CONCATENATE(B72, " - ", C72) -> 12.6 - Stormwater | E72: 12.6 - Stormwater
B73: 12.7 | C73: Roads & Stormwater Workshop | D73: =CONCATENATE(B73, " - ", C73) -> 12.7 - Roads & Stormwater Workshop | E73: 12.7 - Roads & Stormwater Workshop
B74: Vote 13 | C74: Water/ Sewerage
B75: 13.1 | C75: Water | D75: =CONCATENATE(B75, " - ", C75) -> 13.1 - Water | E75: 13.1 - Water
B76: 13.2 | C76: Water Supply | D76: =CONCATENATE(B76, " - ", C76) -> 13.2 - Water Supply | E76: 13.2 - Water Supply
B77: 13.3 | C77: Water Workshop | D77: =CONCATENATE(B77, " - ", C77) -> 13.3 - Water Workshop | E77: 13.3 - Water Workshop
B78: 13.4 | C78: Sewerage Network | D78: =CONCATENATE(B78, " - ", C78) -> 13.4 - Sewerage Network | E78: 13.4 - Sewerage Network
B79: 13.5 | C79: Purifying Works | D79: =CONCATENATE(B79, " - ", C79) -> 13.5 - Purifying Works | E79: 13.5 - Purifying Works
B80: Vote 14 | C80: Electricity
B81: 14.1 | C81: Electricity | D81: =CONCATENATE(B81, " - ", C81) -> 14.1 - Electricity | E81: 14.1 - Electricity
B82: 14.2 | C82: Distribution | D82: =CONCATENATE(B82, " - ", C82) -> 14.2 - Distribution | E82: 14.2 - Distribution
B83: 14.3 | C83: Distribution 132Kva | D83: =CONCATENATE(B83, " - ", C83) -> 14.3 - Distribution 132Kva | E83: 14.3 - Distribution 132Kva
B84: 14.4 | C84: Street Lights | D84: =CONCATENATE(B84, " - ", C84) -> 14.4 - Street Lights | E84: 14.4 - Street Lights
B85: 14.5 | C85: Workshop | D85: =CONCATENATE(B85, " - ", C85) -> 14.5 - Workshop | E85: 14.5 - Workshop
B86: 14.6 | C86: Revenue Protection | D86: =CONCATENATE(B86, " - ", C86) -> 14.6 - Revenue Protection | E86: 14.6 - Revenue Protection
B87: 14.7 | C87: Mechanical Workshop | D87: =CONCATENATE(B87, " - ", C87) -> 14.7 - Mechanical Workshop | E87: 14.7 - Mechanical Workshop
B88: Vote 15 | C88: Other
B89: 15.1 | C89: Housing | D89: =CONCATENATE(B89, " - ", C89) -> 15.1 - Housing | E89: 15.1 - Housing
B90: 15.2 | C90: Administration | D90: =CONCATENATE(B90, " - ", C90) -> 15.2 - Administration | E90: 15.2 - Administration
B91: 15.3 | C91: Sundry Properties | D91: =CONCATENATE(B91, " - ", C91) -> 15.3 - Sundry Properties | E91: 15.3 - Sundry Properties
B92: 15.4 | C92: Building Inspections | D92: =CONCATENATE(B92, " - ", C92) -> 15.4 - Building Inspections | E92: 15.4 - Building Inspections

Sheet Contacts
A1: =muni&" - "&" Contact Information" -> FS184 Matjhabeng - Contact Information
A3: A. GENERAL INFORMATION
A4: Municipality | B4: =muni -> FS184 Matjhabeng | C4: Set name on 'Instructions' sheet
A6: Grade | B6: Grade 5 | C6: 1 Grade in terms of the Remuneration of Public Office Bearers Act.
A8: Province | B8: =IF(B4>" ",VLOOKUP(B4,'Lookup and lists'!B28:C311,2, FALSE)," ") -> FS FREE STATE
A10: Web Address | B10: www.matjhabeng.fs.gov.za
A12: e-mail Address | B12: lindsey.williams@matjhabeng.co.za
A14: B. CONTACT INFORMATION
A15: Postal address:
A16: P.O. Box | B16: 708
A17: City / Town | B17: Welkom
A18: Postal Code | B18: 9459
A20: Street address
A21: Building | B21: Civic Building
A22: Street No. & Name | B22: 319 State Way
A23: City / Town | B23: Welkom
A24: Postal Code | B24: 9459
A26: General Contacts
A27: Telephone number | B27: 0573913911
A28: Fax number | B28: 0573523705
A30: C. POLITICAL LEADERSHIP
A31: Speaker: | C31: Secretary/PA to the Speaker:
A32: ID Number | B32: 640206 5770 085 | C32: ID Number | D32: 590615 0950 080
A33: Title | B33: Mr | C33: Title | D33: Mrs
A34: Name | B34: CLLR. B. STOFILE | C34: Name | D34: Mapitso Mohapi
A35: Telephone number | B35: 0573913283 | C35: Telephone number | D35: 0573913238
A36: Cell number | B36: 0716004899 | C36: Cell number | D36: 0837823625
A37: Fax number | B37: 0573521267 | C37: Fax number
A38: E-mail address | B38: Mapitsos@matjhabeng.co.za | C38: E-mail address | D38: Mapitsos@matjhabeng.co.za
A40: Mayor/Executive Mayor: | C40: Secretary/PA to the Mayor/Executive Mayor:
A41: ID Number | C41: ID Number | D41: 960619 0137 088
A42: Title | B42: Mr | C42: Title | D42: Mrs
A43: Name | B43: H Mokhomo | C43: Name | D43: Chrisna Kasselman
A44: Telephone number | C44: Telephone number | D44: 0573913180
A45: Cell number | C45: Cell number | D45: 0792723194
A46: Fax number | C46: Fax number
A47: E-mail address | B47: Hlobohang.Mokhomo@matjhabeng.co.za | C47: E-mail address | D47: chrisna.kasselman@matjhabeng.co.za
A49: Deputy Mayor/Executive Mayor: | C49: Secretary/PA to the Deputy Mayor/Executive Mayor:
A50: ID Number | C50: ID Number
A51: Title | C51: Title | D51: Mrs
A52: Name | C52: Name | D52: Betty Ndi Notsi
A53: Telephone number | C53: Telephone number | D53: 0573913231
A54: Cell number | C54: Cell number | D54: 0710512425
A55: Fax number | C55: Fax number
A56: E-mail address | C56: E-mail address | D56: Betty.Notsi@matjhabeng.co.za
A58: D. MANAGEMENT LEADERSHIP
A59: Municipal Manager: | C59: Secretary/PA to the Municipal Manager:
A60: ID Number | B60: 7312225648080 | C60: ID Number | D60: 830131 0348 085
A61: Title | B61: Adv | C61: Title | D61: Ms.
A62: Name | B62: THABO PANYANI | C62: Name | D62: Akhona Noholoza
A63: Telephone number | B63: 0573913450 | C63: Telephone number | D63: 057 3913416
A64: Cell number | B64: 0825514866 | C64: Cell number | D64: 071 473 1514
A65: Fax number | C65: Fax number | D65: 0573523705
A66: E-mail address | B66: thabo.panyani@matjhabeng.co.za | C66: E-mail address | D66: Akhona.Noholoza@matjhabeng.co.za
A68: Chief Financial Officer | C68: Secretary/PA to the Chief Financial Officer
A69: ID Number | C69: ID Number | D69: 8009100119083
A70: Title | B70: Ms | C70: Title | D70: Ms.
A71: Name | B71: LINDSEY WILLIAMS | C71: Name | D71: Leona Nel
A72: Telephone number | B72: 0573913339 | C72: Telephone number | D72: 0573913450
A73: Cell number | B73: 0765715358 | C73: Cell number | D73: 0845501502
A74: Fax number | C74: Fax number | D74: 0573523705
A75: E-mail address | B75: lindsey.williams@matjhabeng.co.za | C75: E-mail address | D75: leona.nel@matjhabeng.co.za
A77: Official responsible for submitting financial information | C77: Official responsible for submitting financial information
A78: ID Number | C78: ID Number
A79: Title | B79: Ms. | C79: Title | D79: Ms.
A80: Name | B80: KGALI TSIE | C80: Name | D80: KGALI TSIE
A81: Telephone number | B81: 0573913179 | C81: Telephone number | D81: 057 3913179
A82: Cell number | B82: 0766538845 | C82: Cell number
A83: Fax number | C83: Fax number
A84: E-mail address | B84: kgali.tsie@matjhabeng.co.za | C84: E-mail address | D84: kgali.tsie@matjhabeng.co.za
A85: Official responsible for submitting financial information | C85: Official responsible for submitting financial information
A86: ID Number | C86: ID Number
A87: Title | C87: Title
A88: Name | C88: Name
A89: Telephone number | C89: Telephone number
A90: Cell number | C90: Cell number
A91: Fax number | C91: Fax number
A92: E-mail address | C92: E-mail address
A93: Official responsible for submitting financial information | C93: Official responsible for submitting financial information
A94: ID Number | C94: ID Number
A95: Title | C95: Title
A96: Name | C96: Name
A97: Telephone number | C97: Telephone number
A98: Cell number | C98: Cell number
A99: Fax number | C99: Fax number
A100: E-mail address | C100: E-mail address
A101: Official responsible for submitting financial information | C101: Official responsible for submitting financial information
A102: ID Number | C102: ID Number
A103: Title | C103: Title
A104: Name | C104: Name
A105: Telephone number | C105: Telephone number
A106: Cell number | C106: Cell number
A107: Fax number | C107: Fax number
A108: E-mail address | C108: E-mail address
A109: Official responsible for submitting financial information | C109: Official responsible for submitting financial information
A110: ID Number | C110: ID Number
A111: Title | C111: Title
A112: Name | C112: Name
A113: Telephone number | C113: Telephone number
A114: Cell number | C114: Cell number
A115: Fax number | C115: Fax number
A116: E-mail address | C116: E-mail address
A117: Official responsible for submitting financial information | C117: Official responsible for submitting financial information
A118: ID Number | C118: ID Number
A119: Title | C119: Title
A120: Name | C120: Name
A121: Telephone number | C121: Telephone number
A122: Cell number | C122: Cell number
A123: Fax number | C123: Fax number
A124: E-mail address | C124: E-mail address
A125: Official responsible for submitting financial information | C125: Official responsible for submitting financial information
A126: ID Number | C126: ID Number
A127: Title | C127: Title
A128: Name | C128: Name
A129: Telephone number | C129: Telephone number
A130: Cell number | C130: Cell number
A131: Fax number | C131: Fax number
A132: E-mail address | C132: E-mail address
A133: Official responsible for submitting financial information
A134: ID Number
A135: Title
A136: Name
A137: Telephone number
A138: Cell number
A139: Fax number
A140: E-mail address

Sheet C1-Sum
A1: =muni& " - "&s71sum& " - "&date -> FS184 Matjhabeng - Table C1 Monthly Budget Statement Summary - M04 October
A2: =desc -> Description | B2: =Head1 -> 2023/24 | C2: =Head2 -> Budget Year 2024/25
B3: =Head5 -> Audited Outcome | C3: =Head6 -> Original Budget | D3: =Head7 -> Adjusted Budget | E3: =Head38 -> Monthly actual | F3: =Head39 -> YearTD actual | G3: =Head40 -> YearTD budget | H3: =Head41 -> YTD variance | I3: =Head41 -> YTD variance | J3: =Head8 -> Full Year Forecast
A4: R thousands | I4: %
A5: Financial Performance
A6: Property rates | B6: =SUM('C4-FinPerf RE'!C22) -> 824091887 | C6: =SUM('C4-FinPerf RE'!D22) -> 494592408 | D6: =SUM('C4-FinPerf RE'!E22) -> 494592408 | E6: =SUM('C4-FinPerf RE'!F22) -> 41366758.06 | F6: =SUM('C4-FinPerf RE'!G22) -> 168468316.4 | G6: =SUM('C4-FinPerf RE'!H22) -> 164864096 | H6: =F6-G6 -> 3604220.37 | I6: =IF(H6=0,"",H6/G6) -> 0.02186176649 | J6: =SUM('C4-FinPerf RE'!K22) -> 494592408
A7: Service charges | B7: =SUM('C4-FinPerf RE'!C7:C10) -> 1626336992 | C7: =SUM('C4-FinPerf RE'!D7:D10) -> 1787985801 | D7: =SUM('C4-FinPerf RE'!E7:E10) -> 1787985801 | E7: =SUM('C4-FinPerf RE'!F7:F10) -> 149208096.9 | F7: =SUM('C4-FinPerf RE'!G7:G10) -> 620936915.8 | G7: =SUM('C4-FinPerf RE'!H7:H10) -> 595995236 | H7: =F7-G7 -> 24941679.81 | I7: =IF(H7=0,"",H7/G7) -> 0.04184879057 | J7: =SUM('C4-FinPerf RE'!K7:K10) -> 1787985801
A8: Investment revenue | B8: ='C4-FinPerf RE'!C15 -> 5721951.59 | C8: ='C4-FinPerf RE'!D15 -> 5162384 | D8: ='C4-FinPerf RE'!E15 -> 5162384 | E8: ='C4-FinPerf RE'!F15 -> 81548.88 | F8: ='C4-FinPerf RE'!G15 -> 367636.03 | G8: ='C4-FinPerf RE'!H15 -> 1720792 | H8: =F8-G8 -> -1353155.97 | I8: =IF(H8=0,"",H8/G8) -> -0.7863564975 | J8: ='C4-FinPerf RE'!K15 -> 5162384
A9: Transfers and subsidies - Operational | B9: ='C4-FinPerf RE'!C26 -> 691283997.8 | C9: ='C4-FinPerf RE'!D26 -> 737537000 | D9: ='C4-FinPerf RE'!E26 -> 737537000 | E9: ='C4-FinPerf RE'!F26 -> 643480 | F9: ='C4-FinPerf RE'!G26 -> 307312882.4 | G9: ='C4-FinPerf RE'!H26 -> 245845652 | H9: 61467230.36 | I9: =IF(H9=0,"",H9/G9) -> 0.2500236627 | J9: ='C4-FinPerf RE'!K26 -> 737537000
A10: Other own revenue | B10: =+B11-SUM(B6:B9) -> 584975261.9 | C10: =+C11-SUM(C6:C9) -> 1146599497 | D10: 1146599497 | E10: 53949120.66 | F10: 209738645.8 | G10: 382199720 | H10: =F10-G10 -> -172461074.2 | I10: =IF(H10=0,"",H10/G10) -> -0.4512328637 | J10: 0
A11: Total Revenue (excluding capital transfers and contributions) | B11: =+'C4-FinPerf RE'!C33 -> 3732410090 | C11: =+'C4-FinPerf RE'!D33 -> 4171877090 | D11: =+'C4-FinPerf RE'!E33 -> 4171877090 | E11: =+'C4-FinPerf RE'!F33 -> 245249004.5 | F11: =+'C4-FinPerf RE'!G33 -> 1306824396 | G11: =+'C4-FinPerf RE'!H33 -> 1390625496 | H11: =F11-G11 -> -83801099.6 | I11: =IF(H11=0,"",H11/G11) -> -0.06026144339 | J11: =+'C4-FinPerf RE'!K33 -> 4171877090
A12: Employee costs | B12: ='C4-FinPerf RE'!C35 -> 992502691.2 | C12: ='C4-FinPerf RE'!D35 -> 999676278 | D12: ='C4-FinPerf RE'!E35 -> 999676278 | E12: ='C4-FinPerf RE'!F35 -> 81930423.47 | F12: ='C4-FinPerf RE'!G35 -> 351950894.3 | G12: ='C4-FinPerf RE'!H35 -> 333227136 | H12: 18723758.28 | I12: 0.05618917626 | J12: ='C4-FinPerf RE'!K35 -> 999676278
A13: Remuneration of Councillors | B13: ='C4-FinPerf RE'!C36 -> 10215723.07 | C13: ='C4-FinPerf RE'!D36 -> 41290852 | D13: ='C4-FinPerf RE'!E36 -> 41290852 | E13: ='C4-FinPerf RE'!F36 -> 757445.61 | F13: ='C4-FinPerf RE'!G36 -> 3033737.51 | G13: ='C4-FinPerf RE'!H36 -> 13763668 | H13: -10729930.49 | I13: -0.7795836466 | J13: ='C4-FinPerf RE'!K36 -> 41290852
A14: Depreciation and amortisation | B14: ='C4-FinPerf RE'!C40 -> 205359068 | C14: ='C4-FinPerf RE'!D40 -> 263566668 | D14: ='C4-FinPerf RE'!E40 -> 263566668 | E14: ='C4-FinPerf RE'!F40 -> 0 | F14: ='C4-FinPerf RE'!G40 -> 0 | G14: ='C4-FinPerf RE'!H40 -> 87855564 | H14: -87855564 | I14: -1 | J14: ='C4-FinPerf RE'!K40 -> 263566668
A15: Interest | B15: ='C4-FinPerf RE'!C41 -> 242872234.6 | C15: ='C4-FinPerf RE'!D41 -> 194916938 | D15: ='C4-FinPerf RE'!E41 -> 194916938 | E15: ='C4-FinPerf RE'!F41 -> 48911.25 | F15: ='C4-FinPerf RE'!G41 -> 93194.88 | G15: ='C4-FinPerf RE'!H41 -> 64972316 | H15: -64879121.12 | I15: -0.9985656217 | J15: ='C4-FinPerf RE'!K41 -> 194916938
A16: Inventory consumed and bulk purchases | B16: =SUM('C4-FinPerf RE'!C37+'C4-FinPerf RE'!C38) -> 1397528216 | C16: =SUM('C4-FinPerf RE'!D37+'C4-FinPerf RE'!D38) -> 969841744 | D16: =SUM('C4-FinPerf RE'!E37+'C4-FinPerf RE'!E38) -> 1678543799 | E16: =SUM('C4-FinPerf RE'!F37+'C4-FinPerf RE'!F38) -> 479833476.9 | F16: =SUM('C4-FinPerf RE'!G37+'C4-FinPerf RE'!G38) -> 258735818.6 | G16: =SUM('C4-FinPerf RE'!H37+'C4-FinPerf RE'!H38) -> 401096090.2 | H16: -142360271.7 | I16: -0.3549280961 | J16: =SUM('C4-FinPerf RE'!K37+'C4-FinPerf RE'!K38) -> 1678543799
A17: Transfers and subsidies | B17: ='C4-FinPerf RE'!C43 -> 0 | C17: ='C4-FinPerf RE'!D43 -> 1330000 | D17: ='C4-FinPerf RE'!E43 -> 875377 | E17: ='C4-FinPerf RE'!F43 -> 0 | F17: ='C4-FinPerf RE'!G43 -> 0 | G17: ='C4-FinPerf RE'!H43 -> 383956.29 | H17: -383956.29 | I17: -1 | J17: ='C4-FinPerf RE'!K43 -> 875377
A18: Other expenditure | B18: ='C4-FinPerf RE'!C48-SUM('C1-Sum'!B12:B17) -> 1681803045 | C18: ='C4-FinPerf RE'!D48-SUM('C1-Sum'!C12:C17) -> 952690115 | D18: ='C4-FinPerf RE'!E48-SUM('C1-Sum'!D12:D17) -> 956297204 | E18: ='C4-FinPerf RE'!F48-SUM('C1-Sum'!E12:E17) -> 39505620.56 | F18: ='C4-FinPerf RE'!G48-SUM('C1-Sum'!F12:F17) -> 93391441.98 | G18: ='C4-FinPerf RE'!H48-SUM('C1-Sum'!G12:G17) -> 318513699.3 | H18: -225122257.4 | I18: -0.7067898738 | J18: ='C4-FinPerf RE'!K48-SUM('C1-Sum'!J12:J17) -> 956297204
A19: Total Expenditure | B19: =SUM(B12:B18) -> 4530280977 | C19: 3423312595 | D19: 4135167116 | E19: 602075877.8 | F19: 707205087.2 | G19: 1219812430 | H19: -512607342.6 | I19: -0.4202345624 | J19: =SUM(J12:J18) -> 4135167116
A20: Surplus/(Deficit) | B20: =B11-B19 -> -797870886.9 | C20: 748564495 | D20: 36709974 | E20: -356826873.3 | F20: 599619309.2 | G20: 170813066.2 | H20: 428806243 | I20: 2.510383149 | J20: =J11-J19 -> 36709974
A21: Transfers and subsidies - capital (monetary allocations) | B21: ='C4-FinPerf RE'!C50 -> 191831071.4 | C21: ='C4-FinPerf RE'!D50 -> 183574000 | D21: ='C4-FinPerf RE'!E50 -> 183574000 | E21: ='C4-FinPerf RE'!F50 -> 30526852 | F21: ='C4-FinPerf RE'!G50 -> 62188778.39 | G21: ='C4-FinPerf RE'!H50 -> 61191328 | H21: 997450.39 | I21: 0.01630051876 | J21: ='C4-FinPerf RE'!K50 -> 183574000
A22: Transfers and subsidies - capital (in-kind) | B22: ='C4-FinPerf RE'!C51 -> 0 | C22: ='C4-FinPerf RE'!D51 -> 0 | D22: ='C4-FinPerf RE'!E51 -> 0 | E22: ='C4-FinPerf RE'!F51 -> 0 | F22: ='C4-FinPerf RE'!G51 -> 0 | G22: ='C4-FinPerf RE'!H51 -> 0 | H22: 0 | J22: ='C4-FinPerf RE'!K51 -> 0
A23: Surplus/(Deficit) after capital transfers & contributions | B23: =B20+B21+B22 -> -606039815.5 | C23: 932138495 | D23: 220283974 | E23: -326300021.3 | F23: 661808087.6 | G23: 232004394.2 | H23: 429803693.4 | I23: 1.852567038 | J23: =J20+J21+J22 -> 220283974
A24: Share of surplus/ (deficit) of associate | B24: ='C4-FinPerf RE'!C59 -> 0 | C24: ='C4-FinPerf RE'!D59 -> 0 | D24: ='C4-FinPerf RE'!E59 -> 0 | E24: ='C4-FinPerf RE'!F59 -> 0 | F24: ='C4-FinPerf RE'!G59 -> 0 | G24: ='C4-FinPerf RE'!H59 -> 0 | H24: 0 | J24: ='C4-FinPerf RE'!K59 -> 0
A25: Surplus/ (Deficit) for the year | B25: =B23+B24 -> -606039815.5 | C25: 932138495 | D25: 220283974 | E25: -326300021.3 | F25: 661808087.6 | G25: 232004394.2 | H25: 429803693.4 | I25: 1.852567038 | J25: =J23+J24 -> 220283974
A27: Capital expenditure & funds sources
A28: Capital expenditure | B28: ='C5-Capex'!C40 -> 174899785 | C28: ='C5-Capex'!D40 -> 200574000 | D28: ='C5-Capex'!E40 -> 204532066 | E28: ='C5-Capex'!F40 -> 26303190.98 | F28: ='C5-Capex'!G40 -> 53983602.73 | G28: ='C5-Capex'!H40 -> 67684484.94 | H28: =F28-G28 -> -13700882.21 | I28: =IF(H28=0,"",H28/G28) -> -0.2024227889 | J28: ='C5-Capex'!K40 -> 204532066
A29: Capital transfers recognised | B29: ='C5-Capex'!C70 -> 147102321.9 | C29: ='C5-Capex'!D70 -> 183574000 | D29: ='C5-Capex'!E70 -> 183574000 | E29: ='C5-Capex'!F70 -> 26268590.98 | F29: ='C5-Capex'!G70 -> 49406227.75 | G29: ='C5-Capex'!H70 -> 61191351.89 | H29: -11785124.14 | I29: -0.1925946033 | J29: ='C5-Capex'!K70 -> 183574000
A31: Borrowing | B31: ='C5-Capex'!C72 -> 0 | C31: ='C5-Capex'!D72 -> 0 | D31: ='C5-Capex'!E72 -> 0 | E31: ='C5-Capex'!F72 -> 0 | F31: ='C5-Capex'!G72 -> 0 | G31: ='C5-Capex'!H72 -> 0 | H31: 0 | J31: ='C5-Capex'!K72 -> 0
A32: Internally generated funds | B32: ='C5-Capex'!C73 -> 27797463.14 | C32: ='C5-Capex'!D73 -> 17000000 | D32: ='C5-Capex'!E73 -> 20958066 | E32: ='C5-Capex'!F73 -> 34600 | F32: ='C5-Capex'!G73 -> 4577374.98 | G32: ='C5-Capex'!H73 -> 6493133.05 | H32: -1915758.07 | I32: -0.2950437108 | J32: ='C5-Capex'!K73 -> 20958066
A33: Total sources of capital funds | B33: =+B29+B31+B32 -> 174899785 | C33: 200574000 | D33: 204532066 | E33: 26303190.98 | F33: 53983602.73 | G33: 67684484.94 | H33: -13700882.21 | I33: -0.2024227889 | J33: =+J29+J31+J32 -> 204532066
A35: Financial position
A36: Total current assets | B36: ='C6-FinPos'!C14 -> 4958933235 | C36: ='C6-FinPos'!D14 -> 10374667970 | D36: ='C6-FinPos'!E14 -> 10374667970 | F36: ='C6-FinPos'!F14 -> 6076981853 | J36: ='C6-FinPos'!G14 -> 10374667970
A37: Total non current assets | B37: ='C6-FinPos'!C26 -> 5557626157 | C37: ='C6-FinPos'!D26 -> 2950037372 | D37: ='C6-FinPos'!E26 -> 2953995438 | F37: ='C6-FinPos'!F26 -> 5611609760 | J37: ='C6-FinPos'!G26 -> 2953995438
A38: Total current liabilities | B38: ='C6-FinPos'!C38 -> 1.573603211e+10 | C38: ='C6-FinPos'!D38 -> 8602566847 | D38: ='C6-FinPos'!E38 -> 8602566847 | F38: ='C6-FinPos'!F38 -> 1.624625624e+10 | J38: ='C6-FinPos'!G38 -> 8602566847
A39: Total non current liabilities | B39: ='C6-FinPos'!C44 -> 0 | C39: ='C6-FinPos'!D44 -> 0 | D39: ='C6-FinPos'!E44 -> 0 | F39: ='C6-FinPos'!F44 -> 0 | J39: ='C6-FinPos'!G44 -> 0
A40: Community wealth/Equity | B40: ='C6-FinPos'!C51 -> -3623934852 | C40: ='C6-FinPos'!D51 -> 3790000000 | D40: ='C6-FinPos'!E51 -> 3790000000 | F40: ='C6-FinPos'!F51 -> -4557664630 | J40: ='C6-FinPos'!G51 -> 3790000000
A42: Cash flows
A43: Net cash from (used) operating | B43: ='C7-CFlow'!C18 -> -1031012719 | C43: ='C7-CFlow'!D18 -> 186674689 | D43: ='C7-CFlow'!E18 -> 186674689 | E43: ='C7-CFlow'!F18 -> -411028094.4 | F43: ='C7-CFlow'!G18 -> -421808603.8 | G43: ='C7-CFlow'!H18 -> 62224896.4 | H43: =G43-F43 -> 484033500.2 | I43: =IF(H43=0,"",H43/G43) -> 7.778775509 | J43: ='C7-CFlow'!K18 -> 186674689
A44: Net cash from (used) investing | B44: ='C7-CFlow'!C28 -> -174899785 | C44: ='C7-CFlow'!D28 -> -412286886 | D44: ='C7-CFlow'!E28 -> -412286886 | E44: ='C7-CFlow'!F28 -> -26303190.98 | F44: ='C7-CFlow'!G28 -> -53983602.73 | G44: ='C7-CFlow'!H28 -> -137428967.9 | H44: =G44-F44 -> -83445365.19 | I44: =IF(H44=0,"",H44/G44) -> 0.6071890552 | J44: ='C7-CFlow'!K28 -> -412286886
A45: Net cash from (used) financing | B45: ='C7-CFlow'!C37 -> -1430705.76 | C45: ='C7-CFlow'!D37 -> -13780000 | D45: ='C7-CFlow'!E37 -> -13780000 | E45: ='C7-CFlow'!F37 -> 0 | F45: ='C7-CFlow'!G37 -> 0 | G45: ='C7-CFlow'!H37 -> -4593333.32 | H45: =G45-F45 -> -4593333.32 | I45: =IF(H45=0,"",H45/G45) -> 1 | J45: ='C7-CFlow'!K37 -> -13780000
A46: Cash/cash equivalents at the month/year end | B46: ='C7-CFlow'!C41 -> -1333880967 | C46: ='C7-CFlow'!D41 -> -1272160138 | D46: ='C7-CFlow'!E41 -> -1272160138 | E46: ='C7-CFlow'!F41 -> -431165467.4 | F46: ='C7-CFlow'!G41 -> -431165467.4 | G46: ='C7-CFlow'!H41 -> -1112565346 | H46: =G46-F46 -> -681399878.4 | I46: =IF(H46=0,"",H46/G46) -> 0.6124582982 | J46: ='C7-CFlow'!K41 -> -194765458
A48: Debtors & creditors analysis | B48: ='SC3'!C3 -> 0-30 Days | C48: ='SC3'!D3 -> 31-60 Days | D48: ='SC3'!E3 -> 61-90 Days | E48: ='SC3'!F3 -> 91-120 Days | F48: ='SC3'!G3 -> 121-150 Dys | G48: ='SC3'!H3 -> 151-180 Dys | H48: ='SC3'!I3 -> 181 Dys-1 Yr | I48: ='SC3'!J3 -> Over 1Yr | J48: Total
A49: =LEFT('SC3'!A4,20) -> Debtors Age Analysis
A50: ='SC3'!A14 -> Total By Income Source | B50: ='SC3'!C14 -> 263901677 | C50: ='SC3'!D14 -> 203004252 | D50: ='SC3'!E14 -> 217578466 | E50: ='SC3'!F14 -> 266432962 | F50: ='SC3'!G14 -> 223675448 | G50: ='SC3'!H14 -> 149382968 | H50: ='SC3'!I14 -> 972111918 | I50: ='SC3'!J14 -> 5890305336 | J50: ='SC3'!K14 -> 8186393027
A51: =LEFT('SC4'!A5,22) -> Creditors Age Analysis
A52: Total Creditors | B52: ='SC4'!C16 -> 286165185 | C52: ='SC4'!D16 -> 350492949 | D52: ='SC4'!E16 -> 131551345 | E52: ='SC4'!F16 -> 13248579215 | F52: ='SC4'!G16 -> 137008679 | G52: ='SC4'!H16 -> 0 | H52: ='SC4'!I16 -> 0 | I52: ='SC4'!J16 -> 0 | J52: ='SC4'!K16 -> 14153797373

Sheet C2-FinPerf SC
A1: =muni& " - "&S71A& " - "&date -> FS184 Matjhabeng - Table C2 Monthly Budget Statement - Financial Performance (functional classification) - M04 October
A2: =desc -> Description | B2: =head27 -> Ref | C2: =Head1 -> 2023/24 | D2: =Head2 -> Budget Year 2024/25
C3: =Head5 -> Audited Outcome | D3: =Head6 -> Original Budget | E3: =Head7 -> Adjusted Budget | F3: =Head38 -> Monthly actual | G3: =Head39 -> YearTD actual | H3: =Head40 -> YearTD budget | I3: =Head41 -> YTD variance | J3: =Head41 -> YTD variance | K3: =Head8 -> Full Year Forecast
A4: R thousands | B4: 1 | J4: %
A5: Revenue - Functional
A6: Governance and administration | C6: =SUM(C7:C9) -> 1840442603 | D6: 1643472499 | E6: 1643472499 | F6: 84886993.42 | G6: 585361715.9 | H6: 547824064 | I6: =G6-H6 -> 37537651.93 | J6: =IF(I6=0,"",I6/H6) -> 0.06852136369 | K6: =SUM(K7:K9) -> 1643472499
A7: Executive and council | C7: ='C2C'!C7 -> 883107430.1 | D7: ='C2C'!D7 -> 484711000 | E7: ='C2C'!E7 -> 484711000 | F7: ='C2C'!F7 -> 31170332 | G7: ='C2C'!G7 -> 369501260.8 | H7: ='C2C'!H7 -> 161570324 | I7: 207930936.8 | J7: =IF(I7=0,"",I7/H7) -> 1.286937673 | K7: ='C2C'!K7 -> 484711000
A8: Finance and administration | C8: ='C2C'!C10 -> 957335172.4 | D8: ='C2C'!D10 -> 1158761499 | E8: ='C2C'!E10 -> 1158761499 | F8: ='C2C'!F10 -> 53716661.42 | G8: ='C2C'!G10 -> 215860455.2 | H8: ='C2C'!H10 -> 386253740 | I8: -170393284.8 | J8: -0.4411433914 | K8: ='C2C'!K10 -> 1158761499
A9: Internal audit | C9: ='C2C'!C24 -> 0 | D9: ='C2C'!D24 -> 0 | E9: ='C2C'!E24 -> 0 | F9: ='C2C'!F24 -> 0 | G9: ='C2C'!G24 -> 0 | H9: ='C2C'!H24 -> 0 | I9: 0 | K9: ='C2C'!K24 -> 0
A10: Community and public safety | C10: =SUM(C11:C15) -> 7664002.04 | D10: 254335729 | E10: 254335729 | F10: 508425.38 | G10: 1857679.07 | H10: 84778544 | I10: -82920864.93 | J10: -0.978087863 | K10: =SUM(K11:K15) -> 254335729
A11: Community and social services | C11: ='C2C'!C27 -> 1695331.14 | D11: ='C2C'!D27 -> 14131662 | E11: ='C2C'!E27 -> 14131662 | F11: ='C2C'!F27 -> 203561 | G11: ='C2C'!G27 -> 643665.21 | H11: ='C2C'!H27 -> 4710552 | I11: -4066886.79 | J11: -0.863356734 | K11: ='C2C'!K27 -> 14131662
A12: Sport and recreation | C12: ='C2C'!C49 -> 318586.64 | D12: ='C2C'!D49 -> 1549962 | E12: ='C2C'!E49 -> 1549962 | F12: ='C2C'!F49 -> 71293.7 | G12: ='C2C'!G49 -> 183712.1 | H12: ='C2C'!H49 -> 516644 | I12: -332931.9 | J12: -0.6444125936 | K12: ='C2C'!K49 -> 1549962
A13: Public safety | C13: ='C2C'!C55 -> 5650084.26 | D13: ='C2C'!D55 -> 38654105 | E13: ='C2C'!E55 -> 38654105 | F13: ='C2C'!F55 -> 233570.68 | G13: ='C2C'!G55 -> 1030301.76 | H13: ='C2C'!H55 -> 12884684 | I13: -11854382.24 | J13: -0.9200367071 | K13: ='C2C'!K55 -> 38654105
A14: Housing | C14: ='C2C'!C64 -> 0 | D14: ='C2C'!D64 -> 0 | E14: ='C2C'!E64 -> 0 | F14: ='C2C'!F64 -> 0 | G14: ='C2C'!G64 -> 0 | H14: ='C2C'!H64 -> 0 | I14: 0 | K14: ='C2C'!K64 -> 0
A15: Health | C15: ='C2C'!C67 -> 0 | D15: ='C2C'!D67 -> 200000000 | E15: ='C2C'!E67 -> 200000000 | F15: ='C2C'!F67 -> 0 | G15: ='C2C'!G67 -> 0 | H15: ='C2C'!H67 -> 66666664 | I15: -66666664 | J15: -1 | K15: ='C2C'!K67 -> 200000000
A16: Economic and environmental services | C16: =SUM(C17:C19) -> 13493.9 | D16: 66218760 | E16: 66218760 | F16: 9757.3 | G16: 16887.29 | H16: 22072904 | I16: -22056016.71 | J16: -0.9992349312 | K16: =SUM(K17:K19) -> 66218760
A17: Planning and development | C17: ='C2C'!C76 -> 13493.9 | D17: ='C2C'!D76 -> 16218760 | E17: ='C2C'!E76 -> 16218760 | F17: ='C2C'!F76 -> 9757.3 | G17: ='C2C'!G76 -> 16887.29 | H17: ='C2C'!H76 -> 5406240 | I17: -5389352.71 | J17: -0.9968763336 | K17: ='C2C'!K76 -> 16218760
A18: Road transport | C18: ='C2C'!C87 -> 0 | D18: ='C2C'!D87 -> 50000000 | E18: ='C2C'!E87 -> 50000000 | F18: ='C2C'!F87 -> 0 | G18: ='C2C'!G87 -> 0 | H18: ='C2C'!H87 -> 16666664 | I18: -16666664 | J18: -1 | K18: ='C2C'!K87 -> 50000000
A19: Environmental protection | C19: ='C2C'!C92 -> 0 | D19: ='C2C'!D92 -> 0 | E19: ='C2C'!E92 -> 0 | F19: ='C2C'!F92 -> 0 | G19: ='C2C'!G92 -> 0 | H19: ='C2C'!H92 -> 0 | I19: 0 | K19: ='C2C'!K92 -> 0
A20: Trading services | C20: =SUM(C21:C24) -> 2075854744 | D20: =SUM(D21:D24) -> 2364359999 | E20: 2364359999 | F20: 190368142.2 | G20: 781719781.8 | H20: 788119952 | I20: -6400170.24 | J20: -0.008120807275 | K20: =SUM(K21:K24) -> 2364359999
A21: Energy sources | C21: ='C2C'!C100 -> 817261467.5 | D21: ='C2C'!D100 -> 887425800 | E21: ='C2C'!E100 -> 887425800 | F21: ='C2C'!F100 -> 71857110.37 | G21: ='C2C'!G100 -> 333203089.6 | H21: ='C2C'!H100 -> 295808576 | I21: =G21-H21 -> 37394513.58 | J21: 0.1264145688 | K21: ='C2C'!K100 -> 887425800
A22: Water management | C22: ='C2C'!C104 -> 738313772.8 | D22: ='C2C'!D104 -> 998345649 | E22: ='C2C'!E104 -> 998345649 | F22: ='C2C'!F104 -> 70101158.38 | G22: ='C2C'!G104 -> 253840659.4 | H22: ='C2C'!H104 -> 332781868 | I22: =G22-H22 -> -78941208.59 | J22: -0.2372160751 | K22: ='C2C'!K104 -> 998345649
A23: Waste water management | C23: ='C2C'!C108 -> 320300502.6 | D23: ='C2C'!D108 -> 284915075 | E23: ='C2C'!E108 -> 284915075 | F23: ='C2C'!F108 -> 30027325.08 | G23: ='C2C'!G108 -> 120172052.7 | H23: ='C2C'!H108 -> 94971688 | I23: =G23-H23 -> 25200364.65 | J23: 0.265346075 | K23: ='C2C'!K108 -> 284915075
A24: Waste management | C24: ='C2C'!C113 -> 199979000.8 | D24: ='C2C'!D113 -> 193673475 | E24: ='C2C'!E113 -> 193673475 | F24: ='C2C'!F113 -> 18382548.33 | G24: ='C2C'!G113 -> 74503980.12 | H24: ='C2C'!H113 -> 64557820 | I24: =G24-H24 -> 9946160.12 | J24: 0.1540659229 | K24: ='C2C'!K113 -> 193673475
A25: Other | B25: 4 | C25: ='C2C'!C118 -> 266319.62 | D25: ='C2C'!D118 -> 27064103 | E25: ='C2C'!E118 -> 27064103 | F25: ='C2C'!F118 -> 2538.23 | G25: ='C2C'!G118 -> 57110.74 | H25: ='C2C'!H118 -> 9021360 | I25: =G25-H25 -> -8964249.26 | J25: -0.9936693869 | K25: ='C2C'!K118 -> 27064103
A26: Total Revenue - Functional | B26: 2 | C26: =C6+C10+C16+C20+C25 -> 3924241162 | D26: =D6+D10+D16+D20+D25 -> 4355451090 | E26: 4355451090 | F26: 275775856.5 | G26: 1369013175 | H26: 1451816824 | I26: -82803649.21 | J26: -0.05703450176 | K26: =K6+K10+K16+K20+K25 -> 4355451090
A28: Expenditure - Functional
A29: Governance and administration | C29: =SUM(C30:C32) -> 1315617216 | D29: 855255793 | E29: 856462294 | F29: 65385117.88 | G29: 214617337.9 | H29: 285406493.2 | I29: =G29-H29 -> -70789155.24 | J29: =IF(I29=0,"",I29/H29) -> -0.2480292387 | K29: =SUM(K30:K32) -> 856462294
A30: Executive and council | C30: ='C2C'!C129 -> 173174182.4 | D30: ='C2C'!D129 -> 235995456 | E30: ='C2C'!E129 -> 235922296 | F30: ='C2C'!F129 -> 12425202.26 | G30: ='C2C'!G129 -> 55126560.58 | H30: ='C2C'!H129 -> 78646589.27 | I30: -23520028.69 | J30: =IF(I30=0,"",I30/H30) -> -0.2990597419 | K30: ='C2C'!K129 -> 235922296
A31: Finance and administration | C31: ='C2C'!C132 -> 1136295236 | D31: ='C2C'!D132 -> 612915690 | E31: ='C2C'!E132 -> 614195351 | F31: ='C2C'!F132 -> 52394324.27 | G31: ='C2C'!G132 -> 157150396.8 | H31: ='C2C'!H132 -> 204644999.9 | I31: -47494603.07 | J31: -0.2320828903 | K31: ='C2C'!K132 -> 614195351
A32: Internal audit | C32: ='C2C'!C146 -> 6147798 | D32: ='C2C'!D146 -> 6344647 | E32: ='C2C'!E146 -> 6344647 | F32: ='C2C'!F146 -> 565591.35 | G32: ='C2C'!G146 -> 2340380.52 | H32: ='C2C'!H146 -> 2114904 | I32: 225476.52 | J32: 0.1066131229 | K32: ='C2C'!K146 -> 6344647
A33: Community and public safety | C33: =SUM(C34:C38) -> 224449968.5 | D33: 384714109 | E33: 384301675 | F33: 21570012.77 | G33: 99314188.87 | H33: 128101102 | I33: -28786913.17 | J33: -0.2247202617 | K33: =SUM(K34:K38) -> 384301675
A34: Community and social services | C34: ='C2C'!C149 -> 70161088.13 | D34: ='C2C'!D149 -> 144668377 | E34: ='C2C'!E149 -> 144668377 | F34: ='C2C'!F149 -> 5721267.07 | G34: ='C2C'!G149 -> 29898888.09 | H34: ='C2C'!H149 -> 48222980 | I34: -18324091.91 | J34: -0.3799867182 | K34: ='C2C'!K149 -> 144668377
A35: Sport and recreation | C35: ='C2C'!C171 -> 54010335.17 | D35: ='C2C'!D171 -> 76007767 | E35: ='C2C'!E171 -> 75595333 | F35: ='C2C'!F171 -> 4993451.46 | G35: ='C2C'!G171 -> 21939744.17 | H35: ='C2C'!H171 -> 25198586.04 | I35: -3258841.87 | J35: -0.1293263783 | K35: ='C2C'!K171 -> 75595333
A36: Public safety | C36: ='C2C'!C177 -> 101782242.4 | D36: ='C2C'!D177 -> 121173406 | E36: ='C2C'!E177 -> 121173406 | F36: ='C2C'!F177 -> 8224767.93 | G36: ='C2C'!G177 -> 36711417.07 | H36: ='C2C'!H177 -> 40391216 | I36: -3679798.93 | J36: -0.09110394027 | K36: ='C2C'!K177 -> 121173406
A37: Housing | C37: ='C2C'!C186 -> 20929168.08 | D37: ='C2C'!D186 -> 24318784 | E37: ='C2C'!E186 -> 24318784 | F37: ='C2C'!F186 -> 1830935.36 | G37: ='C2C'!G186 -> 7158025.99 | H37: ='C2C'!H186 -> 8106304 | I37: -948278.01 | J37: -0.1169803168 | K37: ='C2C'!K186 -> 24318784
A38: Health | C38: ='C2C'!C189 -> -22432865.36 | D38: ='C2C'!D189 -> 18545775 | E38: ='C2C'!E189 -> 18545775 | F38: ='C2C'!F189 -> 799590.95 | G38: ='C2C'!G189 -> 3606113.55 | H38: ='C2C'!H189 -> 6182016 | I38: -2575902.45 | J38: -0.4166767685 | K38: ='C2C'!K189 -> 18545775
A39: Economic and environmental services | C39: =SUM(C40:C42) -> 55906678.94 | D39: 154018649 | E39: 154018649 | F39: 4321509.85 | G39: 21982090.5 | H39: 51339768 | I39: -29357677.5 | J39: -0.571831129 | K39: =SUM(K40:K42) -> 154018649
A40: Planning and development | C40: ='C2C'!C198 -> 47139702.85 | D40: ='C2C'!D198 -> 61435369 | E40: ='C2C'!E198 -> 61435369 | F40: ='C2C'!F198 -> 3425735.41 | G40: ='C2C'!G198 -> 14823580.38 | H40: ='C2C'!H198 -> 20478640 | I40: -5655059.62 | J40: -0.2761442957 | K40: ='C2C'!K198 -> 61435369
A41: Road transport | C41: ='C2C'!C209 -> 8766976.09 | D41: ='C2C'!D209 -> 92583280 | E41: ='C2C'!E209 -> 92583280 | F41: ='C2C'!F209 -> 895774.44 | G41: ='C2C'!G209 -> 7158510.12 | H41: ='C2C'!H209 -> 30861128 | I41: -23702617.88 | J41: -0.7680412032 | K41: ='C2C'!K209 -> 92583280
A42: Environmental protection | C42: ='C2C'!C214 -> 0 | D42: ='C2C'!D214 -> 0 | E42: ='C2C'!E214 -> 0 | F42: ='C2C'!F214 -> 0 | G42: ='C2C'!G214 -> 0 | H42: ='C2C'!H214 -> 0 | I42: 0 | K42: ='C2C'!K214 -> 0
A43: Trading services | C43: =SUM(C44:C47) -> 2929483070 | D43: =SUM(D44:D47) -> 2016749575 | E43: 2727810029 | F43: 510341766.2 | G43: 369279487.5 | H43: 750773518.6 | I43: -381494031.1 | J43: -0.5081346394 | K43: =SUM(K44:K47) -> 2727810029
A44: Energy sources | C44: ='C2C'!C222 -> 1396357793 | D44: ='C2C'!D222 -> 1068989779 | E44: ='C2C'!E222 -> 1066947136 | F44: ='C2C'!F222 -> 338964197.3 | G44: ='C2C'!G222 -> 196956738.3 | H44: ='C2C'!H222 -> 356059819.6 | I44: -159103081.4 | J44: -0.4468436836 | K44: ='C2C'!K222 -> 1066947136
A45: Water management | C45: ='C2C'!C226 -> 1072708962 | D45: ='C2C'!D226 -> 467838562 | E45: ='C2C'!E226 -> 1182324959 | F45: ='C2C'!F226 -> 154011166.5 | G45: ='C2C'!G226 -> 103532652.5 | H45: ='C2C'!H226 -> 235116994.6 | I45: -131584342.1 | J45: -0.559654747 | K45: ='C2C'!K226 -> 1182324959
A46: Waste water management | C46: ='C2C'!C230 -> 218587512.3 | D46: ='C2C'!D230 -> 297134590 | E46: ='C2C'!E230 -> 297134590 | F46: ='C2C'!F230 -> 10223583.88 | G46: ='C2C'!G230 -> 35439733.96 | H46: ='C2C'!H230 -> 99045012 | I46: -63605278.04 | J46: -0.6421855756 | K46: ='C2C'!K230 -> 297134590
A47: Waste management | C47: ='C2C'!C235 -> 241828803.2 | D47: ='C2C'!D235 -> 182786644 | E47: ='C2C'!E235 -> 181403344 | F47: ='C2C'!F235 -> 7142818.47 | G47: ='C2C'!G235 -> 33350362.79 | H47: ='C2C'!H235 -> 60551692.38 | I47: -27201329.59 | J47: -0.449224927 | K47: ='C2C'!K235 -> 181403344
A48: Other | C48: ='C2C'!C240 -> 4824043.71 | D48: ='C2C'!D240 -> 12574469 | E48: ='C2C'!E240 -> 12574469 | F48: ='C2C'!F240 -> 457471.14 | G48: ='C2C'!G240 -> 2011982.41 | H48: ='C2C'!H240 -> 4191548 | I48: -2179565.59 | J48: -0.5199906073 | K48: ='C2C'!K240 -> 12574469
A49: Total Expenditure - Functional | B49: 3 | C49: =C29+C33+C39+C43+C48 -> 4530280977 | D49: =D29+D33+D39+D43+D48 -> 3423312595 | E49: 4135167116 | F49: 602075877.8 | G49: 707205087.2 | H49: 1219812430 | I49: -512607342.6 | J49: -0.4202345624 | K49: =K29+K33+K39+K43+K48 -> 4135167116
A50: Surplus/ (Deficit) for the year | C50: =C26-C49 -> -606039815.5 | D50: 932138495 | E50: 220283974 | F50: -326300021.3 | G50: 661808087.6 | H50: 232004394.2 | I50: =I26-I49 -> 429803693.4 | J50: =IF(I50=0,"",I50/H50) -> 1.852567038 | K50: =K26-K49 -> 220283974
A51: =head27a -> References
A52: 1. Government Finance Statistics Functions and Sub-functions are standardised to assist the compilation of national and international accounts for comparison purposes
A53: 2. Total Revenue by functional classification must reconcile to Total Operating Revenue shown in the Financial Performance Statement
A54: 3. Total Expenditure by functional classification must reconcile to total operating expenditure shown in 'Financial Performance Statement'
A55: 4. All amounts must be classified under a functional classification (modified GFS). The GFS function 'Other' is only for Abbatoirs, Air Transport, Licensing and Regulation, Markets and Tourism - and if used must be supported by footnotes. Nothing else may be placed under 'Other'. Assign associate share to relevant classification

Sheet C2C
A1: =muni& " - "&S71A& " - "&date -> FS184 Matjhabeng - Table C2 Monthly Budget Statement - Financial Performance (functional classification) - M04 October
A2: =desc -> Description | B2: =head27 -> Ref | C2: =Head1 -> 2023/24 | D2: =Head2 -> Budget Year 2024/25
C3: =Head5 -> Audited Outcome | D3: =Head6 -> Original Budget | E3: =Head7 -> Adjusted Budget | F3: =Head38 -> Monthly actual | G3: =Head39 -> YearTD actual | H3: =Head40 -> YearTD budget | I3: =Head41 -> YTD variance | J3: =Head41 -> YTD variance | K3: =Head8 -> Full Year Forecast
A4: R thousands | B4: 1 | J4: %
A5: Revenue - Functional
A6: Municipal governance and administration | C6: =C7+C10+C24 -> 1840442603 | D6: 1643472499 | E6: 1643472499 | F6: 84886993.42 | G6: 585361715.9 | H6: 547824064 | I6: =G6-H6 -> 37537651.93 | J6: =IF(I6=0,"",I6/H6) -> 0.06852136369 | K6: =K7+K10+K24 -> 1643472499
A7: Executive and council | C7: =SUM(C8:C9) -> 883107430.1 | D7: =SUM(D8:D9) -> 484711000 | E7: 484711000 | F7: 31170332 | G7: 369501260.8 | H7: 161570324 | I7: =G7-H7 -> 207930936.8 | J7: =IF(I7=0,"",I7/H7) -> 1.286937673 | K7: 484711000
A8: Mayor and Council | C8: 883115069.1 | D8: 384711000 | E8: 384711000 | F8: 31170332 | G8: 369501660.8 | H8: 128236992 | I8: 241264668.8 | J8: 1.881396818 | K8: 384711000
A9: Municipal Manager, Town Secretary and Chief Executive | C9: -7639 | D9: 100000000 | E9: 100000000 | F9: 0 | G9: -400 | H9: 33333332 | I9: -33333732 | J9: -1.000012 | K9: 100000000
A10: Finance and administration | C10: =SUM(C11:C23) -> 957335172.4 | D10: 1158761499 | E10: 1158761499 | F10: 53716661.42 | G10: 215860455.2 | H10: 386253740 | I10: -170393284.8 | J10: -0.4411433914 | K10: =SUM(K11:K23) -> 1158761499
A11: Administrative and Corporate Support | C11: 3716745.04 | D11: 57287195 | E11: 57287195 | F11: 105659.14 | G11: 432545.95 | H11: 19095724 | I11: -18663178.05 | J11: -0.9773485441 | K11: 57287195
A12: Asset Management | C12: 0 | D12: 0 | E12: 0 | F12: 0 | G12: 0 | H12: 0 | I12: 0 | K12: 0
A13: Finance | C13: 930967536.9 | D13: 1071419290 | E13: 1071419290 | F13: 51578864.62 | G13: 207174813.2 | H13: 357139688 | I13: -149964874.8 | J13: -0.4199053755 | K13: 1071419290
A14: Fleet Management | I14: 0
A15: Human Resources | C15: 701376.71 | D15: 6728 | E15: 6728 | F15: 61752.8 | G15: 244290.31 | H15: 2240 | I15: 242050.31 | J15: 108.0581741 | K15: 6728
A16: Information Technology | C16: 0 | D16: 0 | E16: 0 | F16: 0 | G16: 0 | H16: 0 | I16: 0 | K16: 0
A17: Legal Services | I17: 0
A18: Marketing, Customer Relations, Publicity and Media Co-ordination | I18: 0
A19: Property Services | C19: 21949513.84 | D19: 30048286 | E19: 30048286 | F19: 1970384.86 | G19: 8008805.72 | H19: 10016088 | I19: -2007282.28 | J19: -0.2004058151 | K19: 30048286
A20: Risk Management | I20: 0
A21: Security Services | C21: 0 | D21: 0 | E21: 0 | F21: 0 | G21: 0 | H21: 0 | I21: 0 | K21: 0
A22: Supply Chain Management | C22: 0 | D22: 0 | E22: 0 | F22: 0 | G22: 0 | H22: 0 | I22: 0 | K22: 0
A23: Valuation Service | C23: 0 | D23: 0 | E23: 0 | F23: 0 | G23: 0 | H23: 0 | I23: 0 | K23: 0
A24: Internal audit | C24: =SUM(C25:C25) -> 0 | D24: 0 | E24: 0 | F24: 0 | G24: 0 | H24: 0 | I24: 0 | K24: =SUM(K25:K25) -> 0
A25: Governance Function | C25: 0 | D25: 0 | E25: 0 | F25: 0 | G25: 0 | H25: 0 | I25: 0 | K25: 0
A26: Community and public safety | C26: =C27+C49+C55+C64+C67 -> 7664002.04 | D26: =D27+D49+D55+D64+D67 -> 254335729 | E26: =E27+E49+E55+E64+E67 -> 254335729 | F26: =F27+F49+F55+F64+F67 -> 508425.38 | G26: 1857679.07 | H26: 84778544 | I26: -82920864.93 | J26: -0.978087863 | K26: =K27+K49+K55+K64+K67 -> 254335729
A27: Community and social services | C27: =SUM(C28:C48) -> 1695331.14 | D27: 14131662 | E27: 14131662 | F27: 203561 | G27: 643665.21 | H27: 4710552 | I27: -4066886.79 | J27: -0.863356734 | K27: =SUM(K28:K48) -> 14131662
A28: Aged Care | I28: 0
A29: Agricultural | I29: 0
A30: Animal Care and Diseases | I30: 0
A31: Cemeteries, Funeral Parlours and Crematoriums | C31: 1695331.14 | D31: 14131662 | E31: 14131662 | F31: 203561 | G31: 643665.21 | H31: 4710552 | I31: -4066886.79 | J31: -0.863356734 | K31: 14131662
A32: Child Care Facilities | I32: 0
A33: Community Halls and Facilities | C33: 0 | D33: 0 | E33: 0 | F33: 0 | G33: 0 | H33: 0 | I33: 0 | K33: 0
A34: Consumer Protection | I34: 0
A35: Cultural Matters | I35: 0
A36: Disaster Management | I36: 0
A37: Education | I37: 0
A38: Indigenous and Customary Law | I38: 0
A39: Industrial Promotion | I39: 0
A40: Language Policy | I40: 0
A41: Libraries and Archives | C41: 0 | D41: 0 | E41: 0 | F41: 0 | G41: 0 | H41: 0 | I41: 0 | K41: 0
A42: Literacy Programmes | I42: 0
A43: Media Services | I43: 0
A44: Museums and Art Galleries | I44: 0
A45: Population Development | I45: 0
A46: Provincial Cultural Matters | I46: 0
A47: Theatres | I47: 0
A48: Zoo's | I48: 0
A49: Sport and recreation | C49: =SUM(C50:C54) -> 318586.64 | D49: =SUM(D50:D54) -> 1549962 | E49: 1549962 | F49: 71293.7 | G49: 183712.1 | H49: 516644 | I49: -332931.9 | J49: -0.6444125936 | K49: 1549962
A50: Beaches and Jetties | I50: 0
A51: Casinos, Racing, Gambling, Wagering | I51: 0
A52: Community Parks (including Nurseries) | C52: 304385.98 | D52: 1549962 | E52: 1549962 | F52: 68471.45 | G52: 172423.1 | H52: 516644 | I52: -344220.9 | J52: -0.6662632296 | K52: 1549962
A53: Recreational Facilities | C53: 0 | D53: 0 | E53: 0 | F53: 0 | G53: 0 | H53: 0 | I53: 0 | K53: 0
A54: Sports Grounds and Stadiums | C54: 14200.66 | D54: 0 | E54: 0 | F54: 2822.25 | G54: 11289 | H54: 0 | I54: 11289 | K54: 0
A55: Public safety | C55: =SUM(C56:C63) -> 5650084.26 | D55: =SUM(D56:D63) -> 38654105 | E55: 38654105 | F55: 233570.68 | G55: 1030301.76 | H55: 12884684 | I55: -11854382.24 | J55: -0.9200367071 | K55: 38654105
A56: Civil Defence | I56: 0
A57: Cleansing | I57: 0
A58: Control of Public Nuisances | I58: =G58-H58 -> 0 | J58: =IF(I58=0,"",I58/H58) -> 
A59: Fencing and Fences | I59: 0
A60: Fire Fighting and Protection | C60: 2117174.56 | D60: 4618483 | E60: 4618483 | F60: 131062.68 | G60: 574078.04 | H60: 1539492 | I60: -965413.96 | J60: -0.6270990431 | K60: 4618483
A61: Licensing and Control of Animals | I61: =G61-H61 -> 0 | J61: =IF(I61=0,"",I61/H61) -> 
A62: Police Forces, Traffic and Street Parking Control | C62: 3532909.7 | D62: 34035622 | E62: 34035622 | F62: 102508 | G62: 456223.72 | H62: 11345192 | I62: =G62-H62 -> -10888968.28 | J62: =IF(I62=0,"",I62/H62) -> -0.9597870428 | K62: 34035622
A63: Pounds | I63: 0
A64: Housing | C64: =SUM(C65:C66) -> 0 | D64: 0 | E64: 0 | F64: 0 | G64: 0 | H64: 0 | I64: =G64-H64 -> 0 | J64: =IF(I64=0,"",I64/H64) ->  | K64: =SUM(K65:K66) -> 0
A65: Housing | C65: 0 | D65: 0 | E65: 0 | F65: 0 | G65: 0 | H65: 0 | I65: =G65-H65 -> 0 | J65: =IF(I65=0,"",I65/H65) ->  | K65: 0
A66: Informal Settlements | I66: =G66-H66 -> 0 | J66: =IF(I66=0,"",I66/H66) -> 
A67: Health | C67: =SUM(C68:C74) -> 0 | D67: 200000000 | E67: 200000000 | F67: 0 | G67: 0 | H67: 66666664 | I67: -66666664 | J67: -1 | K67: =SUM(K68:K74) -> 200000000
A68: Ambulance | I68: 0
A69: Health Services | C69: 0 | D69: 200000000 | E69: 200000000 | F69: 0 | G69: 0 | H69: 66666664 | I69: -66666664 | J69: -1 | K69: 200000000
A70: Laboratory Services | I70: =G70-H70 -> 0 | J70: =IF(I70=0,"",I70/H70) -> 
A71: Food Control | I71: =G71-H71 -> 0 | J71: =IF(I71=0,"",I71/H71) -> 
A72: Health Surveillance and Prevention of Communicable Diseases including immunizations | I72: 0
A73: Vector Control | I73: 0
A74: Chemical Safety | I74: 0
A75: Economic and environmental services | C75: =C76+C87+C92 -> 13493.9 | D75: =D76+D87+D92 -> 66218760 | E75: =E76+E87+E92 -> 66218760 | F75: 9757.3 | G75: 16887.29 | H75: 22072904 | I75: -22056016.71 | J75: -0.9992349312 | K75: =K76+K87+K92 -> 66218760
A76: Planning and development | C76: =SUM(C77:C86) -> 13493.9 | D76: 16218760 | E76: 16218760 | F76: 9757.3 | G76: 16887.29 | H76: 5406240 | I76: -5389352.71 | J76: -0.9968763336 | K76: =SUM(K77:K86) -> 16218760
A77: Billboards | I77: =G77-H77 -> 0 | J77: =IF(I77=0,"",I77/H77) -> 
A78: Corporate Wide Strategic Planning (IDPs, LEDs) | C78: 0 | D78: 0 | E78: 0 | F78: 0 | G78: 0 | H78: 0 | I78: 0 | K78: 0
A79: Central City Improvement District | I79: 0
A80: Development Facilitation | I80: =G80-H80 -> 0 | J80: =IF(I80=0,"",I80/H80) -> 
A81: Economic Development/Planning | I81: =G81-H81 -> 0 | J81: =IF(I81=0,"",I81/H81) -> 
A82: Regional Planning and Development | I82: =G82-H82 -> 0 | J82: =IF(I82=0,"",I82/H82) -> 
A83: Town Planning, Building Regulations and Enforcement, and City Engineer | C83: 13493.9 | D83: 16218760 | E83: 16218760 | F83: 9757.3 | G83: 16887.29 | H83: 5406240 | I83: =G83-H83 -> -5389352.71 | J83: =IF(I83=0,"",I83/H83) -> -0.9968763336 | K83: 16218760
A84: Project Management Unit | C84: 0 | D84: 0 | E84: 0 | F84: 0 | G84: 0 | H84: 0 | I84: 0 | K84: 0
A85: Provincial Planning | I85: 0
A86: Support to Local Municipalities | I86: 0
A87: Road transport | C87: =SUM(C88:C91) -> 0 | D87: 50000000 | E87: 50000000 | F87: 0 | G87: 0 | H87: 16666664 | I87: -16666664 | J87: -1 | K87: =SUM(K88:K91) -> 50000000
A88: Public Transport | I88: 0
A89: Road and Traffic Regulation | I89: 0
A90: Roads | C90: 0 | D90: 50000000 | E90: 50000000 | F90: 0 | G90: 0 | H90: 16666664 | I90: -16666664 | J90: -1 | K90: 50000000
A91: Taxi Ranks | I91: 0
A92: Environmental protection | C92: =SUM(C93:C98) -> 0 | D92: =SUM(D93:D98) -> 0 | E92: 0 | F92: 0 | G92: 0 | H92: 0 | I92: 0 | K92: 0
A93: Biodiversity and Landscape | I93: 0
A94: Coastal Protection | I94: 0
A95: Indigenous Forests | I95: =G95-H95 -> 0 | J95: =IF(I95=0,"",I95/H95) -> 
A96: Nature Conservation | I96: =G96-H96 -> 0 | J96: =IF(I96=0,"",I96/H96) -> 
A97: Pollution Control | I97: 0
A98: Soil Conservation | I98: 0
A99: Trading services | C99: =C100+C104+C108+C113 -> 2075854744 | D99: =D100+D104+D108+D113 -> 2364359999 | E99: =E100+E104+E108+E113 -> 2364359999 | F99: =F100+F104+F108+F113 -> 190368142.2 | G99: =G100+G104+G108+G113 -> 781719781.8 | H99: 788119952 | I99: =I100+I104+I108+I113 -> -6400170.24 | J99: -0.008120807275 | K99: =K100+K104+K108+K113 -> 2364359999
A100: Energy sources | C100: =SUM(C101:C103) -> 817261467.5 | D100: =SUM(D101:D103) -> 887425800 | E100: 887425800 | F100: 71857110.37 | G100: 333203089.6 | H100: 295808576 | I100: 37394513.58 | J100: 0.1264145688 | K100: 887425800
A101: Electricity | C101: 817261467.5 | D101: 887425800 | E101: 887425800 | F101: 71857110.37 | G101: 333203089.6 | H101: 295808576 | I101: 37394513.58 | J101: 0.1264145688 | K101: 887425800
A102: Street Lighting and Signal Systems | C102: 0 | D102: 0 | E102: 0 | F102: 0 | G102: 0 | H102: 0 | I102: =G102-H102 -> 0 | J102: =IF(I102=0,"",I102/H102) ->  | K102: 0
A103: Nonelectric Energy | I103: 0
A104: Water management | C104: =SUM(C105:C107) -> 738313772.8 | D104: =SUM(D105:D107) -> 998345649 | E104: 998345649 | F104: 70101158.38 | G104: 253840659.4 | H104: 332781868 | I104: -78941208.59 | J104: -0.2372160751 | K104: 998345649
A105: Water Treatment | I105: 0
A106: Water Distribution | C106: 738313772.8 | D106: 998345649 | E106: 998345649 | F106: 70101158.38 | G106: 253840659.4 | H106: 332781868 | I106: =G106-H106 -> -78941208.59 | J106: =IF(I106=0,"",I106/H106) -> -0.2372160751 | K106: 998345649
A107: Water Storage | I107: 0
A108: Waste water management | C108: =SUM(C109:C112) -> 320300502.6 | D108: =SUM(D109:D112) -> 284915075 | E108: 284915075 | F108: 30027325.08 | G108: 120172052.7 | H108: 94971688 | I108: 25200364.65 | J108: 0.265346075 | K108: 284915075
A109: Public Toilets | I109: 0
A110: Sewerage | C110: 320300502.6 | D110: 284915075 | E110: 284915075 | F110: 30027325.08 | G110: 120172052.7 | H110: 94971688 | I110: 25200364.65 | J110: 0.265346075 | K110: 284915075
A111: Storm Water Management | C111: 0 | D111: 0 | E111: 0 | F111: 0 | G111: 0 | H111: 0 | I111: =G111-H111 -> 0 | J111: =IF(I111=0,"",I111/H111) ->  | K111: 0
A112: Waste Water Treatment | I112: 0
A113: Waste management | C113: =SUM(C114:C117) -> 199979000.8 | D113: 193673475 | E113: 193673475 | F113: 18382548.33 | G113: 74503980.12 | H113: 64557820 | I113: 9946160.12 | J113: 0.1540659229 | K113: =SUM(K114:K117) -> 193673475
A114: Recycling | I114: =G114-H114 -> 0 | J114: =IF(I114=0,"",I114/H114) -> 
A115: Solid Waste Disposal (Landfill Sites) | C115: 199979000.8 | D115: 193673475 | E115: 193673475 | F115: 18382548.33 | G115: 74503980.12 | H115: 64557820 | I115: =G115-H115 -> 9946160.12 | J115: =IF(I115=0,"",I115/H115) -> 0.1540659229 | K115: 193673475
A116: Solid Waste Removal | I116: 0
A117: Street Cleaning | I117: =G117-H117 -> 0 | J117: =IF(I117=0,"",I117/H117) -> 
A118: Other | C118: =SUM(C119:C124) -> 266319.62 | D118: =SUM(D119:D124) -> 27064103 | E118: 27064103 | F118: 2538.23 | G118: 57110.74 | H118: 9021360 | I118: -8964249.26 | J118: -0.9936693869 | K118: 27064103
A119: Abattoirs | I119: 0
A120: Air Transport | C120: 266319.62 | D120: 299592 | E120: 299592 | F120: 2538.23 | G120: 57110.74 | H120: 99860 | I120: -42749.26 | J120: -0.4280919287 | K120: 299592
A121: Forestry | I121: =G121-H121 -> 0 | J121: =IF(I121=0,"",I121/H121) -> 
A122: Licensing and Regulation | I122: 0
A123: Markets | C123: 0 | D123: 26764511 | E123: 26764511 | F123: 0 | G123: 0 | H123: 8921500 | I123: -8921500 | J123: -1 | K123: 26764511
A124: Tourism | I124: =G124-H124 -> 0 | J124: =IF(I124=0,"",I124/H124) -> 
A125: ="Total "&A5 -> Total Revenue - Functional | B125: 2 | C125: =C6+C26+C75+C99+C118 -> 3924241162 | D125: =D6+D26+D75+D99+D118 -> 4355451090 | E125: 4355451090 | F125: 275775856.5 | G125: 1369013175 | H125: 1451816824 | I125: =G125-H125 -> -82803649.21 | J125: =IF(I125=0,"",I125/H125) -> -0.05703450176 | K125: =K6+K26+K75+K99+K118 -> 4355451090
A127: Expenditure - Functional
A128: =A6 -> Municipal governance and administration | C128: =C129+C132+C146 -> 1315617216 | D128: =D129+D132+D146 -> 855255793 | E128: =E129+E132+E146 -> 856462294 | F128: =F129+F132+F146 -> 65385117.88 | G128: 214617337.9 | H128: =H129+H132+H146 -> 285406493.2 | I128: =G128-H128 -> -70789155.24 | J128: =IF(I128=0,"",I128/H128) -> -0.2480292387 | K128: =K129+K132+K146 -> 856462294
A129: Executive and council | C129: =SUM(C130:C131) -> 173174182.4 | D129: 235995456 | E129: 235922296 | F129: 12425202.26 | G129: 55126560.58 | H129: 78646589.27 | I129: -23520028.69 | J129: -0.2990597419 | K129: 235922296
A130: Mayor and Council | C130: 143953532.8 | D130: 203518729 | E130: 203460128 | F130: 10033725.24 | G130: 45047939.77 | H130: 67824891.89 | I130: -22776952.12 | J130: -0.3358199547 | K130: 203460128
A131: Municipal Manager, Town Secretary and Chief Executive | C131: 29220649.61 | D131: 32476727 | E131: 32462168 | F131: 2391477.02 | G131: 10078620.81 | H131: 10821697.38 | I131: -743076.57 | J131: -0.06866543611 | K131: 32462168
A132: Finance and administration | C132: =SUM(C133:C145) -> 1136295236 | D132: 612915690 | E132: 614195351 | F132: 52394324.27 | G132: 157150396.8 | H132: 204644999.9 | I132: -47494603.07 | J132: -0.2320828903 | K132: =SUM(K133:K145) -> 614195351
A133: Administrative and Corporate Support | C133: 220480138.4 | D133: 93463874 | E133: 93334805 | F133: 19538100.86 | G133: 39202459.47 | H133: 31113623.37 | I133: 8088836.1 | J133: 0.2599773097 | K133: 93334805
A134: Asset Management | C134: 33646409.29 | D134: 62964765 | E134: 62364765 | F134: 1216846.98 | G134: 6527212.15 | H134: 20824655.61 | I134: -14297443.46 | J134: -0.6865632608 | K134: 62364765
A135: Finance | C135: 607210167.3 | D135: 271859773 | E135: 271722213 | F135: 5844008.19 | G135: 19145297.86 | H135: 90574202.68 | I135: -71428904.82 | J135: -0.7886230594 | K135: 271722213
A136: Fleet Management | I136: 0
A137: Human Resources | C137: 31734877.88 | D137: 28927282 | E137: 31651332 | F137: 4304214.2 | G137: 12630478.28 | H137: 10385482.7 | I137: 2244995.58 | J137: 0.2161667055 | K137: 31651332
A138: Information Technology | C138: 42832921.81 | D138: 42990912 | E138: 42990912 | F138: 3547149.89 | G138: 11536225.85 | H138: 14330352 | I138: -2794126.15 | J138: -0.1949795895 | K138: 42990912
A139: Legal Services | C139: 28304345.36 | D139: 19557064 | E139: 19557064 | F139: 2885244.06 | G139: 8205399.58 | H139: 6519032 | I139: 1686367.58 | J139: 0.2586837402 | K139: 19557064
A140: Marketing, Customer Relations, Publicity and Media Co-ordination | C140: 0 | D140: 0 | E140: 0 | F140: 0 | G140: 0 | H140: 0 | I140: 0 | K140: 0
A141: Property Services | C141: 5560573.97 | D141: 2130600 | E141: 2130600 | F141: 477183.74 | G141: 2111897.48 | H141: 710204 | I141: 1401693.48 | J141: 1.973649092 | K141: 2130600
A142: Risk Management | I142: 0
A143: Security Services | C143: 145179746 | D143: 71010638 | E143: 70832878 | F143: 12903497.46 | G143: 50764376.36 | H143: 23650496.88 | I143: 27113879.48 | J143: 1.146440162 | K143: 70832878
A144: Supply Chain Management | C144: 18381246.86 | D144: 16830782 | E144: 16430782 | F144: 1678078.89 | G144: 7027049.82 | H144: 5476950.68 | I144: 1550099.14 | J144: 0.283022293 | K144: 16430782
A145: Valuation Service | C145: 2964808.73 | D145: 3180000 | E145: 3180000 | F145: 0 | G145: 0 | H145: 1060000 | I145: -1060000 | J145: -1 | K145: 3180000
A146: Internal audit | C146: =SUM(C147:C147) -> 6147798 | D146: 6344647 | E146: 6344647 | F146: 565591.35 | G146: 2340380.52 | H146: 2114904 | I146: 225476.52 | J146: 0.1066131229 | K146: =SUM(K147:K147) -> 6344647
A147: Governance Function | C147: 6147798 | D147: 6344647 | E147: 6344647 | F147: 565591.35 | G147: 2340380.52 | H147: 2114904 | I147: 225476.52 | J147: 0.1066131229 | K147: 6344647
A148: Community and public safety | C148: =C149+C171+C177+C186+C189 -> 224449968.5 | D148: =D149+D171+D177+D186+D189 -> 384714109 | E148: 384301675 | F148: 21570012.77 | G148: 99314188.87 | H148: 128101102 | I148: -28786913.17 | J148: -0.2247202617 | K148: =K149+K171+K177+K186+K189 -> 384301675
A149: Community and social services | C149: =SUM(C150:C170) -> 70161088.13 | D149: 144668377 | E149: 144668377 | F149: 5721267.07 | G149: 29898888.09 | H149: 48222980 | I149: -18324091.91 | J149: -0.3799867182 | K149: =SUM(K150:K170) -> 144668377
A150: Aged Care | I150: 0
A151: Agricultural | I151: 0
A152: Animal Care and Diseases | I152: 0
A153: Cemeteries, Funeral Parlours and Crematoriums | C153: 7721070.41 | D153: 14820330 | E153: 14820330 | F153: 514201.39 | G153: 2644692.1 | H153: 4940148 | I153: -2295455.9 | J153: -0.4646532654 | K153: 14820330
A154: Child Care Facilities | I154: 0
A155: Community Halls and Facilities | C155: 53369287.39 | D155: 107075839 | E155: 107075839 | F155: 4401191.3 | G155: 23817741.68 | H155: 35692068 | I155: -11874326.32 | J155: -0.3326881009 | K155: 107075839
A156: Consumer Protection | I156: 0
A157: Cultural Matters | I157: =G157-H157 -> 0 | J157: =IF(I157=0,"",I157/H157) -> 
A158: Disaster Management | C158: 0 | D158: 1060000 | E158: 1060000 | F158: 0 | G158: 0 | H158: 353336 | I158: =G158-H158 -> -353336 | J158: =IF(I158=0,"",I158/H158) -> -1 | K158: 1060000
A159: Education | I159: =G159-H159 -> 0 | J159: =IF(I159=0,"",I159/H159) -> 
A160: Indigenous and Customary Law | I160: 0
A161: Industrial Promotion | I161: 0
A162: Language Policy | I162: 0
A163: Libraries and Archives | C163: 9070730.33 | D163: 21712208 | E163: 21712208 | F163: 805874.38 | G163: 3436454.31 | H163: 7237428 | I163: -3800973.69 | J163: -0.5251829365 | K163: 21712208
A164: Literacy Programmes | I164: 0
A165: Media Services | I165: 0
A166: Museums and Art Galleries | I166: 0
A167: Population Development | I167: 0
A168: Provincial Cultural Matters | I168: 0
A169: Theatres | I169: 0
A170: Zoo's | I170: 0
A171: Sport and recreation | C171: =SUM(C172:C176) -> 54010335.17 | D171: 76007767 | E171: 75595333 | F171: 4993451.46 | G171: 21939744.17 | H171: 25198586.04 | I171: -3258841.87 | J171: -0.1293263783 | K171: 75595333
A172: Beaches and Jetties | I172: 0
A173: Casinos, Racing, Gambling, Wagering | I173: 0
A174: Community Parks (including Nurseries) | C174: 45482870.77 | D174: 65115050 | E174: 64702616 | F174: 4228643.59 | G174: 18646269.75 | H174: 21567610.04 | I174: -2921340.29 | J174: -0.1354503482 | K174: 64702616
A175: Recreational Facilities | C175: 2845148.24 | D175: 6209518 | E175: 6209518 | F175: 292105.4 | G175: 1073368.08 | H175: 2069872 | I175: -996503.92 | J175: -0.4814326297 | K175: 6209518
A176: Sports Grounds and Stadiums | C176: 5682316.16 | D176: 4683199 | E176: 4683199 | F176: 472702.47 | G176: 2220106.34 | H176: 1561104 | I176: 659002.34 | J176: 0.4221386532 | K176: 4683199
A177: Public safety | C177: =SUM(C178:C185) -> 101782242.4 | D177: 121173406 | E177: 121173406 | F177: 8224767.93 | G177: 36711417.07 | H177: 40391216 | I177: -3679798.93 | J177: -0.09110394027 | K177: 121173406
A178: Civil Defence | I178: 0
A179: Cleansing | I179: 0
A180: Control of Public Nuisances | I180: =G180-H180 -> 0 | J180: =IF(I180=0,"",I180/H180) -> 
A181: Fencing and Fences | I181: 0
A182: Fire Fighting and Protection | C182: 48648197.54 | D182: 56490543 | E182: 56490543 | F182: 3984553.94 | G182: 17175460.28 | H182: 18830216 | I182: -1654755.72 | J182: -0.08787768128 | K182: 56490543
A183: Licensing and Control of Animals | I183: =G183-H183 -> 0 | J183: =IF(I183=0,"",I183/H183) -> 
A184: Police Forces, Traffic and Street Parking Control | C184: 53134044.9 | D184: 64682863 | E184: 64682863 | F184: 4240213.99 | G184: 19535956.79 | H184: 21561000 | I184: =G184-H184 -> -2025043.21 | J184: =IF(I184=0,"",I184/H184) -> -0.0939215811 | K184: 64682863
A185: Pounds | I185: 0
A186: Housing | C186: =SUM(C187:C188) -> 20929168.08 | D186: 24318784 | E186: 24318784 | F186: 1830935.36 | G186: 7158025.99 | H186: 8106304 | I186: =G186-H186 -> -948278.01 | J186: =IF(I186=0,"",I186/H186) -> -0.1169803168 | K186: =SUM(K187:K188) -> 24318784
A187: Housing | C187: 20929168.08 | D187: 24318784 | E187: 24318784 | F187: 1830935.36 | G187: 7158025.99 | H187: 8106304 | I187: =G187-H187 -> -948278.01 | J187: =IF(I187=0,"",I187/H187) -> -0.1169803168 | K187: 24318784
A188: Informal Settlements | I188: =G188-H188 -> 0 | J188: =IF(I188=0,"",I188/H188) -> 
A189: Health | C189: =SUM(C190:C196) -> -22432865.36 | D189: 18545775 | E189: 18545775 | F189: 799590.95 | G189: 3606113.55 | H189: 6182016 | I189: -2575902.45 | J189: -0.4166767685 | K189: 18545775
A190: Ambulance | I190: 0
A191: Health Services | C191: -22432865.36 | D191: 18545775 | E191: 18545775 | F191: 799590.95 | G191: 3606113.55 | H191: 6182016 | I191: -2575902.45 | J191: -0.4166767685 | K191: 18545775
A192: =A70 -> Laboratory Services | I192: 0
A193: Food Control | I193: =G193-H193 -> 0 | J193: =IF(I193=0,"",I193/H193) -> 
A194: Health Surveillance and Prevention of Communicable Diseases including immunizations | I194: =G194-H194 -> 0 | J194: =IF(I194=0,"",I194/H194) -> 
A195: Vector Control | I195: 0
A196: Chemical Safety | I196: 0
A197: Economic and environmental services | C197: =C198+C209+C214 -> 55906678.94 | D197: 154018649 | E197: 154018649 | F197: 4321509.85 | G197: 21982090.5 | H197: 51339768 | I197: -29357677.5 | J197: -0.571831129 | K197: =K198+K209+K214 -> 154018649
A198: Planning and development | C198: =SUM(C199:C208) -> 47139702.85 | D198: 61435369 | E198: 61435369 | F198: 3425735.41 | G198: 14823580.38 | H198: 20478640 | I198: -5655059.62 | J198: -0.2761442957 | K198: 61435369
A199: Billboards | I199: 0
A200: Corporate Wide Strategic Planning (IDPs, LEDs) | C200: 5021913.71 | D200: 7798347 | E200: 7798347 | F200: 390125.8 | G200: 1672474.54 | H200: 2599472 | I200: -926997.46 | J200: -0.3566099039 | K200: 7798347
A201: Central City Improvement District | I201: 0
... 54 more rows

Sheet C3-FinPerf V
A1: =muni& " - "&S71C& " - "&date -> FS184 Matjhabeng - Table C3 Monthly Budget Statement - Financial Performance (revenue and expenditure by municipal vote) - M04 October
A2: =Vdesc -> Vote Description | B2: =head27 -> Ref | C2: =Head1 -> 2023/24 | D2: =Head2 -> Budget Year 2024/25
C3: =Head5 -> Audited Outcome | D3: =Head6 -> Original Budget | E3: =Head7 -> Adjusted Budget | F3: =Head38 -> Monthly actual | G3: =Head39 -> YearTD actual | H3: =Head40 -> YearTD budget | I3: =Head41 -> YTD variance | J3: =Head41 -> YTD variance | K3: =Head8 -> Full Year Forecast
A4: R thousands | J4: %
A5: Revenue by Vote | B5: 1
A6: ='Org structure'!A2 -> Vote 01 - Council General | C6: ='C3C'!C6 -> 883115069.1 | D6: ='C3C'!D6 -> 384711000 | E6: ='C3C'!E6 -> 384711000 | F6: ='C3C'!F6 -> 31170332 | G6: ='C3C'!G6 -> 369501660.8 | H6: ='C3C'!H6 -> 128236992 | I6: =G6-H6 -> 241264668.8 | J6: =IF(I6=0,"",I6/H6) -> 1.881396818 | K6: ='C3C'!K6 -> 384711000
A7: ='Org structure'!A3 -> Vote 02 - Office Of The Executive Mayor | C7: ='C3C'!C8 -> 0 | D7: ='C3C'!D8 -> 0 | E7: ='C3C'!E8 -> 0 | F7: ='C3C'!F8 -> 0 | G7: ='C3C'!G8 -> 0 | H7: ='C3C'!H8 -> 0 | I7: =G7-H7 -> 0 | J7: =IF(I7=0,"",I7/H7) ->  | K7: ='C3C'!K8 -> 0
A8: ='Org structure'!A4 -> Vote 03 - Office Of The Speaker | C8: ='C3C'!C12 -> 0 | D8: ='C3C'!D12 -> 0 | E8: ='C3C'!E12 -> 0 | F8: ='C3C'!F12 -> 0 | G8: ='C3C'!G12 -> 0 | H8: ='C3C'!H12 -> 0 | I8: =G8-H8 -> 0 | J8: =IF(I8=0,"",I8/H8) ->  | K8: ='C3C'!K12 -> 0
A9: ='Org structure'!A5 -> Vote 04 - Council Whip | C9: ='C3C'!C14 -> 0 | D9: ='C3C'!D14 -> 0 | E9: ='C3C'!E14 -> 0 | F9: ='C3C'!F14 -> 0 | G9: ='C3C'!G14 -> 0 | H9: ='C3C'!H14 -> 0 | I9: =G9-H9 -> 0 | J9: =IF(I9=0,"",I9/H9) ->  | K9: ='C3C'!K14 -> 0
A10: ='Org structure'!A6 -> Vote 05 - Office Of The Municipal Manager | C10: ='C3C'!C19 -> -7639 | D10: ='C3C'!D19 -> 100000000 | E10: ='C3C'!E19 -> 100000000 | F10: ='C3C'!F19 -> 0 | G10: ='C3C'!G19 -> -400 | H10: ='C3C'!H19 -> 33333332 | I10: =G10-H10 -> -33333732 | J10: =IF(I10=0,"",I10/H10) -> -1.000012 | K10: ='C3C'!K19 -> 100000000
A11: ='Org structure'!A7 -> Vote 06 - Corporate Services | C11: ='C3C'!C28 -> 0 | D11: ='C3C'!D28 -> 0 | E11: ='C3C'!E28 -> 0 | F11: ='C3C'!F28 -> 0 | G11: ='C3C'!G28 -> 0 | H11: ='C3C'!H28 -> 0 | I11: =G11-H11 -> 0 | J11: =IF(I11=0,"",I11/H11) ->  | K11: ='C3C'!K28 -> 0
A12: ='Org structure'!A8 -> Vote 07 - Finance | C12: ='C3C'!C32 -> 934887350.6 | D12: ='C3C'!D32 -> 1103319443 | E12: ='C3C'!E32 -> 1103319443 | F12: ='C3C'!F32 -> 51670377.45 | G12: ='C3C'!G32 -> 207535180.8 | H12: ='C3C'!H32 -> 367773064 | I12: =G12-H12 -> -160237883.2 | J12: =IF(I12=0,"",I12/H12) -> -0.4356977139 | K12: ='C3C'!K32 -> 1103319443
A13: ='Org structure'!A9 -> Vote 08 - Human Resources | C13: ='C3C'!C42 -> 0 | D13: ='C3C'!D42 -> 0 | E13: ='C3C'!E42 -> 0 | F13: ='C3C'!F42 -> 0 | G13: ='C3C'!G42 -> 0 | H13: ='C3C'!H42 -> 0 | I13: =G13-H13 -> 0 | J13: =IF(I13=0,"",I13/H13) ->  | K13: ='C3C'!K42 -> 0
A14: ='Org structure'!A10 -> Vote 09 - Community Services | C14: ='C3C'!C47 -> 201992918.6 | D14: ='C3C'!D47 -> 409355099 | E14: ='C3C'!E47 -> 409355099 | F14: ='C3C'!F47 -> 18657403.03 | G14: ='C3C'!G47 -> 75331357.43 | H14: ='C3C'!H47 -> 136451680 | I14: =G14-H14 -> -61120322.57 | J14: =IF(I14=0,"",I14/H14) -> -0.4479264936 | K14: ='C3C'!K47 -> 409355099
A15: ='Org structure'!A11 -> Vote 10 - Public Safety And Transport | C15: ='C3C'!C61 -> 5650084.26 | D15: ='C3C'!D61 -> 38654105 | E15: ='C3C'!E61 -> 38654105 | F15: ='C3C'!F61 -> 233570.68 | G15: ='C3C'!G61 -> 1030301.76 | H15: ='C3C'!H61 -> 12884684 | I15: =G15-H15 -> -11854382.24 | J15: =IF(I15=0,"",I15/H15) -> -0.9200367071 | K15: ='C3C'!K61 -> 38654105
A16: ='Org structure'!A12 -> Vote 11 - Economic Development | C16: ='C3C'!C66 -> 764627.6 | D16: ='C3C'!D66 -> 2457199 | E16: ='C3C'!E66 -> 2457199 | F16: ='C3C'!F66 -> 78437.34 | G16: ='C3C'!G66 -> 373579.42 | H16: ='C3C'!H66 -> 819060 | I16: =G16-H16 -> -445480.58 | J16: =IF(I16=0,"",I16/H16) -> -0.5438924865 | K16: ='C3C'!K66 -> 2457199
A17: ='Org structure'!A13 -> Vote 12 - Engineering Services | C17: ='C3C'!C70 -> 5968.7 | D17: ='C3C'!D70 -> 116080452 | E17: ='C3C'!E70 -> 116080452 | F17: ='C3C'!F70 -> 5098.32 | G17: ='C3C'!G70 -> 10825.27 | H17: ='C3C'!H70 -> 38693472 | I17: =G17-H17 -> -38682646.73 | J17: =IF(I17=0,"",I17/H17) -> -0.9997202301 | K17: ='C3C'!K70 -> 116080452
A18: ='Org structure'!A14 -> Vote 13 - Water/ Sewerage | C18: ='C3C'!C78 -> 1058614275 | D18: ='C3C'!D78 -> 1283260724 | E18: ='C3C'!E78 -> 1283260724 | F18: ='C3C'!F78 -> 100128483.5 | G18: ='C3C'!G78 -> 374012712.1 | H18: ='C3C'!H78 -> 427753556 | I18: =G18-H18 -> -53740843.94 | J18: =IF(I18=0,"",I18/H18) -> -0.1256350606 | K18: ='C3C'!K78 -> 1283260724
A19: ='Org structure'!A15 -> Vote 14 - Electricity | C19: ='C3C'!C84 -> 817261467.5 | D19: ='C3C'!D84 -> 887425800 | E19: ='C3C'!E84 -> 887425800 | F19: ='C3C'!F84 -> 71857110.37 | G19: ='C3C'!G84 -> 333203089.6 | H19: ='C3C'!H84 -> 295808576 | I19: =G19-H19 -> 37394513.58 | J19: =IF(I19=0,"",I19/H19) -> 0.1264145688 | K19: ='C3C'!K84 -> 887425800
A20: ='Org structure'!A16 -> Vote 15 - Other | C20: ='C3C'!C92 -> 21957039.04 | D20: ='C3C'!D92 -> 30187268 | E20: ='C3C'!E92 -> 30187268 | F20: ='C3C'!F92 -> 1975043.84 | G20: ='C3C'!G92 -> 8014867.74 | H20: ='C3C'!H92 -> 10062408 | I20: =G20-H20 -> -2047540.26 | J20: =IF(I20=0,"",I20/H20) -> -0.2034841223 | K20: ='C3C'!K92 -> 30187268
A21: Total Revenue by Vote | B21: 2 | C21: =SUM(C6:C20) -> 3924241162 | D21: =SUM(D6:D20) -> 4355451090 | E21: 4355451090 | F21: 275775856.5 | G21: 1369013175 | H21: 1451816824 | I21: -82803649.21 | J21: =IF(I21=0,"",I21/H21) -> -0.05703450176 | K21: =SUM(K6:K20) -> 4355451090
A23: Expenditure by Vote | B23: 1
A24: ='Org structure'!A2 -> Vote 01 - Council General | C24: ='C3C'!C100 -> 83620859.72 | D24: ='C3C'!D100 -> 120782090 | E24: ='C3C'!E100 -> 120782090 | F24: ='C3C'!F100 -> 5067416.84 | G24: ='C3C'!G100 -> 25443534.82 | H24: ='C3C'!H100 -> 40260752 | I24: =G24-H24 -> -14817217.18 | J24: =IF(I24=0,"",I24/H24) -> -0.368031307 | K24: ='C3C'!K100 -> 120782090
A25: ='Org structure'!A3 -> Vote 02 - Office Of The Executive Mayor | C25: ='C3C'!C102 -> 15994532.85 | D25: ='C3C'!D102 -> 18444191 | E25: ='C3C'!E102 -> 18409591 | F25: ='C3C'!F102 -> 1275400.03 | G25: ='C3C'!G102 -> 4601043.55 | H25: ='C3C'!H102 -> 6141224 | I25: =G25-H25 -> -1540180.45 | J25: =IF(I25=0,"",I25/H25) -> -0.2507937261 | K25: ='C3C'!K102 -> 18409591
A26: ='Org structure'!A4 -> Vote 03 - Office Of The Speaker | C26: ='C3C'!C106 -> 7457690.21 | D26: ='C3C'!D106 -> 7329624 | E26: ='C3C'!E106 -> 7305623 | F26: ='C3C'!F106 -> 650642.77 | G26: ='C3C'!G106 -> 2442113.31 | H26: ='C3C'!H106 -> 2435235.89 | I26: =G26-H26 -> 6877.42 | J26: =IF(I26=0,"",I26/H26) -> 0.002824128877 | K26: ='C3C'!K106 -> 7305623
A27: ='Org structure'!A5 -> Vote 04 - Council Whip | C27: ='C3C'!C108 -> 36880450.03 | D27: ='C3C'!D108 -> 56962824 | E27: ='C3C'!E108 -> 56962824 | F27: ='C3C'!F108 -> 3040265.6 | G27: ='C3C'!G108 -> 12561248.09 | H27: ='C3C'!H108 -> 18987680 | I27: =G27-H27 -> -6426431.91 | J27: =IF(I27=0,"",I27/H27) -> -0.3384527183 | K27: ='C3C'!K108 -> 56962824
A28: ='Org structure'!A6 -> Vote 05 - Office Of The Municipal Manager | C28: ='C3C'!C113 -> 111527628.5 | D28: ='C3C'!D113 -> 109167697 | E28: ='C3C'!E113 -> 109153138 | F28: ='C3C'!F113 -> 9779588.12 | G28: ='C3C'!G113 -> 33833101.3 | H28: ='C3C'!H113 -> 36385457.38 | I28: =G28-H28 -> -2552356.08 | J28: =IF(I28=0,"",I28/H28) -> -0.07014769811 | K28: ='C3C'!K113 -> 109153138
A29: ='Org structure'!A7 -> Vote 06 - Corporate Services | C29: ='C3C'!C122 -> 55660479.49 | D29: ='C3C'!D122 -> 79460453 | E29: ='C3C'!E122 -> 79407829 | F29: ='C3C'!F122 -> 4208989.73 | G29: ='C3C'!G122 -> 18245520.74 | H29: ='C3C'!H122 -> 26471229.01 | I29: =G29-H29 -> -8225708.27 | J29: =IF(I29=0,"",I29/H29) -> -0.310741457 | K29: ='C3C'!K122 -> 79407829
A30: ='Org structure'!A8 -> Vote 07 - Finance | C30: ='C3C'!C126 -> 799420729.9 | D30: ='C3C'!D126 -> 341221688 | E30: ='C3C'!E126 -> 340645954 | F30: ='C3C'!F126 -> 24061323.1 | G30: ='C3C'!G126 -> 52257447.62 | H30: ='C3C'!H126 -> 113548916.7 | I30: =G30-H30 -> -61291469.1 | J30: =IF(I30=0,"",I30/H30) -> -0.5397803068 | K30: ='C3C'!K126 -> 340645954
A31: ='Org structure'!A9 -> Vote 08 - Human Resources | C31: ='C3C'!C136 -> 24131973.5 | D31: ='C3C'!D136 -> 23840009 | E31: ='C3C'!E136 -> 26564059 | F31: ='C3C'!F136 -> 3531293.29 | G31: ='C3C'!G136 -> 9987348.23 | H31: ='C3C'!H136 -> 8689702.7 | I31: =G31-H31 -> 1297645.53 | J31: =IF(I31=0,"",I31/H31) -> 0.1493314069 | K31: ='C3C'!K136 -> 26564059
A32: ='Org structure'!A10 -> Vote 09 - Community Services | C32: ='C3C'!C141 -> 304931430.4 | D32: ='C3C'!D141 -> 372141544 | E32: ='C3C'!E141 -> 370345810 | F32: ='C3C'!F141 -> 15083272.36 | G32: ='C3C'!G141 -> 73914697.77 | H32: ='C3C'!H141 -> 123532862.4 | I32: =G32-H32 -> -49618164.65 | J32: =IF(I32=0,"",I32/H32) -> -0.4016596368 | K32: ='C3C'!K141 -> 370345810
A33: ='Org structure'!A11 -> Vote 10 - Public Safety And Transport | C33: ='C3C'!C155 -> 246483055.7 | D33: ='C3C'!D155 -> 193244044 | E33: ='C3C'!E155 -> 193066284 | F33: ='C3C'!F155 -> 21083362.95 | G33: ='C3C'!G155 -> 87293991.94 | H33: ='C3C'!H155 -> 64395048.88 | I33: =G33-H33 -> 22898943.06 | J33: =IF(I33=0,"",I33/H33) -> 0.3556009889 | K33: ='C3C'!K155 -> 193066284
A34: ='Org structure'!A12 -> Vote 11 - Economic Development | C34: ='C3C'!C160 -> 31771710.97 | D34: ='C3C'!D160 -> 26594361 | E34: ='C3C'!E160 -> 26594361 | F34: ='C3C'!F160 -> 2183666.22 | G34: ='C3C'!G160 -> 9102403.53 | H34: ='C3C'!H160 -> 8864880 | I34: =G34-H34 -> 237523.53 | J34: =IF(I34=0,"",I34/H34) -> 0.02679376709 | K34: ='C3C'!K160 -> 26594361
A35: ='Org structure'!A13 -> Vote 12 - Engineering Services | C35: ='C3C'!C164 -> 71037734.04 | D35: ='C3C'!D164 -> 186806301 | E35: ='C3C'!E164 -> 186768030 | F35: ='C3C'!F164 -> 5863349.96 | G35: ='C3C'!G164 -> 28274973.95 | H35: ='C3C'!H164 -> 62256251 | I35: =G35-H35 -> -33981277.05 | J35: =IF(I35=0,"",I35/H35) -> -0.5458291578 | K35: ='C3C'!K164 -> 186768030
A36: ='Org structure'!A14 -> Vote 13 - Water/ Sewerage | C36: ='C3C'!C172 -> 1271240957 | D36: ='C3C'!D172 -> 723345406 | E36: ='C3C'!E172 -> 1437831803 | F36: ='C3C'!F172 -> 162662054.5 | G36: ='C3C'!G172 -> 131821584.7 | H36: ='C3C'!H172 -> 320286038.6 | I36: =G36-H36 -> -188464453.9 | J36: =IF(I36=0,"",I36/H36) -> -0.5884254423 | K36: ='C3C'!K172 -> 1437831803
A37: ='Org structure'!A15 -> Vote 14 - Electricity | C37: ='C3C'!C178 -> 1443381066 | D37: ='C3C'!D178 -> 1131954544 | E37: ='C3C'!E178 -> 1129311901 | F37: ='C3C'!F178 -> 341321498.8 | G37: ='C3C'!G178 -> 208505507.3 | H37: ='C3C'!H178 -> 376884475.2 | I37: =G37-H37 -> -168378967.9 | J37: =IF(I37=0,"",I37/H37) -> -0.4467654653 | K37: ='C3C'!K178 -> 1129311901
A38: ='Org structure'!A16 -> Vote 15 - Other | C38: ='C3C'!C186 -> 26740678.45 | D38: ='C3C'!D186 -> 32017819 | E38: ='C3C'!E186 -> 32017819 | F38: ='C3C'!F186 -> 2263753.53 | G38: ='C3C'!G186 -> 8920570.38 | H38: ='C3C'!H186 -> 10672676 | I38: =G38-H38 -> -1752105.62 | J38: =IF(I38=0,"",I38/H38) -> -0.1641674141 | K38: ='C3C'!K186 -> 32017819
A39: Total Expenditure by Vote | B39: 2 | C39: =SUM(C24:C38) -> 4530280977 | D39: =SUM(D24:D38) -> 3423312595 | E39: 4135167116 | F39: 602075877.8 | G39: 707205087.2 | H39: 1219812430 | I39: -512607342.6 | J39: =IF(I39=0,"",I39/H39) -> -0.4202345624 | K39: =SUM(K24:K38) -> 4135167116
A40: =result -> Surplus/ (Deficit) for the year | B40: 2 | C40: =C21-C39 -> -606039815.5 | D40: 932138495 | E40: 220283974 | F40: -326300021.3 | G40: 661808087.6 | H40: 232004394.2 | I40: =I21-I39 -> 429803693.4 | J40: =IF(I40=0,"",I40/H40) -> 1.852567038 | K40: =K21-K39 -> 220283974
A41: =head27a -> References
A42: 1. Insert 'Vote'; e.g. Department, if different to standard classification structure
A43: 2. Must reconcile to Monthly Budget Statement - Financial Performance Statement (standard classification)

Sheet C3C
A1: =muni& " - "&S71C& " - "&"A"& " - "&date -> FS184 Matjhabeng - Table C3 Monthly Budget Statement - Financial Performance (revenue and expenditure by municipal vote) - A - M04 October
A2: =Vdesc -> Vote Description | B2: =head27 -> Ref | C2: =Head1 -> 2023/24 | D2: =Head2 -> Budget Year 2024/25 | L2: =Head4 -> 
A3: R thousand | C3: =Head5 -> Audited Outcome | D3: =Head6 -> Original Budget | E3: =Head7 -> Adjusted Budget | F3: =Head38 -> Monthly actual | G3: =Head39 -> YearTD actual | H3: =Head40 -> YearTD budget | I3: =Head41 -> YTD variance | J3: =Head41 -> YTD variance | K3: =Head8 -> Full Year Forecast | L3: =Head12 -> Forecast 2010/11 | M3: =Head13 -> Forecast 2011/12 | N3: =Head14 -> Forecast 2012/13 | O3: =Head15 -> Forecast 2013/14 | P3: =Head16 -> Forecast 2014/15 | Q3: =Head17 -> Forecast 2015/16 | R3: =Head18 -> Forecast 2016/17 | S3: =Head19 -> Forecast 2017/18 | T3: =Head20 -> Forecast 2018/19 | U3: =Head21 -> Forecast 2019/20 | V3: =Head22 -> Forecast 2020/21 | W3: =Head23 -> Forecast 2021/22
J4: %
A5: Revenue by Vote | B5: 1
A6: ='Org structure'!A2 -> Vote 01 - Council General | C6: =SUM(C7:C7) -> 883115069.1 | D6: =SUM(D7:D7) -> 384711000 | E6: =SUM(E7:E7) -> 384711000 | F6: =SUM(F7:F7) -> 31170332 | G6: =SUM(G7:G7) -> 369501660.8 | H6: =SUM(H7:H7) -> 128236992 | I6: =G6-H6 -> 241264668.8 | J6: =IF(I6=0,"",I6/H6) -> 1.881396818 | K6: =SUM(K7:K7) -> 384711000
A7: ='Org structure'!E3 -> 01.1 - Council | C7: 883115069.1 | D7: 384711000 | E7: 384711000 | F7: 31170332 | G7: 369501660.8 | H7: 128236992 | I7: =G7-H7 -> 241264668.8 | J7: =IF(I7=0,"",I7/H7) -> 1.881396818 | K7: 384711000
A8: ='Org structure'!A3 -> Vote 02 - Office Of The Executive Mayor | C8: =SUM(C9:C11) -> 0 | D8: =SUM(D9:D11) -> 0 | E8: =SUM(E9:E11) -> 0 | F8: =SUM(F9:F11) -> 0 | G8: =SUM(G9:G11) -> 0 | H8: =SUM(H9:H11) -> 0 | I8: 0 | K8: =SUM(K9:K11) -> 0
A9: ='Org structure'!E5 -> 02.1 - Office Of The Executive Mayor | C9: 0 | D9: 0 | E9: 0 | F9: 0 | G9: 0 | H9: 0 | I9: =G9-H9 -> 0 | J9: =IF(I9=0,"",I9/H9) ->  | K9: 0
A10: ='Org structure'!E6 -> 02.2 - Mayorall Committee | C10: 0 | D10: 0 | E10: 0 | F10: 0 | G10: 0 | H10: 0 | I10: =G10-H10 -> 0 | J10: =IF(I10=0,"",I10/H10) ->  | K10: 0
A11: ='Org structure'!E7 -> 02.3 - Council Whip | C11: 0 | D11: 0 | E11: 0 | F11: 0 | G11: 0 | H11: 0 | I11: =G11-H11 -> 0 | J11: =IF(I11=0,"",I11/H11) ->  | K11: 0
A12: ='Org structure'!A4 -> Vote 03 - Office Of The Speaker | C12: =SUM(C13:C13) -> 0 | D12: =SUM(D13:D13) -> 0 | E12: =SUM(E13:E13) -> 0 | F12: =SUM(F13:F13) -> 0 | G12: =SUM(G13:G13) -> 0 | H12: =SUM(H13:H13) -> 0 | I12: 0 | K12: =SUM(K13:K13) -> 0
A13: ='Org structure'!E9 -> 03.1 - Office Of The Speaker | C13: 0 | D13: 0 | E13: 0 | F13: 0 | G13: 0 | H13: 0 | I13: =G13-H13 -> 0 | J13: =IF(I13=0,"",I13/H13) ->  | K13: 0
A14: ='Org structure'!A5 -> Vote 04 - Council Whip | C14: =SUM(C15:C18) -> 0 | D14: =SUM(D15:D18) -> 0 | E14: =SUM(E15:E18) -> 0 | F14: =SUM(F15:F18) -> 0 | G14: =SUM(G15:G18) -> 0 | H14: =SUM(H15:H18) -> 0 | I14: 0 | K14: =SUM(K15:K18) -> 0
A15: ='Org structure'!E11 -> 04.1 - Council Whip Admin | C15: 0 | D15: 0 | E15: 0 | F15: 0 | G15: 0 | H15: 0 | I15: =G15-H15 -> 0 | J15: =IF(I15=0,"",I15/H15) ->  | K15: 0
A16: ='Org structure'!E12 -> 04.2 - Mayor Personnel | C16: 0 | D16: 0 | E16: 0 | F16: 0 | G16: 0 | H16: 0 | I16: =G16-H16 -> 0 | J16: =IF(I16=0,"",I16/H16) ->  | K16: 0
A17: ='Org structure'!E13 -> 04.3 - Speaker Personnel | C17: 0 | D17: 0 | E17: 0 | F17: 0 | G17: 0 | H17: 0 | I17: =G17-H17 -> 0 | J17: =IF(I17=0,"",I17/H17) ->  | K17: 0
A18: ='Org structure'!E14 -> 04.4 - Mmc Secretary | C18: 0 | D18: 0 | E18: 0 | F18: 0 | G18: 0 | H18: 0 | I18: =G18-H18 -> 0 | J18: =IF(I18=0,"",I18/H18) ->  | K18: 0
A19: ='Org structure'!A6 -> Vote 05 - Office Of The Municipal Manager | C19: =SUM(C20:C27) -> -7639 | D19: =SUM(D20:D27) -> 100000000 | E19: =SUM(E20:E27) -> 100000000 | F19: =SUM(F20:F27) -> 0 | G19: =SUM(G20:G27) -> -400 | H19: =SUM(H20:H27) -> 33333332 | I19: -33333732 | J19: -1.000012 | K19: =SUM(K20:K27) -> 100000000
A20: ='Org structure'!E16 -> 05.1 - Administration | C20: 0 | D20: 100000000 | E20: 100000000 | F20: 0 | G20: 0 | H20: 33333332 | I20: =G20-H20 -> -33333332 | J20: =IF(I20=0,"",I20/H20) -> -1 | K20: 100000000
A21: ='Org structure'!E17 -> 05.2 - Integrated Development Management | C21: 0 | D21: 0 | E21: 0 | F21: 0 | G21: 0 | H21: 0 | I21: =G21-H21 -> 0 | J21: =IF(I21=0,"",I21/H21) ->  | K21: 0
A22: ='Org structure'!E18 -> 05.3 - Internal Audit | C22: 0 | D22: 0 | E22: 0 | F22: 0 | G22: 0 | H22: 0 | I22: =G22-H22 -> 0 | J22: =IF(I22=0,"",I22/H22) ->  | K22: 0
A23: ='Org structure'!E19 -> 05.4 - Organisation & Workstudy | C23: 0 | D23: 0 | E23: 0 | F23: 0 | G23: 0 | H23: 0 | I23: =G23-H23 -> 0 | J23: =IF(I23=0,"",I23/H23) ->  | K23: 0
A24: ='Org structure'!E20 -> 05.5 - Information Communication Technology | C24: 0 | D24: 0 | E24: 0 | F24: 0 | G24: 0 | H24: 0 | I24: =G24-H24 -> 0 | J24: =IF(I24=0,"",I24/H24) ->  | K24: 0
A25: ='Org structure'!E21 -> 05.6 - Unit Manager: Od | C25: 0 | D25: 0 | E25: 0 | F25: 0 | G25: 0 | H25: 0 | I25: =G25-H25 -> 0 | J25: =IF(I25=0,"",I25/H25) ->  | K25: 0
A26: ='Org structure'!E22 -> 05.7 - Unit Manager: Virginia | C26: -7639 | D26: 0 | E26: 0 | F26: 0 | G26: -400 | H26: 0 | I26: =G26-H26 -> -400 | J26: =IF(I26=0,"",I26/H26) ->  | K26: 0
A27: ='Org structure'!E23 -> 05.8 - Legal Services | C27: 0 | D27: 0 | E27: 0 | F27: 0 | G27: 0 | H27: 0 | I27: =G27-H27 -> 0 | J27: =IF(I27=0,"",I27/H27) ->  | K27: 0
A28: ='Org structure'!A7 -> Vote 06 - Corporate Services | C28: =SUM(C29:C31) -> 0 | D28: =SUM(D29:D31) -> 0 | E28: =SUM(E29:E31) -> 0 | F28: =SUM(F29:F31) -> 0 | G28: =SUM(G29:G31) -> 0 | H28: =SUM(H29:H31) -> 0 | I28: 0 | K28: =SUM(K29:K31) -> 0
A29: ='Org structure'!E25 -> 06.1 - Administration | C29: 0 | D29: 0 | E29: 0 | F29: 0 | G29: 0 | H29: 0 | I29: =G29-H29 -> 0 | J29: =IF(I29=0,"",I29/H29) ->  | K29: 0
A30: ='Org structure'!E26 -> 06.2 - Libraries | C30: 0 | D30: 0 | E30: 0 | F30: 0 | G30: 0 | H30: 0 | I30: =G30-H30 -> 0 | J30: =IF(I30=0,"",I30/H30) ->  | K30: 0
A31: ='Org structure'!E27 -> 06.3 - Halls And Offices | C31: 0 | D31: 0 | E31: 0 | F31: 0 | G31: 0 | H31: 0 | I31: =G31-H31 -> 0 | J31: =IF(I31=0,"",I31/H31) ->  | K31: 0
A32: ='Org structure'!A8 -> Vote 07 - Finance | C32: =SUM(C33:C41) -> 934887350.6 | D32: =SUM(D33:D41) -> 1103319443 | E32: =SUM(E33:E41) -> 1103319443 | F32: =SUM(F33:F41) -> 51670377.45 | G32: =SUM(G33:G41) -> 207535180.8 | H32: =SUM(H33:H41) -> 367773064 | I32: =G32-H32 -> -160237883.2 | J32: =IF(I32=0,"",I32/H32) -> -0.4356977139 | K32: =SUM(K33:K41) -> 1103319443
A33: ='Org structure'!E29 -> 07.1 - Administration | C33: 3218437.06 | D33: 5128914 | E33: 5128914 | F33: 29760.03 | G33: 116077.27 | H33: 1709636 | I33: =G33-H33 -> -1593558.73 | J33: =IF(I33=0,"",I33/H33) -> -0.9321041029 | K33: 5128914
A34: ='Org structure'!E30 -> 07.2 - Expenditure | C34: 2824357.14 | D34: 73412 | E34: 73412 | F34: 75692.65 | G34: 361218.83 | H34: 24468 | I34: =G34-H34 -> 336750.83 | J34: =IF(I34=0,"",I34/H34) -> 13.76290788 | K34: 73412
A35: ='Org structure'!E31 -> 07.3 - Salaries | C35: 701376.71 | D35: 6728 | E35: 6728 | F35: 61752.8 | G35: 244290.31 | H35: 2240 | I35: =G35-H35 -> 242050.31 | J35: =IF(I35=0,"",I35/H35) -> 108.0581741 | K35: 6728
A36: ='Org structure'!E32 -> 07.4 - Supply Chain Management | C36: 0 | D36: 0 | E36: 0 | F36: 0 | G36: 0 | H36: 0 | I36: =G36-H36 -> 0 | J36: =IF(I36=0,"",I36/H36) ->  | K36: 0
A37: ='Org structure'!E33 -> 07.5 - Budget Control | C37: 0 | D37: 0 | E37: 0 | F37: 0 | G37: 0 | H37: 0 | I37: =G37-H37 -> 0 | J37: =IF(I37=0,"",I37/H37) ->  | K37: 0
A38: ='Org structure'!E34 -> 07.6 - Revenue | C38: 928143179.7 | D38: 1071345878 | E38: 1071345878 | F38: 51503171.97 | G38: 206813594.4 | H38: 357115220 | I38: =G38-H38 -> -150301625.6 | J38: =IF(I38=0,"",I38/H38) -> -0.4208771209 | K38: 1071345878
A39: ='Org structure'!E35 -> 07.7 - Fresh Produce Market | C39: 0 | D39: 26764511 | E39: 26764511 | F39: 0 | G39: 0 | H39: 8921500 | I39: =G39-H39 -> -8921500 | J39: =IF(I39=0,"",I39/H39) -> -1 | K39: 26764511
A40: ='Org structure'!E36 -> 07.8 - Valuation | C40: 0 | D40: 0 | E40: 0 | F40: 0 | G40: 0 | H40: 0 | I40: =G40-H40 -> 0 | J40: =IF(I40=0,"",I40/H40) ->  | K40: 0
A41: ='Org structure'!E37 -> 07.9 - Credit Control | C41: 0 | D41: 0 | E41: 0 | F41: 0 | G41: 0 | H41: 0 | I41: =G41-H41 -> 0 | J41: =IF(I41=0,"",I41/H41) ->  | K41: 0
A42: ='Org structure'!A9 -> Vote 08 - Human Resources | C42: =SUM(C43:C46) -> 0 | D42: =SUM(D43:D46) -> 0 | E42: =SUM(E43:E46) -> 0 | F42: =SUM(F43:F46) -> 0 | G42: =SUM(G43:G46) -> 0 | H42: =SUM(H43:H46) -> 0 | I42: 0 | K42: =SUM(K43:K46) -> 0
A43: ='Org structure'!E39 -> 08.1 - Administration | C43: 0 | D43: 0 | E43: 0 | F43: 0 | G43: 0 | H43: 0 | I43: =G43-H43 -> 0 | J43: =IF(I43=0,"",I43/H43) ->  | K43: 0
A44: ='Org structure'!E40 -> 08.2 - Human Labour Relations | C44: 0 | D44: 0 | E44: 0 | F44: 0 | G44: 0 | H44: 0 | I44: =G44-H44 -> 0 | J44: =IF(I44=0,"",I44/H44) ->  | K44: 0
A45: ='Org structure'!E41 -> 08.3 - Training | C45: 0 | D45: 0 | E45: 0 | F45: 0 | G45: 0 | H45: 0 | I45: =G45-H45 -> 0 | J45: =IF(I45=0,"",I45/H45) ->  | K45: 0
A46: ='Org structure'!E42 -> 08.4 - Health & Safety | C46: 0 | D46: 0 | E46: 0 | F46: 0 | G46: 0 | H46: 0 | I46: =G46-H46 -> 0 | J46: =IF(I46=0,"",I46/H46) ->  | K46: 0
A47: ='Org structure'!A10 -> Vote 09 - Community Services | C47: =SUM(C48:C60) -> 201992918.6 | D47: =SUM(D48:D60) -> 409355099 | E47: =SUM(E48:E60) -> 409355099 | F47: =SUM(F48:F60) -> 18657403.03 | G47: =SUM(G48:G60) -> 75331357.43 | H47: =SUM(H48:H60) -> 136451680 | I47: -61120322.57 | J47: -0.4479264936 | K47: =SUM(K48:K60) -> 409355099
A48: ='Org structure'!E44 -> 09.1 - Admin | C48: 0 | D48: 200000000 | E48: 200000000 | F48: 0 | G48: 0 | H48: 66666664 | I48: =G48-H48 -> -66666664 | J48: =IF(I48=0,"",I48/H48) -> -1 | K48: 200000000
A49: ='Org structure'!E45 -> 09.2 - Welfare | C49: 0 | D49: 0 | E49: 0 | F49: 0 | G49: 0 | H49: 0 | I49: =G49-H49 -> 0 | J49: =IF(I49=0,"",I49/H49) ->  | K49: 0
A50: ='Org structure'!E46 -> 09.3 - Environmental Health Services | C50: 0 | D50: 0 | E50: 0 | F50: 0 | G50: 0 | H50: 0 | I50: =G50-H50 -> 0 | J50: =IF(I50=0,"",I50/H50) ->  | K50: 0
A51: ='Org structure'!E47 -> 09.4 - Parks & Recreation | C51: 304385.98 | D51: 1549962 | E51: 1549962 | F51: 53318.75 | G51: 157270.4 | H51: 516644 | I51: =G51-H51 -> -359373.6 | J51: =IF(I51=0,"",I51/H51) -> -0.6955923228 | K51: 1549962
A52: ='Org structure'!E48 -> 09.5 - Cemetries | C52: 1695331.14 | D52: 14131662 | E52: 14131662 | F52: 203561 | G52: 643665.21 | H52: 4710552 | I52: =G52-H52 -> -4066886.79 | J52: =IF(I52=0,"",I52/H52) -> -0.863356734 | K52: 14131662
A53: ='Org structure'!E49 -> 09.6 - Community Centres | C53: 0 | D53: 0 | E53: 0 | F53: 0 | G53: 0 | H53: 0 | I53: =G53-H53 -> 0 | J53: =IF(I53=0,"",I53/H53) ->  | K53: 0
A54: ='Org structure'!E50 -> 09.7 - Swimming Pools | C54: 0 | D54: 0 | E54: 0 | F54: 0 | G54: 0 | H54: 0 | I54: =G54-H54 -> 0 | J54: =IF(I54=0,"",I54/H54) ->  | K54: 0
A55: ='Org structure'!E51 -> 09.8 - Sportgrounds & Stadiums | C55: 14200.66 | D55: 0 | E55: 0 | F55: 2822.25 | G55: 11289 | H55: 0 | I55: =G55-H55 -> 11289 | J55: =IF(I55=0,"",I55/H55) ->  | K55: 0
A56: ='Org structure'!E52 -> 09.9 - Recreation | C56: 0 | D56: 0 | E56: 0 | F56: 0 | G56: 0 | H56: 0 | I56: =G56-H56 -> 0 | J56: =IF(I56=0,"",I56/H56) ->  | K56: 0
A57: ='Org structure'!E53 -> 09.10 - Public Open Spaces | C57: 0 | D57: 0 | E57: 0 | F57: 15152.7 | G57: 15152.7 | H57: 0 | I57: =G57-H57 -> 15152.7 | J57: =IF(I57=0,"",I57/H57) ->  | K57: 0
A58: ='Org structure'!E54 -> 09.11 - Workshop | C58: 0 | D58: 0 | E58: 0 | F58: 0 | G58: 0 | H58: 0 | I58: =G58-H58 -> 0 | J58: =IF(I58=0,"",I58/H58) ->  | K58: 0
A59: ='Org structure'!E55 -> 09.12 - Refuse Removal | C59: 199979000.8 | D59: 193673475 | E59: 193673475 | F59: 18382548.33 | G59: 74503980.12 | H59: 64557820 | I59: =G59-H59 -> 9946160.12 | J59: =IF(I59=0,"",I59/H59) -> 0.1540659229 | K59: 193673475
A60: ='Org structure'!E56 -> 09.13 - Refuse Dumping Area | C60: 0 | D60: 0 | E60: 0 | F60: 0 | G60: 0 | H60: 0 | I60: =G60-H60 -> 0 | J60: =IF(I60=0,"",I60/H60) ->  | K60: 0
A61: ='Org structure'!A11 -> Vote 10 - Public Safety And Transport | C61: =SUM(C62:C65) -> 5650084.26 | D61: =SUM(D62:D65) -> 38654105 | E61: =SUM(E62:E65) -> 38654105 | F61: =SUM(F62:F65) -> 233570.68 | G61: =SUM(G62:G65) -> 1030301.76 | H61: =SUM(H62:H65) -> 12884684 | I61: -11854382.24 | J61: -0.9200367071 | K61: =SUM(K62:K65) -> 38654105
A62: ='Org structure'!E58 -> 10.1 - Traffic | C62: 3532909.7 | D62: 34035622 | E62: 34035622 | F62: 102508 | G62: 456223.72 | H62: 11345192 | I62: =G62-H62 -> -10888968.28 | J62: =IF(I62=0,"",I62/H62) -> -0.9597870428 | K62: 34035622
A63: ='Org structure'!E59 -> 10.2 - Disaster Management | C63: 0 | D63: 0 | E63: 0 | F63: 0 | G63: 0 | H63: 0 | I63: =G63-H63 -> 0 | J63: =IF(I63=0,"",I63/H63) ->  | K63: 0
A64: ='Org structure'!E60 -> 10.3 - Security | C64: 0 | D64: 0 | E64: 0 | F64: 0 | G64: 0 | H64: 0 | I64: =G64-H64 -> 0 | J64: =IF(I64=0,"",I64/H64) ->  | K64: 0
A65: ='Org structure'!E61 -> 10.4 - Fire Services | C65: 2117174.56 | D65: 4618483 | E65: 4618483 | F65: 131062.68 | G65: 574078.04 | H65: 1539492 | I65: =G65-H65 -> -965413.96 | J65: =IF(I65=0,"",I65/H65) -> -0.6270990431 | K65: 4618483
A66: ='Org structure'!A12 -> Vote 11 - Economic Development | C66: =SUM(C67:C69) -> 764627.6 | D66: =SUM(D67:D69) -> 2457199 | E66: =SUM(E67:E69) -> 2457199 | F66: =SUM(F67:F69) -> 78437.34 | G66: =SUM(G67:G69) -> 373579.42 | H66: =SUM(H67:H69) -> 819060 | I66: -445480.58 | J66: -0.5438924865 | K66: =SUM(K67:K69) -> 2457199
A67: ='Org structure'!E63 -> 11.1 - Administration | C67: 498307.98 | D67: 2157607 | E67: 2157607 | F67: 75899.11 | G67: 316468.68 | H67: 719200 | I67: =G67-H67 -> -402731.32 | J67: =IF(I67=0,"",I67/H67) -> -0.5599712458 | K67: 2157607
A68: ='Org structure'!E64 -> 11.2 - Airport | C68: 266319.62 | D68: 299592 | E68: 299592 | F68: 2538.23 | G68: 57110.74 | H68: 99860 | I68: =G68-H68 -> -42749.26 | J68: =IF(I68=0,"",I68/H68) -> -0.4280919287 | K68: 299592
A69: ='Org structure'!E65 -> 11.3 - Spatial Planning | C69: 0 | D69: 0 | E69: 0 | F69: 0 | G69: 0 | H69: 0 | I69: =G69-H69 -> 0 | J69: =IF(I69=0,"",I69/H69) ->  | K69: 0
A70: ='Org structure'!A13 -> Vote 12 - Engineering Services | C70: =SUM(C71:C77) -> 5968.7 | D70: =SUM(D71:D77) -> 116080452 | E70: =SUM(E71:E77) -> 116080452 | F70: =SUM(F71:F77) -> 5098.32 | G70: =SUM(G71:G77) -> 10825.27 | H70: =SUM(H71:H77) -> 38693472 | I70: -38682646.73 | J70: -0.9997202301 | K70: =SUM(K71:K77) -> 116080452
A71: ='Org structure'!E67 -> 12.1 - Engineering Administration | C71: 0 | D71: 50000000 | E71: 50000000 | F71: 0 | G71: 0 | H71: 16666664 | I71: =G71-H71 -> -16666664 | J71: =IF(I71=0,"",I71/H71) -> -1 | K71: 50000000
A72: ='Org structure'!E68 -> 12.2 - Planning | C72: 5968.7 | D72: 16080452 | E72: 16080452 | F72: 5098.32 | G72: 10825.27 | H72: 5360144 | I72: =G72-H72 -> -5349318.73 | J72: =IF(I72=0,"",I72/H72) -> -0.9979804143 | K72: 16080452
A73: ='Org structure'!E69 -> 12.3 - Project Management Unit | C73: 0 | D73: 0 | E73: 0 | F73: 0 | G73: 0 | H73: 0 | I73: =G73-H73 -> 0 | J73: =IF(I73=0,"",I73/H73) ->  | K73: 0
A74: ='Org structure'!E70 -> 12.4 - Intern Serv Building Workshop | C74: 0 | D74: 0 | E74: 0 | F74: 0 | G74: 0 | H74: 0 | I74: =G74-H74 -> 0 | J74: =IF(I74=0,"",I74/H74) ->  | K74: 0
A75: ='Org structure'!E71 -> 12.5 - Roads | C75: 0 | D75: 50000000 | E75: 50000000 | F75: 0 | G75: 0 | H75: 16666664 | I75: =G75-H75 -> -16666664 | J75: =IF(I75=0,"",I75/H75) -> -1 | K75: 50000000
A76: ='Org structure'!E72 -> 12.6 - Stormwater | C76: 0 | D76: 0 | E76: 0 | F76: 0 | G76: 0 | H76: 0 | I76: =G76-H76 -> 0 | J76: =IF(I76=0,"",I76/H76) ->  | K76: 0
A77: ='Org structure'!E73 -> 12.7 - Roads & Stormwater Workshop | C77: 0 | D77: 0 | E77: 0 | F77: 0 | G77: 0 | H77: 0 | I77: =G77-H77 -> 0 | J77: =IF(I77=0,"",I77/H77) ->  | K77: 0
A78: ='Org structure'!A14 -> Vote 13 - Water/ Sewerage | C78: =SUM(C79:C83) -> 1058614275 | D78: =SUM(D79:D83) -> 1283260724 | E78: =SUM(E79:E83) -> 1283260724 | F78: =SUM(F79:F83) -> 100128483.5 | G78: =SUM(G79:G83) -> 374012712.1 | H78: =SUM(H79:H83) -> 427753556 | I78: =G78-H78 -> -53740843.94 | J78: =IF(I78=0,"",I78/H78) -> -0.1256350606 | K78: =SUM(K79:K83) -> 1283260724
A79: ='Org structure'!E75 -> 13.1 - Water | C79: 738313772.8 | D79: 216031127 | E79: 216031127 | F79: 70101158.38 | G79: 253840659.4 | H79: 72010364 | I79: =G79-H79 -> 181830295.4 | J79: =IF(I79=0,"",I79/H79) -> 2.525057302 | K79: 216031127
A80: ='Org structure'!E76 -> 13.2 - Water Supply | C80: 0 | D80: 782314522 | E80: 782314522 | F80: 0 | G80: 0 | H80: 260771504 | I80: =G80-H80 -> -260771504 | J80: =IF(I80=0,"",I80/H80) -> -1 | K80: 782314522
A81: ='Org structure'!E77 -> 13.3 - Water Workshop | C81: 0 | D81: 0 | E81: 0 | F81: 0 | G81: 0 | H81: 0 | I81: =G81-H81 -> 0 | J81: =IF(I81=0,"",I81/H81) ->  | K81: 0
A82: ='Org structure'!E78 -> 13.4 - Sewerage Network | C82: 320300502.6 | D82: 284915075 | E82: 284915075 | F82: 30027325.08 | G82: 120172052.7 | H82: 94971688 | I82: =G82-H82 -> 25200364.65 | J82: =IF(I82=0,"",I82/H82) -> 0.265346075 | K82: 284915075
A83: ='Org structure'!E79 -> 13.5 - Purifying Works | C83: 0 | D83: 0 | E83: 0 | F83: 0 | G83: 0 | H83: 0 | I83: =G83-H83 -> 0 | J83: =IF(I83=0,"",I83/H83) ->  | K83: 0
A84: ='Org structure'!A15 -> Vote 14 - Electricity | C84: =SUM(C85:C91) -> 817261467.5 | D84: =SUM(D85:D91) -> 887425800 | E84: =SUM(E85:E91) -> 887425800 | F84: =SUM(F85:F91) -> 71857110.37 | G84: =SUM(G85:G91) -> 333203089.6 | H84: =SUM(H85:H91) -> 295808576 | I84: 37394513.58 | J84: 0.1264145688 | K84: =SUM(K85:K91) -> 887425800
A85: ='Org structure'!E81 -> 14.1 - Electricity | C85: 817252340.5 | D85: 883327617 | E85: 883327617 | F85: 71800839.2 | G85: 333020154.3 | H85: 294442516 | I85: =G85-H85 -> 38577638.33 | J85: =IF(I85=0,"",I85/H85) -> 0.1310192524 | K85: 883327617
A86: ='Org structure'!E82 -> 14.2 - Distribution | C86: 9126.95 | D86: 4098183 | E86: 4098183 | F86: 56271.17 | G86: 182935.25 | H86: 1366060 | I86: =G86-H86 -> -1183124.75 | J86: =IF(I86=0,"",I86/H86) -> -0.866085494 | K86: 4098183
A87: ='Org structure'!E83 -> 14.3 - Distribution 132Kva | C87: 0 | D87: 0 | E87: 0 | F87: 0 | G87: 0 | H87: 0 | I87: =G87-H87 -> 0 | J87: =IF(I87=0,"",I87/H87) ->  | K87: 0
A88: ='Org structure'!E84 -> 14.4 - Street Lights | C88: 0 | D88: 0 | E88: 0 | F88: 0 | G88: 0 | H88: 0 | I88: =G88-H88 -> 0 | J88: =IF(I88=0,"",I88/H88) ->  | K88: 0
A89: ='Org structure'!E85 -> 14.5 - Workshop | C89: 0 | D89: 0 | E89: 0 | F89: 0 | G89: 0 | H89: 0 | I89: =G89-H89 -> 0 | J89: =IF(I89=0,"",I89/H89) ->  | K89: 0
A90: ='Org structure'!E86 -> 14.6 - Revenue Protection | C90: 0 | D90: 0 | E90: 0 | F90: 0 | G90: 0 | H90: 0 | I90: =G90-H90 -> 0 | J90: =IF(I90=0,"",I90/H90) ->  | K90: 0
A91: ='Org structure'!E87 -> 14.7 - Mechanical Workshop | C91: 0 | D91: 0 | E91: 0 | F91: 0 | G91: 0 | H91: 0 | I91: =G91-H91 -> 0 | J91: =IF(I91=0,"",I91/H91) ->  | K91: 0
A92: ='Org structure'!A16 -> Vote 15 - Other | C92: =SUM(C93:C96) -> 21957039.04 | D92: =SUM(D93:D96) -> 30187268 | E92: =SUM(E93:E96) -> 30187268 | F92: =SUM(F93:F96) -> 1975043.84 | G92: =SUM(G93:G96) -> 8014867.74 | H92: =SUM(H93:H96) -> 10062408 | I92: -2047540.26 | J92: -0.2034841223 | K92: =SUM(K93:K96) -> 30187268
A93: ='Org structure'!E89 -> 15.1 - Housing | C93: 0 | D93: 0 | E93: 0 | F93: 0 | G93: 0 | H93: 0 | I93: =G93-H93 -> 0 | J93: =IF(I93=0,"",I93/H93) ->  | K93: 0
A94: ='Org structure'!E90 -> 15.2 - Administration | C94: 0 | D94: 674 | E94: 674 | F94: 0 | G94: 0 | H94: 224 | I94: =G94-H94 -> -224 | J94: =IF(I94=0,"",I94/H94) -> -1 | K94: 674
A95: ='Org structure'!E91 -> 15.3 - Sundry Properties | C95: 21949513.84 | D95: 30048286 | E95: 30048286 | F95: 1970384.86 | G95: 8008805.72 | H95: 10016088 | I95: =G95-H95 -> -2007282.28 | J95: =IF(I95=0,"",I95/H95) -> -0.2004058151 | K95: 30048286
A96: ='Org structure'!E92 -> 15.4 - Building Inspections | C96: 7525.2 | D96: 138308 | E96: 138308 | F96: 4658.98 | G96: 6062.02 | H96: 46096 | I96: =G96-H96 -> -40033.98 | J96: =IF(I96=0,"",I96/H96) -> -0.8684914092 | K96: 138308
A97: Total Revenue by Vote | B97: 2 | C97: =C6+C8+C12+C14+C19+C28+C32+C42+C47+C61+C66+C70+C78+C84+C92 -> 3924241162 | D97: =D6+D8+D12+D14+D19+D28+D32+D42+D47+D61+D66+D70+D78+D84+D92 -> 4355451090 | E97: =E6+E8+E12+E14+E19+E28+E32+E42+E47+E61+E66+E70+E78+E84+E92 -> 4355451090 | F97: =F6+F8+F12+F14+F19+F28+F32+F42+F47+F61+F66+F70+F78+F84+F92 -> 275775856.5 | G97: =G6+G8+G12+G14+G19+G28+G32+G42+G47+G61+G66+G70+G78+G84+G92 -> 1369013175 | H97: =H6+H8+H12+H14+H19+H28+H32+H42+H47+H61+H66+H70+H78+H84+H92 -> 1451816824 | I97: -82803649.21 | J97: -0.05703450176 | K97: =K6+K8+K12+K14+K19+K28+K32+K42+K47+K61+K66+K70+K78+K84+K92 -> 4355451090
I98: 0
A99: Expenditure by Vote | B99: 1 | I99: 0
A100: ='Org structure'!A2 -> Vote 01 - Council General | C100: =SUM(C101:C101) -> 83620859.72 | D100: =SUM(D101:D101) -> 120782090 | E100: =SUM(E101:E101) -> 120782090 | F100: =SUM(F101:F101) -> 5067416.84 | G100: =SUM(G101:G101) -> 25443534.82 | H100: =SUM(H101:H101) -> 40260752 | I100: -14817217.18 | J100: -0.368031307 | K100: =SUM(K101:K101) -> 120782090
A101: ='Org structure'!E3 -> 01.1 - Council | C101: 83620859.72 | D101: 120782090 | E101: 120782090 | F101: 5067416.84 | G101: 25443534.82 | H101: 40260752 | I101: =G101-H101 -> -14817217.18 | J101: =IF(I101=0,"",I101/H101) -> -0.368031307 | K101: 120782090
A102: ='Org structure'!A3 -> Vote 02 - Office Of The Executive Mayor | C102: =SUM(C103:C105) -> 15994532.85 | D102: =SUM(D103:D105) -> 18444191 | E102: =SUM(E103:E105) -> 18409591 | F102: =SUM(F103:F105) -> 1275400.03 | G102: =SUM(G103:G105) -> 4601043.55 | H102: =SUM(H103:H105) -> 6141224 | I102: -1540180.45 | J102: -0.2507937261 | K102: =SUM(K103:K105) -> 18409591
A103: ='Org structure'!E5 -> 02.1 - Office Of The Executive Mayor | C103: 4607724.16 | D103: 4092210 | E103: 4057610 | F103: 339980 | G103: 957986.13 | H103: 1357176 | I103: =G103-H103 -> -399189.87 | J103: =IF(I103=0,"",I103/H103) -> -0.2941327212 | K103: 4057610
A104: ='Org structure'!E6 -> 02.2 - Mayorall Committee | C104: 10303848.32 | D104: 13064167 | E104: 13064167 | F104: 839073.85 | G104: 3311682.7 | H104: 4354752 | I104: =G104-H104 -> -1043069.3 | J104: =IF(I104=0,"",I104/H104) -> -0.2395243862 | K104: 13064167
A105: ='Org structure'!E7 -> 02.3 - Council Whip | C105: 1082960.37 | D105: 1287814 | E105: 1287814 | F105: 96346.18 | G105: 331374.72 | H105: 429296 | I105: =G105-H105 -> -97921.28 | J105: =IF(I105=0,"",I105/H105) -> -0.2280973501 | K105: 1287814
A106: ='Org structure'!A4 -> Vote 03 - Office Of The Speaker | C106: =SUM(C107:C107) -> 7457690.21 | D106: =SUM(D107:D107) -> 7329624 | E106: =SUM(E107:E107) -> 7305623 | F106: =SUM(F107:F107) -> 650642.77 | G106: =SUM(G107:G107) -> 2442113.31 | H106: =SUM(H107:H107) -> 2435235.89 | I106: 6877.42 | J106: 0.002824128877 | K106: =SUM(K107:K107) -> 7305623
A107: ='Org structure'!E9 -> 03.1 - Office Of The Speaker | C107: 7457690.21 | D107: 7329624 | E107: 7305623 | F107: 650642.77 | G107: 2442113.31 | H107: 2435235.89 | I107: =G107-H107 -> 6877.42 | J107: =IF(I107=0,"",I107/H107) -> 0.002824128877 | K107: 7305623
A108: ='Org structure'!A5 -> Vote 04 - Council Whip | C108: =SUM(C109:C112) -> 36880450.03 | D108: =SUM(D109:D112) -> 56962824 | E108: =SUM(E109:E112) -> 56962824 | F108: =SUM(F109:F112) -> 3040265.6 | G108: =SUM(G109:G112) -> 12561248.09 | H108: =SUM(H109:H112) -> 18987680 | I108: =G108-H108 -> -6426431.91 | J108: =IF(I108=0,"",I108/H108) -> -0.3384527183 | K108: =SUM(K109:K112) -> 56962824
A109: ='Org structure'!E11 -> 04.1 - Council Whip Admin | C109: 7402755.66 | D109: 5878098 | E109: 5878098 | F109: 593094.92 | G109: 2451386.71 | H109: 1959384 | I109: =G109-H109 -> 492002.71 | J109: =IF(I109=0,"",I109/H109) -> 0.2511007082 | K109: 5878098
A110: ='Org structure'!E12 -> 04.2 - Mayor Personnel | C110: 20313891.29 | D110: 42929632 | E110: 42929632 | F110: 1646887.48 | G110: 6896950.78 | H110: 14309896 | I110: =G110-H110 -> -7412945.22 | J110: =IF(I110=0,"",I110/H110) -> -0.5180292869 | K110: 42929632
A111: ='Org structure'!E13 -> 04.3 - Speaker Personnel | C111: 7286619.65 | D111: 6699357 | E111: 6699357 | F111: 622953.88 | G111: 2503678.65 | H111: 2233140 | I111: =G111-H111 -> 270538.65 | J111: =IF(I111=0,"",I111/H111) -> 0.1211471963 | K111: 6699357
A112: ='Org structure'!E14 -> 04.4 - Mmc Secretary | C112: 1877183.43 | D112: 1455737 | E112: 1455737 | F112: 177329.32 | G112: 709231.95 | H112: 485260 | I112: =G112-H112 -> 223971.95 | J112: =IF(I112=0,"",I112/H112) -> 0.461550406 | K112: 1455737
A113: ='Org structure'!A6 -> Vote 05 - Office Of The Municipal Manager | C113: =SUM(C114:C121) -> 111527628.5 | D113: =SUM(D114:D121) -> 109167697 | E113: =SUM(E114:E121) -> 109153138 | F113: =SUM(F114:F121) -> 9779588.12 | G113: =SUM(G114:G121) -> 33833101.3 | H113: =SUM(H114:H121) -> 36385457.38 | I113: -2552356.08 | J113: -0.07014769811 | K113: =SUM(K114:K121) -> 109153138
A114: ='Org structure'!E16 -> 05.1 - Administration | C114: 27861440.11 | D114: 27937462 | E114: 27922903 | F114: 2288037.98 | G114: 9667448.11 | H114: 9308561.38 | I114: =G114-H114 -> 358886.73 | J114: =IF(I114=0,"",I114/H114) -> 0.03855447854 | K114: 27922903
A115: ='Org structure'!E17 -> 05.2 - Integrated Development Management | C115: 5021913.71 | D115: 7798347 | E115: 7798347 | F115: 390125.8 | G115: 1672474.54 | H115: 2599472 | I115: =G115-H115 -> -926997.46 | J115: =IF(I115=0,"",I115/H115) -> -0.3566099039 | K115: 7798347
A116: ='Org structure'!E18 -> 05.3 - Internal Audit | C116: 6147798 | D116: 6344647 | E116: 6344647 | F116: 565591.35 | G116: 2340380.52 | H116: 2114904 | I116: =G116-H116 -> 225476.52 | J116: =IF(I116=0,"",I116/H116) -> 0.1066131229 | K116: 6344647
A117: ='Org structure'!E19 -> 05.4 - Organisation & Workstudy | C117: 0 | D117: 0 | E117: 0 | F117: 0 | G117: 0 | H117: 0 | I117: =G117-H117 -> 0 | J117: =IF(I117=0,"",I117/H117) ->  | K117: 0
A118: ='Org structure'!E20 -> 05.5 - Information Communication Technology | C118: 42832921.81 | D118: 42990912 | E118: 42990912 | F118: 3547149.89 | G118: 11536225.85 | H118: 14330352 | I118: =G118-H118 -> -2794126.15 | J118: =IF(I118=0,"",I118/H118) -> -0.1949795895 | K118: 42990912
A119: ='Org structure'!E21 -> 05.6 - Unit Manager: Od | C119: 112716.02 | D119: 3203042 | E119: 3203042 | F119: 0 | G119: 0 | H119: 1067712 | I119: =G119-H119 -> -1067712 | J119: =IF(I119=0,"",I119/H119) -> -1 | K119: 3203042
A120: ='Org structure'!E22 -> 05.7 - Unit Manager: Virginia | C120: 1246493.48 | D120: 1336223 | E120: 1336223 | F120: 103439.04 | G120: 411172.7 | H120: 445424 | I120: =G120-H120 -> -34251.3 | J120: =IF(I120=0,"",I120/H120) -> -0.07689594633 | K120: 1336223
A121: ='Org structure'!E23 -> 05.8 - Legal Services | C121: 28304345.36 | D121: 19557064 | E121: 19557064 | F121: 2885244.06 | G121: 8205399.58 | H121: 6519032 | I121: =G121-H121 -> 1686367.58 | J121: =IF(I121=0,"",I121/H121) -> 0.2586837402 | K121: 19557064
A122: ='Org structure'!A7 -> Vote 06 - Corporate Services | C122: =SUM(C123:C125) -> 55660479.49 | D122: =SUM(D123:D125) -> 79460453 | E122: =SUM(E123:E125) -> 79407829 | F122: =SUM(F123:F125) -> 4208989.73 | G122: =SUM(G123:G125) -> 18245520.74 | H122: =SUM(H123:H125) -> 26471229.01 | I122: -8225708.27 | J122: -0.310741457 | K122: =SUM(K123:K125) -> 79407829
A123: ='Org structure'!E25 -> 06.1 - Administration | C123: 28132909.25 | D123: 30653434 | E123: 30600810 | F123: 1554722.53 | G123: 7456322.94 | H123: 10202153.01 | I123: =G123-H123 -> -2745830.07 | J123: =IF(I123=0,"",I123/H123) -> -0.2691422161 | K123: 30600810
A124: ='Org structure'!E26 -> 06.2 - Libraries | C124: 8935794.23 | D124: 21712208 | E124: 21712208 | F124: 795646.12 | G124: 3378762.24 | H124: 7237428 | I124: =G124-H124 -> -3858665.76 | J124: =IF(I124=0,"",I124/H124) -> -0.5331542863 | K124: 21712208
A125: ='Org structure'!E27 -> 06.3 - Halls And Offices | C125: 18591776.01 | D125: 27094811 | E125: 27094811 | F125: 1858621.08 | G125: 7410435.56 | H125: 9031648 | I125: =G125-H125 -> -1621212.44 | J125: =IF(I125=0,"",I125/H125) -> -0.1795035015 | K125: 27094811
A126: ='Org structure'!A8 -> Vote 07 - Finance | C126: =SUM(C127:C135) -> 799420729.9 | D126: =SUM(D127:D135) -> 341221688 | E126: =SUM(E127:E135) -> 340645954 | F126: =SUM(F127:F135) -> 24061323.1 | G126: =SUM(G127:G135) -> 52257447.62 | H126: =SUM(H127:H135) -> 113548916.7 | I126: -61291469.1 | J126: -0.5397803068 | K126: =SUM(K127:K135) -> 340645954
A127: ='Org structure'!E29 -> 07.1 - Administration | C127: 160649184.3 | D127: 32845171 | E127: 32806997 | F127: 15513944.56 | G127: 22274478.15 | H127: 10935715.36 | I127: =G127-H127 -> 11338762.79 | J127: =IF(I127=0,"",I127/H127) -> 1.036856064 | K127: 32806997
A128: ='Org structure'!E30 -> 07.2 - Expenditure | C128: 249761170.6 | D128: 199526636 | E128: 199526636 | F128: 581721.49 | G128: 2264059.89 | H128: 66508908 | I128: =G128-H128 -> -64244848.11 | J128: =IF(I128=0,"",I128/H128) -> -0.9659585466 | K128: 199526636
A129: ='Org structure'!E31 -> 07.3 - Salaries | C129: 7367204.93 | D129: 5087273 | E129: 5087273 | F129: 741577.24 | G129: 2588676.58 | H129: 1695780 | I129: =G129-H129 -> 892896.58 | J129: =IF(I129=0,"",I129/H129) -> 0.5265403413 | K129: 5087273
A130: ='Org structure'!E32 -> 07.4 - Supply Chain Management | C130: 18210120.32 | D130: 16830782 | E130: 16430782 | F130: 1656171.9 | G130: 6983351.9 | H130: 5476950.68 | I130: =G130-H130 -> 1506401.22 | J130: =IF(I130=0,"",I130/H130) -> 0.2750437804 | K130: 16430782
A131: ='Org structure'!E33 -> 07.5 - Budget Control | C131: 5223117.47 | D131: 8098067 | E131: 8098067 | F131: 510936.84 | G131: 1943324.24 | H131: 2699388 | I131: =G131-H131 -> -756063.76 | J131: =IF(I131=0,"",I131/H131) -> -0.2800871012 | K131: 8098067
A132: ='Org structure'!E34 -> 07.6 - Revenue | C132: 345849485.2 | D132: 53949270 | E132: 53811710 | F132: 4239867.6 | G132: 12588082.92 | H132: 17937278.68 | I132: =G132-H132 -> -5349195.76 | J132: =IF(I132=0,"",I132/H132) -> -0.2982166836 | K132: 53811710
A133: ='Org structure'!E35 -> 07.7 - Fresh Produce Market | C133: 2566468.5 | D133: 11418689 | E133: 11418689 | F133: 267824.5 | G133: 1129272.61 | H133: 3806268 | I133: =G133-H133 -> -2676995.39 | J133: =IF(I133=0,"",I133/H133) -> -0.7033123758 | K133: 11418689
A134: ='Org structure'!E36 -> 07.8 - Valuation | C134: 2964808.73 | D134: 3180000 | E134: 3180000 | F134: 0 | G134: 0 | H134: 1060000 | I134: =G134-H134 -> -1060000 | J134: =IF(I134=0,"",I134/H134) -> -1 | K134: 3180000
A135: ='Org structure'!E37 -> 07.9 - Credit Control | C135: 6829169.86 | D135: 10285800 | E135: 10285800 | F135: 549278.97 | G135: 2486201.33 | H135: 3428628 | I135: =G135-H135 -> -942426.67 | J135: =IF(I135=0,"",I135/H135) -> -0.2748699101 | K135: 10285800
A136: ='Org structure'!A9 -> Vote 08 - Human Resources | C136: =SUM(C137:C140) -> 24131973.5 | D136: =SUM(D137:D140) -> 23840009 | E136: =SUM(E137:E140) -> 26564059 | F136: =SUM(F137:F140) -> 3531293.29 | G136: =SUM(G137:G140) -> 9987348.23 | H136: =SUM(H137:H140) -> 8689702.7 | I136: 1297645.53 | J136: 0.1493314069 | K136: =SUM(K137:K140) -> 26564059
A137: ='Org structure'!E39 -> 08.1 - Administration | C137: 8346549.74 | D137: 12321658 | E137: 12321658 | F137: 866177.96 | G137: 2925490.22 | H137: 4107244 | I137: =G137-H137 -> -1181753.78 | J137: =IF(I137=0,"",I137/H137) -> -0.2877242696 | K137: 12321658
A138: ='Org structure'!E40 -> 08.2 - Human Labour Relations | C138: 3880398.67 | D138: 3876355 | E138: 3876355 | F138: 340152.58 | G138: 1323556.65 | H138: 1292148 | I138: =G138-H138 -> 31408.65 | J138: =IF(I138=0,"",I138/H138) -> 0.02430731619 | K138: 3876355
A139: ='Org structure'!E41 -> 08.3 - Training | C139: 7622933.34 | D139: 4893567 | E139: 4893567 | F139: 1011998.76 | G139: 3332462.95 | H139: 1631216 | I139: =G139-H139 -> 1701246.95 | J139: =IF(I139=0,"",I139/H139) -> 1.042931745 | K139: 4893567
A140: ='Org structure'!E42 -> 08.4 - Health & Safety | C140: 4282091.75 | D140: 2748429 | E140: 5472479 | F140: 1312963.99 | G140: 2405838.41 | H140: 1659094.7 | I140: =G140-H140 -> 746743.71 | J140: =IF(I140=0,"",I140/H140) -> 0.4500910708 | K140: 5472479
A141: ='Org structure'!A10 -> Vote 09 - Community Services | C141: =SUM(C142:C154) -> 304931430.4 | D141: =SUM(D142:D154) -> 372141544 | E141: =SUM(E142:E154) -> 370345810 | F141: =SUM(F142:F154) -> 15083272.36 | G141: =SUM(G142:G154) -> 73914697.77 | H141: =SUM(H142:H154) -> 123532862.4 | I141: =G141-H141 -> -49618164.65 | J141: =IF(I141=0,"",I141/H141) -> -0.4016596368 | K141: =SUM(K142:K154) -> 370345810
A142: ='Org structure'!E44 -> 09.1 - Admin | C142: -29430348.9 | D142: 10092813 | E142: 10092813 | F142: 283715.49 | G142: 1323881.03 | H142: 3364312 | I142: =G142-H142 -> -2040430.97 | J142: =IF(I142=0,"",I142/H142) -> -0.6064927896 | K142: 10092813
A143: ='Org structure'!E45 -> 09.2 - Welfare | C143: 6206452.21 | D143: 7006889 | E143: 7006889 | F143: 458583.47 | G143: 1984025.42 | H143: 2335660 | I143: =G143-H143 -> -351634.58 | J143: =IF(I143=0,"",I143/H143) -> -0.150550414 | K143: 7006889
A144: ='Org structure'!E46 -> 09.3 - Environmental Health Services | C144: 791031.33 | D144: 1446073 | E144: 1446073 | F144: 57291.99 | G144: 298207.1 | H144: 482044 | I144: =G144-H144 -> -183836.9 | J144: =IF(I144=0,"",I144/H144) -> -0.381369543 | K144: 1446073
A145: ='Org structure'!E47 -> 09.4 - Parks & Recreation | C145: 11256799.17 | D145: 16089102 | E145: 15676668 | F145: 587295.81 | G145: 2189318.71 | H145: 5225594.04 | I145: =G145-H145 -> -3036275.33 | J145: =IF(I145=0,"",I145/H145) -> -0.5810392669 | K145: 15676668
A146: ='Org structure'!E48 -> 09.5 - Cemetries | C146: 6018223.5 | D146: 14820330 | E146: 14820330 | F146: 294325.98 | G146: 2220530.86 | H146: 4940148 | I146: =G146-H146 -> -2719617.14 | J146: =IF(I146=0,"",I146/H146) -> -0.5505132923 | K146: 14820330
A147: ='Org structure'!E49 -> 09.6 - Community Centres | C147: 3085274.22 | D147: 20617733 | E147: 20617733 | F147: 109482.01 | G147: 1495802.04 | H147: 6872608 | I147: =G147-H147 -> -5376805.96 | J147: =IF(I147=0,"",I147/H147) -> -0.7823530689 | K147: 20617733
A148: ='Org structure'!E50 -> 09.7 - Swimming Pools | C148: 2498114.95 | D148: 5149518 | E148: 5149518 | F148: 265780.75 | G148: 907203.41 | H148: 1716536 | I148: =G148-H148 -> -809332.59 | J148: =IF(I148=0,"",I148/H148) -> -0.471491766 | K148: 5149518
A149: ='Org structure'!E51 -> 09.8 - Sportgrounds & Stadiums | C149: 2232163.01 | D149: 4683199 | E149: 4683199 | F149: 187040.32 | G149: 844969.76 | H149: 1561104 | I149: =G149-H149 -> -716134.24 | J149: =IF(I149=0,"",I149/H149) -> -0.4587357665 | K149: 4683199
A150: ='Org structure'!E52 -> 09.9 - Recreation | C150: 0 | D150: 1060000 | E150: 1060000 | F150: 0 | G150: 15620 | H150: 353336 | I150: =G150-H150 -> -337716 | J150: =IF(I150=0,"",I150/H150) -> -0.9557927865 | K150: 1060000
A151: ='Org structure'!E53 -> 09.10 - Public Open Spaces | C151: 31947299.65 | D151: 49025948 | E151: 49025948 | F151: 3468625.51 | G151: 15684861.69 | H151: 16342016 | I151: =G151-H151 -> -657154.31 | J151: =IF(I151=0,"",I151/H151) -> -0.04021256068 | K151: 49025948
A152: ='Org structure'!E54 -> 09.11 - Workshop | C152: 28652795.51 | D152: 59363295 | E152: 59363295 | F152: 2229014.56 | G152: 13676404.47 | H152: 19787812 | I152: =G152-H152 -> -6111407.53 | J152: =IF(I152=0,"",I152/H152) -> -0.3088470585 | K152: 59363295
A153: ='Org structure'!E55 -> 09.12 - Refuse Removal | C153: 213400604.1 | D153: 170843753 | E153: 169460453 | F153: 7095314.39 | G153: 33049369 | H153: 56570704.38 | I153: =G153-H153 -> -23521335.38 | J153: =IF(I153=0,"",I153/H153) -> -0.4157865036 | K153: 169460453
A154: ='Org structure'!E56 -> 09.13 - Refuse Dumping Area | C154: 28273021.65 | D154: 11942891 | E154: 11942891 | F154: 46802.08 | G154: 224504.28 | H154: 3980988 | I154: =G154-H154 -> -3756483.72 | J154: =IF(I154=0,"",I154/H154) -> -0.9436058888 | K154: 11942891
A155: ='Org structure'!A11 -> Vote 10 - Public Safety And Transport | C155: =SUM(C156:C159) -> 246483055.7 | D155: =SUM(D156:D159) -> 193244044 | E155: =SUM(E156:E159) -> 193066284 | F155: =SUM(F156:F159) -> 21083362.95 | G155: =SUM(G156:G159) -> 87293991.94 | H155: =SUM(H156:H159) -> 64395048.88 | I155: 22898943.06 | J155: 0.3556009889 | K155: =SUM(K156:K159) -> 193066284
A156: ='Org structure'!E58 -> 10.1 - Traffic | C156: 52991865.34 | D156: 64682863 | E156: 64682863 | F156: 4226730.03 | G156: 19477983.76 | H156: 21561000 | I156: =G156-H156 -> -2083016.24 | J156: =IF(I156=0,"",I156/H156) -> -0.09661037243 | K156: 64682863
A157: ='Org structure'!E59 -> 10.2 - Disaster Management | C157: 0 | D157: 1060000 | E157: 1060000 | F157: 0 | G157: 0 | H157: 353336 | I157: =G157-H157 -> -353336 | J157: =IF(I157=0,"",I157/H157) -> -1 | K157: 1060000
A158: ='Org structure'!E60 -> 10.3 - Security | C158: 145179746 | D158: 71010638 | E158: 70832878 | F158: 12903497.46 | G158: 50764376.36 | H158: 23650496.88 | I158: =G158-H158 -> 27113879.48 | J158: =IF(I158=0,"",I158/H158) -> 1.146440162 | K158: 70832878
A159: ='Org structure'!E61 -> 10.4 - Fire Services | C159: 48311444.36 | D159: 56490543 | E159: 56490543 | F159: 3953135.46 | G159: 17051631.82 | H159: 18830216 | I159: =G159-H159 -> -1778584.18 | J159: =IF(I159=0,"",I159/H159) -> -0.09445373224 | K159: 56490543
A160: ='Org structure'!A12 -> Vote 11 - Economic Development | C160: =SUM(C161:C163) -> 31771710.97 | D160: =SUM(D161:D163) -> 26594361 | E160: =SUM(E161:E163) -> 26594361 | F160: =SUM(F161:F163) -> 2183666.22 | G160: =SUM(G161:G163) -> 9102403.53 | H160: =SUM(H161:H163) -> 8864880 | I160: 237523.53 | J160: 0.02679376709 | K160: =SUM(K161:K163) -> 26594361
A161: ='Org structure'!E63 -> 11.1 - Administration | C161: 19346499.8 | D161: 14726390 | E161: 14726390 | F161: 1179691.27 | G161: 4570691.84 | H161: 4908836 | I161: =G161-H161 -> -338144.16 | J161: =IF(I161=0,"",I161/H161) -> -0.06888479468 | K161: 14726390
A162: ='Org structure'!E64 -> 11.2 - Airport | C162: 488960.32 | D162: 1155780 | E162: 1155780 | F162: 39615.33 | G162: 177116.52 | H162: 385280 | I162: =G162-H162 -> -208163.48 | J162: =IF(I162=0,"",I162/H162) -> -0.5402914244 | K162: 1155780
A163: ='Org structure'!E65 -> 11.3 - Spatial Planning | C163: 11936250.85 | D163: 10712191 | E163: 10712191 | F163: 964359.62 | G163: 4354595.17 | H163: 3570764 | I163: =G163-H163 -> 783831.17 | J163: =IF(I163=0,"",I163/H163) -> 0.2195135747 | K163: 10712191
A164: ='Org structure'!A13 -> Vote 12 - Engineering Services | C164: =SUM(C165:C171) -> 71037734.04 | D164: =SUM(D165:D171) -> 186806301 | E164: =SUM(E165:E171) -> 186768030 | F164: =SUM(F165:F171) -> 5863349.96 | G164: =SUM(G165:G171) -> 28274973.95 | H164: =SUM(H165:H171) -> 62256251 | I164: -33981277.05 | J164: -0.5458291578 | K164: =SUM(K165:K171) -> 186768030
A165: ='Org structure'!E67 -> 12.1 - Engineering Administration | C165: 12109596.2 | D165: 15238879 | E165: 15200608 | F165: 1266603.25 | G165: 4808741.58 | H165: 5066919 | I165: =G165-H165 -> -258177.42 | J165: =IF(I165=0,"",I165/H165) -> -0.05095353212 | K165: 15200608
A166: ='Org structure'!E68 -> 12.2 - Planning | C166: 3371111.58 | D166: 3391018 | E166: 3391018 | F166: 279061.85 | G166: 1164230.05 | H166: 1130376 | I166: =G166-H166 -> 33854.05 | J166: =IF(I166=0,"",I166/H166) -> 0.02994937083 | K166: 3391018
A167: ='Org structure'!E69 -> 12.3 - Project Management Unit | C167: 9324316.3 | D167: 10446475 | E167: 10446475 | F167: 476528.26 | G167: 2246826.61 | H167: 3482196 | I167: =G167-H167 -> -1235369.39 | J167: =IF(I167=0,"",I167/H167) -> -0.3547673336 | K167: 10446475
A168: ='Org structure'!E70 -> 12.4 - Intern Serv Building Workshop | C168: 11056402.38 | D168: 23518903 | E168: 23518903 | F168: 821432.89 | G168: 3374422.17 | H168: 7839664 | I168: =G168-H168 -> -4465241.83 | J168: =IF(I168=0,"",I168/H168) -> -0.569570562 | K168: 23518903
A169: ='Org structure'!E71 -> 12.5 - Roads | C169: 8707202.08 | D169: 92583280 | E169: 92583280 | F169: 890304.37 | G169: 7135224.14 | H169: 30861128 | I169: =G169-H169 -> -23725903.86 | J169: =IF(I169=0,"",I169/H169) -> -0.768795744 | K169: 92583280
A170: ='Org structure'!E72 -> 12.6 - Stormwater | C170: 11361479.61 | D170: 27022848 | E170: 27022848 | F170: 837505.53 | G170: 4002644.09 | H170: 9007636 | I170: =G170-H170 -> -5004991.91 | J170: =IF(I170=0,"",I170/H170) -> -0.5556387836 | K170: 27022848
A171: ='Org structure'!E73 -> 12.7 - Roads & Stormwater Workshop | C171: 15107625.89 | D171: 14604898 | E171: 14604898 | F171: 1291913.81 | G171: 5542885.31 | H171: 4868332 | I171: =G171-H171 -> 674553.31 | J171: =IF(I171=0,"",I171/H171) -> 0.1385594306 | K171: 14604898
A172: ='Org structure'!A14 -> Vote 13 - Water/ Sewerage | C172: =SUM(C173:C177) -> 1271240957 | D172: =SUM(D173:D177) -> 723345406 | E172: =SUM(E173:E177) -> 1437831803 | F172: =SUM(F173:F177) -> 162662054.5 | G172: =SUM(G173:G177) -> 131821584.7 | H172: =SUM(H173:H177) -> 320286038.6 | I172: -188464453.9 | J172: -0.5884254423 | K172: =SUM(K173:K177) -> 1437831803
A173: ='Org structure'!E75 -> 13.1 - Water | C173: 315666148.4 | D173: 263480543 | E173: 263480543 | F173: 3146983.93 | G173: 11522028.77 | H173: 87826884 | I173: =G173-H173 -> -76304855.23 | J173: =IF(I173=0,"",I173/H173) -> -0.8688097739 | K173: 263480543
A174: ='Org structure'!E76 -> 13.2 - Water Supply | C174: 738160619.8 | D174: 172146558 | E174: 887973705 | F174: 149217205.9 | G174: 83575429.06 | H174: 136918581.7 | I174: =G174-H174 -> -53343152.6 | J174: =IF(I174=0,"",I174/H174) -> -0.3895976131 | K174: 887973705
A175: ='Org structure'!E77 -> 13.3 - Water Workshop | C175: 26586975.65 | D175: 32211461 | E175: 30870711 | F175: 2271749.32 | G175: 11203290.8 | H175: 10371528.92 | I175: =G175-H175 -> 831761.88 | J175: =IF(I175=0,"",I175/H175) -> 0.08019665051 | K175: 30870711
A176: ='Org structure'!E78 -> 13.4 - Sewerage Network | C176: 149298000 | D176: 217799909 | E176: 217799909 | F176: 4333078.12 | G176: 9753999.3 | H176: 72600020 | I176: =G176-H176 -> -62846020.7 | J176: =IF(I176=0,"",I176/H176) -> -0.8656474296 | K176: 217799909
A177: ='Org structure'!E79 -> 13.5 - Purifying Works | C177: 41529213.65 | D177: 37706935 | E177: 37706935 | F177: 3693037.23 | G177: 15766836.74 | H177: 12569024 | I177: =G177-H177 -> 3197812.74 | J177: =IF(I177=0,"",I177/H177) -> 0.2544201316 | K177: 37706935
A178: ='Org structure'!A15 -> Vote 14 - Electricity | C178: =SUM(C179:C185) -> 1443381066 | D178: =SUM(D179:D185) -> 1131954544 | E178: =SUM(E179:E185) -> 1129311901 | F178: =SUM(F179:F185) -> 341321498.8 | G178: =SUM(G179:G185) -> 208505507.3 | H178: =SUM(H179:H185) -> 376884475.2 | I178: -168378967.9 | J178: -0.4467654653 | K178: =SUM(K179:K185) -> 1129311901
A179: ='Org structure'!E81 -> 14.1 - Electricity | C179: 297875704.5 | D179: 164641008 | E179: 164372891 | F179: 3821180.29 | G179: 7880028.58 | H179: 54807253.19 | I179: =G179-H179 -> -46927224.61 | J179: =IF(I179=0,"",I179/H179) -> -0.856222888 | K179: 164372891
A180: ='Org structure'!E82 -> 14.2 - Distribution | C180: 1047893265 | D180: 836748316 | E180: 836748316 | F180: 332310275 | G180: 175558454.6 | H180: 278916152 | I180: =G180-H180 -> -103357697.4 | J180: =IF(I180=0,"",I180/H180) -> -0.370569064 | K180: 836748316
A181: ='Org structure'!E83 -> 14.3 - Distribution 132Kva | C181: 5041458.95 | D181: 6288265 | E181: 6288265 | F181: 118154.76 | G181: 876127.16 | H181: 2096120 | I181: =G181-H181 -> -1219992.84 | J181: =IF(I181=0,"",I181/H181) -> -0.5820243307 | K181: 6288265
A182: ='Org structure'!E84 -> 14.4 - Street Lights | C182: 2590331.97 | D182: 8227484 | E182: 8227484 | F182: 71780.29 | G182: 311599.97 | H182: 2742520 | I182: =G182-H182 -> -2430920.03 | J182: =IF(I182=0,"",I182/H182) -> -0.8863818787 | K182: 8227484
A183: ='Org structure'!E85 -> 14.5 - Workshop | C183: 56173523.22 | D183: 52024706 | E183: 50250180 | F183: 3802229.16 | G183: 17452929.99 | H183: 17144438.45 | I183: =G183-H183 -> 308491.54 | J183: =IF(I183=0,"",I183/H183) -> 0.01799368004 | K183: 50250180
A184: ='Org structure'!E86 -> 14.6 - Revenue Protection | C184: 401000 | D184: 1060000 | E184: 1060000 | F184: 0 | G184: 0 | H184: 353336 | I184: =G184-H184 -> -353336 | J184: =IF(I184=0,"",I184/H184) -> -1 | K184: 1060000
A185: ='Org structure'!E87 -> 14.7 - Mechanical Workshop | C185: 33405782.28 | D185: 62964765 | E185: 62364765 | F185: 1197879.3 | G185: 6426367 | H185: 20824655.61 | I185: =G185-H185 -> -14398288.61 | J185: =IF(I185=0,"",I185/H185) -> -0.6914058451 | K185: 62364765
A186: ='Org structure'!A16 -> Vote 15 - Other | C186: =SUM(C187:C190) -> 26740678.45 | D186: =SUM(D187:D190) -> 32017819 | E186: =SUM(E187:E190) -> 32017819 | F186: =SUM(F187:F190) -> 2263753.53 | G186: =SUM(G187:G190) -> 8920570.38 | H186: =SUM(H187:H190) -> 10672676 | I186: =G186-H186 -> -1752105.62 | J186: =IF(I186=0,"",I186/H186) -> -0.1641674141 | K186: =SUM(K187:K190) -> 32017819
A187: ='Org structure'!E89 -> 15.1 - Housing | C187: 20929168.08 | D187: 24318784 | E187: 24318784 | F187: 1830935.36 | G187: 7158025.99 | H187: 8106304 | I187: =G187-H187 -> -948278.01 | J187: =IF(I187=0,"",I187/H187) -> -0.1169803168 | K187: 24318784
A188: ='Org structure'!E90 -> 15.2 - Administration | C188: 0 | D188: 0 | E188: 0 | F188: 0 | G188: 0 | H188: 0 | I188: =G188-H188 -> 0 | J188: =IF(I188=0,"",I188/H188) ->  | K188: 0
A189: ='Org structure'!E91 -> 15.3 - Sundry Properties | C189: 0 | D189: 2130600 | E189: 2130600 | F189: 0 | G189: 0 | H189: 710204 | I189: =G189-H189 -> -710204 | J189: =IF(I189=0,"",I189/H189) -> -1 | K189: 2130600
A190: ='Org structure'!E92 -> 15.4 - Building Inspections | C190: 5811510.37 | D190: 5568435 | E190: 5568435 | F190: 432818.17 | G190: 1762544.39 | H190: 1856168 | I190: =G190-H190 -> -93623.61 | J190: =IF(I190=0,"",I190/H190) -> -0.05043918977 | K190: 5568435
A191: Total Expenditure by Vote | B191: 2 | C191: =C100+C102+C106+C108+C113+C122+C126+C136+C141+C155+C160+C164+C172+C178+C186 -> 4530280977 | D191: =D100+D102+D106+D108+D113+D122+D126+D136+D141+D155+D160+D164+D172+D178+D186 -> 3423312595 | E191: =E100+E102+E106+E108+E113+E122+E126+E136+E141+E155+E160+E164+E172+E178+E186 -> 4135167116 | F191: =F100+F102+F106+F108+F113+F122+F126+F136+F141+F155+F160+F164+F172+F178+F186 -> 602075877.8 | G191: =G100+G102+G106+G108+G113+G122+G126+G136+G141+G155+G160+G164+G172+G178+G186 -> 707205087.2 | H191: =H100+H102+H106+H108+H113+H122+H126+H136+H141+H155+H160+H164+H172+H178+H186 -> 1219812430 | I191: -512607342.6 | J191: -0.4202345624 | K191: =K100+K102+K106+K108+K113+K122+K126+K136+K141+K155+K160+K164+K172+K178+K186 -> 4135167116
I192: 0 | L192: =#REF!-#REF! ->  | M192: =#REF!-#REF! ->  | N192: =#REF!-#REF! ->  | O192: =#REF!-#REF! ->  | P192: =#REF!-#REF! ->  | Q192: =#REF!-#REF! ->  | R192: =#REF!-#REF! ->  | S192: =#REF!-#REF! ->  | T192: =#REF!-#REF! ->  | U192: =#REF!-#REF! ->  | V192: =#REF!-#REF! ->  | W192: =#REF!-#REF! -> 
A193: =result -> Surplus/ (Deficit) for the year | B193: 2 | C193: =C97-C191 -> -606039815.5 | D193: =D97-D191 -> 932138495 | E193: =E97-E191 -> 220283974 | F193: =F97-F191 -> -326300021.3 | G193: =G97-G191 -> 661808087.6 | H193: =H97-H191 -> 232004394.2 | I193: 429803693.4 | J193: 1.852567038 | K193: =K97-K191 -> 220283974
A194: =head27a -> References
A195: 1. Insert 'Vote'; e.g. Department, if different to standard structure
A196: 2. Must reconcile to Financial Performance ('Revenue and Expenditure by Standard Classification' and 'Revenue and Expenditure')
A197: 3. Assign share in 'associate' to relevant Vote
A199: check revenue
A200: check expenditure

Sheet C4-FinPerf RE
A1: =muni& " - "&S71B& " - "&date -> FS184 Matjhabeng - Table C4 Monthly Budget Statement - Financial Performance (revenue and expenditure) - M04 October
A2: =desc -> Description | B2: =head27 -> Ref | C2: =Head1 -> 2023/24 | D2: =Head2 -> Budget Year 2024/25
C3: =Head5 -> Audited Outcome | D3: =Head6 -> Original Budget | E3: =Head7 -> Adjusted Budget | F3: =Head38 -> Monthly actual | G3: =Head39 -> YearTD actual | H3: =Head40 -> YearTD budget | I3: =Head41 -> YTD variance | J3: =Head41 -> YTD variance | K3: =Head8 -> Full Year Forecast
A4: R thousands | J4: %
A5: Revenue
A6: Exchange Revenue
A7: Service charges - Electricity | C7: 769979871.3 | D7: 817184134 | E7: 817184134 | F7: 67296269.88 | G7: 316209049.8 | H7: 272394692 | I7: =G7-H7 -> 43814357.83 | J7: =IF(I7=0,"",I7/H7) -> 0.1608487945 | K7: 817184134
A8: Service charges - Water | C8: 505011304.5 | D8: 581364327 | E8: 581364327 | F8: 48962188.2 | G8: 171343186.8 | H8: 193788100 | I8: -22444913.25 | J8: -0.1158219377 | K8: 581364327
A9: Service charges - Waste Water Management | C9: 218034303.3 | D9: 236216380 | E9: 236216380 | F9: 20550344.23 | G9: 82601170.14 | H9: 78738792 | I9: 3862378.14 | J9: 0.04905305304 | K9: 236216380
A10: Service charges - Waste management | C10: 133311513 | D10: 153220960 | E10: 153220960 | F10: 12399294.58 | G10: 50783509.09 | H10: 51073652 | I10: -290142.91 | J10: -0.005680872596 | K10: 153220960
A11: Sale of Goods and Rendering of Services | C11: 23013421.76 | D11: 35941917 | E11: 35941917 | F11: 413385.65 | G11: 1500611.52 | H11: 11980596 | I11: -10479984.48 | J11: -0.8747465051 | K11: 35941917
A12: Agency services | I12: 0
A13: Interest | I13: 0
A14: Interest earned from Receivables | C14: 461475876.4 | D14: 402383393 | E14: 402383393 | F14: 43317335.72 | G14: 169394818.1 | H14: 134127780 | I14: 35267038.07 | J14: 0.2629361201 | K14: 402383393
A15: Interest from Current and Non Current Assets | C15: 5721951.59 | D15: 5162384 | E15: 5162384 | F15: 81548.88 | G15: 367636.03 | H15: 1720792 | I15: -1353155.97 | J15: -0.7863564975 | K15: 5162384
A16: Dividends | C16: 49223.33 | D16: 39942 | E16: 39942 | F16: 0 | G16: 31999.92 | H16: 13312 | I16: 18687.92 | J16: 1.403840144 | K16: 39942
A17: Rent on Land | I17: 0
A18: Rental from Fixed Assets | C18: 21914513.84 | D18: 29874013 | E18: 29874013 | F18: 1970384.86 | G18: 8008805.72 | H18: 9958004 | I18: -1949198.28 | J18: -0.1957418655 | K18: 29874013
A19: Licence and permits | C19: 324708.82 | D19: 230561 | E19: 230561 | F19: 111217.11 | G19: 197954.95 | H19: 76852 | I19: 121102.95 | J19: 1.575794384 | K19: 230561
A20: Operational Revenue | C20: 3496226.63 | D20: 529165516 | E20: 529165516 | F20: 1155577.67 | G20: 2703722.36 | H20: 176388464 | I20: -173684741.6 | J20: -0.9846717733 | K20: 529165516
A21: Non-Exchange Revenue | I21: 0
A22: Property rates | C22: 824091887 | D22: 494592408 | E22: 494592408 | F22: 41366758.06 | G22: 168468316.4 | H22: 164864096 | I22: 3604220.37 | J22: 0.02186176649 | K22: 494592408
A23: Surcharges and Taxes | I23: 0
A24: Fines, penalties and forfeits | C24: 2464406.32 | D24: 29981087 | E24: 29981087 | F24: 100890.61 | G24: 439264.12 | H24: 9993692 | I24: -9554427.88 | J24: -0.9560458617 | K24: 29981087
A25: Licence and permits | I25: 0
A26: Transfers and subsidies - Operational | C26: 691283997.8 | D26: 737537000 | E26: 737537000 | F26: 643480 | G26: 307312882.4 | H26: 245845652 | I26: 61467230.36 | J26: 0.2500236627 | K26: 737537000
A27: Interest | C27: 72142015.49 | D27: 55383068 | E27: 55383068 | F27: 6880329.04 | G27: 27461469.17 | H27: 18461020 | I27: 9000449.17 | J27: 0.4875380217 | K27: 55383068
A28: Fuel Levy | I28: 0
A29: Operational Revenue | C29: 0 | D29: 0 | E29: 0 | F29: 0 | G29: 0 | H29: 0 | I29: 0 | K29: 0
A30: Gains on disposal of Assets | C30: 0 | D30: 63600000 | E30: 63600000 | F30: 0 | G30: 0 | H30: 21200000 | I30: -21200000 | J30: -1 | K30: 63600000
A31: Other Gains | C31: 94869.35 | D31: 0 | E31: 0 | F31: 0 | G31: 0 | H31: 0 | I31: 0 | K31: 0
A32: Discontinued Operations | I32: 0
A33: Total Revenue (excluding capital transfers and contributions) | C33: =SUM(C7:C20)+SUM(C22:C32) -> 3732410090 | D33: 4171877090 | E33: 4171877090 | F33: 245249004.5 | G33: 1306824396 | H33: 1390625496 | I33: =G33-H33 -> -83801099.6 | J33: -0.06026144339 | K33: =SUM(K7:K20)+SUM(K22:K32) -> 4171877090
A34: Expenditure By Type
A35: Employee related costs | C35: 992502691.2 | D35: 999676278 | E35: 999676278 | F35: 81930423.47 | G35: 351950894.3 | H35: 333227136 | I35: =G35-H35 -> 18723758.28 | J35: =IF(I35=0,"",I35/H35) -> 0.05618917626 | K35: 999676278
A36: Remuneration of councillors | C36: 10215723.07 | D36: 41290852 | E36: 41290852 | F36: 757445.61 | G36: 3033737.51 | H36: 13763668 | I36: -10729930.49 | J36: -0.7795836466 | K36: 41290852
A37: Bulk purchases - electricity | C37: 1041613814 | D37: 752663181 | E37: 752663181 | F37: 332138314.9 | G37: 174748788.3 | H37: 250887728 | I37: -76138939.69 | J37: -0.3034781346 | K37: 752663181
A38: Inventory consumed | C38: 355914402.3 | D38: 217178563 | E38: 925880618 | F38: 147695162 | G38: 83987030.25 | H38: 150208362.2 | I38: -66221331.96 | J38: -0.4408631516 | K38: 925880618
A39: Debt impairment | C39: 0 | D39: 485265661 | E39: 485265661 | F39: 0 | G39: 0 | H39: 161755232 | I39: -161755232 | J39: -1 | K39: 485265661
A40: Depreciation and amortisation | C40: 205359068 | D40: 263566668 | E40: 263566668 | F40: 0 | G40: 0 | H40: 87855564 | I40: -87855564 | J40: -1 | K40: 263566668
A41: Interest | C41: 242872234.6 | D41: 194916938 | E41: 194916938 | F41: 48911.25 | G41: 93194.88 | H41: 64972316 | I41: -64879121.12 | J41: -0.9985656217 | K41: 194916938
A42: Contracted services | C42: 163210614.4 | D42: 103091482 | E42: 116261801 | F42: 24254603.53 | G42: 44704828.53 | H42: 36628391.66 | I42: 8076436.87 | J42: 0.2204966285 | K42: 116261801
A43: Transfers and subsidies | C43: 0 | D43: 1330000 | E43: 875377 | F43: 0 | G43: 0 | H43: 383956.29 | I43: -383956.29 | J43: -1 | K43: 875377
A44: Irrecoverable debts written off | C44: 950642841.3 | D44: 100000000 | E44: 100000000 | F44: 5186108.47 | G44: 8940527.08 | H44: 33333336 | I44: -24392808.92 | J44: -0.7317842091 | K44: 100000000
A45: Operational costs | C45: 172589240.3 | D45: 264332972 | E45: 254769742 | F45: 10064908.56 | G45: 39746086.37 | H45: 86796739.67 | I45: -47050653.3 | J45: -0.542078579 | K45: 254769742
A46: Losses on Disposal of Assets | C46: 0 | D46: 0 | E46: 0 | F46: 0 | G46: 0 | H46: 0 | I46: 0 | K46: 0
A47: Other Losses | C47: 395360348.5 | D47: 0 | E47: 0 | F47: 0 | G47: 0 | H47: 0 | I47: 0 | K47: 0
A48: Total Expenditure | C48: =SUM(C35:C47) -> 4530280977 | D48: 3423312595 | E48: 4135167116 | F48: 602075877.8 | G48: 707205087.2 | H48: 1219812430 | I48: =G48-H48 -> -512607342.6 | J48: -0.4202345624 | K48: =SUM(K35:K47) -> 4135167116
A49: Surplus/(Deficit) | C49: =C33-C48 -> -797870886.9 | D49: 748564495 | E49: 36709974 | F49: -356826873.3 | G49: 599619309.2 | H49: =H33-H48 -> 170813066.2 | I49: =I33-I48 -> 428806243 | J49: 2.510383149 | K49: =K33-K48 -> 36709974
A50: Transfers and subsidies - capital (monetary allocations) | C50: 191831071.4 | D50: 183574000 | E50: 183574000 | F50: 30526852 | G50: 62188778.39 | H50: 61191328 | I50: =G50-H50 -> 997450.39 | J50: 0.01630051876 | K50: 183574000
A51: Transfers and subsidies - capital (in-kind) | C51: 0 | D51: 0 | E51: 0 | F51: 0 | G51: 0 | H51: 0 | I51: =G51-H51 -> 0 | K51: 0
A52: Surplus/(Deficit) after capital transfers & contributions | C52: =C49+SUM(C50:C51) -> -606039815.5 | D52: 932138495 | E52: 220283974 | F52: -326300021.3 | G52: 661808087.6 | H52: 232004394.2 | I52: =G52-H52 -> 429803693.4 | J52: 1.852567038 | K52: =K49+SUM(K50:K51) -> 220283974
A53: Income Tax | I53: =G53-H53 -> 0
A54: Surplus/(Deficit) after income tax | C54: =C52-C53 -> -606039815.5 | D54: 932138495 | E54: 220283974 | F54: -326300021.3 | G54: 661808087.6 | H54: 232004394.2 | I54: 429803693.4 | J54: 1.852567038 | K54: =K52-K53 -> 220283974
A55: Share of Surplus/Deficit attributable to Joint Venture | I55: 0
A56: Share of Surplus/Deficit attributable to Minorities | I56: 0
A57: Surplus/(Deficit) attributable to municipality | C57: =SUM(C54:C56) -> -606039815.5 | D57: 932138495 | E57: 220283974 | F57: -326300021.3 | G57: 661808087.6 | H57: 232004394.2 | I57: 429803693.4 | J57: 1.852567038 | K57: =SUM(K54:K56) -> 220283974
A58: Share of Surplus/Deficit attributable to Associate | I58: 0
A59: Intercompany/Parent subsidiary transactions | I59: 0
A60: Surplus/ (Deficit) for the year | C60: =SUM(C57:C59) -> -606039815.5 | D60: 932138495 | E60: 220283974 | F60: -326300021.3 | G60: 661808087.6 | H60: 232004394.2 | I60: 429803693.4 | J60: 1.852567038 | K60: =SUM(K57:K59) -> 220283974
A61: =head27a -> References
A62: 1. Material variances to be explained on Table SC1
A65: =A33&" including capital transfers/contributions etc" -> Total Revenue (excluding capital transfers and contributions) including capital transfers/contributions etc | C65: =C33+SUM(C50:C51) -> 3924241162 | D65: 4355451090 | E65: 4355451090 | F65: 275775856.5 | G65: 1369013175 | H65: 1451816824 | K65: =K33+SUM(K50:K51) -> 4355451090

Sheet C5-Capex
A1: =muni& " - "&S71D& " - "&date -> FS184 Matjhabeng - Table C5 Monthly Budget Statement - Capital Expenditure (municipal vote, functional classification and funding) - M04 October
A2: =Vdesc -> Vote Description | B2: =head27 -> Ref | C2: =Head1 -> 2023/24 | D2: =Head2 -> Budget Year 2024/25
C3: =Head5 -> Audited Outcome | D3: =Head6 -> Original Budget | E3: =Head7 -> Adjusted Budget | F3: =Head38 -> Monthly actual | G3: =Head39 -> YearTD actual | H3: =Head40 -> YearTD budget | I3: =Head41 -> YTD variance | J3: =Head41 -> YTD variance | K3: =Head8 -> Full Year Forecast
A4: R thousands | B4: 1 | J4: %
A5: Multi-Year expenditure appropriation | B5: 2
A6: ='Org structure'!A2 -> Vote 01 - Council General | C6: ='C5C'!C7 -> 19355027.03 | D6: ='C5C'!D7 -> 10000000 | E6: ='C5C'!E7 -> 10000000 | F6: ='C5C'!F7 -> 0 | G6: ='C5C'!G7 -> 3067122.36 | H6: ='C5C'!H7 -> 3333336 | I6: =G6-H6 -> -266213.64 | J6: =IF(I6=0,"",I6/H6) -> -0.07986402811 | K6: ='C5C'!K7 -> 10000000
A7: ='Org structure'!A3 -> Vote 02 - Office Of The Executive Mayor | C7: ='C5C'!C9 -> 0 | D7: ='C5C'!D9 -> 0 | E7: ='C5C'!E9 -> 0 | F7: ='C5C'!F9 -> 0 | G7: ='C5C'!G9 -> 0 | H7: ='C5C'!H9 -> 0 | I7: =G7-H7 -> 0 | J7: =IF(I7=0,"",I7/H7) ->  | K7: ='C5C'!K9 -> 0
A8: ='Org structure'!A4 -> Vote 03 - Office Of The Speaker | C8: ='C5C'!C10 -> 0 | D8: ='C5C'!D10 -> 0 | E8: ='C5C'!E10 -> 24000 | F8: ='C5C'!F10 -> 0 | G8: ='C5C'!G10 -> 0 | H8: ='C5C'!H10 -> 8000 | I8: =G8-H8 -> -8000 | J8: =IF(I8=0,"",I8/H8) -> -1 | K8: ='C5C'!K10 -> 24000
A9: ='Org structure'!A5 -> Vote 04 - Council Whip | C9: ='C5C'!C12 -> 0 | D9: ='C5C'!D12 -> 0 | E9: ='C5C'!E12 -> 0 | F9: ='C5C'!F12 -> 0 | G9: ='C5C'!G12 -> 0 | H9: ='C5C'!H12 -> 0 | I9: =G9-H9 -> 0 | J9: =IF(I9=0,"",I9/H9) ->  | K9: ='C5C'!K12 -> 0
A10: ='Org structure'!A6 -> Vote 05 - Office Of The Municipal Manager | C10: ='C5C'!C13 -> 0 | D10: ='C5C'!D13 -> 0 | E10: ='C5C'!E13 -> 0 | F10: ='C5C'!F13 -> 0 | G10: ='C5C'!G13 -> 0 | H10: ='C5C'!H13 -> 0 | I10: =G10-H10 -> 0 | J10: =IF(I10=0,"",I10/H10) ->  | K10: ='C5C'!K13 -> 0
A11: ='Org structure'!A7 -> Vote 06 - Corporate Services | C11: ='C5C'!C14 -> 0 | D11: ='C5C'!D14 -> 0 | E11: ='C5C'!E14 -> 0 | F11: ='C5C'!F14 -> 0 | G11: ='C5C'!G14 -> 0 | H11: ='C5C'!H14 -> 0 | I11: =G11-H11 -> 0 | J11: =IF(I11=0,"",I11/H11) ->  | K11: ='C5C'!K14 -> 0
A12: ='Org structure'!A8 -> Vote 07 - Finance | C12: ='C5C'!C15 -> 0 | D12: ='C5C'!D15 -> 0 | E12: ='C5C'!E15 -> 0 | F12: ='C5C'!F15 -> 0 | G12: ='C5C'!G15 -> 0 | H12: ='C5C'!H15 -> 0 | I12: =G12-H12 -> 0 | J12: =IF(I12=0,"",I12/H12) ->  | K12: ='C5C'!K15 -> 0
A13: ='Org structure'!A9 -> Vote 08 - Human Resources | C13: ='C5C'!C16 -> 0 | D13: ='C5C'!D16 -> 0 | E13: ='C5C'!E16 -> 0 | F13: ='C5C'!F16 -> 0 | G13: ='C5C'!G16 -> 0 | H13: ='C5C'!H16 -> 0 | I13: =G13-H13 -> 0 | J13: =IF(I13=0,"",I13/H13) ->  | K13: ='C5C'!K16 -> 0
A14: ='Org structure'!A10 -> Vote 09 - Community Services | C14: ='C5C'!C17 -> 0 | D14: ='C5C'!D17 -> 0 | E14: ='C5C'!E17 -> 0 | F14: ='C5C'!F17 -> 0 | G14: ='C5C'!G17 -> 0 | H14: ='C5C'!H17 -> 0 | I14: =G14-H14 -> 0 | J14: =IF(I14=0,"",I14/H14) ->  | K14: ='C5C'!K17 -> 0
A15: ='Org structure'!A11 -> Vote 10 - Public Safety And Transport | C15: ='C5C'!C18 -> 0 | D15: ='C5C'!D18 -> 0 | E15: ='C5C'!E18 -> 0 | F15: ='C5C'!F18 -> 0 | G15: ='C5C'!G18 -> 0 | H15: ='C5C'!H18 -> 0 | I15: =G15-H15 -> 0 | J15: =IF(I15=0,"",I15/H15) ->  | K15: ='C5C'!K18 -> 0
A16: ='Org structure'!A12 -> Vote 11 - Economic Development | C16: ='C5C'!C19 -> 0 | D16: ='C5C'!D19 -> 0 | E16: ='C5C'!E19 -> 0 | F16: ='C5C'!F19 -> 0 | G16: ='C5C'!G19 -> 0 | H16: ='C5C'!H19 -> 0 | I16: =G16-H16 -> 0 | J16: =IF(I16=0,"",I16/H16) ->  | K16: ='C5C'!K19 -> 0
A17: ='Org structure'!A13 -> Vote 12 - Engineering Services | C17: ='C5C'!C20 -> 0 | D17: ='C5C'!D20 -> 0 | E17: ='C5C'!E20 -> 0 | F17: ='C5C'!F20 -> 0 | G17: ='C5C'!G20 -> 0 | H17: ='C5C'!H20 -> 0 | I17: =G17-H17 -> 0 | J17: =IF(I17=0,"",I17/H17) ->  | K17: ='C5C'!K20 -> 0
A18: ='Org structure'!A14 -> Vote 13 - Water/ Sewerage | C18: ='C5C'!C21 -> 0 | D18: ='C5C'!D21 -> 0 | E18: ='C5C'!E21 -> 0 | F18: ='C5C'!F21 -> 0 | G18: ='C5C'!G21 -> 0 | H18: ='C5C'!H21 -> 0 | I18: =G18-H18 -> 0 | J18: =IF(I18=0,"",I18/H18) ->  | K18: ='C5C'!K21 -> 0
A19: ='Org structure'!A15 -> Vote 14 - Electricity | C19: ='C5C'!C22 -> 0 | D19: ='C5C'!D22 -> 0 | E19: ='C5C'!E22 -> 0 | F19: ='C5C'!F22 -> 0 | G19: ='C5C'!G22 -> 0 | H19: ='C5C'!H22 -> 0 | I19: =G19-H19 -> 0 | J19: =IF(I19=0,"",I19/H19) ->  | K19: ='C5C'!K22 -> 0
A20: ='Org structure'!A16 -> Vote 15 - Other | C20: ='C5C'!C23 -> 0 | D20: ='C5C'!D23 -> 0 | E20: ='C5C'!E23 -> 0 | F20: ='C5C'!F23 -> 0 | G20: ='C5C'!G23 -> 0 | H20: ='C5C'!H23 -> 0 | I20: =G20-H20 -> 0 | J20: =IF(I20=0,"",I20/H20) ->  | K20: ='C5C'!K23 -> 0
A21: Total Capital Multi-year expenditure | B21: 4,7 | C21: =SUM(C6:C20) -> 19355027.03 | D21: =SUM(D6:D20) -> 10000000 | E21: 10024000 | F21: 0 | G21: 3067122.36 | H21: 3341336 | I21: -274213.64 | J21: =IF(I21=0,"",I21/H21) -> -0.08206706539 | K21: =SUM(K6:K20) -> 10024000
A23: Single Year expenditure appropriation | B23: 2
A24: ='C5C'!A28 -> Vote 01 - Council General | C24: ='C5C'!C28 -> 199193.6 | D24: ='C5C'!D28 -> 0 | E24: ='C5C'!E28 -> 0 | F24: ='C5C'!F28 -> 0 | G24: ='C5C'!G28 -> 0 | H24: ='C5C'!H28 -> 0 | I24: =G24-H24 -> 0 | J24: =IF(I24=0,"",I24/H24) ->  | K24: ='C5C'!K28 -> 0
A25: ='C5C'!A30 -> Vote 02 - Office Of The Executive Mayor | C25: ='C5C'!C30 -> 1286714.21 | D25: ='C5C'!D30 -> 0 | E25: ='C5C'!E30 -> 34600 | F25: ='C5C'!F30 -> 34600 | G25: ='C5C'!G30 -> 34600 | H25: ='C5C'!H30 -> 6920 | I25: =G25-H25 -> 27680 | J25: =IF(I25=0,"",I25/H25) -> 4 | K25: ='C5C'!K30 -> 34600
A26: ='C5C'!A33 -> Vote 03 - Office Of The Speaker | C26: ='C5C'!C33 -> 0 | D26: ='C5C'!D33 -> 0 | E26: ='C5C'!E33 -> 0 | F26: ='C5C'!F33 -> 0 | G26: ='C5C'!G33 -> 0 | H26: ='C5C'!H33 -> 0 | I26: =G26-H26 -> 0 | J26: =IF(I26=0,"",I26/H26) ->  | K26: ='C5C'!K33 -> 0
A27: ='C5C'!A35 -> Vote 04 - Council Whip | C27: ='C5C'!C35 -> 0 | D27: ='C5C'!D35 -> 0 | E27: ='C5C'!E35 -> 0 | F27: ='C5C'!F35 -> 0 | G27: ='C5C'!G35 -> 0 | H27: ='C5C'!H35 -> 0 | I27: =G27-H27 -> 0 | J27: =IF(I27=0,"",I27/H27) ->  | K27: ='C5C'!K35 -> 0
A28: ='C5C'!A36 -> Vote 05 - Office Of The Municipal Manager | C28: ='C5C'!C36 -> 734874.03 | D28: ='C5C'!D36 -> 0 | E28: ='C5C'!E36 -> 0 | F28: ='C5C'!F36 -> 0 | G28: ='C5C'!G36 -> 0 | H28: ='C5C'!H36 -> 0 | I28: =G28-H28 -> 0 | J28: =IF(I28=0,"",I28/H28) ->  | K28: ='C5C'!K36 -> 0
A29: ='C5C'!A40 -> Vote 06 - Corporate Services | C29: ='C5C'!C40 -> 0 | D29: ='C5C'!D40 -> 0 | E29: ='C5C'!E40 -> 52624 | F29: ='C5C'!F40 -> 0 | G29: ='C5C'!G40 -> 30199 | H29: ='C5C'!H40 -> 15710.99 | I29: =G29-H29 -> 14488.01 | J29: =IF(I29=0,"",I29/H29) -> 0.9221576743 | K29: ='C5C'!K40 -> 52624
A30: ='C5C'!A42 -> Vote 07 - Finance | C30: ='C5C'!C42 -> 459201.9 | D30: ='C5C'!D42 -> 0 | E30: ='C5C'!E42 -> 575734 | F30: ='C5C'!F42 -> 0 | G30: ='C5C'!G42 -> 74600.62 | H30: ='C5C'!H42 -> 191911.28 | I30: =G30-H30 -> -117310.66 | J30: =IF(I30=0,"",I30/H30) -> -0.611275481 | K30: ='C5C'!K42 -> 575734
A31: ='C5C'!A49 -> Vote 08 - Human Resources | C31: ='C5C'!C49 -> 0 | D31: ='C5C'!D49 -> 0 | E31: ='C5C'!E49 -> 0 | F31: ='C5C'!F49 -> 0 | G31: ='C5C'!G49 -> 0 | H31: ='C5C'!H49 -> 0 | I31: =G31-H31 -> 0 | J31: =IF(I31=0,"",I31/H31) ->  | K31: ='C5C'!K49 -> 0
A32: ='C5C'!A50 -> Vote 09 - Community Services | C32: ='C5C'!C50 -> 5697347.36 | D32: ='C5C'!D50 -> 3527413 | E32: ='C5C'!E50 -> 7529680 | F32: ='C5C'!F50 -> 2085866.1 | G32: ='C5C'!G50 -> 3297103.56 | H32: ='C5C'!H50 -> 1712156.29 | I32: =G32-H32 -> 1584947.27 | J32: =IF(I32=0,"",I32/H32) -> 0.9257024486 | K32: ='C5C'!K50 -> 7529680
A33: ='C5C'!A57 -> Vote 10 - Public Safety And Transport | C33: ='C5C'!C57 -> 94693.96 | D33: ='C5C'!D57 -> 0 | E33: ='C5C'!E57 -> 177760 | F33: ='C5C'!F57 -> 0 | G33: ='C5C'!G57 -> 0 | H33: ='C5C'!H57 -> 19751.11 | I33: =G33-H33 -> -19751.11 | J33: =IF(I33=0,"",I33/H33) -> -1 | K33: ='C5C'!K57 -> 177760
A34: ='C5C'!A61 -> Vote 11 - Economic Development | C34: ='C5C'!C61 -> 97600 | D34: ='C5C'!D61 -> 0 | E34: ='C5C'!E61 -> 0 | F34: ='C5C'!F61 -> 0 | G34: ='C5C'!G61 -> 0 | H34: ='C5C'!H61 -> 0 | I34: =G34-H34 -> 0 | J34: =IF(I34=0,"",I34/H34) ->  | K34: ='C5C'!K61 -> 0
A35: ='C5C'!A63 -> Vote 12 - Engineering Services | C35: ='C5C'!C63 -> 64775817.51 | D35: ='C5C'!D63 -> 106480639 | E35: ='C5C'!E63 -> 102146995 | F35: ='C5C'!F63 -> 19451896.12 | G35: ='C5C'!G63 -> 35018290.81 | H35: ='C5C'!H63 -> 34918123.17 | I35: =G35-H35 -> 100167.64 | J35: =IF(I35=0,"",I35/H35) -> 0.002868643298 | K35: ='C5C'!K63 -> 102146995
A36: ='C5C'!A69 -> Vote 13 - Water/ Sewerage | C36: ='C5C'!C69 -> 61585141.19 | D36: ='C5C'!D69 -> 52473948 | E36: ='C5C'!E69 -> 53141644 | F36: ='C5C'!F69 -> 0 | G36: ='C5C'!G69 -> 2780733.44 | H36: ='C5C'!H69 -> 17642514.75 | I36: =G36-H36 -> -14861781.31 | J36: =IF(I36=0,"",I36/H36) -> -0.8423845195 | K36: ='C5C'!K69 -> 53141644
A37: ='C5C'!A74 -> Vote 14 - Electricity | C37: ='C5C'!C74 -> 20614174.24 | D37: ='C5C'!D74 -> 28092000 | E37: ='C5C'!E74 -> 30849029 | F37: ='C5C'!F74 -> 4730828.76 | G37: ='C5C'!G74 -> 9680952.94 | H37: ='C5C'!H74 -> 9836061.35 | I37: =G37-H37 -> -155108.41 | J37: =IF(I37=0,"",I37/H37) -> -0.01576936179 | K37: ='C5C'!K74 -> 30849029
A38: ='C5C'!A81 -> Vote 15 - Other | C38: ='C5C'!C81 -> 0 | D38: ='C5C'!D81 -> 0 | E38: ='C5C'!E81 -> 0 | F38: ='C5C'!F81 -> 0 | G38: ='C5C'!G81 -> 0 | H38: ='C5C'!H81 -> 0 | I38: =G38-H38 -> 0 | J38: =IF(I38=0,"",I38/H38) ->  | K38: ='C5C'!K81 -> 0
A39: Total Capital single-year expenditure | B39: 4 | C39: =SUM(C24:C38) -> 155544758 | D39: 190574000 | E39: 194508066 | F39: 26303190.98 | G39: 50916480.37 | H39: 64343148.94 | I39: -13426668.57 | J39: =IF(I39=0,"",I39/H39) -> -0.2086728547 | K39: =SUM(K24:K38) -> 194508066
A40: Total Capital Expenditure | C40: =C39+C21 -> 174899785 | D40: 200574000 | E40: 204532066 | F40: 26303190.98 | G40: 53983602.73 | H40: 67684484.94 | I40: -13700882.21 | J40: =IF(I40=0,"",I40/H40) -> -0.2024227889 | K40: =K39+K21 -> 204532066
A42: Capital Expenditure - Functional Classification
A43: Governance and administration | C43: =SUM(C44:C46) -> 22783002.05 | D43: 10000000 | E43: 11502989 | F43: 34600 | G43: 3206521.98 | H43: 3752022.73 | I43: =G43-H43 -> -545500.75 | J43: =IF(I43=0,"",I43/H43) -> -0.1453884449 | K43: =SUM(K44:K46) -> 11502989
A44: Executive and council | C44: 20916334.84 | D44: 10000000 | E44: 10058600 | F44: 34600 | G44: 3101722.36 | H44: 3348256 | I44: -246533.64 | J44: =IF(I44=0,"",I44/H44) -> -0.07363046314 | K44: 10058600
A45: Finance and administration | C45: 1866667.21 | D45: 0 | E45: 1444389 | F45: 0 | G45: 104799.62 | H45: 403766.73 | I45: -298967.11 | J45: -0.7404451328 | K45: 1444389
A46: Internal audit | C46: 0 | D46: 0 | E46: 0 | F46: 0 | G46: 0 | H46: 0 | I46: 0 | K46: 0
A47: Community and public safety | C47: =SUM(C48:C52) -> 3910932.34 | D47: 3527413 | E47: 7529680 | F47: 2085866.1 | G47: 3297103.56 | H47: 1712156.29 | I47: 1584947.27 | J47: 0.9257024486 | K47: =SUM(K48:K52) -> 7529680
A48: Community and social services | C48: 93227.43 | D48: 0 | E48: 3589833 | F48: 2085866.1 | G48: 3276952.56 | H48: 398870.33 | I48: 2878082.23 | J48: 7.215583646 | K48: 3589833
A49: Sport and recreation | C49: 3734554.43 | D49: 3527413 | E49: 3939847 | F49: 0 | G49: 20151 | H49: 1313285.96 | I49: -1293134.96 | J49: -0.9846560455 | K49: 3939847
A50: Public safety | C50: 83150.48 | D50: 0 | E50: 0 | F50: 0 | G50: 0 | H50: 0 | I50: 0 | K50: 0
A51: Housing | C51: 0 | D51: 0 | E51: 0 | F51: 0 | G51: 0 | H51: 0 | I51: 0 | K51: 0
A52: Health | C52: 0 | D52: 0 | E52: 0 | F52: 0 | G52: 0 | H52: 0 | I52: 0 | K52: 0
A53: Economic and environmental services | C53: =SUM(C54:C56) -> 63227692.03 | D53: 32187834 | E53: 35549124 | F53: 15279481.87 | G53: 27328146.17 | H53: 11534142.27 | I53: 15794003.9 | J53: 1.36932626 | K53: =SUM(K54:K56) -> 35549124
A54: Planning and development | C54: -108608.7 | D54: 0 | E54: 0 | F54: 0 | G54: 0 | H54: 0 | I54: 0 | K54: 0
A55: Road transport | C55: 63336300.73 | D55: 32187834 | E55: 35549124 | F55: 15279481.87 | G55: 27328146.17 | H55: 11534142.27 | I55: 15794003.9 | J55: 1.36932626 | K55: 35549124
A56: Environmental protection | I56: 0
A57: Trading services | C57: =SUM(C58:C61) -> 84880501.11 | D57: 154858753 | E57: 149950273 | F57: 8903243.01 | G57: 20151831.02 | H57: 50686163.65 | I57: -30534332.63 | J57: -0.6024194855 | K57: =SUM(K58:K61) -> 149950273
A58: Energy sources | C58: 19934878.94 | D58: 28092000 | E58: 30249029 | F58: 4730828.76 | G58: 9680952.94 | H58: 9672425 | I58: 8527.94 | J58: 0.0008816754847 | K58: 30249029
A59: Water management | C59: 4590126.91 | D59: 2000000 | E59: 4918792 | F59: 0 | G59: 2538079.65 | H59: 1250426.4 | I59: 1287653.25 | J59: 1.029771324 | K59: 4918792
A60: Waste water management | C60: 58485929.76 | D60: 124766753 | E60: 114782452 | F60: 4172414.25 | G60: 7932798.43 | H60: 39763312.25 | I60: -31830513.82 | J60: -0.8004995565 | K60: 114782452
A61: Waste management | C61: 1869565.5 | D61: 0 | E61: 0 | F61: 0 | G61: 0 | H61: 0 | I61: 0 | K61: 0
A62: Other | C62: 97657.5 | D62: 0 | E62: 0 | F62: 0 | G62: 0 | H62: 0 | I62: 0 | K62: 0
A63: Total Capital Expenditure - Functional Classification | B63: 3 | C63: =C43+C47+C53+C57+C62 -> 174899785 | D63: =D43+D47+D53+D57+D62 -> 200574000 | E63: 204532066 | F63: 26303190.98 | G63: 53983602.73 | H63: 67684484.94 | I63: -13700882.21 | J63: -0.2024227889 | K63: =K43+K47+K53+K57+K62 -> 204532066
A65: Funded by:
A66: National Government | C66: 147102321.9 | D66: 183574000 | E66: 183574000 | F66: 26268590.98 | G66: 49406227.75 | H66: 61191351.89 | I66: =G66-H66 -> -11785124.14 | J66: =IF(I66=0,"",I66/H66) -> -0.1925946033 | K66: 183574000
A67: Provincial Government | C67: 0 | D67: 0 | E67: 0 | F67: 0 | G67: 0 | H67: 0 | I67: 0 | K67: 0
A68: District Municipality | I68: 0
A69: Transfers and subsidies - capital (monetary allocations) (Nat / Prov Departm Agencies, Households, Non-profit Institutions, Private Enterprises, Public Corporatons, Higher Educ Institutions) | C69: 0 | D69: 0 | E69: 0 | F69: 0 | G69: 0 | H69: 0 | I69: 0 | K69: 0
A70: Transfers recognised - capital | C70: =SUM(C66:C69) -> 147102321.9 | D70: 183574000 | E70: 183574000 | F70: 26268590.98 | G70: 49406227.75 | H70: 61191351.89 | I70: -11785124.14 | J70: -0.1925946033 | K70: =SUM(K66:K69) -> 183574000
A72: Borrowing | B72: 6 | I72: 0
A73: Internally generated funds | C73: 27797463.14 | D73: 17000000 | E73: 20958066 | F73: 34600 | G73: 4577374.98 | H73: 6493133.05 | I73: -1915758.07 | J73: -0.2950437108 | K73: 20958066
A74: Total Capital Funding | C74: =+C70+C72+C73 -> 174899785 | D74: 200574000 | E74: 204532066 | F74: 26303190.98 | G74: 53983602.73 | H74: 67684484.94 | I74: -13700882.21 | J74: -0.2024227889 | K74: =+K70+K72+K73 -> 204532066
A75: =head27a -> References
A76: 1. Municipalities may choose to appropriate for capital expenditure for three years or for one year (if one year appropriation projected expenditure required for yr2 and yr3).
A77: 2. Include capital component of PPP unitary payment
A78: 3. Capital expenditure by functional classification must reconcile to the total of multi-year and single year appropriations
A79: 4. Include expenditure on investment property, intangible and biological assets
A81: 6. Include finance leases and PPP capital funding component of unitary payment - total borrowing/repayments to reconcile to changes in Table SA17
A82: 7. Total Capital Funding must balance with Total Capital Expenditure
A86: check balance | C86: =C40-C74 -> 0 | D86: =D40-D74 -> 0 | E86: 0 | F86: 0 | G86: 0 | H86: 0 | K86: 0

Sheet C5C
A1: =muni& " - "&S71D& " - "&"A"& " - "&date -> FS184 Matjhabeng - Table C5 Monthly Budget Statement - Capital Expenditure (municipal vote, functional classification and funding) - A - M04 October
A2: =Vdesc -> Vote Description | B2: =head27 -> Ref | C2: =Head1 -> 2023/24 | D2: =Head2 -> Budget Year 2024/25 | L2: =Head4 -> 
A3: R thousand | C3: =Head5 -> Audited Outcome | D3: =Head6 -> Original Budget | E3: =Head7 -> Adjusted Budget | F3: =Head38 -> Monthly actual | G3: =Head39 -> YearTD actual | H3: =Head40 -> YearTD budget | I3: =Head41 -> YTD variance | J3: =Head41 -> YTD variance | K3: =Head8 -> Full Year Forecast | L3: =Head12 -> Forecast 2010/11 | M3: =Head13 -> Forecast 2011/12 | N3: =Head14 -> Forecast 2012/13 | O3: =Head15 -> Forecast 2013/14 | P3: =Head16 -> Forecast 2014/15 | Q3: =Head17 -> Forecast 2015/16 | R3: =Head18 -> Forecast 2016/17 | S3: =Head19 -> Forecast 2017/18 | T3: =Head20 -> Forecast 2018/19 | U3: =Head21 -> Forecast 2019/20 | V3: =Head22 -> Forecast 2020/21 | W3: =Head23 -> Forecast 2021/22
J4: %
A5: Capital expenditure - Municipal Vote
A6: Expenditure of multi-year capital appropriation | B6: 1
A7: ='Org structure'!A2 -> Vote 01 - Council General | C7: =SUM(C8:C8) -> 19355027.03 | D7: =SUM(D8:D8) -> 10000000 | E7: =SUM(E8:E8) -> 10000000 | F7: =SUM(F8:F8) -> 0 | G7: =SUM(G8:G8) -> 3067122.36 | H7: =SUM(H8:H8) -> 3333336 | I7: =G7-H7 -> -266213.64 | J7: =IF(I7=0,"",I7/H7) -> -0.07986402811 | K7: =SUM(K8:K8) -> 10000000
A8: ='Org structure'!E3 -> 01.1 - Council | C8: 19355027.03 | D8: 10000000 | E8: 10000000 | F8: 0 | G8: 3067122.36 | H8: 3333336 | I8: =G8-H8 -> -266213.64 | J8: =IF(I8=0,"",I8/H8) -> -0.07986402811 | K8: 10000000
A9: ='Org structure'!A3 -> Vote 02 - Office Of The Executive Mayor | C9: 0 | D9: 0 | E9: 0 | F9: 0 | G9: 0 | H9: 0 | I9: 0 | K9: 0
A10: ='Org structure'!A4 -> Vote 03 - Office Of The Speaker | C10: =SUM(C11:C11) -> 0 | D10: =SUM(D11:D11) -> 0 | E10: =SUM(E11:E11) -> 24000 | F10: =SUM(F11:F11) -> 0 | G10: =SUM(G11:G11) -> 0 | H10: =SUM(H11:H11) -> 8000 | I10: -8000 | J10: -1 | K10: =SUM(K11:K11) -> 24000
A11: ='Org structure'!E9 -> 03.1 - Office Of The Speaker | C11: 0 | D11: 0 | E11: 24000 | F11: 0 | G11: 0 | H11: 8000 | I11: =G11-H11 -> -8000 | J11: =IF(I11=0,"",I11/H11) -> -1 | K11: 24000
A12: ='Org structure'!A5 -> Vote 04 - Council Whip | C12: 0 | D12: 0 | E12: 0 | F12: 0 | G12: 0 | H12: 0 | I12: 0 | K12: 0
A13: ='Org structure'!A6 -> Vote 05 - Office Of The Municipal Manager | C13: 0 | D13: 0 | E13: 0 | F13: 0 | G13: 0 | H13: 0 | I13: 0 | K13: 0
A14: ='Org structure'!A7 -> Vote 06 - Corporate Services | C14: 0 | D14: 0 | E14: 0 | F14: 0 | G14: 0 | H14: 0 | I14: 0 | K14: 0
A15: ='Org structure'!A8 -> Vote 07 - Finance | C15: 0 | D15: 0 | E15: 0 | F15: 0 | G15: 0 | H15: 0 | I15: =G15-H15 -> 0 | J15: =IF(I15=0,"",I15/H15) ->  | K15: 0
A16: ='Org structure'!A9 -> Vote 08 - Human Resources | C16: 0 | D16: 0 | E16: 0 | F16: 0 | G16: 0 | H16: 0 | I16: 0 | K16: 0
A17: ='Org structure'!A10 -> Vote 09 - Community Services | C17: 0 | D17: 0 | E17: 0 | F17: 0 | G17: 0 | H17: 0 | I17: 0 | K17: 0
A18: ='Org structure'!A11 -> Vote 10 - Public Safety And Transport | C18: 0 | D18: 0 | E18: 0 | F18: 0 | G18: 0 | H18: 0 | I18: 0 | K18: 0
A19: ='Org structure'!A12 -> Vote 11 - Economic Development | C19: 0 | D19: 0 | E19: 0 | F19: 0 | G19: 0 | H19: 0 | I19: 0 | K19: 0
A20: ='Org structure'!A13 -> Vote 12 - Engineering Services | C20: 0 | D20: 0 | E20: 0 | F20: 0 | G20: 0 | H20: 0 | I20: 0 | K20: 0
A21: ='Org structure'!A14 -> Vote 13 - Water/ Sewerage | C21: 0 | D21: 0 | E21: 0 | F21: 0 | G21: 0 | H21: 0 | I21: =G21-H21 -> 0 | J21: =IF(I21=0,"",I21/H21) ->  | K21: 0
A22: ='Org structure'!A15 -> Vote 14 - Electricity | C22: 0 | D22: 0 | E22: 0 | F22: 0 | G22: 0 | H22: 0 | I22: 0 | K22: 0
A23: ='Org structure'!A16 -> Vote 15 - Other | C23: 0 | D23: 0 | E23: 0 | F23: 0 | G23: 0 | H23: 0 | I23: 0 | K23: 0
A24: Total multi-year capital expenditure | C24: =C7+C9+C10+C12+C13+C14+C15+C16+C17+C18+C19+C20+C21+C22+C23 -> 19355027.03 | D24: =D7+D9+D10+D12+D13+D14+D15+D16+D17+D18+D19+D20+D21+D22+D23 -> 10000000 | E24: =E7+E9+E10+E12+E13+E14+E15+E16+E17+E18+E19+E20+E21+E22+E23 -> 10024000 | F24: =F7+F9+F10+F12+F13+F14+F15+F16+F17+F18+F19+F20+F21+F22+F23 -> 0 | G24: =G7+G9+G10+G12+G13+G14+G15+G16+G17+G18+G19+G20+G21+G22+G23 -> 3067122.36 | H24: =H7+H9+H10+H12+H13+H14+H15+H16+H17+H18+H19+H20+H21+H22+H23 -> 3341336 | I24: -274213.64 | J24: -0.08206706539 | K24: =K7+K9+K10+K12+K13+K14+K15+K16+K17+K18+K19+K20+K21+K22+K23 -> 10024000
I25: 0
A26: Capital expenditure - Municipal Vote
A27: Expenditue of single-year capital appropriation | B27: 1
A28: ='Org structure'!A2 -> Vote 01 - Council General | C28: =SUM(C29:C29) -> 199193.6 | D28: =SUM(D29:D29) -> 0 | E28: =SUM(E29:E29) -> 0 | F28: =SUM(F29:F29) -> 0 | G28: =SUM(G29:G29) -> 0 | H28: =SUM(H29:H29) -> 0 | I28: 0 | K28: =SUM(K29:K29) -> 0
A29: ='Org structure'!E3 -> 01.1 - Council | C29: 199193.6 | D29: 0 | E29: 0 | F29: 0 | G29: 0 | H29: 0 | I29: 0 | K29: 0
A30: ='Org structure'!A3 -> Vote 02 - Office Of The Executive Mayor | C30: =SUM(C31:C32) -> 1286714.21 | D30: =SUM(D31:D32) -> 0 | E30: =SUM(E31:E32) -> 34600 | F30: =SUM(F31:F32) -> 34600 | G30: =SUM(G31:G32) -> 34600 | H30: =SUM(H31:H32) -> 6920 | I30: 27680 | J30: 4 | K30: =SUM(K31:K32) -> 34600
A31: ='Org structure'!E5 -> 02.1 - Office Of The Executive Mayor | C31: 1178450 | D31: 0 | E31: 34600 | F31: 34600 | G31: 34600 | H31: 6920 | I31: 27680 | J31: 4 | K31: 34600
A32: ='Org structure'!E7 -> 02.3 - Council Whip | C32: 108264.21 | D32: 0 | E32: 0 | F32: 0 | G32: 0 | H32: 0 | I32: 0 | K32: 0
A33: ='Org structure'!A4 -> Vote 03 - Office Of The Speaker | C33: =SUM(C34:C34) -> 0 | D33: =SUM(D34:D34) -> 0 | E33: =SUM(E34:E34) -> 0 | F33: =SUM(F34:F34) -> 0 | G33: =SUM(G34:G34) -> 0 | H33: =SUM(H34:H34) -> 0 | I33: 0 | K33: =SUM(K34:K34) -> 0
A34: ='Org structure'!E9 -> 03.1 - Office Of The Speaker | C34: 0 | D34: 0 | E34: 0 | F34: 0 | G34: 0 | H34: 0 | I34: 0 | K34: 0
A35: ='Org structure'!A5 -> Vote 04 - Council Whip | C35: 0 | D35: 0 | E35: 0 | F35: 0 | G35: 0 | H35: 0 | I35: =G35-H35 -> 0 | J35: =IF(I35=0,"",I35/H35) ->  | K35: 0
A36: ='Org structure'!A6 -> Vote 05 - Office Of The Municipal Manager | C36: =SUM(C37:C39) -> 734874.03 | D36: =SUM(D37:D39) -> 0 | E36: =SUM(E37:E39) -> 0 | F36: =SUM(F37:F39) -> 0 | G36: =SUM(G37:G39) -> 0 | H36: =SUM(H37:H39) -> 0 | I36: 0 | K36: =SUM(K37:K39) -> 0
A37: ='Org structure'!E16 -> 05.1 - Administration | C37: 75400 | D37: 0 | E37: 0 | F37: 0 | G37: 0 | H37: 0 | I37: 0 | K37: 0
A38: ='Org structure'!E18 -> 05.3 - Internal Audit | C38: 0 | D38: 0 | E38: 0 | F38: 0 | G38: 0 | H38: 0 | I38: 0 | K38: 0
A39: ='Org structure'!E20 -> 05.5 - Information Communication Technology | C39: 659474.03 | D39: 0 | E39: 0 | F39: 0 | G39: 0 | H39: 0 | I39: 0 | K39: 0
A40: ='Org structure'!A7 -> Vote 06 - Corporate Services | C40: =SUM(C41:C41) -> 0 | D40: =SUM(D41:D41) -> 0 | E40: =SUM(E41:E41) -> 52624 | F40: =SUM(F41:F41) -> 0 | G40: =SUM(G41:G41) -> 30199 | H40: =SUM(H41:H41) -> 15710.99 | I40: 14488.01 | J40: 0.9221576743 | K40: =SUM(K41:K41) -> 52624
A41: ='Org structure'!E25 -> 06.1 - Administration | C41: 0 | D41: 0 | E41: 52624 | F41: 0 | G41: 30199 | H41: 15710.99 | I41: 14488.01 | J41: 0.9221576743 | K41: 52624
A42: ='Org structure'!A8 -> Vote 07 - Finance | C42: =SUM(C43:C48) -> 459201.9 | D42: =SUM(D43:D48) -> 0 | E42: =SUM(E43:E48) -> 575734 | F42: =SUM(F43:F48) -> 0 | G42: =SUM(G43:G48) -> 74600.62 | H42: =SUM(H43:H48) -> 191911.28 | I42: -117310.66 | J42: -0.611275481 | K42: =SUM(K43:K48) -> 575734
A43: ='Org structure'!E29 -> 07.1 - Administration | C43: 65903.4 | D43: 0 | E43: 38174 | F43: 0 | G43: 38173.04 | H43: 12724.64 | I43: 25448.4 | J43: 1.999930843 | K43: 38174
A44: ='Org structure'!E30 -> 07.2 - Expenditure | C44: 0 | D44: 0 | E44: 0 | F44: 0 | G44: 0 | H44: 0 | I44: 0 | K44: 0
A45: ='Org structure'!E32 -> 07.4 - Supply Chain Management | C45: 295641 | D45: 0 | E45: 400000 | F45: 0 | G45: 36427.58 | H45: 133333.32 | I45: -96905.74 | J45: -0.7267931227 | K45: 400000
A46: ='Org structure'!E34 -> 07.6 - Revenue | C46: 0 | D46: 0 | E46: 137560 | F46: 0 | G46: 0 | H46: 45853.32 | I46: -45853.32 | J46: -1 | K46: 137560
A47: ='Org structure'!E35 -> 07.7 - Fresh Produce Market | C47: 97657.5 | D47: 0 | E47: 0 | F47: 0 | G47: 0 | H47: 0 | I47: 0 | K47: 0
A48: ='Org structure'!E37 -> 07.9 - Credit Control | C48: 0 | D48: 0 | E48: 0 | F48: 0 | G48: 0 | H48: 0 | I48: 0 | K48: 0
A49: ='Org structure'!A9 -> Vote 08 - Human Resources | C49: 0 | D49: 0 | E49: 0 | F49: 0 | G49: 0 | H49: 0 | I49: 0 | K49: 0
A50: ='Org structure'!A10 -> Vote 09 - Community Services | C50: =SUM(C51:C56) -> 5697347.36 | D50: =SUM(D51:D56) -> 3527413 | E50: =SUM(E51:E56) -> 7529680 | F50: =SUM(F51:F56) -> 2085866.1 | G50: =SUM(G51:G56) -> 3297103.56 | H50: =SUM(H51:H56) -> 1712156.29 | I50: =G50-H50 -> 1584947.27 | J50: =IF(I50=0,"",I50/H50) -> 0.9257024486 | K50: =SUM(K51:K56) -> 7529680
A51: ='Org structure'!E47 -> 09.4 - Parks & Recreation | C51: 338980 | D51: 0 | E51: 412434 | F51: 0 | G51: 20151 | H51: 137477.96 | I51: -117326.96 | J51: -0.8534237779 | K51: 412434
A52: ='Org structure'!E48 -> 09.5 - Cemetries | C52: 93227.43 | D52: 0 | E52: 0 | F52: 0 | G52: 0 | H52: 0 | I52: 0 | K52: 0
A53: ='Org structure'!E49 -> 09.6 - Community Centres | C53: 0 | D53: 0 | E53: 3589833 | F53: 2085866.1 | G53: 3276952.56 | H53: 398870.33 | I53: 2878082.23 | J53: 7.215583646 | K53: 3589833
A54: ='Org structure'!E51 -> 09.8 - Sportgrounds & Stadiums | C54: 3395574.43 | D54: 3527413 | E54: 3527413 | F54: 0 | G54: 0 | H54: 1175808 | I54: -1175808 | J54: -1 | K54: 3527413
A55: ='Org structure'!E55 -> 09.12 - Refuse Removal | C55: 1869565.5 | D55: 0 | E55: 0 | F55: 0 | G55: 0 | H55: 0 | I55: 0 | K55: 0
A56: ='Org structure'!E56 -> 09.13 - Refuse Dumping Area | C56: 0 | D56: 0 | E56: 0 | F56: 0 | G56: 0 | H56: 0 | I56: 0 | K56: 0
A57: ='Org structure'!A11 -> Vote 10 - Public Safety And Transport | C57: =SUM(C58:C60) -> 94693.96 | D57: =SUM(D58:D60) -> 0 | E57: =SUM(E58:E60) -> 177760 | F57: =SUM(F58:F60) -> 0 | G57: =SUM(G58:G60) -> 0 | H57: =SUM(H58:H60) -> 19751.11 | I57: -19751.11 | J57: -1 | K57: =SUM(K58:K60) -> 177760
A58: ='Org structure'!E58 -> 10.1 - Traffic | C58: 83150.48 | D58: 0 | E58: 0 | F58: 0 | G58: 0 | H58: 0 | I58: 0 | K58: 0
A59: ='Org structure'!E60 -> 10.3 - Security | C59: 11543.48 | D59: 0 | E59: 177760 | F59: 0 | G59: 0 | H59: 19751.11 | I59: -19751.11 | J59: -1 | K59: 177760
A60: ='Org structure'!E61 -> 10.4 - Fire Services | C60: 0 | D60: 0 | E60: 0 | F60: 0 | G60: 0 | H60: 0 | I60: 0 | K60: 0
A61: ='Org structure'!A12 -> Vote 11 - Economic Development | C61: =SUM(C62:C62) -> 97600 | D61: =SUM(D62:D62) -> 0 | E61: =SUM(E62:E62) -> 0 | F61: =SUM(F62:F62) -> 0 | G61: =SUM(G62:G62) -> 0 | H61: =SUM(H62:H62) -> 0 | I61: 0 | K61: =SUM(K62:K62) -> 0
A62: ='Org structure'!E63 -> 11.1 - Administration | C62: 97600 | D62: 0 | E62: 0 | F62: 0 | G62: 0 | H62: 0 | I62: 0 | K62: 0
A63: ='Org structure'!A13 -> Vote 12 - Engineering Services | C63: =SUM(C64:C68) -> 64775817.51 | D63: =SUM(D64:D68) -> 106480639 | E63: =SUM(E64:E68) -> 102146995 | F63: =SUM(F64:F68) -> 19451896.12 | G63: =SUM(G64:G68) -> 35018290.81 | H63: =SUM(H64:H68) -> 34918123.17 | I63: 100167.64 | J63: 0.002868643298 | K63: =SUM(K64:K68) -> 102146995
A64: ='Org structure'!E67 -> 12.1 - Engineering Administration | C64: 57210 | D64: 0 | E64: 38271 | F64: 0 | G64: 0 | H64: 12757 | I64: -12757 | J64: -1 | K64: 38271
A65: ='Org structure'!E69 -> 12.3 - Project Management Unit | C65: -108608.7 | D65: 0 | E65: 0 | F65: 0 | G65: 0 | H65: 0 | I65: 0 | K65: 0
A66: ='Org structure'!E71 -> 12.5 - Roads | C66: 63336300.73 | D66: 32187834 | E66: 35549124 | F66: 15279481.87 | G66: 27328146.17 | H66: 11534142.27 | I66: 15794003.9 | J66: 1.36932626 | K66: 35549124
A67: ='Org structure'!E72 -> 12.6 - Stormwater | C67: -163857.97 | D67: 74292805 | E67: 58580504 | F67: 0 | G67: 0 | H67: 21464462.55 | I67: -21464462.55 | J67: -1 | K67: 58580504
A68: ='Org structure'!E73 -> 12.7 - Roads & Stormwater Workshop | C68: 1654773.45 | D68: 0 | E68: 7979096 | F68: 4172414.25 | G68: 7690144.64 | H68: 1906761.35 | I68: 5783383.29 | J68: 3.033092364 | K68: 7979096
A69: ='Org structure'!A14 -> Vote 13 - Water/ Sewerage | C69: =SUM(C70:C73) -> 61585141.19 | D69: =SUM(D70:D73) -> 52473948 | E69: =SUM(E70:E73) -> 53141644 | F69: =SUM(F70:F73) -> 0 | G69: =SUM(G70:G73) -> 2780733.44 | H69: =SUM(H70:H73) -> 17642514.75 | I69: -14861781.31 | J69: -0.8423845195 | K69: =SUM(K70:K73) -> 53141644
A70: ='Org structure'!E75 -> 13.1 - Water | C70: 3704879.93 | D70: 0 | E70: 2918792 | F70: 0 | G70: 2538079.65 | H70: 583758.4 | I70: 1954321.25 | J70: 3.347825487 | K70: 2918792
A71: ='Org structure'!E76 -> 13.2 - Water Supply | C71: 885246.98 | D71: 2000000 | E71: 2000000 | F71: 0 | G71: 0 | H71: 666668 | I71: -666668 | J71: -1 | K71: 2000000
A72: ='Org structure'!E78 -> 13.4 - Sewerage Network | C72: 35041491.57 | D72: 22887354 | E72: 22887354 | F72: 0 | G72: 0 | H72: 7629124 | I72: -7629124 | J72: -1 | K72: 22887354
A73: ='Org structure'!E79 -> 13.5 - Purifying Works | C73: 21953522.71 | D73: 27586594 | E73: 25335498 | F73: 0 | G73: 242653.79 | H73: 8762964.35 | I73: -8520310.56 | J73: -0.9723091661 | K73: 25335498
A74: ='Org structure'!A15 -> Vote 14 - Electricity | C74: =SUM(C75:C80) -> 20614174.24 | D74: =SUM(D75:D80) -> 28092000 | E74: =SUM(E75:E80) -> 30849029 | F74: =SUM(F75:F80) -> 4730828.76 | G74: =SUM(G75:G80) -> 9680952.94 | H74: =SUM(H75:H80) -> 9836061.35 | I74: -155108.41 | J74: -0.01576936179 | K74: =SUM(K75:K80) -> 30849029
A75: ='Org structure'!E81 -> 14.1 - Electricity | C75: 1042317.48 | D75: 0 | E75: 268117 | F75: 0 | G75: 233144.4 | H75: 73122.81 | I75: 160021.59 | J75: 2.188394976 | K75: 268117
A76: ='Org structure'!E82 -> 14.2 - Distribution | C76: 0 | D76: 2000000 | E76: 2000000 | F76: 0 | G76: 1117557.6 | H76: 666668 | I76: 450889.6 | J76: 0.6763330473 | K76: 2000000
A77: ='Org structure'!E83 -> 14.3 - Distribution 132Kva | C77: 18807511.46 | D77: 26092000 | E77: 26092000 | F77: 4730828.76 | G77: 8230785.57 | H77: 8697336 | I77: -466550.43 | J77: -0.05364291204 | K77: 26092000
A78: ='Org structure'!E84 -> 14.4 - Street Lights | C78: 217050 | D78: 0 | E78: 114386 | F78: 0 | G78: 99465.37 | H78: 38128.64 | I78: 61336.73 | J78: 1.608678673 | K78: 114386
A79: ='Org structure'!E85 -> 14.5 - Workshop | C79: -132000 | D79: 0 | E79: 1774526 | F79: 0 | G79: 0 | H79: 197169.55 | I79: -197169.55 | J79: -1 | K79: 1774526
A80: ='Org structure'!E87 -> 14.7 - Mechanical Workshop | C80: 679295.3 | D80: 0 | E80: 600000 | F80: 0 | G80: 0 | H80: 163636.35 | I80: -163636.35 | J80: -1 | K80: 600000
A81: ='Org structure'!A16 -> Vote 15 - Other | C81: =SUM(C82:C83) -> 0 | D81: =SUM(D82:D83) -> 0 | E81: =SUM(E82:E83) -> 0 | F81: =SUM(F82:F83) -> 0 | G81: =SUM(G82:G83) -> 0 | H81: =SUM(H82:H83) -> 0 | I81: =G81-H81 -> 0 | J81: =IF(I81=0,"",I81/H81) ->  | K81: =SUM(K82:K83) -> 0
A82: ='Org structure'!E89 -> 15.1 - Housing | C82: 0 | D82: 0 | E82: 0 | F82: 0 | G82: 0 | H82: 0 | I82: 0 | K82: 0
A83: ='Org structure'!E92 -> 15.4 - Building Inspections | C83: 0 | D83: 0 | E83: 0 | F83: 0 | G83: 0 | H83: 0 | I83: 0 | K83: 0
A84: Total single-year capital expenditure | C84: =C28+C30+C33+C35+C36+C40+C42+C49+C50+C57+C61+C63+C69+C74+C81 -> 155544758 | D84: =D28+D30+D33+D35+D36+D40+D42+D49+D50+D57+D61+D63+D69+D74+D81 -> 190574000 | E84: =E28+E30+E33+E35+E36+E40+E42+E49+E50+E57+E61+E63+E69+E74+E81 -> 194508066 | F84: =F28+F30+F33+F35+F36+F40+F42+F49+F50+F57+F61+F63+F69+F74+F81 -> 26303190.98 | G84: =G28+G30+G33+G35+G36+G40+G42+G49+G50+G57+G61+G63+G69+G74+G81 -> 50916480.37 | H84: =H28+H30+H33+H35+H36+H40+H42+H49+H50+H57+H61+H63+H69+H74+H81 -> 64343148.94 | I84: -13426668.57 | J84: -0.2086728547 | K84: =K28+K30+K33+K35+K36+K40+K42+K49+K50+K57+K61+K63+K69+K74+K81 -> 194508066
A85: Total Capital Expenditure | C85: =C24+C84 -> 174899785 | D85: =D24+D84 -> 200574000 | E85: =E24+E84 -> 204532066 | F85: =F24+F84 -> 26303190.98 | G85: =G24+G84 -> 53983602.73 | H85: =H24+H84 -> 67684484.94 | I85: -13700882.21 | J85: -0.2024227889 | K85: =K24+K84 -> 204532066
A86: =head27a -> References
A87: 1. Insert 'Vote'; e.g. Department, if different to standard structure

Sheet C6-FinPos
A1: =muni& " - "&S71E& " - "&date -> FS184 Matjhabeng - Table C6 Monthly Budget Statement - Financial Position - M04 October
A2: =desc -> Description | B2: =head27 -> Ref | C2: =Head1 -> 2023/24 | D2: =Head2 -> Budget Year 2024/25
C3: =Head5 -> Audited Outcome | D3: =Head6 -> Original Budget | E3: =Head7 -> Adjusted Budget | F3: =Head39 -> YearTD actual | G3: =Head8 -> Full Year Forecast
A4: R thousands | B4: 1
A5: ASSETS
A6: Current assets
A7: Cash and cash equivalents | C7: 44626739.04 | D7: 4749458167 | E7: 4749458167 | F7: 540667245.1 | G7: 4749458167
A8: Trade and other receivables from exchange transactions | C8: 1584043486 | D8: 4569510479 | E8: 4569510479 | F8: 2053152053 | G8: 4569510479
A9: Receivables from non-exchange transactions | C9: 373140930.7 | D9: 20625611 | E9: 20625611 | F9: 460268224.1 | G9: 20625611
A10: Current portion of non-current receivables | C10: 1078796 | D10: 0 | E10: 0 | F10: 1078796 | G10: 0
A11: Inventory | C11: 4949888.79 | D11: 0 | E11: 0 | F11: 6821061.78 | G11: 0
A12: VAT | C12: 2789630878 | D12: 1035073713 | E12: 1035073713 | F12: 2853661050 | G12: 1035073713
A13: Other current assets | C13: 161462517.3 | D13: 0 | E13: 0 | F13: 161333422.8 | G13: 0
A14: Total current assets | C14: =SUM(C7:C13) -> 4958933235 | D14: =SUM(D7:D13) -> 10374667970 | E14: =SUM(E7:E13) -> 10374667970 | F14: =SUM(F7:F13) -> 6076981853 | G14: =SUM(G7:G13) -> 10374667970
A15: Non current assets
A16: Investments | C16: 0 | D16: 502456 | E16: 502456 | F16: 0 | G16: 502456
A17: Investment property | C17: 1517683016 | D17: 2458697493 | E17: 2458697493 | F17: 1517683016 | G17: 2458697493
A18: Property, plant and equipment | C18: 4032865602 | D18: 207565599 | E18: 211523665 | F18: 4086849205 | G18: 211523665
A19: Biological assets
A20: Living and non-living resources
A21: Heritage assets | C21: 7077538.88 | D21: 8461394 | E21: 8461394 | F21: 7077538.88 | G21: 8461394
A22: Intangible assets
A23: Trade and other receivables from exchange transactions
A24: Non-current receivables from non-exchange transactions | C24: 0 | D24: 274810430 | E24: 274810430 | F24: 0 | G24: 274810430
A25: Other non-current assets
A26: Total non current assets | C26: =SUM(C16:C25) -> 5557626157 | D26: =SUM(D16:D25) -> 2950037372 | E26: =SUM(E16:E25) -> 2953995438 | F26: =SUM(F16:F25) -> 5611609760 | G26: =SUM(G16:G25) -> 2953995438
A27: TOTAL ASSETS | C27: =C14+C26 -> 1.051655939e+10 | D27: =D14+D26 -> 13324705342 | E27: =E14+E26 -> 13328663408 | F27: =F14+F26 -> 1.168859161e+10 | G27: =G14+G26 -> 13328663408
A28: LIABILITIES
A29: Current liabilities
A30: Bank overdraft | C30: 0 | D30: 0 | E30: 0 | F30: 0 | G30: 0
A31: Financial liabilities | C31: 0 | D31: 0 | E31: 0 | F31: 0 | G31: 0
A32: Consumer deposits | C32: 20867756.56 | D32: 0 | E32: 0 | F32: 22341860.84 | G32: 0
A33: Trade and other payables from exchange transactions | C33: 1.320797219e+10 | D33: 8005083062 | E33: 8005083062 | F33: 1.361101653e+10 | G33: 8005083062
A34: Trade and other payables from non-exchange transactions | C34: 90502567.42 | D34: 0 | E34: 0 | F34: 78767038.93 | G34: 0
A35: Provision | C35: 647292065.8 | D35: 487483785 | E35: 487483785 | F35: 647292065.8 | G35: 487483785
A36: VAT | C36: 1769397526 | D36: 110000000 | E36: 110000000 | F36: 1886838751 | G36: 110000000
A37: Other current liabilities | C37: 0 | D37: 0 | E37: 0 | F37: 0 | G37: 0
A38: Total current liabilities | C38: =SUM(C30:C37) -> 1.573603211e+10 | D38: =SUM(D30:D37) -> 8602566847 | E38: =SUM(E30:E37) -> 8602566847 | F38: =SUM(F30:F37) -> 1.624625624e+10 | G38: =SUM(G30:G37) -> 8602566847
A39: Non current liabilities
A40: Financial liabilities | C40: 0 | D40: 0 | E40: 0 | F40: 0 | G40: 0
A41: Provision | C41: 0 | D41: 0 | E41: 0 | F41: 0 | G41: 0
A42: Long term portion of trade payables | C42: 0 | D42: 0 | E42: 0 | F42: 0 | G42: 0
A43: Other non-current liabilities | C43: 0 | D43: 0 | E43: 0 | F43: 0 | G43: 0
A44: Total non current liabilities | C44: =SUM(C40:C43) -> 0 | D44: =SUM(D40:D43) -> 0 | E44: =SUM(E40:E43) -> 0 | F44: =SUM(F40:F43) -> 0 | G44: =SUM(G40:G43) -> 0
A45: TOTAL LIABILITIES | C45: =C38+C44 -> 1.573603211e+10 | D45: =D38+D44 -> 8602566847 | E45: =E38+E44 -> 8602566847 | F45: =F38+F44 -> 1.624625624e+10 | G45: =G38+G44 -> 8602566847
A46: NET ASSETS | B46: 2 | C46: =C27-C45 -> -5219472718 | D46: =D27-D45 -> 4722138495 | E46: =E27-E45 -> 4726096561 | F46: =F27-F45 -> -4557664630 | G46: =G27-G45 -> 4726096561
A47: COMMUNITY WEALTH/EQUITY
A48: Accumulated surplus/(deficit) | C48: -3623934852 | D48: 3790000000 | E48: 3790000000 | F48: -4557664630 | G48: 3790000000
A49: Reserves and funds | C49: 0 | D49: 0 | E49: 0 | F49: 0 | G49: 0
A50: Other | C50: 0 | D50: 0 | E50: 0 | F50: 0 | G50: 0
A51: TOTAL COMMUNITY WEALTH/EQUITY | B51: 2 | C51: =SUM(C48:C50) -> -3623934852 | D51: =SUM(D48:D50) -> 3790000000 | E51: =SUM(E48:E50) -> 3790000000 | F51: =SUM(F48:F50) -> -4557664630 | G51: =SUM(G48:G50) -> 3790000000
A52: =head27a -> References
A53: 1. Material variances to be explained in Table SC1
A54: 2. Net assets must balance with Total Community Wealth/Equity
A57: check balance | C57: =C46-C51 -> -1595537866 | D57: =D46-D51 -> 932138495 | E57: =E46-E51 -> 936096561 | F57: =F46-F51 -> 0 | G57: =G46-G51 -> 936096561

Sheet C7-CFlow
A1: =muni& " - "&S71F& " - "&date -> FS184 Matjhabeng - Table C7 Monthly Budget Statement - Cash Flow - M04 October
A2: =desc -> Description | B2: =head27 -> Ref | C2: =Head1 -> 2023/24 | D2: =Head2 -> Budget Year 2024/25
C3: =Head5 -> Audited Outcome | D3: =Head6 -> Original Budget | E3: =Head7 -> Adjusted Budget | F3: =Head38 -> Monthly actual | G3: =Head39 -> YearTD actual | H3: =Head40 -> YearTD budget | I3: =Head41 -> YTD variance | J3: =Head41 -> YTD variance | K3: =Head8 -> Full Year Forecast
A4: R thousands | B4: 1 | J4: %
A5: CASH FLOW FROM OPERATING ACTIVITIES
A6: Receipts
A7: Property rates | C7: 227681092 | D7: 494592408 | E7: 494592408 | F7: 31587580.35 | G7: 87662764.01 | H7: 164864136 | I7: =G7-H7 -> -77201371.99 | J7: =IF(I7=0,"",I7/H7) -> -0.4682726872 | K7: 494592408
A8: Service charges | C8: 809318317.3 | D8: 1983707035 | E8: 1983707035 | F8: 92515022.98 | G8: 315174740.8 | H8: 661235678.3 | I8: -346060937.5 | J8: =IF(I8=0,"",I8/H8) -> -0.5233549079 | K8: 1983707035
A9: Other revenue | C9: -279152567 | D9: 41123457 | E9: 41123457 | F9: 32207780.16 | G9: -266753959.6 | H9: 13707819 | I9: -280461778.6 | J9: =IF(I9=0,"",I9/H9) -> -20.45998554 | K9: 41123457
A10: Transfers and Subsidies - Operational | C10: 693576815.5 | D10: 737537000 | E10: 737537000 | F10: 4000 | G10: 308379086.9 | H10: 245845666.7 | I10: 62533420.27 | J10: =IF(I10=0,"",I10/H10) -> 0.2543604738 | K10: 737537000
A11: Transfers and Subsidies - Capital | C11: 167455000 | D11: 183574000 | E11: 183574000 | F11: 22277391.3 | G11: 46349565.22 | H11: 61191333.32 | I11: -14841768.1 | J11: =IF(I11=0,"",I11/H11) -> -0.2425468983 | K11: 183574000
A12: Interest | C12: 8512888.73 | D12: 5162384 | E12: 5162384 | F12: 2437971.73 | G12: 5823646.41 | H12: 1720794.68 | I12: 4102851.73 | J12: 2.384277321 | K12: 5162384
A13: Dividends | C13: 49223.33 | D13: 39942 | E13: 39942 | F13: 0 | G13: 31999.92 | H13: 13314 | I13: 18685.92 | J13: 1.403479045 | K13: 39942
A14: Payments
A15: Suppliers and employees | C15: -2658453489 | D15: -3064144599 | E15: -3064144599 | F15: -592057840.9 | G15: -918476447.5 | H15: -1021381533 | I15: =H15-G15 -> -102905085.4 | J15: 0.1007508772 | K15: -3064144599
A16: Interest | C16: 0 | D16: -194916938 | E16: -194916938 | F16: 0 | G16: 0 | H16: -64972312.68 | I16: =H16-G16 -> -64972312.68 | J16: 1 | K16: -194916938
A17: Transfers and Subsidies | I17: =H17-G17 -> 0
A18: NET CASH FROM/(USED) OPERATING ACTIVITIES | C18: =SUM(C7:C13)+SUM(C15:C17) -> -1031012719 | D18: 186674689 | E18: 186674689 | F18: -411028094.4 | G18: -421808603.8 | H18: 62224896.4 | I18: =H18-G18 -> 484033500.2 | J18: 7.778775509 | K18: =SUM(K7:K13)+SUM(K15:K17) -> 186674689
A20: CASH FLOWS FROM INVESTING ACTIVITIES
A21: Receipts
A22: Proceeds on disposal of PPE | C22: 0 | D22: 63600000 | E22: 63600000 | F22: 0 | G22: 0 | H22: 21200000 | I22: =G22-H22 -> -21200000 | J22: =IF(I22=0,"",I22/H22) -> -1 | K22: 63600000
A24: Decrease (increase) in non-current receivables | C24: 0 | D24: -274810430 | E24: -274810430 | F24: 0 | G24: 0 | H24: -91603480 | I24: =G24-H24 -> 91603480 | J24: -1 | K24: -274810430
A25: Decrease (increase) in non-current investments | C25: 0 | D25: -502456 | E25: -502456 | F25: 0 | G25: 0 | H25: -167488 | I25: =G25-H25 -> 167488 | J25: -1 | K25: -502456
A26: Payments
A27: Capital assets | C27: -174899785 | D27: -200574000 | E27: -200574000 | F27: -26303190.98 | G27: -53983602.73 | H27: -66857999.92 | I27: =H27-G27 -> -12874397.19 | J27: 0.1925633014 | K27: -200574000
A28: NET CASH FROM/(USED) INVESTING ACTIVITIES | C28: =SUM(C22:C25)+C27 -> -174899785 | D28: =SUM(D22:D25)+D27 -> -412286886 | E28: -412286886 | F28: -26303190.98 | G28: -53983602.73 | H28: -137428967.9 | I28: =H28-G28 -> -83445365.19 | J28: 0.6071890552 | K28: =SUM(K22:K25)+K27 -> -412286886
A30: CASH FLOWS FROM FINANCING ACTIVITIES
A31: Receipts
A32: Short term loans | I32: =G32-H32 -> 0 | J32: =IF(I32=0,"",I32/H32) -> 
A33: Borrowing long term/refinancing | I33: =G33-H33 -> 0
A34: Increase (decrease) in consumer deposits | C34: -1430705.76 | D34: -13780000 | E34: -13780000 | F34: 0 | G34: 0 | H34: -4593333.32 | I34: =G34-H34 -> 4593333.32 | J34: -1 | K34: -13780000
A35: Payments
A36: Repayment of borrowing | I36: =H36-G36 -> 0
A37: NET CASH FROM/(USED) FINANCING ACTIVITIES | C37: =SUM(C32:C34)+C36 -> -1430705.76 | D37: -13780000 | E37: -13780000 | F37: 0 | G37: 0 | H37: -4593333.32 | I37: =H37-G37 -> -4593333.32 | J37: 1 | K37: =SUM(K32:K34)+K36 -> -13780000
A39: NET INCREASE/ (DECREASE) IN CASH HELD | C39: =C18+C28+C37 -> -1207343210 | D39: -239392197 | E39: -239392197 | F39: -437331285.4 | G39: -475792206.5 | H39: -79797404.84 | K39: =K18+K28+K37 -> -239392197
A40: Cash/cash equivalents at beginning: | C40: -126537757.1 | D40: -1032767941 | E40: -1032767941 | F40: 6165817.92 | G40: 44626739.04 | H40: =IF(E40=0, D40, E40) -> -1032767941 | K40: =G40 -> 44626739.04
A41: Cash/cash equivalents at month/year end: | C41: =C39+C40 -> -1333880967 | D41: -1272160138 | E41: -1272160138 | F41: -431165467.4 | G41: -431165467.4 | H41: -1112565346 | K41: =K39+K40 -> -194765458
A42: References
A43: 1. Material variances to be explained in Table SC1

Sheet SC1
A1: =muni& " - "&S71G& " - "&date -> FS184 Matjhabeng - Supporting Table SC1 Material variance explanations - M04 October
A2: =head27 -> Ref | B2: =desc -> Description
C3: Variance | D3: Reasons for material deviations | E3: Remedial or corrective steps/remarks
B4: R thousands
A5: 1 | B5: Revenue
B6: Variances was Not Calculated
A10: 2 | B10: Expenditure By Type
B11: Variances was Not Calculated
A15: 3 | B15: =RIGHT('C5-Capex'!A40,19) -> Capital Expenditure
B16: Variances was Not Calculated
A20: 4 | B20: Financial Position
B21: Variances was Not Calculated
A25: 5 | B25: Cash Flow
B26: Variances was Not Calculated
A30: 6 | B30: Measureable performance
A35: 7 | B35: Municipal Entities
A41: =head27a -> References
A42: 1. Revenue for each source, vote and standard classification
A43: 2. Expenditure for each type, vote and standard classification
A44: 3. Capital expenditure for each vote and standard classification
A45: 4. Explain any material variances between the annual budget and the expected financial position based on current trends
A46: 5. Cash receipts by source and cash payments by type where not explained under revenue and expenditure
A47: 6. For Sept, Dec, Mar and Jun statements explain any material variances in achievement of measurable performance objectives

Sheet SC2
A1: =muni& " - "&S71H& " - "&Head57 -> FS184 Matjhabeng - Supporting Table SC2 Monthly Budget Statement - performance indicators - M04 October
A2: Description of financial indicator | B2: Basis of calculation | C2: =head27 -> Ref | D2: =Head1 -> 2023/24 | E2: =Head2 -> Budget Year 2024/25
D3: =Head5 -> Audited Outcome | E3: =Head6 -> Original Budget | F3: =Head7 -> Adjusted Budget | G3: =Head39 -> YearTD actual | H3: =Head8 -> Full Year Forecast
A5: Borrowing Management
A7: Capital Charges to Operating Expenditure | B7: Interest & principal paid/Operating Expenditure | D7: =IF(ISERROR((D42-D43)/D45),0,((D42-D43)/D45)) -> 0.05361085455 | E7: =IF(ISERROR((E42+E44)/E45),0,((E42+E44)/E45)) -> 0.1339298102 | F7: =IF(ISERROR((F42+F44)/F45),0,((F42+F44)/F45)) -> 0.1108742629 | G7: =IF(ISERROR((G42+G44)/G45),0,((G42+G44)/G45)) -> 0.0001317791426 | H7: =IF(ISERROR((H42+H44)/H45),0,((H42+H44)/H45)) -> 0.05712170352
A8: Borrowed funding of 'own' capital expenditure | B8: Borrowings/Capital expenditure excl. transfers and grants | D8: =IF(ISERROR(D47/D46),0,(D47/D46)) -> 0 | E8: =IF(ISERROR(E47/E46),0,(E47/E46)) -> 0 | F8: =IF(ISERROR(F47/F46),0,(F47/F46)) -> 0 | G8: =IF(ISERROR(G47/G46),0,(G47/G46)) -> 0 | H8: =IF(ISERROR(H47/H46),0,(H47/H46)) -> 0
A9: Safety of Capital
A10: Debt to Equity | B10: Loans, Accounts Payable, Overdraft & Tax Provision/ Funds & Reserves | D10: =IF(ISERROR(D48/D49),0,(D48/D49)) -> -3.669623022 | E10: =IF(ISERROR(E48/E49),0,(E48/E49)) -> 2.112159119 | F10: =IF(ISERROR(F48/F49),0,(F48/F49)) -> 2.112159119 | G10: =IF(ISERROR(G48/G49),0,(G48/G49)) -> -3.003683833 | H10: =IF(ISERROR(H48/H49),0,(H48/H49)) -> 2.112159119
A11: Gearing | B11: Long Term Borrowing/ Funds & Reserves | D11: =IF(ISERROR(D51/D50),0,(D51/D50)) -> 0 | E11: =IF(ISERROR(E51/E50),0,(E51/E50)) -> 0 | F11: =IF(ISERROR(F51/F50),0,(F51/F50)) -> 0 | G11: =IF(ISERROR(G51/G50),0,(G51/G50)) -> 0 | H11: =IF(ISERROR(H51/H50),0,(H51/H50)) -> 0
A12: Liquidity
A13: Current Ratio | B13: Current assets/current liabilities | C13: 1 | D13: =IF(ISERROR(D52/D53),0,(D52/D53)) -> 0.315132379 | E13: =IF(ISERROR(E52/E53),0,(E52/E53)) -> 1.205996786 | F13: =IF(ISERROR(F52/F53),0,(F52/F53)) -> 1.205996786 | G13: =IF(ISERROR(G52/G53),0,(G52/G53)) -> 0.3740542905 | H13: =IF(ISERROR(H52/H53),0,(H52/H53)) -> 1.205996786
A14: Liquidity Ratio | B14: Monetary Assets/Current Liabilities | D14: =IF(ISERROR(D54/D53),0,(D54/D53)) -> 0.002835958819 | E14: =IF(ISERROR(E54/E53),0,(E54/E53)) -> 0.5520977926 | F14: =IF(ISERROR(F54/F53),0,(F54/F53)) -> 0.5520977926 | G14: =IF(ISERROR(G54/G53),0,(G54/G53)) -> 0.03327949757 | H14: =IF(ISERROR(H54/H53),0,(H54/H53)) -> 0.5520977926
A15: Revenue Management
A16: Annual Debtors Collection Rate (Payment Level %) | B16: Last 12 Mths Receipts/ Last 12 Mths Billing
A17: Outstanding Debtors to Revenue | B17: Total Outstanding Debtors to Annual Revenue | D17: =IF(ISERROR(D59/D55),0,(D59/D55)) -> 0.5679241238 | E17: =IF(ISERROR(E59/E55),0,(E59/E55)) -> 1.166128919 | F17: =IF(ISERROR(F59/F55),0,(F59/F55)) -> 1.166128919 | G17: =IF(ISERROR(G59/G55),0,(G59/G55)) -> 2.047583825 | H17: =IF(ISERROR(H59/H55),0,(H59/H55)) -> 1.166128919
A18: Longstanding Debtors Recovered | B18: Debtors > 12 Mths Recovered/Total Debtors > 12 Months Old | D18: =IF(ISERROR(D64/D63),0,(D64/D63)) -> 0 | E18: =IF(ISERROR(E64/E63),0,(E64/E63)) -> 0 | F18: =IF(ISERROR(F64/F63),0,(F64/F63)) -> 0 | G18: =IF(ISERROR(G64/G63),0,(G64/G63)) -> 0 | H18: =IF(ISERROR(H64/H63),0,(H64/H63)) -> 0
A19: Creditors Management
A20: Creditors System Efficiency | B20: % of Creditors Paid Within Terms (within MFMA s 65(e)) | D20: 0 | E20: 0 | F20: 0 | G20: 0 | H20: 0
A21: Funding of Provisions
A22: Percentage Of Provisions Not Funded | B22: Unfunded Provisions/Total Provisions
A23: Other Indicators
A24: Electricity Distribution Losses | B24: % Volume (units purchased and generated less units sold)/units purchased and generated | C24: 2 | D24: 0 | E24: 0.24 | F24: 0.24 | G24: 0 | H24: 0.24
A25: Water Distribution Losses | B25: % Volume (units purchased and own source less units sold)/Total units purchased and own source | C25: 2 | D25: 0 | E25: 0.2 | F25: 0.2 | G25: 0 | H25: 0.2
A26: Employee costs | B26: Employee costs/Total Revenue - capital revenue | D26: =IF(ISERROR(D40/D55),0,(D40/D55)) -> 0.2659146951 | E26: =IF(ISERROR(E40/E55),0,(E40/E55)) -> 0.2396226582 | F26: =IF(ISERROR(F40/F55),0,(F40/F55)) -> 0.2396226582 | G26: =IF(ISERROR(G40/G55),0,(G40/G55)) -> 0.2693176644 | H26: =IF(ISERROR(H40/H55),0,(H40/H55)) -> 0.2396226582
A27: Repairs & Maintenance | B27: R&M/Total Revenue - capital revenue | D27: =IF(ISERROR(D41/D55),0,(D41/D55)) -> 0.01275636708 | E27: =IF(ISERROR(E41/E55),0,(E41/E55)) -> 0.06001970614 | F27: =IF(ISERROR(F41/F55),0,(F41/F55)) -> 0.05841564522 | G27: =IF(ISERROR(G41/G55),0,(G41/G55)) -> 0.009785811204 | H27: =IF(ISERROR(H41/H55),0,(H41/H55)) -> 0.05841564522
A28: Interest & Depreciation | B28: I&D/Total Revenue - capital revenue | D28: =IF(ISERROR((D42+D44)/D55),0,((D42+D44)/D55)) -> 0.1200916544 | E28: =IF(ISERROR((E42+E44)/E55),0,((E42+E44)/E55)) -> 0.109898637 | F28: =IF(ISERROR((F42+F44)/F55),0,((F42+F44)/F55)) -> 0.109898637 | G28: =IF(ISERROR((G42+G44)/G55),0,((G42+G44)/G55)) -> 7.131400382e-05 | H28: =IF(ISERROR((H42+H44)/H55),0,((H42+H44)/H55)) -> 0.05661906737
A29: IDP regulation financial viability indicators
A30: i. Debt coverage | B30: (Total Operating Revenue - Operating Grants)/Debt service payments due within financial year) | D30: 0 | E30: 0 | F30: 0 | G30: 0 | H30: 0
A31: ii. O/S Service Debtors to Revenue | B31: Total outstanding service debtors/annual revenue received for services | D31: 0 | E31: 0 | F31: 0 | G31: 0 | H31: 0
A32: iii. Cost coverage | B32: (Available cash + Investments)/monthly fixed operational expenditure | D32: 0 | E32: 0 | F32: 0 | G32: 0 | H32: 0
A33: References
A34: 1. Consumer debtors > 12 months old are excluded from current assets.
A35: 2. Material variances to be explained.
A37: Calculations
A38: ='C6-FinPos'!A40 -> Financial liabilities | D38: ='C6-FinPos'!C40 -> 0 | E38: ='C6-FinPos'!D40 -> 0 | F38: ='C6-FinPos'!E40 -> 0 | G38: ='C6-FinPos'!F40 -> 0 | H38: ='C6-FinPos'!G40 -> 0
A39: Total Assets | D39: ='C6-FinPos'!C27 -> 1.051655939e+10 | E39: ='C6-FinPos'!D27 -> 13324705342 | F39: ='C6-FinPos'!E27 -> 13328663408 | G39: ='C6-FinPos'!F27 -> 1.168859161e+10 | H39: ='C6-FinPos'!G27 -> 13328663408
A40: Employee related costs | D40: ='C4-FinPerf RE'!C35 -> 992502691.2 | E40: ='C4-FinPerf RE'!D35 -> 999676278 | F40: ='C4-FinPerf RE'!E35 -> 999676278 | G40: ='C4-FinPerf RE'!G35 -> 351950894.3 | H40: ='C4-FinPerf RE'!K35 -> 999676278
A41: =A27 -> Repairs & Maintenance | D41: =+SC13c!C173 -> 47611993.2 | E41: =+SC13c!D173 -> 250394837 | F41: =+SC13c!E173 -> 243702892 | G41: =+SC13c!G173 -> 12788336.82 | H41: =+SC13c!K173 -> 243702892
A42: Interest (finance charges) | D42: ='C4-FinPerf RE'!C41 -> 242872234.6 | E42: ='C4-FinPerf RE'!D41 -> 194916938 | F42: ='C4-FinPerf RE'!E41 -> 194916938 | G42: ='C4-FinPerf RE'!G41 -> 93194.88 | H42: ='C4-FinPerf RE'!K41 -> 194916938
A43: Principal paid | D43: =-'C7-CFlow'!C36 -> 0 | E43: =-'C7-CFlow'!D36 -> 0 | F43: =-'C7-CFlow'!E36 -> 0 | G43: =-'C7-CFlow'!G36 -> 0 | H43: =-'C7-CFlow'!K36 -> 0
A44: Depreciation | D44: ='C4-FinPerf RE'!C40 -> 205359068 | E44: ='C4-FinPerf RE'!D40 -> 263566668 | F44: ='C4-FinPerf RE'!E40 -> 263566668 | G44: ='C4-FinPerf RE'!F40 -> 0 | H44: ='C4-FinPerf RE'!K36 -> 41290852
A45: Operating expenditure | D45: ='C4-FinPerf RE'!C48 -> 4530280977 | E45: ='C4-FinPerf RE'!D48 -> 3423312595 | F45: ='C4-FinPerf RE'!E48 -> 4135167116 | G45: ='C4-FinPerf RE'!G48 -> 707205087.2 | H45: ='C4-FinPerf RE'!K48 -> 4135167116
A46: ='C5-Capex'!A40 -> Total Capital Expenditure | D46: ='C5-Capex'!C63 -> 174899785 | E46: ='C5-Capex'!D63 -> 200574000 | F46: ='C5-Capex'!E63 -> 204532066 | G46: ='C5-Capex'!F63 -> 26303190.98 | H46: ='C5-Capex'!G63 -> 53983602.73
A47: Borrowed funding for capital | D47: ='C5-Capex'!C72 -> 0 | E47: ='C5-Capex'!D72 -> 0 | F47: ='C5-Capex'!E72 -> 0 | G47: ='C5-Capex'!G72 -> 0 | H47: ='C5-Capex'!K72 -> 0
A48: Debt | D48: ='C6-FinPos'!C30+'C6-FinPos'!C31+'C6-FinPos'!C33+'C6-FinPos'!C34+'C6-FinPos'!C40+'C6-FinPos'!C43 -> 1.329847476e+10 | E48: ='C6-FinPos'!D30+'C6-FinPos'!D31+'C6-FinPos'!D33+'C6-FinPos'!D34+'C6-FinPos'!D40+'C6-FinPos'!D43 -> 8005083062 | F48: ='C6-FinPos'!E30+'C6-FinPos'!E31+'C6-FinPos'!E33+'C6-FinPos'!E34+'C6-FinPos'!E40+'C6-FinPos'!E43 -> 8005083062 | G48: ='C6-FinPos'!F30+'C6-FinPos'!F31+'C6-FinPos'!F33+'C6-FinPos'!F34+'C6-FinPos'!F40+'C6-FinPos'!F43 -> 1.368978357e+10 | H48: ='C6-FinPos'!G30+'C6-FinPos'!G31+'C6-FinPos'!G33+'C6-FinPos'!G34+'C6-FinPos'!G40+'C6-FinPos'!G43 -> 8005083062
A49: Equity | D49: ='C6-FinPos'!C51 -> -3623934852 | E49: ='C6-FinPos'!D51 -> 3790000000 | F49: ='C6-FinPos'!E51 -> 3790000000 | G49: ='C6-FinPos'!F51 -> -4557664630 | H49: ='C6-FinPos'!G51 -> 3790000000
A50: ='C6-FinPos'!A49 -> Reserves and funds | D50: ='C6-FinPos'!C50 -> 0 | E50: ='C6-FinPos'!D50 -> 0 | F50: ='C6-FinPos'!E50 -> 0 | G50: ='C6-FinPos'!F50 -> 0 | H50: ='C6-FinPos'!G50 -> 0
A51: Borrowing | D51: ='C6-FinPos'!C40 -> 0 | E51: ='C6-FinPos'!D40 -> 0 | F51: ='C6-FinPos'!E40 -> 0 | G51: ='C6-FinPos'!F40 -> 0 | H51: ='C6-FinPos'!G40 -> 0
A52: ='C6-FinPos'!A6 -> Current assets | D52: ='C6-FinPos'!C14 -> 4958933235 | E52: ='C6-FinPos'!D14 -> 10374667970 | F52: ='C6-FinPos'!E14 -> 10374667970 | G52: ='C6-FinPos'!F14 -> 6076981853 | H52: ='C6-FinPos'!G14 -> 10374667970
A53: ='C6-FinPos'!A29 -> Current liabilities | D53: ='C6-FinPos'!C38 -> 1.573603211e+10 | E53: ='C6-FinPos'!D38 -> 8602566847 | F53: ='C6-FinPos'!E38 -> 8602566847 | G53: ='C6-FinPos'!F38 -> 1.624625624e+10 | H53: ='C6-FinPos'!G38 -> 8602566847
A54: Monetary assets | D54: ='C6-FinPos'!C7 -> 44626739.04 | E54: ='C6-FinPos'!D7 -> 4749458167 | F54: ='C6-FinPos'!E7 -> 4749458167 | G54: ='C6-FinPos'!F7 -> 540667245.1 | H54: ='C6-FinPos'!G7 -> 4749458167
A55: Total Revenue (excluding capital transfers and contributions) | D55: ='C4-FinPerf RE'!C33 -> 3732410090 | E55: ='C4-FinPerf RE'!D33 -> 4171877090 | F55: ='C4-FinPerf RE'!E33 -> 4171877090 | G55: ='C4-FinPerf RE'!G33 -> 1306824396 | H55: ='C4-FinPerf RE'!K33 -> 4171877090
A56: Transfers and subsidies - Operational | D56: ='C4-FinPerf RE'!C26 -> 691283997.8 | E56: ='C4-FinPerf RE'!D28 -> 0 | F56: ='C4-FinPerf RE'!E28 -> 0 | G56: ='C4-FinPerf RE'!G28 -> 0 | H56: ='C4-FinPerf RE'!K28 -> 0
A57: Transfers and subsidies - capital (monetary allocations) | D57: ='C4-FinPerf RE'!C50 -> 191831071.4 | E57: ='C4-FinPerf RE'!D50 -> 183574000 | F57: ='C4-FinPerf RE'!E50 -> 183574000 | G57: ='C4-FinPerf RE'!G50 -> 62188778.39 | H57: ='C4-FinPerf RE'!K50 -> 183574000
A58: Debt service payments | D58: ='C7-CFlow'!C12+'C7-CFlow'!C36 -> 8512888.73 | E58: ='C7-CFlow'!D12+'C7-CFlow'!D36 -> 5162384 | F58: ='C7-CFlow'!E12+'C7-CFlow'!E36 -> 5162384 | G58: ='C7-CFlow'!F12+'C7-CFlow'!F36 -> 2437971.73 | H58: ='C7-CFlow'!G12+'C7-CFlow'!G36 -> 5823646.41
A59: Outstanding debtors (receivables) | D59: ='C6-FinPos'!C8+'C6-FinPos'!C9+'C6-FinPos'!C10+'C6-FinPos'!C13+'C6-FinPos'!C23+'C6-FinPos'!C24 -> 2119725730 | E59: ='C6-FinPos'!D8+'C6-FinPos'!D9+'C6-FinPos'!D10+'C6-FinPos'!D13+'C6-FinPos'!D23+'C6-FinPos'!D24 -> 4864946520 | F59: ='C6-FinPos'!E8+'C6-FinPos'!E9+'C6-FinPos'!E10+'C6-FinPos'!E13+'C6-FinPos'!E23+'C6-FinPos'!E24 -> 4864946520 | G59: ='C6-FinPos'!F8+'C6-FinPos'!F9+'C6-FinPos'!F10+'C6-FinPos'!F13+'C6-FinPos'!F23+'C6-FinPos'!F24 -> 2675832496 | H59: ='C6-FinPos'!G8+'C6-FinPos'!G9+'C6-FinPos'!G10+'C6-FinPos'!G13+'C6-FinPos'!G23+'C6-FinPos'!G24 -> 4864946520
A60: Annual services revenue | D60: ='C4-FinPerf RE'!C7+'C4-FinPerf RE'!C8+'C4-FinPerf RE'!C9+'C4-FinPerf RE'!C10+'C4-FinPerf RE'!C22 -> 2450428879 | E60: ='C4-FinPerf RE'!D7+'C4-FinPerf RE'!D8+'C4-FinPerf RE'!D9+'C4-FinPerf RE'!D10+'C4-FinPerf RE'!D22 -> 2282578209 | F60: ='C4-FinPerf RE'!E7+'C4-FinPerf RE'!E8+'C4-FinPerf RE'!E9+'C4-FinPerf RE'!E10+'C4-FinPerf RE'!E22 -> 2282578209 | G60: ='C4-FinPerf RE'!F7+'C4-FinPerf RE'!F8+'C4-FinPerf RE'!F9+'C4-FinPerf RE'!F10+'C4-FinPerf RE'!F22 -> 190574855 | H60: ='C4-FinPerf RE'!G7+'C4-FinPerf RE'!G8+'C4-FinPerf RE'!G9+'C4-FinPerf RE'!G10+'C4-FinPerf RE'!G22 -> 789405232.2
A61: Cash + investments | B61: Including LT investments | D61: ='C6-FinPos'!C7+'C6-FinPos'!C16-'C6-FinPos'!C30 -> 44626739.04 | E61: ='C6-FinPos'!D7+'C6-FinPos'!D16-'C6-FinPos'!D30 -> 4749960623 | F61: ='C6-FinPos'!E7+'C6-FinPos'!E16-'C6-FinPos'!E30 -> 4749960623 | G61: ='C6-FinPos'!F7+'C6-FinPos'!F16-'C6-FinPos'!F30 -> 540667245.1 | H61: ='C6-FinPos'!G7+'C6-FinPos'!G16-'C6-FinPos'!G30 -> 4749960623
A62: Fixed operational expend. (monthly)
A63: Longstanding debtors outstanding | D63: ='C6-FinPos'!C23+'C6-FinPos'!C24 -> 0 | E63: ='C6-FinPos'!D23+'C6-FinPos'!D24 -> 274810430 | F63: ='C6-FinPos'!E23+'C6-FinPos'!E24 -> 274810430 | G63: ='C6-FinPos'!F23+'C6-FinPos'!F24 -> 0 | H63: ='C6-FinPos'!G23+'C6-FinPos'!G24 -> 274810430
A64: Longstanding debtors recovered
A65: Attorney collections

Sheet SC3
A1: =muni& " - "&S71I& " - "&Head57 -> FS184 Matjhabeng - Supporting Table SC3 Monthly Budget Statement - aged debtors - M04 October
A2: =desc -> Description | C2: =Head2 -> Budget Year 2024/25
A3: R thousands | B3: NT Code | C3: 0-30 Days | D3: 31-60 Days | E3: 61-90 Days | F3: 91-120 Days | G3: 121-150 Dys | H3: 151-180 Dys | I3: 181 Dys-1 Yr | J3: Over 1Yr | K3: Total | L3: Total over 90 days | M3: Actual Bad Debts Written Off against Debtors | N3: Impairment - Bad Debts i.t.o Council Policy
A4: Debtors Age Analysis By Income Source
A5: Trade and Other Receivables from Exchange Transactions - Water | B5: 1200 | C5: 58769075 | D5: 49167542 | E5: 75890554 | F5: 129876809 | G5: 74779197 | H5: 38060143 | I5: 252159608 | J5: 1895220221 | K5: =SUM(C5:J5) -> 2573923149 | L5: =SUM(F5:J5) -> 2390095978 | M5: 0 | N5: 0
A6: Trade and Other Receivables from Exchange Transactions - Electricity | B6: 1300 | C6: 74151869 | D6: 46593440 | E6: 36827883 | F6: 32021436 | G6: 52468965 | H6: 15666417 | I6: 88333829 | J6: 350434331 | K6: =SUM(C6:J6) -> 696498170 | L6: =SUM(F6:J6) -> 538924978 | M6: 0 | N6: 0
A7: Receivables from Non-exchange Transactions - Property Rates | B7: 1400 | C7: 37494759 | D7: 24601902 | E7: 22883618 | F7: 21850487 | G7: 19154095 | H7: 19276471 | I7: 122278202 | J7: 613632429 | K7: =SUM(C7:J7) -> 881171963 | L7: 796191684 | M7: 0 | N7: 0
A8: Receivables from Exchange Transactions - Waste Water Management | B8: 1500 | C8: 22407886 | D8: 19478944 | E8: 19267075 | F8: 19748798 | G8: 17068518 | H8: 16942699 | I8: 116309284 | J8: 898403596 | K8: 1129626800 | L8: 1068472895 | M8: 0 | N8: 0
A9: Receivables from Exchange Transactions - Waste Management | B9: 1600 | C9: 13773190 | D9: 11872476 | E9: 11714578 | F9: 12062514 | G9: 10335956 | H9: 10247680 | I9: 70171252 | J9: 560425127 | K9: 700602773 | L9: =SUM(F9:J9) -> 663242529 | M9: 0 | N9: 0
A10: Receivables from Exchange Transactions - Property Rental Debtors | B10: 1700 | C10: 1655262 | D10: 1645864 | E10: 1692018 | F10: 1642472 | G10: 1490844 | H10: 1489225 | I10: 10428272 | J10: 141636855 | K10: 161680812 | L10: =SUM(F10:J10) -> 156687668 | M10: 0 | N10: 0
A11: Interest on Arrear Debtor Accounts | B11: 1810 | C11: 50250297 | D11: 49343734 | E11: 48557375 | F11: 48309546 | G11: 48094065 | H11: 47308206 | I11: 307598253 | J11: 1362465426 | K11: 1961926902 | L11: 1813775496 | M11: 0 | N11: 0
A12: Recoverable unauthorised, irregular, fruitless and wasteful expenditure | B12: 1820 | C12: 0 | D12: 0 | E12: 0 | F12: 0 | G12: 0 | H12: 0 | I12: 0 | J12: 0 | K12: 0 | L12: 0 | M12: 0 | N12: 0
A13: Other | B13: 1900 | C13: 5399339 | D13: 300350 | E13: 745365 | F13: 920900 | G13: 283808 | H13: 392127 | I13: 4833218 | J13: 68087351 | K13: 80962458 | L13: =SUM(F13:J13) -> 74517404 | M13: 0 | N13: 0
A14: Total By Income Source | B14: 2000 | C14: =SUM(C5:C13) -> 263901677 | D14: 203004252 | E14: 217578466 | F14: 266432962 | G14: 223675448 | H14: 149382968 | I14: 972111918 | J14: 5890305336 | K14: 8186393027 | L14: =SUM(L5:L13) -> 7501908632 | M14: 0 | N14: 0
A15: =Head1&" - totals only" -> 2023/24 - totals only | C15: 238318807 | D15: 182877391 | E15: 178334471 | F15: 152192473 | G15: 120355960 | H15: 112330784 | I15: 792608728 | J15: 5046743364 | K15: =SUM(C15:J15) -> 6823761978 | L15: =SUM(F15:J15) -> 6224231309 | M15: 0 | N15: 0
A16: Debtors Age Analysis By Customer Group
A17: Organs of State | B17: 2200 | C17: 17073563 | D17: 15347453 | E17: 12832901 | F17: 10766931 | G17: 9431221 | H17: 8694907 | I17: 52528002 | J17: 89671349 | K17: =SUM(C17:J17) -> 216346327 | L17: =SUM(F17:J17) -> 171092410 | M17: 0 | N17: 0
A18: Commercial | B18: 2300 | C18: 75254001 | D18: 41384965 | E18: 31819803 | F18: 29609879 | G18: 31307175 | H18: 24087457 | I18: 157567780 | J18: 1107219091 | K18: =SUM(C18:J18) -> 1498250151 | L18: =SUM(F18:J18) -> 1349791382 | M18: 0 | N18: 0
A19: Households | B19: 2400 | C19: 171574114 | D19: 146271834 | E19: 172925763 | F19: 226056153 | G19: 182937053 | H19: 116600604 | I19: 762016136 | J19: 4693414896 | K19: =SUM(C19:J19) -> 6471796553 | L19: =SUM(F19:J19) -> 5981024842 | M19: 0 | N19: 0
A20: Other | B20: 2500 | C20: 0 | D20: 0 | E20: 0 | F20: 0 | G20: 0 | H20: 0 | I20: 0 | J20: 0 | K20: =SUM(C20:J20) -> 0 | L20: =SUM(F20:J20) -> 0 | M20: 0 | N20: 0
A21: Total By Customer Group | B21: 2600 | C21: =SUM(C17:C20) -> 263901678 | D21: 203004252 | E21: 217578467 | F21: 266432963 | G21: 223675449 | H21: 149382968 | I21: 972111918 | J21: =SUM(J17:J20) -> 5890305336 | K21: =SUM(K17:K20) -> 8186393031 | L21: =SUM(L17:L20) -> 7501908634 | M21: =SUM(M17:M20) -> 0 | N21: =SUM(N17:N20) -> 0
A22: Notes
A23: Material increases in value of debtors' categories compared to previous month to be explained
A24: Bad debts = amounts actually written off in the month
A25: Total by Income Source must reconcile with Total by Customer Group
C26: =C14-C21 -> -1 | D26: =D14-D21 -> 0 | E26: =E14-E21 -> -1 | F26: -1 | G26: -1 | H26: 0 | I26: 0 | J26: =J14-J21 -> 0 | K26: -4
C27: =IF(C26=0,"","MUST AGREE") -> MUST AGREE | D27: =IF(D26=0,"","MUST AGREE") ->  | E27: MUST AGREE | F27: MUST AGREE | G27: MUST AGREE | K27: MUST AGREE

Sheet SC4
A1: =muni& " - "&S71J& " - "&Head57 -> FS184 Matjhabeng - Supporting Table SC4 Monthly Budget Statement - aged creditors - M04 October
A2: =desc -> Description | B2: NT Code | C2: =Head2 -> Budget Year 2024/25 | L2: Prior year totals for chart (same period)
C3: 0 - 30 Days | D3: 31 - 60 Days | E3: 61 - 90 Days | F3: 91 - 120 Days | G3: 121 - 150 Days | H3: 151 - 180 Days | I3: 181 Days - 1 Year | J3: Over 1 Year | K3: Total
A4: R thousands
A5: Creditors Age Analysis By Customer Type
A6: Bulk Electricity | B6: 0100 | C6: 79614112 | D6: 208748152 | E6: 2383235 | F6: 6053174001 | G6: 0 | H6: 0 | I6: 0 | J6: 0 | K6: =SUM(C6:J6) -> 6343919500 | L6: 6073901416
A7: Bulk Water | B7: 0200 | C7: 154304810 | D7: 131808100 | E7: 106826695 | F7: 6935213259 | G7: 137008679 | H7: 0 | I7: 0 | J7: 0 | K7: =SUM(C7:J7) -> 7465161543 | L7: 7645043917
A8: PAYE deductions | B8: 0300 | C8: 13628722 | D8: 0 | E8: 0 | F8: 0 | G8: 0 | H8: 0 | I8: 0 | J8: 0 | K8: 13628722 | L8: 12544522
A9: VAT (output less input) | B9: 0400 | K9: 0
A10: Pensions / Retirement deductions | B10: 0500 | C10: 13839710 | D10: 6763635 | E10: 6010987 | F10: 6193376 | G10: 0 | H10: 0 | I10: 0 | J10: 0 | K10: 32807708
A11: Loan repayments | B11: 0600 | K11: 0
A12: Trade Creditors | B12: 0700 | C12: 8930923 | D12: 3173062 | E12: 15754560 | F12: 253998579 | G12: 0 | H12: 0 | I12: 0 | J12: 0 | K12: 281857124 | L12: 312876823
A13: Auditor General | B13: 0800 | C13: 4381324 | D13: 0 | E13: 575868 | F13: 0 | G13: 0 | H13: 0 | I13: 0 | J13: 0 | K13: 4957192 | L13: 5491543
A14: Other | B14: 0900 | K14: =SUM(C14:J14) -> 0
A15: Medical Aid deductions | C15: 11465584 | D15: 0 | E15: 0 | F15: 0 | G15: 0 | H15: 0 | I15: 0 | J15: 0 | K15: =SUM(C15:J15) -> 11465584
A16: Total By Customer Type | B16: 1000 | C16: =SUM(C6:C15) -> 286165185 | D16: =SUM(D6:D15) -> 350492949 | E16: 131551345 | F16: 13248579215 | G16: 137008679 | H16: 0 | I16: 0 | J16: 0 | K16: 14153797373 | L16: 14049858221
A17: Notes
A18: Material increases in value of creditors' categories compared to previous month to be explained

Sheet SC5
A1: =muni& " - "&S71K& " - "&Head57 -> FS184 Matjhabeng - Supporting Table SC5 Monthly Budget Statement - investment portfolio - M04 October
A2: Investments by maturity Name of institution & investment ID | B2: Ref | C2: Period of Investment | D2: Type of Investment | E2: Capital Guarantee (Yes/ No) | F2: Variable or Fixed interest rate | G2: Interest Rate ᶟ | H2: Commission Paid (Rands) | I2: Commission Recipient | J2: Expiry date of investment | K2: Opening balance | L2: Interest to be realised | M2: Partial / Premature Withdrawal (4) | N2: Investment Top Up | O2: Closing Balance
A3: R thousands | C3: Yrs/Months
A4: Municipality
A5: Absa Call Account-9094617107 | C5: Year | D5: Call Account | E5: Yes | F5: Variable | G5: >0 | H5: 0 | K5: 1507.58 | L5: 6.22 | M5: 0 | N5: 0 | O5: =SUM(K5:N5) -> 1513.8
A6: Absa Call Account - 9106684115 Mig | C6: Year | D6: Call Account | E6: Yes | F6: Variable | G6: >0 | H6: 0 | K6: 28085.43 | L6: 5828.79 | M6: 0 | N6: 0 | O6: 33914.22
A7: Absa Call Account - 9106684157 Led | C7: Year | D7: Call Account | E7: Yes | F7: Variable | G7: >0 | H7: 0 | K7: 1192.13 | L7: 5 | M7: 0 | N7: 0 | O7: 1197.13
A8: Absa Call Account - 9106684238 | C8: Year | D8: Call Account | E8: Yes | F8: Variable | G8: >0 | H8: 0 | K8: 1417.7 | L8: 5.94 | M8: 0 | N8: 0 | O8: 1423.64
A9: Absa Call Account - 911141338 | C9: Year | D9: Call Account | E9: Yes | F9: Variable | G9: >0 | H9: 0 | K9: 1260.68 | L9: 5.28 | M9: 0 | N9: 0 | O9: 1265.96
A10: Absa Call Account - 9123515666 | C10: Year | D10: Call Account | E10: Yes | F10: Variable | G10: >0 | H10: 0 | K10: 1192.13 | L10: 5 | M10: 0 | N10: 0 | O10: 1197.13
A11: Absa Bank | C11: Year | D11: Call Account | E11: Yes | F11: Variable | G11: >0 | H11: 0 | K11: 0 | L11: 0 | M11: 0 | N11: 0 | O11: =SUM(K11:N11) -> 0
A12: Municipality sub-total | K12: =SUM(K5:K11) -> 34655.65 | L12: =SUM(L5:L11) -> 5856.23 | M12: =SUM(M5:M11) -> 0 | N12: =SUM(N5:N11) -> 0 | O12: =SUM(O5:O11) -> 40511.88
A14: Entities
O15: =SUM(K15:N15) -> 0
O16: 0
O17: 0
O18: 0
O19: 0
O20: 0
O21: 0
A22: Entities sub-total | K22: =SUM(K15:K21) -> 0 | L22: =SUM(L15:L21) -> 0 | M22: =SUM(M15:M21) -> 0 | N22: =SUM(N15:N21) -> 0 | O22: =SUM(O15:O21) -> 0
A24: TOTAL INVESTMENTS AND INTEREST | B24: 2 | K24: =K12+K22 -> 34655.65 | L24: =L12+L22 -> 5856.23 | M24: =M12+M22 -> 0 | N24: =N12+N22 -> 0 | O24: =O12+O22 -> 40511.88
A25: =head27a -> References
A26: 2. List investments in expiry date order
A27: 3. If 'variable' is selected in column F, input interest rate range
A28: 4. Withdrawals to be entered as negative

Sheet SC6
A1: =muni& " - "&S71L& " - "&Head57 -> FS184 Matjhabeng - Supporting Table SC6 Monthly Budget Statement - transfers and grant receipts - M04 October
A2: =desc -> Description | B2: =head27 -> Ref | C2: =Head1 -> 2023/24 | D2: =Head2 -> Budget Year 2024/25
C3: =Head5 -> Audited Outcome | D3: =Head6 -> Original Budget | E3: =Head7 -> Adjusted Budget | F3: =Head38 -> Monthly actual | G3: =Head39 -> YearTD actual | H3: =Head40 -> YearTD budget | I3: =Head41 -> YTD variance | J3: =Head41 -> YTD variance | K3: =Head8 -> Full Year Forecast
A4: R thousands | J4: %
A5: RECEIPTS: | B5: 1,2
A7: Operating Transfers and Grants
A8: National Government: | C8: =SUM(C9:C14) -> 691283997.8 | D8: =SUM(D9:D14) -> 737537000 | E8: =SUM(E9:E14) -> 737537000 | F8: =SUM(F9:F14) -> 643480 | G8: =SUM(G9:G14) -> 307312882.4 | H8: =SUM(H9:H14) -> 245845652 | I8: =G8-H8 -> 61467230.36 | J8: =IF(H8=0,"",I8/H8) -> 0.2500236627 | K8: =SUM(K9:K14) -> 737537000
A9: Energy Efficiency and Demand Side Management Grant | C9: 0 | D9: 0 | E9: 0 | F9: 0 | G9: 0 | H9: 0 | I9: =G9-H9 -> 0 | J9: =IF(H9=0,"",I9/H9) ->  | K9: 0
A10: Equitable Share | C10: 685410000 | D10: 733077000 | E10: 733077000 | F10: 0 | G10: 305449000 | H10: 244358988 | I10: =G10-H10 -> 61090012 | J10: =IF(H10=0,"",I10/H10) -> 0.2500010845 | K10: 733077000
A11: Expanded Public Works Programme Integrated Grant | C11: 2774000 | D11: 1460000 | E11: 1460000 | F11: 496444 | G11: 1460000 | H11: 486664 | I11: =G11-H11 -> 973336 | J11: =IF(H11=0,"",I11/H11) -> 2.000016438 | K11: 1460000
A12: Local Government Financial Management Grant | C12: 3099997.75 | D12: 3000000 | E12: 3000000 | F12: 147036 | G12: 403882.36 | H12: 1000000 | I12: =G12-H12 -> -596117.64 | J12: =IF(H12=0,"",I12/H12) -> -0.59611764 | K12: 3000000
A13: Municipal Disaster Relief Grant | C13: 0 | D13: 0 | E13: 0 | F13: 0 | G13: 0 | H13: 0 | I13: =G13-H13 -> 0 | J13: =IF(H13=0,"",I13/H13) ->  | K13: 0
A14: Neighbourhood Development Partnership Grant | B14: 3 | C14: 0 | D14: 0 | E14: 0 | F14: 0 | G14: 0 | H14: 0 | I14: =G14-H14 -> 0 | J14: =IF(H14=0,"",I14/H14) ->  | K14: 0
A15: Other transfers and grants [insert description] | I15: =G15-H15 -> 0 | J15: =IF(I15=0,"",I15/H15) -> 
A16: Provincial Government: | C16: =SUM(C17:C17) -> 0 | D16: =SUM(D17:D17) -> 0 | E16: =SUM(E17:E17) -> 0 | F16: =SUM(F17:F17) -> 0 | G16: =SUM(G17:G17) -> 0 | H16: =SUM(H17:H17) -> 0 | I16: =G16-H16 -> 0 | J16: =IF(H16=0,"",I16/H16) ->  | K16: =SUM(K17:K17) -> 0
A17: Capacity Building and Other Grants | C17: 0 | D17: 0 | E17: 0 | F17: 0 | G17: 0 | H17: 0 | I17: =G17-H17 -> 0 | J17: =IF(H17=0,"",I17/H17) ->  | K17: 0
A18: Other transfers and grants [insert description] | I18: =G18-H18 -> 0
A19: District Municipality: | C19: =SUM(C20:C20) -> 0 | D19: =SUM(D20:D20) -> 0 | E19: =SUM(E20:E20) -> 0 | F19: =SUM(F20:F20) -> 0 | G19: =SUM(G20:G20) -> 0 | H19: =SUM(H20:H20) -> 0 | I19: 0 | K19: =SUM(K20:K20) -> 0
A20: [insert description] | I20: 0
A21: Other grant providers: | C21: =SUM(C22:C22) -> 0 | D21: =SUM(D22:D22) -> 0 | E21: =SUM(E22:E22) -> 0 | F21: =SUM(F22:F22) -> 0 | G21: =SUM(G22:G22) -> 0 | H21: =SUM(H22:H22) -> 0 | I21: 0 | K21: =SUM(K22:K22) -> 0
A22: [insert description] | I22: 0
A23: Total Operating Transfers and Grants | B23: 5 | C23: =C8+C16+C19+C21 -> 691283997.8 | D23: =D8+D16+D19+D21 -> 737537000 | E23: =E8+E16+E19+E21 -> 737537000 | F23: =F8+F16+F19+F21 -> 643480 | G23: =G8+G16+G19+G21 -> 307312882.4 | H23: =H8+H16+H19+H21 -> 245845652 | I23: =I8+I16+I19+I21 -> 61467230.36 | J23: 0.2500236627 | K23: =K8+K16+K19+K21 -> 737537000
A25: Capital Transfers and Grants
A26: =A8 -> National Government: | C26: =SUM(C27:C29) -> 191831071.4 | D26: =SUM(D27:D29) -> 183574000 | E26: =SUM(E27:E29) -> 183574000 | F26: =SUM(F27:F29) -> 30526852 | G26: =SUM(G27:G29) -> 62188778.39 | H26: =SUM(H27:H29) -> 61191328 | I26: =G26-H26 -> 997450.39 | J26: =IF(H26=0,"",I26/H26) -> 0.01630051876 | K26: =SUM(K27:K29) -> 183574000
A27: Integrated National Electrification Programme Grant | C27: 21628637.17 | D27: 26092000 | E27: 26092000 | F27: 5440453 | G27: 9465403 | H27: 8697332 | I27: =G27-H27 -> 768071 | J27: =IF(H27=0,"",I27/H27) -> 0.08831110506 | K27: 26092000
A28: Municipal Infrastructure Grant | C28: 151546417.2 | D28: 139514000 | E28: 139514000 | F28: 25086399 | G28: 45881799.3 | H28: 46504664 | I28: =G28-H28 -> -622864.7 | J28: =IF(H28=0,"",I28/H28) -> -0.01339359639 | K28: 139514000
A29: Water Services Infrastructure Grant | C29: 18656017 | D29: 17968000 | E29: 17968000 | F29: 0 | G29: 6841576.09 | H29: 5989332 | I29: =G29-H29 -> 852244.09 | J29: =IF(H29=0,"",I29/H29) -> 0.1422936798 | K29: 17968000
A30: =A16 -> Provincial Government: | C30: =SUM(C31:C31) -> 0 | D30: =SUM(D31:D31) -> 0 | E30: =SUM(E31:E31) -> 0 | F30: =SUM(F31:F31) -> 0 | G30: =SUM(G31:G31) -> 0 | H30: =SUM(H31:H31) -> 0 | I30: =G30-H30 -> 0 | J30: =IF(H30=0,"",I30/H30) ->  | K30: =SUM(K31:K31) -> 0
A31: Infrastructure Grant | C31: 0 | D31: 0 | E31: 0 | F31: 0 | G31: 0 | H31: 0 | I31: =G31-H31 -> 0 | J31: =IF(H31=0,"",I31/H31) ->  | K31: 0
A32: =A19 -> District Municipality: | C32: =SUM(C33:C33) -> 0 | D32: =SUM(D33:D33) -> 0 | E32: =SUM(E33:E33) -> 0 | F32: =SUM(F33:F33) -> 0 | G32: =SUM(G33:G33) -> 0 | H32: =SUM(H33:H33) -> 0 | I32: =G32-H32 -> 0 | J32: =IF(I32=0,"",I32/H32) ->  | K32: =SUM(K33:K33) -> 0
A33: [insert description] | I33: 0
A34: =A21 -> Other grant providers: | C34: =SUM(C35:C36) -> 0 | D34: =SUM(D35:D36) -> 0 | E34: =SUM(E35:E36) -> 0 | F34: =SUM(F35:F36) -> 0 | G34: =SUM(G35:G36) -> 0 | H34: =SUM(H35:H36) -> 0 | I34: =G34-H34 -> 0 | J34: =IF(H34=0,"",I34/H34) ->  | K34: =SUM(K35:K36) -> 0
A35: [insert description] | I35: =G35-H35 -> 0
A36: Unspecified | C36: 0 | D36: 0 | E36: 0 | F36: 0 | G36: 0 | H36: 0 | I36: =G36-H36 -> 0 | J36: =IF(H36=0,"",I36/H36) ->  | K36: 0
A37: Total Capital Transfers and Grants | B37: 5 | C37: =C26+C30+C32+C34 -> 191831071.4 | D37: =D26+D30+D32+D34 -> 183574000 | E37: =E26+E30+E32+E34 -> 183574000 | F37: =F26+F30+F32+F34 -> 30526852 | G37: =G26+G30+G32+G34 -> 62188778.39 | H37: =H26+H30+H32+H34 -> 61191328 | I37: =I26+I30+I32+I34 -> 997450.39 | J37: 0.01630051876 | K37: =K26+K30+K32+K34 -> 183574000
A39: TOTAL RECEIPTS OF TRANSFERS & GRANTS | B39: 5 | C39: =C23+C37 -> 883115069.1 | D39: =D23+D37 -> 921111000 | E39: =E23+E37 -> 921111000 | F39: =F23+F37 -> 31170332 | G39: =G23+G37 -> 369501660.8 | H39: =H23+H37 -> 307036980 | I39: =I23+I37 -> 62464680.75 | J39: 0.2034435095 | K39: =K23+K37 -> 921111000
A40: =head27a -> References
A41: 1. Each grant is listed by name as gazetted together with the name of the transferring department or municipality, donor or other organisation
A42: 2. Grant expenditure must be separately listed for each grant received
A43: 3. Replacement of RSC levies
A44: 4. Housing subsidies for housing where ownership transferred
A45: 5. Total recurrent/capital grants and subsidies must reconcile to the 'Financial Performance' Statement

Sheet SC8
A1: =muni& " - "&S71N& " - "&Head57 -> FS184 Matjhabeng - Supporting Table SC8 Monthly Budget Statement - councillor and staff benefits - M04 October
A2: Summary of Employee and Councillor remuneration | B2: =head27 -> Ref | C2: =Head1 -> 2023/24 | D2: =Head2 -> Budget Year 2024/25
C3: =Head5 -> Audited Outcome | D3: =Head6 -> Original Budget | E3: =Head7 -> Adjusted Budget | F3: =Head38 -> Monthly actual | G3: =Head39 -> YearTD actual | H3: =Head40 -> YearTD budget | I3: =Head41 -> YTD variance | J3: =Head41 -> YTD variance | K3: =Head8 -> Full Year Forecast
A4: R thousands | J4: %
B5: 1 | C5: A | D5: B | E5: C | K5: D
A6: Councillors (Political Office Bearers plus Other)
A7: Basic Salaries and Wages | C7: 4612383.26 | D7: 26884633 | E7: 26884633 | F7: 361758.11 | G7: 1447032.44 | H7: 8961560 | I7: =G7-H7 -> -7514527.56 | J7: =IF(I7=0,"",I7/H7) -> -0.838528957 | K7: 26884633
A8: Pension and UIF Contributions | C8: 96989.58 | D8: 930669 | E8: 930669 | F8: 8866.14 | G8: 35464.56 | H8: 310232 | I8: -274767.44 | J8: -0.8856837464 | K8: 930669
A9: Medical Aid Contributions | C9: 86400 | D9: 583939 | E9: 583939 | F9: 5760 | G9: 23040 | H9: 194648 | I9: -171608 | J9: -0.8816324853 | K9: 583939
A10: Motor Vehicle Allowance | C10: 1598590.6 | D10: 8987130 | E10: 8987130 | F10: 125461.36 | G10: 501845.44 | H10: 2995720 | I10: -2493874.56 | J10: -0.8324791903 | K10: 8987130
A11: Cellphone Allowance | C11: 3821359.63 | D11: 3762514 | E11: 3762514 | F11: 255600 | G11: 1026355.07 | H11: 1254184 | I11: -227828.93 | J11: -0.181655108 | K11: 3762514
A12: Housing Allowances | I12: 0
A13: Other benefits and allowances | C13: 0 | D13: 141967 | E13: 141967 | F13: 0 | G13: 0 | H13: 47324 | I13: -47324 | J13: -1 | K13: 141967
A14: Sub Total - Councillors | C14: =SUM(C7:C13) -> 10215723.07 | D14: 41290852 | E14: 41290852 | F14: 757445.61 | G14: 3033737.51 | H14: 13763668 | I14: -10729930.49 | J14: -0.7795836466 | K14: =SUM(K7:K13) -> 41290852
A15: % increase | B15: 4 | D15: =IF(D14=0,"",(D14/C14)-1) -> 3.041892259 | E15: =IF(E14=0,"",(E14/C14)-1) -> 3.041892259 | K15: =IF(K14=0,"",(K14/C14)-1) -> 3.041892259
A17: Senior Managers of the Municipality | B17: 3
A18: Basic Salaries and Wages | C18: 195459.24 | D18: 9575314 | E18: 9575314 | F18: 0 | G18: 0 | H18: 3191780 | I18: =G18-H18 -> -3191780 | J18: =IF(I18=0,"",I18/H18) -> -1 | K18: 9575314
A19: Pension and UIF Contributions | C19: 0 | D19: 0 | E19: 0 | F19: 0 | G19: 0 | H19: 0 | I19: 0 | K19: 0
A20: Medical Aid Contributions | C20: 6632.4 | D20: 148124 | E20: 148124 | F20: 0 | G20: 0 | H20: 49380 | I20: -49380 | J20: -1 | K20: 148124
A21: Overtime | I21: 0
A22: Performance Bonus | I22: 0
A23: Motor Vehicle Allowance | C23: 0 | D23: 1666118 | E23: 1666118 | F23: 0 | G23: 0 | H23: 555380 | I23: -555380 | J23: -1 | K23: 1666118
A24: Cellphone Allowance | I24: 0
A25: Housing Allowances | I25: 0
A26: Other benefits and allowances | I26: 0
A27: Payments in lieu of leave | I27: 0
A28: Long service awards | I28: 0
A29: Post-retirement benefit obligations | B29: 2 | I29: 0
A30: Entertainment | I30: =G30-H30 -> 0 | J30: =IF(I30=0,"",I30/H30) -> 
A31: Scarcity | I31: 0
A32: Acting and post related allowance | I32: 0
A33: In kind benefits | I33: 0
A34: Sub Total - Senior Managers of Municipality | C34: =SUM(C18:C33) -> 202091.64 | D34: 11389556 | E34: 11389556 | F34: 0 | G34: 0 | H34: 3796540 | I34: =G34-H34 -> -3796540 | J34: =IF(I34=0,"",I34/H34) -> -1 | K34: =SUM(K18:K33) -> 11389556
A35: % increase | B35: 4 | D35: =IF(D34=0,"",(D34/C34)-1) -> 55.35837286 | E35: =IF(E34=0,"",(E34/C34)-1) -> 55.35837286 | K35: =IF(K34=0,"",(K34/C34)-1) -> 55.35837286
A37: Other Municipal Staff
A38: Basic Salaries and Wages | C38: 530826074.7 | D38: 573351428 | E38: 573351428 | F38: 45681109.92 | G38: 192332933.1 | H38: 191117268 | I38: =G38-H38 -> 1215665.09 | J38: =IF(I38=0,"",I38/H38) -> 0.006360833339 | K38: 573351428
A39: Pension and UIF Contributions | C39: 96022766.66 | D39: 94720641 | E39: 94720641 | F39: 8213450.53 | G39: 32929800.52 | H39: 31573868 | I39: 1355932.52 | J39: 0.04294477066 | K39: 94720641
A40: Medical Aid Contributions | C40: 60064544.8 | D40: 70542216 | E40: 70542216 | F40: 6095912.4 | G40: 24346532 | H40: 23514200 | I40: 832332 | J40: 0.03539699416 | K40: 70542216
A41: Overtime | C41: 77608521.97 | D41: 44613550 | E41: 44613550 | F41: 7344362.8 | G41: 32215709.7 | H41: 14871276 | I41: 17344433.7 | J41: 1.166304337 | K41: 44613550
A42: Performance Bonus | C42: 41072280.34 | D42: 55977192 | E42: 55977192 | F42: 2034150.49 | G42: 13811003.09 | H42: 18659168 | I42: -4848164.91 | J42: -0.2598274966 | K42: 55977192
A43: Motor Vehicle Allowance | C43: 64583973.46 | D43: 56542772 | E43: 56542772 | F43: 5878496.17 | G43: 22547292.31 | H43: 18847700 | I43: 3699592.31 | J43: 0.1962887944 | K43: 56542772
A44: Cellphone Allowance | C44: 274065 | D44: 293566 | E44: 293566 | F44: 23375 | G44: 93973.42 | H44: 97900 | I44: -3926.58 | J44: -0.04010806946 | K44: 293566
A45: Housing Allowances | C45: 4831807.33 | D45: 5819672 | E45: 5819672 | F45: 415400.19 | G45: 1655453.76 | H45: 1940040 | I45: -284586.24 | J45: -0.1466909136 | K45: 5819672
A46: Other benefits and allowances | C46: 21475772.72 | D46: 23887870 | E46: 23887870 | F46: 2231378.85 | G46: 8075963.02 | H46: 7962920 | I46: 113043.02 | J46: 0.01419617678 | K46: 23887870
A47: Payments in lieu of leave | C47: -24088231.45 | D47: 22044533 | E47: 22044533 | F47: 1054350.96 | G47: 8603357.76 | H47: 7348300 | I47: 1255057.76 | J47: 0.1707956616 | K47: 22044533
A48: Long service awards | C48: 2070124.12 | D48: 6705706 | E48: 6705706 | F48: 303027.81 | G48: 3397630.81 | H48: 2235316 | I48: 1162314.81 | J48: 0.519977851 | K48: 6705706
A49: Post-retirement benefit obligations | B49: 2 | C49: 96881615.7 | D49: 5040524 | E49: 5040524 | F49: 950138.4 | G49: 3864353.2 | H49: 1680176 | I49: 2184177.2 | J49: 1.299969289 | K49: 5040524
A50: Entertainment | C50: 600 | D50: 794 | E50: 794 | F50: 50 | G50: 200 | H50: 268 | I50: -68 | J50: -0.2537313433 | K50: 794
A51: Scarcity | I51: 0
A52: Acting and post related allowance | C52: 20676684.24 | D52: 28746258 | E52: 28746258 | F52: 1705219.95 | G52: 8076691.6 | H52: 9582196 | I52: -1505504.4 | J52: -0.1571147574 | K52: 28746258
A53: In kind benefits | I53: 0
A54: Sub Total - Other Municipal Staff | C54: =SUM(C38:C53) -> 992300599.6 | D54: 988286722 | E54: 988286722 | F54: 81930423.47 | G54: 351950894.3 | H54: 329430596 | I54: 22520298.28 | J54: 0.06836128324 | K54: =SUM(K38:K53) -> 988286722
A55: % increase | B55: 4 | D55: =IF(D54=0,"",(D54/C54)-1) -> -0.004045021823 | E55: =IF(E54=0,"",(E54/C54)-1) -> -0.004045021823 | K55: =IF(K54=0,"",(K54/C54)-1) -> -0.004045021823
A56: Total Parent Municipality | C56: =C14+C34+C54 -> 1002718414 | D56: 1040967130 | E56: 1040967130 | F56: 82687869.08 | G56: 354984631.8 | H56: 346990804 | I56: =G56-H56 -> 7993827.79 | J56: =IF(I56=0,"",I56/H56) -> 0.02303757822 | K56: =K14+K34+K54 -> 1040967130
D57: =IF(D56=0,"",(D56/C56)-1) -> 0.03814502174 | E57: =IF(E56=0,"",(E56/C56)-1) -> 0.03814502174 | K57: =IF(K56=0,"",(K56/C56)-1) -> 0.03814502174
A58: Unpaid salary, allowances & benefits in arrears:
A60: Board Members of Entities
A61: Basic Salaries and Wages | I61: =G61-H61 -> 0 | J61: =IF(I61=0,"",I61/H61) -> 
A62: Pension and UIF Contributions | I62: 0
A63: Medical Aid Contributions | I63: 0
A64: Overtime | I64: 0
A65: Performance Bonus | I65: 0
A66: Motor Vehicle Allowance | I66: 0
A67: Cellphone Allowance | I67: 0
A68: Housing Allowances | I68: 0
A69: Other benefits and allowances | I69: 0
A70: Board Fees | B70: 5 | I70: 0
A71: Payments in lieu of leave | I71: 0
A72: Long service awards | I72: 0
A73: Post-retirement benefit obligations | I73: 0
A74: Entertainment | I74: =G74-H74 -> 0 | J74: =IF(I74=0,"",I74/H74) -> 
A75: Scarcity | I75: 0
A76: Acting and post related allowance | I76: 0
A77: In kind benefits | I77: 0
A78: Sub Total - Executive members Board | B78: 2 | C78: =SUM(C61:C77) -> 0 | D78: 0 | E78: 0 | F78: 0 | G78: 0 | H78: 0 | I78: =G78-H78 -> 0 | J78: =IF(I78=0,"",I78/H78) ->  | K78: =SUM(K61:K77) -> 0
A79: % increase | B79: 4 | D79: =IF(D78=0,"",(D78/C78)-1) ->  | E79: =IF(E78=0,"",(E78/C78)-1) ->  | K79: =IF(K78=0,"",(K78/C78)-1) -> 
A81: Senior Managers of Entities
A82: Basic Salaries and Wages | I82: =G82-H82 -> 0 | J82: =IF(I82=0,"",I82/H82) -> 
A83: Pension and UIF Contributions | I83: 0
A84: Medical Aid Contributions | I84: 0
A85: Overtime | I85: 0
A86: Performance Bonus | I86: 0
A87: Motor Vehicle Allowance | I87: 0
A88: Cellphone Allowance | I88: 0
A89: Housing Allowances | I89: 0
A90: Other benefits and allowances | I90: 0
A91: Payments in lieu of leave | I91: 0
A92: Long service awards | I92: 0
A93: Post-retirement benefit obligations | B93: 2 | I93: 0
A94: Entertainment | I94: =G94-H94 -> 0 | J94: =IF(I94=0,"",I94/H94) -> 
A95: Scarcity | I95: 0
A96: Acting and post related allowance | I96: 0
A97: In kind benefits | I97: 0
A98: Sub Total - Senior Managers of Entities | C98: =SUM(C82:C97) -> 0 | D98: 0 | E98: 0 | F98: 0 | G98: 0 | H98: 0 | I98: =G98-H98 -> 0 | J98: =IF(I98=0,"",I98/H98) ->  | K98: =SUM(K82:K97) -> 0
A99: % increase | B99: 4 | D99: =IF(D98=0,"",(D98/C98)-1) ->  | E99: =IF(E98=0,"",(E98/C98)-1) ->  | K99: =IF(K98=0,"",(K98/C98)-1) -> 
A101: Other Staff of Entities
A102: Basic Salaries and Wages | I102: =G102-H102 -> 0 | J102: =IF(I102=0,"",I102/H102) -> 
A103: Pension and UIF Contributions | I103: 0
A104: Medical Aid Contributions | I104: 0
A105: Overtime | I105: 0
A106: Performance Bonus | I106: 0
A107: Motor Vehicle Allowance | I107: 0
A108: Cellphone Allowance | I108: 0
A109: Housing Allowances | I109: 0
A110: Other benefits and allowances | I110: 0
A111: Payments in lieu of leave | I111: 0
A112: Long service awards | I112: 0
A113: Post-retirement benefit obligations | I113: 0
A114: Entertainment | I114: 0
A115: Scarcity | I115: 0
A116: Acting and post related allowance | I116: 0
A117: In kind benefits | I117: 0
A118: Sub Total - Other Staff of Entities | C118: =SUM(C102:C117) -> 0 | D118: 0 | E118: 0 | F118: 0 | G118: 0 | H118: 0 | I118: =G118-H118 -> 0 | J118: =IF(I118=0,"",I118/H118) ->  | K118: =SUM(K102:K117) -> 0
A119: % increase | B119: 4 | D119: =IF(D118=0,"",(D118/C118)-1) ->  | E119: =IF(E118=0,"",(E118/C118)-1) ->  | K119: =IF(K118=0,"",(K118/C118)-1) -> 
A120: Total Municipal Entities | C120: =C78+C98+C118 -> 0 | D120: 0 | E120: 0 | F120: 0 | G120: 0 | H120: 0 | I120: =G120-H120 -> 0 | J120: =IF(I120=0,"",I120/H120) ->  | K120: =K78+K98+K118 -> 0
A121: TOTAL SALARY, ALLOWANCES & BENEFITS | C121: =C56+C120 -> 1002718414 | D121: 1040967130 | E121: 1040967130 | F121: 82687869.08 | G121: 354984631.8 | H121: 346990804 | I121: =G121-H121 -> 7993827.79 | J121: =IF(I121=0,"",I121/H121) -> 0.02303757822 | K121: =K56+K120 -> 1040967130
A122: % increase | B122: 4 | D122: =IF(D121=0,"",(D121/C121)-1) -> 0.03814502174 | E122: =IF(E121=0,"",(E121/C121)-1) -> 0.03814502174 | K122: =IF(K121=0,"",(K121/C121)-1) -> 0.03814502174
A123: TOTAL MANAGERS AND STAFF | C123: =C34+C54+C98+C118 -> 992502691.2 | D123: 999676278 | E123: 999676278 | F123: 81930423.47 | G123: 351950894.3 | H123: 333227136 | I123: 18723758.28 | J123: =IF(I123=0,"",I123/H123) -> 0.05618917626 | K123: =K34+K54+K98+K118 -> 999676278
A124: =head27a -> References
A125: 1. Include 'Loans and advances' where applicable if any reportable amounts until phased compliance with s164 of MFMA achieved
A126: 2. If benefits in kind are provided (e.g. provision of living quarters) the full market value must be shown as the cost to the municipality
A127: 3. s57 of the Systems Act
A128: 4. B/A, C/A, D/A
A129: 5. Included in Contracted services
A130: Column Definitions:
A131: A. Audited actual 2022/23 (audited financial statements). If audited amounts unavailable, unaudited amounts must be provided with a note stating these are unaudited
A132: B. The original budget approved by council for the 2023/24 budget year.
A133: C. The budget for 2023/24 budget year as adjusted by council resolution in terms of section 28 of the MFMA.
A134: D. An estimate of final actual amounts (pre audit - 2006/07 budget year) at the time of preparing the budget for the 2007/08 budget year. This may differ from C.

Sheet SC7
A1: =muni& " - "&S71M& " - "&Head57 -> FS184 Matjhabeng - Supporting Table SC7(1) Monthly Budget Statement - transfers and grant expenditure - M04 October
A2: =desc -> Description | B2: =head27 -> Ref | C2: =Head1 -> 2023/24 | D2: =Head2 -> Budget Year 2024/25
C3: =Head5 -> Audited Outcome | D3: =Head6 -> Original Budget | E3: =Head7 -> Adjusted Budget | F3: =Head38 -> Monthly actual | G3: =Head39 -> YearTD actual | H3: =Head40 -> YearTD budget | I3: =Head41 -> YTD variance | J3: =Head41 -> YTD variance | K3: =Head8 -> Full Year Forecast
A4: R thousands | J4: %
A5: EXPENDITURE
A7: Operating expenditure of Transfers and Grants
A8: ='SC6'!A8 -> National Government: | C8: =SUM(C9:C15) -> 361299760.5 | D8: =SUM(D9:D15) -> 455688261 | E8: =SUM(E9:E15) -> 454731920 | F8: =SUM(F9:F15) -> 38790046.07 | G8: =SUM(G9:G15) -> 119286898 | H8: =SUM(H9:H15) -> 151612871.2 | I8: =SUM(I9:I15) -> -32325973.2 | J8: =IF(I8=0,"",I8/H8) -> -0.2132139108 | K8: =SUM(K9:K15) -> 454731920
I9: =G9-H9 -> 0
A10: Energy Efficiency and Demand Side Management Grant | C10: 0 | D10: 0 | E10: 0 | F10: 0 | G10: 0 | H10: 0 | I10: =G10-H10 -> 0 | J10: =IF(H10=0,"",I10/H10) ->  | K10: 0
A11: Equitable Share | C11: 347658373.7 | D11: 438942720 | E11: 440820045 | F11: 36697660.72 | G11: 113619423.8 | H11: 146929516.9 | I11: =G11-H11 -> -33310093.16 | J11: =IF(H11=0,"",I11/H11) -> -0.2267079744 | K11: 440820045
A12: Expanded Public Works Programme Integrated Grant | C12: 4661347.57 | D12: 3880660 | E12: 3480842 | F12: 1484665.09 | G12: 3204495.66 | H12: 1206332.95 | I12: =G12-H12 -> 1998162.71 | J12: =IF(H12=0,"",I12/H12) -> 1.656394041 | K12: 3480842
A13: Local Government Financial Management Grant | C13: 0 | D13: 2650000 | E13: 2650000 | F13: 0 | G13: 0 | H13: 883336 | I13: =G13-H13 -> -883336 | J13: =IF(H13=0,"",I13/H13) -> -1 | K13: 2650000
A14: Municipal Disaster Relief Grant | C14: 445435.55 | D14: 2650000 | E14: 216152 | F14: 131192 | G14: 216152 | H14: 72053.36 | I14: =G14-H14 -> 144098.64 | J14: =IF(H14=0,"",I14/H14) -> 1.999887861 | K14: 216152
A15: Municipal Infrastructure Grant | C15: 8534603.73 | D15: 7564881 | E15: 7564881 | F15: 476528.26 | G15: 2246826.61 | H15: 2521632 | I15: =G15-H15 -> -274805.39 | J15: =IF(H15=0,"",I15/H15) -> -0.1089791809 | K15: 7564881
A16: ='SC6'!A16 -> Provincial Government: | C16: =SUM(C17:C18) -> 0 | D16: =SUM(D17:D18) -> 418368 | E16: =SUM(E17:E18) -> 418368 | F16: =SUM(F17:F18) -> 100000 | G16: =SUM(G17:G18) -> 100000 | H16: =SUM(H17:H18) -> 139456 | I16: =SUM(I17:I18) -> -39456 | J16: -0.2829279486 | K16: =SUM(K17:K18) -> 418368
I17: =G17-H17 -> 0
A18: Capacity Building and Other Grants | C18: 0 | D18: 418368 | E18: 418368 | F18: 100000 | G18: 100000 | H18: 139456 | I18: =G18-H18 -> -39456 | J18: =IF(H18=0,"",I18/H18) -> -0.2829279486 | K18: 418368
A19: ='SC6'!A19 -> District Municipality: | C19: =SUM(C20:C20) -> 0 | D19: =SUM(D20:D20) -> 0 | E19: =SUM(E20:E20) -> 0 | F19: =SUM(F20:F20) -> 0 | G19: =SUM(G20:G20) -> 0 | H19: =SUM(H20:H20) -> 0 | I19: 0 | K19: =SUM(K20:K20) -> 0
I20: 0
A21: ='SC6'!A21 -> Other grant providers: | C21: =SUM(C22:C22) -> 0 | D21: =SUM(D22:D22) -> 0 | E21: =SUM(E22:E22) -> 0 | F21: =SUM(F22:F22) -> 0 | G21: =SUM(G22:G22) -> 0 | H21: =SUM(H22:H22) -> 0 | I21: 0 | K21: =SUM(K22:K22) -> 0
I22: 0
A23: Total operating expenditure of Transfers and Grants: | C23: =C8+C16+C19+C21 -> 361299760.5 | D23: =D8+D16+D19+D21 -> 456106629 | E23: =E8+E16+E19+E21 -> 455150288 | F23: =F8+F16+F19+F21 -> 38890046.07 | G23: =G8+G16+G19+G21 -> 119386898 | H23: =H8+H16+H19+H21 -> 151752327.2 | I23: =I8+I16+I19+I21 -> -32365429.2 | J23: -0.213277976 | K23: =K8+K16+K19+K21 -> 455150288
A25: Capital expenditure of Transfers and Grants
A26: ='SC6'!A26 -> National Government: | C26: =SUM(C27:C29) -> 147102321.9 | D26: =SUM(D27:D29) -> 183574000 | E26: =SUM(E27:E29) -> 183574000 | F26: =SUM(F27:F29) -> 26268590.98 | G26: =SUM(G27:G29) -> 49406227.75 | H26: =SUM(H27:H29) -> 61191351.89 | I26: =SUM(I27:I29) -> -11785124.14 | J26: =IF(I26=0,"",I26/H26) -> -0.1925946033 | K26: =SUM(K27:K29) -> 183574000
A27: Integrated National Electrification Programme Grant | C27: 18807511.46 | D27: 26092000 | E27: 26092000 | F27: 4730828.76 | G27: 8230785.57 | H27: 8697336 | I27: =G27-H27 -> -466550.43 | J27: =IF(H27=0,"",I27/H27) -> -0.05364291204 | K27: 26092000
A28: Municipal Infrastructure Grant | C28: 120767347.2 | D28: 139514000 | E28: 139514000 | F28: 21537762.22 | G28: 39006964.18 | H28: 46504679.89 | I28: =G28-H28 -> -7497715.71 | J28: =IF(H28=0,"",I28/H28) -> -0.1612249719 | K28: 139514000
A29: Water Services Infrastructure Grant | C29: 7527463.27 | D29: 17968000 | E29: 17968000 | F29: 0 | G29: 2168478 | H29: 5989336 | I29: =G29-H29 -> -3820858 | J29: =IF(H29=0,"",I29/H29) -> -0.6379435049 | K29: 17968000
A30: ='SC6'!A30 -> Provincial Government: | C30: =SUM(C31:C31) -> 0 | D30: =SUM(D31:D31) -> 0 | E30: =SUM(E31:E31) -> 0 | F30: =SUM(F31:F31) -> 0 | G30: =SUM(G31:G31) -> 0 | H30: =SUM(H31:H31) -> 0 | I30: =G30-H30 -> 0 | K30: =SUM(K31:K31) -> 0
A31: Infrastructure Grant | C31: 0 | D31: 0 | E31: 0 | F31: 0 | G31: 0 | H31: 0 | I31: =G31-H31 -> 0 | J31: =IF(H31=0,"",I31/H31) ->  | K31: 0
A32: ='SC6'!A32 -> District Municipality: | C32: =SUM(C33:C33) -> 0 | D32: =SUM(D33:D33) -> 0 | E32: =SUM(E33:E33) -> 0 | F32: =SUM(F33:F33) -> 0 | G32: =SUM(G33:G33) -> 0 | H32: =SUM(H33:H33) -> 0 | I32: 0 | K32: =SUM(K33:K33) -> 0
I33: 0
A34: ='SC6'!A34 -> Other grant providers: | C34: =SUM(C35:C35) -> 0 | D34: =SUM(D35:D35) -> 0 | E34: =SUM(E35:E35) -> 0 | F34: =SUM(F35:F35) -> 0 | G34: =SUM(G35:G35) -> 0 | H34: =SUM(H35:H35) -> 0 | I34: 0 | K34: =SUM(K35:K35) -> 0
A35: Unspecified | C35: 0 | D35: 0 | E35: 0 | F35: 0 | G35: 0 | H35: 0 | I35: =G35-H35 -> 0 | J35: =IF(H35=0,"",I35/H35) ->  | K35: 0
A36: Total capital expenditure of Transfers and Grants | C36: =C26+C30+C32+C34 -> 147102321.9 | D36: =D26+D30+D32+D34 -> 183574000 | E36: =E26+E30+E32+E34 -> 183574000 | F36: =F26+F30+F32+F34 -> 26268590.98 | G36: =G26+G30+G32+G34 -> 49406227.75 | H36: =H26+H30+H32+H34 -> 61191351.89 | I36: =I26+I30+I32+I34 -> -11785124.14 | J36: =IF(I36=0,"",I36/H36) -> -0.1925946033 | K36: =K26+K30+K32+K34 -> 183574000
A38: TOTAL EXPENDITURE OF TRANSFERS AND GRANTS | C38: =C23+C36 -> 508402082.4 | D38: =D23+D36 -> 639680629 | E38: =E23+E36 -> 638724288 | F38: =F23+F36 -> 65158637.05 | G38: =G23+G36 -> 168793125.8 | H38: =H23+H36 -> 212943679.1 | I38: =I23+I36 -> -44150553.34 | J38: =IF(I38=0,"",I38/H38) -> -0.2073344159 | K38: =K23+K36 -> 638724288
A39: =head27a -> References

Sheet SC9
A1: =muni& " - "&S71O& " - "&Head57 -> FS184 Matjhabeng - Supporting Table SC9 Monthly Budget Statement - actuals and revised targets for cash receipts - M04 October
A2: =desc -> Description | B2: =head27 -> Ref | C2: =Head2 -> Budget Year 2024/25 | O2: ='Template names'!B5 -> 2024/25 Medium Term Revenue & Expenditure Framework
C3: July | D3: August | E3: Sept | F3: October | G3: Nov | H3: Dec | I3: January | J3: Feb | K3: March | L3: April | M3: May | N3: June | O3: =Head9 -> Budget Year 2024/25 | P3: =Head10 -> Budget Year +1 2025/26 | Q3: =Head11 -> Budget Year +2 2026/27
A4: R thousands | B4: 1 | C4: Outcome | D4: Outcome | E4: Outcome | F4: Outcome | G4: Budget | H4: Budget | I4: Budget | J4: Budget | K4: Budget | L4: Budget | M4: Budget | N4: Budget
A5: Cash Receipts By Source
A6: Property rates | C6: 13740222.95 | D6: 21839508.62 | E6: 20495452.09 | F6: 31587580.35 | G6: 41216034 | H6: 41216034 | I6: 41216034 | J6: 41216034 | K6: 41216034 | L6: 41216034 | M6: 41216034 | N6: =O6-SUM(C6:M6) -> 118417406 | O6: 494592408 | P6: 462938496 | Q6: 565521904
A7: Service charges - Electricity revenue | C7: 43505880.36 | D7: 60487484.44 | E7: 62026765.15 | F7: 67880781.02 | G7: 83914093.17 | H7: 83914093.17 | I7: 83914093.17 | J7: 83914093.17 | K7: 83914093.17 | L7: 83914093.17 | M7: 83914093.17 | N7: 185669554.8 | O7: 1006969118 | P7: 1324695812 | Q7: 1186889297
A8: Service charges - Water revenue | C8: 10672650.24 | D8: 9837871.8 | E8: 12616045.84 | F8: 15343888.26 | G8: 48941714.75 | H8: 48941714.75 | I8: 48941714.75 | J8: 48941714.75 | K8: 48941714.75 | L8: 48941714.75 | M8: 48941714.75 | N8: 196238117.6 | O8: 587300577 | P8: 461962102 | Q8: 461595322
A9: Service charges - Waste Water Management | C9: 3320098.67 | D9: 6633362.15 | E9: 4563176.75 | F9: 5723154.41 | G9: 19684698.33 | H9: 19684698.33 | I9: 19684698.33 | J9: 19684698.33 | K9: 19684698.33 | L9: 19684698.33 | M9: 19684698.33 | N9: 78183699.71 | O9: 236216380 | P9: 140416501 | Q9: 91765607
A10: Service charges - Waste Mangement | C10: 2350084.91 | D10: 3450710.45 | E10: 3195587.07 | F10: 3567199.29 | G10: 12768413.33 | H10: 12768413.33 | I10: 12768413.33 | J10: 12768413.33 | K10: 12768413.33 | L10: 12768413.33 | M10: 12768413.33 | N10: 51278484.97 | O10: 153220960 | P10: 93904948 | Q10: 112510151
N11: 0
A12: Rental of facilities and equipment | C12: 84026.01 | D12: 40034.43 | E12: 64742.34 | F12: 60938.68 | G12: 1742650.75 | H12: 1742650.75 | I12: 1742650.75 | J12: 1742650.75 | K12: 1742650.75 | L12: 1742650.75 | M12: 1742650.75 | N12: 8463512.29 | O12: 20911809 | P12: 23749840 | Q12: 21936488
A13: Interest earned - external investments | C13: 101873.84 | D13: 96871.27 | E13: 87342.04 | F13: 81548.88 | G13: 430198.67 | H13: 430198.67 | I13: 430198.67 | J13: 430198.67 | K13: 430198.67 | L13: 430198.67 | M13: 430198.67 | N13: 1783357.28 | O13: 5162384 | P13: 5394310 | Q13: 5415341
A14: Interest earned - outstanding debtors | C14: 0 | D14: 1353902.61 | E14: 1745684.92 | F14: 2356422.85 | G14: 0 | H14: 0 | I14: 0 | J14: 0 | K14: 0 | L14: 0 | M14: 0 | N14: -5456010.38 | O14: 0 | P14: 0 | Q14: 0
A15: Dividends received | C15: 0 | D15: 0 | E15: 31999.92 | F15: 0 | G15: 3328.5 | H15: 3328.5 | I15: 3328.5 | J15: 3328.5 | K15: 3328.5 | L15: 3328.5 | M15: 3328.5 | N15: -15357.42 | O15: 39942 | P15: 42338 | Q15: 41899
A16: Fines, penalties and forfeits | C16: 86808.4 | D16: 57158.8 | E16: 119029.9 | F16: 89045.02 | G16: 1665090.58 | H16: 1665090.58 | I16: 1665090.58 | J16: 1665090.58 | K16: 1665090.58 | L16: 1665090.58 | M16: 1665090.58 | N16: 7973410.82 | O16: 19981087 | P16: 0 | Q16: 0
A17: Licences and permits | C17: 27413.24 | D17: 30556.81 | E17: 28767.79 | F17: 111217.11 | G17: 19213.42 | H17: 19213.42 | I17: 19213.42 | J17: 19213.42 | K17: 19213.42 | L17: 19213.42 | M17: 19213.42 | N17: -101887.89 | O17: 230561 | P17: 244394 | Q17: 0
A18: Agency services | N18: 0
A19: Transfers and Subsidies - Operational | C19: 305449000 | D19: 2926086.95 | E19: 0 | F19: 4000 | G19: 61461416.67 | H19: 61461416.67 | I19: 61461416.67 | J19: 61461416.67 | K19: 61461416.67 | L19: 61461416.67 | M19: 61461416.67 | N19: -1072003.64 | O19: 737537000 | P19: 783505382 | Q19: 773676313
A20: Other revenue | C20: -291948242.2 | D20: 15773964.91 | E20: -23326000.17 | F20: 31946579.35 | G20: 0 | H20: 0 | I20: 0 | J20: 0 | K20: 0 | L20: 0 | M20: 0 | N20: 267553698.1 | O20: 0 | P20: 553832797 | Q20: -3079630185
A21: Cash Receipts by Source | C21: =SUM(C6:C20) -> 87389816.42 | D21: =SUM(D6:D20) -> 122527513.2 | E21: 81648593.64 | F21: 158752355.2 | G21: 271846852.2 | H21: 271846852.2 | I21: 271846852.2 | J21: 271846852.2 | K21: 271846852.2 | L21: 271846852.2 | M21: 271846852.2 | N21: 908915982.3 | O21: 3262162226 | P21: 3850686920 | Q21: 139722137
A22: Other Cash Flows by Source | N22: =O22-SUM(C22:M22) -> 0
A23: Transfers and subsidies - capital (monetary allocations) (National / Provincial and District) | C23: 9074782.61 | D23: 10434782.61 | E23: 4562608.7 | F23: 22277391.3 | G23: 15297833.33 | H23: 15297833.33 | I23: 15297833.33 | J23: 15297833.33 | K23: 15297833.33 | L23: 15297833.33 | M23: 15297833.33 | N23: 30139601.47 | O23: 183574000 | P23: 286421370 | Q23: 192569126
A24: Transfers and subsidies - capital (monetary allocations) (Nat / Prov Departm Agencies, Households, Non-profit Institutions, Private Enterprises, Public Corporatons, Higher Educ Institutions) | N24: 0
A25: Proceeds on Disposal of Fixed and Intangible Assets | C25: 0 | D25: 0 | E25: 0 | F25: 0 | G25: 5300000 | H25: 5300000 | I25: 5300000 | J25: 5300000 | K25: 5300000 | L25: 5300000 | M25: 5300000 | N25: 26500000 | O25: 63600000 | P25: 67416000 | Q25: 66716400
A26: Short term loans | N26: 0
A27: Borrowing long term/refinancing | N27: 0
A28: Increase (decrease) in consumer deposits | C28: 0 | D28: 0 | E28: 0 | F28: 0 | G28: -1148333.33 | H28: -1148333.33 | I28: -1148333.33 | J28: -1148333.33 | K28: -1148333.33 | L28: -1148333.33 | M28: -1148333.33 | N28: -5741666.69 | O28: -13780000 | P28: -45181076 | Q28: -14455220
A29: VAT Control (receipts) | N29: 0
A30: Decrease (increase) in non-current receivables | C30: 0 | D30: 0 | E30: 0 | F30: 0 | G30: -22900870 | H30: -22900870 | I30: -22900870 | J30: -22900870 | K30: -22900870 | L30: -22900870 | M30: -22900870 | N30: -114504340 | O30: -274810430 | P30: -291299056 | Q30: -288276141
A31: Decrease (increase) in non-current investments | C31: 0 | D31: 0 | E31: 0 | F31: 0 | G31: -41872 | H31: -41872 | I31: -41872 | J31: -41872 | K31: -41872 | L31: -41872 | M31: -41872 | N31: -209352 | O31: -502456 | P31: -495228 | Q31: -527076
A32: Total Cash Receipts by Source | C32: =SUM(C21:C31) -> 96464599.03 | D32: =SUM(D21:D31) -> 132962295.9 | E32: 86211202.34 | F32: 181029746.5 | G32: 268353610.2 | H32: 268353610.2 | I32: 268353610.2 | J32: 268353610.2 | K32: 268353610.2 | L32: 268353610.2 | M32: 268353610.2 | N32: 845100225.1 | O32: 3220243340 | P32: 3867548930 | Q32: 95749226
A33: Cash Payments by Type | N33: =O33-SUM(C33:M33) -> 0
A34: Employee related costs | C34: 0 | D34: 0 | E34: 0 | F34: 0 | G34: 83306356.41 | H34: 83306356.41 | I34: 83306356.41 | J34: 83306356.41 | K34: 83306356.41 | L34: 83306356.41 | M34: 83306356.41 | N34: 416531782.1 | O34: 999676277 | P34: 1114995863 | Q34: 1048660415
A35: Remuneration of councillors | C35: 0 | D35: 0 | E35: 0 | F35: 0 | G35: 3440904.5 | H35: 3440904.5 | I35: 3440904.5 | J35: 3440904.5 | K35: 3440904.5 | L35: 3440904.5 | M35: 3440904.5 | N35: 17204522.5 | O35: 41290854 | P35: 0 | Q35: 43314106
A36: Interest | C36: 0 | D36: 0 | E36: 0 | F36: 0 | G36: 16243078.17 | H36: 16243078.17 | I36: 16243078.17 | J36: 16243078.17 | K36: 16243078.17 | L36: 16243078.17 | M36: 16243078.17 | N36: 81215390.81 | O36: 194916938 | P36: 0 | Q36: 204467868
A37: Bulk purchases - Electricity | C37: 0 | D37: 0 | E37: 0 | F37: 0 | G37: 62721931.75 | H37: 62721931.75 | I37: 62721931.75 | J37: 62721931.75 | K37: 62721931.75 | L37: 62721931.75 | M37: 62721931.75 | N37: 313609658.8 | O37: 752663181 | P37: 750392503 | Q37: 789543677
A38: Acquisitions - water & other inventory | C38: 0 | D38: 123165 | E38: 0 | F38: 329935 | G38: 59652262.25 | H38: 59652262.25 | I38: 59652262.25 | J38: 59652262.25 | K38: 59652262.25 | L38: 59652262.25 | M38: 59652262.25 | N38: 297808211.2 | O38: 715827147 | P38: 877644382 | Q38: 0
A40: Contracted services | C40: -4928547.07 | D40: -12522839.39 | E40: -8016967.43 | F40: -26278190.98 | G40: 17924290.16 | H40: 17924290.16 | I40: 17924290.16 | J40: 17924290.16 | K40: 17924290.16 | L40: 17924290.16 | M40: 17924290.16 | N40: 141367995.8 | O40: 215091482 | P40: 0 | Q40: 28497693
A41: Transfers and subsidies - other municipalities | N41: 0
A42: Transfers and subsidies - other | N42: 0
A43: Other expenditure | C43: 300638050.8 | D43: -116123041.6 | E43: 167248786.2 | F43: 618006096.9 | G43: 37466304.83 | H43: 37466304.83 | I43: 37466304.83 | J43: 37466304.83 | K43: 37466304.83 | L43: 37466304.83 | M43: 37466304.83 | N43: -782438368.2 | O43: 449595658 | P43: 589596236 | Q43: 583477784
A44: Cash Payments by Type | B44: =SUM(B34:B43) -> 0 | C44: =SUM(C34:C43) -> 295709503.8 | D44: =SUM(D34:D43) -> -128522716 | E44: 159231818.8 | F44: 592057840.9 | G44: 280755128.1 | H44: 280755128.1 | I44: 280755128.1 | J44: 280755128.1 | K44: 280755128.1 | L44: 280755128.1 | M44: 280755128.1 | N44: 485299193 | O44: 3369061537 | P44: 3332628984 | Q44: 2697961543
A45: Other Cash Flows/Payments by Type
A46: Capital assets | C46: 4940779.17 | D46: 12948795.45 | E46: 9790837.13 | F46: 26303190.98 | G46: 16714499.98 | H46: 16714499.98 | I46: 16714499.98 | J46: 16714499.98 | K46: 16714499.98 | L46: 16714499.98 | M46: 16714499.98 | N46: =O46-SUM(C46:M46) -> 29588897.41 | O46: 200574000 | P46: 0 | Q46: 0
A47: Repayment of borrowing | N47: =O47-SUM(C47:M47) -> 0
A48: Other Cash Flows/Payments | C48: 0 | D48: 0 | E48: 0 | F48: 0 | G48: -9166666.67 | H48: -9166666.67 | I48: -9166666.67 | J48: -9166666.67 | K48: -9166666.67 | L48: -9166666.67 | M48: -9166666.67 | N48: =O48-SUM(C48:M48) -> -45833333.31 | O48: -110000000 | P48: 0 | Q48: 0
A49: Total Cash Payments by Type | B49: =SUM(B44:B48) -> 0 | C49: 300650282.9 | D49: -115573920.5 | E49: 169022655.9 | F49: 618361031.9 | G49: 288302961.4 | H49: 288302961.4 | I49: 288302961.4 | J49: 288302961.4 | K49: 288302961.4 | L49: 288302961.4 | M49: 288302961.4 | N49: 469054757.1 | O49: 3459635537 | P49: 3332628984 | Q49: 2697961543
A50: NET INCREASE/(DECREASE) IN CASH HELD | B50: =B32-B49 -> 0 | C50: -204185683.9 | D50: 248536216.4 | E50: -82811453.58 | F50: -437331285.4 | G50: -19949351.21 | H50: -19949351.21 | I50: -19949351.21 | J50: -19949351.21 | K50: -19949351.21 | L50: -19949351.21 | M50: -19949351.21 | N50: 376045468 | O50: -239392197 | P50: 534919946 | Q50: -2602212317
A51: Cash/cash equivalents at the month/year beginning: | C51: 44626739.04 | D51: =C52 -> -159558944.8 | E51: =D52 -> 88977271.5 | F51: 6165817.92 | G51: -431165467.4 | H51: -451114818.6 | I51: -471064169.9 | J51: -491013521.1 | K51: -510962872.3 | L51: -530912223.5 | M51: -550861574.7 | N51: -570810925.9 | O51: =C51 -> 44626739.04 | P51: =O52 -> -194765458 | Q51: =P52 -> 340154488
A52: Cash/cash equivalents at the month/year end: | C52: =C50+C51 -> -159558944.8 | D52: =D50+D51 -> 88977271.5 | E52: =E50+E51 -> 6165817.92 | F52: -431165467.4 | G52: -451114818.6 | H52: -471064169.9 | I52: -491013521.1 | J52: -510962872.3 | K52: -530912223.5 | L52: -550861574.7 | M52: -570810925.9 | N52: -194765458 | O52: =O50+O51 -> -194765458 | P52: =P50+P51 -> 340154488 | Q52: =Q50+Q51 -> -2262057829
A53: =head27a -> References
A54: 1. Replace 'budget' heading with adjusted budget, or 'outcome' only for month/s complete
A55: 2. Total of monthly amounts must always agree to the approved or adjusted budget
A56: 3. Amend 'cash-at-beginning' when prior year actual known (as part of the adjustments budget)
E61: =E44+E60 -> 159231818.8 | F61: 592057840.9 | G61: 280755128.1 | H61: 280755128.1 | I61: 280755128.1 | J61: 280755128.1 | K61: 280755128.1 | L61: 280755128.1 | N61: =N44+N60 -> 485299193 | O61: =O44+O60 -> 3369061537 | P61: =P44+P60 -> 3332628984
E62: =E50-E60 -> -82811453.58 | F62: -437331285.4 | G62: -19949351.21 | H62: -19949351.21 | I62: -19949351.21 | J62: -19949351.21 | K62: -19949351.21 | L62: -19949351.21 | M62: =M50-M60 -> -19949351.21 | N62: =N50-N60 -> 376045468 | O62: -239392197 | P62: 534919946

Sheet SC10
A1: =muni& " - "&S71P& " - "&Head57 -> FS184 Matjhabeng - NOT REQUIRED - municipality does not have entities or this is the parent municipality's budget - M04 October
A2: =desc -> Description | B2: =head27 -> Ref | C2: =Head1 -> 2023/24 | D2: =Head2 -> Budget Year 2024/25
C3: =Head5 -> Audited Outcome | D3: =Head6 -> Original Budget | E3: =Head7 -> Adjusted Budget | F3: =Head38 -> Monthly actual | G3: =Head39 -> YearTD actual | H3: =Head40 -> YearTD budget | I3: =Head41 -> YTD variance | J3: =Head41 -> YTD variance | K3: =Head8 -> Full Year Forecast
A4: R thousands | B4: 1 | J4: %
A5: Revenue
A6: Exchange Revenue
A7: Service charges - Electricity | I7: =G7-H7 -> 0 | J7: =IF(I7=0,"",I7/H7) -> 
A8: Service charges - Water | I8: 0
A9: Service charges - Waste Water Management | I9: 0
A10: Service charges - Waste management | I10: 0
A11: Sale of Goods and Rendering of Services | I11: =G11-H11 -> 0 | J11: =IF(I11=0,"",I11/H11) -> 
A12: Agency services | I12: 0
A13: Interest | I13: 0
A14: Interest earned from Receivables | I14: 0
A15: Interest earned from Current and Non Current Assets
A16: Dividends | I16: 0
A17: Rent on Land | I17: 0
A18: Rental from Fixed Assets | I18: 0
A19: Licence and permits | I19: 0
A20: Operational Revenue | I20: 0
A21: Non-Exchange Revenue | I21: 0
A22: Property rates
A23: Surcharges and Taxes
A24: Fines, penalties and forfeits | I24: 0
A25: Licences or permits
A26: Transfer and subsidies - Operational
A27: Interest
A28: Fuel Levy
A29: Operational Revenue
A30: Gains on disposal of Assets
A31: Other Gains
A32: Discontinued Operations
A33: Total Revenue (excluding capital transfers and contributions) | C33: =SUM(C7:C20)+SUM(C22:C32) -> 0 | D33: =SUM(D7:D20)+SUM(D22:D32) -> 0 | E33: 0 | F33: =SUM(F7:F20)+SUM(F22:F32) -> 0 | G33: =SUM(G7:G20)+SUM(G22:G32) -> 0 | H33: =SUM(H7:H20)+SUM(H22:H32) -> 0 | I33: =G33-H33 -> 0 | K33: =SUM(K7:K20)+SUM(K22:K32) -> 0
A34: Expenditure By Type
A35: Employee related costs | I35: =G35-H35 -> 0 | J35: =IF(I35=0,"",I35/H35) -> 
A36: Remuneration of councillors | I36: 0
A37: Bulk purchases - electricity | I37: 0
A38: Inventory consumed | I38: 0
A39: Debt impairment | I39: 0
A40: Depreciation and amortisation | I40: 0
A41: Interest | I41: 0
A42: Contracted services | I42: 0
A43: Transfers and subsidies | I43: 0
A44: Irrecoverable debts written off | I44: 0
A45: Operational costs | I45: 0
A46: Losses on disposal of Assets
A47: Other Losses
A48: Total Expenditure | C48: =SUM(C35:C47) -> 0 | D48: =SUM(D35:D47) -> 0 | E48: 0 | F48: 0 | G48: 0 | H48: 0 | I48: 0 | K48: =SUM(K35:K47) -> 0
A49: Surplus/(Deficit) | C49: =C33-C48 -> 0 | D49: 0 | E49: 0 | F49: 0 | G49: 0 | H49: 0 | I49: 0 | K49: =K33-K48 -> 0
A50: Transfers and subsidies - capital (monetary allocations) | I50: 0
A51: Transfers and subsidies - capital (in-kind) | I51: 0
A52: Surplus/(Deficit) after capital transfers & contributions | C52: =C49+SUM(C50:C51) -> 0 | D52: 0 | E52: 0 | F52: 0 | G52: 0 | H52: 0 | I52: 0 | K52: =K49+SUM(K50:K51) -> 0
A53: Income Tax | I53: 0
A54: Surplus/(Deficit) after income tax | C54: =C52-C53 -> 0 | D54: 0 | E54: 0 | F54: 0 | G54: 0 | H54: 0 | I54: 0 | K54: =K52-K53 -> 0
A55: =head27a -> References
A56: 1. Votes (consolidated) are revenue sources and expenditure type

Sheet SC11
A1: =muni& " - "&S71Q& " - "&Head57 -> FS184 Matjhabeng - NOT REQUIRED - municipality does not have entities or this is the parent municipality's budget - M04 October
A2: =desc -> Description | B2: =head27 -> Ref | C2: =Head1 -> 2023/24 | D2: =Head2 -> Budget Year 2024/25
C3: =Head5 -> Audited Outcome | D3: =Head6 -> Original Budget | E3: =Head7 -> Adjusted Budget | F3: =Head38 -> Monthly actual | G3: =Head39 -> YearTD actual | H3: =Head40 -> YearTD budget | I3: =Head41 -> YTD variance | J3: =Head41 -> YTD variance | K3: =Head8 -> Full Year Forecast
A4: R thousands | J4: %
A5: Revenue By Municipal Entity
A6: Insert name of municipal entity | I6: =G6-H6 -> 0 | J6: =IF(I6=0,"",I6/H6) -> 
I7: 0 | J7: =IF(I7=0,"",I7/H7) -> 
I8: 0
I9: 0
I10: 0
I11: 0
I12: 0
I13: 0
I14: 0
I15: 0
A16: Total Operating Revenue | B16: 1 | C16: =SUM(C6:C15) -> 0 | D16: 0 | E16: 0 | F16: 0 | G16: 0 | H16: 0 | I16: 0 | K16: =SUM(K6:K15) -> 0
A18: Expenditure By Municipal Entity
A19: =A6 -> Insert name of municipal entity | I19: 0 | J19: =IF(I19=0,"",I19/H19) -> 
A20: =IF(A7="","",A7) ->  | I20: 0
A21: =IF(A8="","",A8) ->  | I21: 0
I22: 0
I23: 0
I24: 0
I25: 0
I26: 0
I27: 0
I28: 0
A29: Total Operating Expenditure | B29: 2 | C29: =SUM(C19:C28) -> 0 | D29: 0 | E29: 0 | F29: 0 | G29: 0 | H29: 0 | I29: 0 | K29: =SUM(K19:K28) -> 0
A31: =Head42 -> Surplus/ (Deficit) for the yr/period | C31: =C16-C29 -> 0 | D31: =D16-D29 -> 0 | E31: 0 | F31: 0 | G31: 0 | H31: 0 | I31: =I16+I29 -> 0 | K31: 0
A32: Capital Expenditure By Municipal Entity
A33: =$A$6 -> Insert name of municipal entity | I33: 0
A34: =IF(A7="","",A7) ->  | I34: 0
A35: =IF(A8="","",A8) ->  | I35: 0
I36: 0
I37: 0
I38: 0
I39: 0
I40: 0
I41: 0
A43: Total Capital Expenditure | B43: 3 | C43: =SUM(C32:C42) -> 0 | D43: =SUM(D32:D42) -> 0 | E43: 0 | F43: 0 | G43: 0 | H43: =SUM(H32:H42) -> 0 | I43: =G43-H43 -> 0 | K43: 0
A44: =head27a -> References
A45: 1. Must reconcile to the sum of all municipal entity monthly revenue reports
A46: 2. Must reconcile to the sum of all municipal entity monthly expenditure reports
A47: 3. YTD = Year to date; FAV - favourable variance or unfavourable variance
A48: 4. Material variances to be explained
A49: 5. Insert additional 'Adjustment' Budget column for each Adjustment made by an entity

Sheet SC12
A1: =muni& " - "&S71R& " - "&Head57 -> FS184 Matjhabeng - Supporting Table SC12 Monthly Budget Statement - capital expenditure trend - M04 October
A2: Month | B2: =Head1 -> 2023/24 | C2: =Head2 -> Budget Year 2024/25
B3: =Head5 -> Audited Outcome | C3: =Head6 -> Original Budget | D3: =Head7 -> Adjusted Budget | E3: =Head38 -> Monthly actual | F3: =Head39 -> YearTD actual | G3: =Head40 -> YearTD budget | H3: =Head41 -> YTD variance | I3: =Head41 -> YTD variance | J3: % spend of Original Budget
A4: R thousands | I4: %
A5: Monthly expenditure performance trend
A6: July | B6: 8925751.3 | C6: 16803912.21 | D6: 16803912.21 | E6: 4940779.17 | F6: =IF(E6>0,E6,0) -> 4940779.17 | G6: =IF(D6>0,D6,C6) -> 16803912.21 | H6: =IF(F6="",0,G6-F6) -> 11863133.04 | I6: =IF(F6="","",IF(H6=0,"",H6/G6)) -> 0.7059744714 | J6: =IF(F6="","",F6/$C$18) -> 0.02415650155
A7: August | B7: 9696220.25 | C7: 16885577.36 | D7: 16885577.36 | E7: 12948795.45 | F7: =IF(E7>0,E7,0) -> 12948795.45 | G7: =IF(D7>0,D7+D6,C7+C6) -> 33689489.57 | H7: 20740694.12 | I7: 0.6156428721 | J7: 0.06330936612
A8: September | B8: 17371638.14 | C8: 16889037.36 | D8: 16889037.36 | E8: 9790837.13 | F8: =IF(E8>0,E8,0) -> 9790837.13 | G8: =IF(D8>0,D8+G7,C8+G7) -> 50578526.93 | H8: 40787689.8 | I8: 0.806423047 | J8: 0.04786944816
A9: October | B9: 20143324.37 | C9: 17105958.01 | D9: 17105958.01 | E9: 26303190.98 | F9: =IF(E9>0,E9,0) -> 26303190.98 | G9: =IF(D9>0,D9+G8,C9+G8) -> 67684484.94 | H9: 41381293.96 | I9: 0.6113852236 | J9: 0.1286017958
A10: November | B10: 18307304.98 | C10: 17105958.01 | D10: 17105958.01 | E10: 0 | F10: =IF(E10>0,E10,0) -> 0 | G10: 84790442.95 | H10: 84790442.95 | I10: 1 | J10: 0
A11: December | B11: 15588105.19 | C11: 17105958.01 | D11: 17105958.01 | E11: 0 | F11: =IF(E11>0,E11,0) -> 0 | G11: 101896401 | H11: 101896401 | I11: 1 | J11: 0
A12: January | B12: 2376358.7 | C12: 17105958.01 | D12: 17105958.01 | E12: 0 | F12: =IF(E12>0,E12,0) -> 0 | G12: 119002359 | H12: 119002359 | I12: 1 | J12: 0
A13: February | B13: 1992326.41 | C13: 17105958.01 | D13: 17105958.01 | E13: 0 | F13: =IF(E13>0,E13,0) -> 0 | G13: 136108317 | H13: 136108317 | I13: 1 | J13: 0
A14: March | B14: 11774920.12 | C14: 17105958.01 | D14: 17105958.01 | E14: 0 | F14: =IF(E14>0,E14,0) -> 0 | G14: 153214275 | H14: 153214275 | I14: 1 | J14: 0
A15: April | B15: 6183390.19 | C15: 17105958.01 | D15: 17105958.01 | E15: 0 | F15: =IF(E15>0,E15,0) -> 0 | G15: 170320233 | H15: 170320233 | I15: 1 | J15: 0
A16: May | B16: 42266874.71 | C16: 17105958.01 | D16: 17105958.01 | E16: 0 | F16: =IF(E15>0,E15,0) -> 0 | G16: 187426191 | H16: 187426191 | I16: 1 | J16: 0
A17: June | B17: 20273570.67 | C17: 17105874.99 | D17: 17105874.99 | E17: 0 | F17: =IF(E17>0,E17,0) -> 0 | G17: 204532066 | H17: =IF(F17="",0,G17-F17) -> 204532066 | I17: =IF(F17="","",IF(H17=0,"",H17/G17)) -> 1 | J17: =IF(F17="","",F17/$C$18) -> 0
A18: Total Capital expenditure | B18: =SUM(B6:B17) -> 174899785 | C18: =SUM(C6:C17) -> 204532066 | D18: =SUM(D6:D17) -> 204532066 | E18: =SUM(E6:E17) -> 53983602.73

Sheet SC13a
A1: =muni& " - "&S71Sa& " - "&Head57 -> FS184 Matjhabeng - Supporting Table SC13a Monthly Budget Statement - capital expenditure on new assets by asset class - M04 October
A2: =desc -> Description | B2: =head27 -> Ref | C2: =Head1 -> 2023/24 | D2: =Head2 -> Budget Year 2024/25
C3: =Head5 -> Audited Outcome | D3: =Head6 -> Original Budget | E3: =Head7 -> Adjusted Budget | F3: =Head38 -> Monthly actual | G3: =Head39 -> YearTD actual | H3: =Head40 -> YearTD budget | I3: =Head41 -> YTD variance | J3: =Head41 -> YTD variance | K3: =Head8 -> Full Year Forecast
A4: R thousands | B4: 1 | J4: %
A5: Capital expenditure on new assets by Asset Class/Sub-class
A7: Infrastructure | C7: =C8+C13+C17+C27+C38+C45+C53+C63+C69 -> 109270060.9 | D7: 69703381 | E7: 104262002 | F7: 24182724.88 | G7: 45886621.4 | H7: 30298768.3 | I7: =H7-G7 -> -15587853.1 | J7: =IF(I7=0,"",I7/H7) -> -0.5144715107 | K7: =K8+K13+K17+K27+K38+K45+K53+K63+K69 -> 104262002
A8: Roads Infrastructure | C8: =SUM(C9:C12) -> 64774510.21 | D8: 0 | E8: 36754488 | F8: 19451896.12 | G8: 35018290.81 | H8: 7852924.26 | I8: -27165366.55 | J8: -3.459267612 | K8: =SUM(K9:K12) -> 36754488
A9: Roads | C9: 64774510.21 | D9: 0 | E9: 36754488 | F9: 19451896.12 | G9: 35018290.81 | H9: 7852924.26 | I9: -27165366.55 | J9: -3.459267612 | K9: 36754488
A10: Road Structures | I10: 0
A11: Road Furniture | I11: 0
A12: Capital Spares | I12: 0
A13: Storm water Infrastructure | C13: =SUM(C14:C16) -> 0 | D13: 979806 | E13: 979806 | F13: 0 | G13: 0 | H13: 326604 | I13: 326604 | J13: 1 | K13: =SUM(K14:K16) -> 979806
A14: Drainage Collection | I14: 0
A15: Storm water Conveyance | C15: 0 | D15: 979806 | E15: 979806 | F15: 0 | G15: 0 | H15: 326604 | I15: 326604 | J15: 1 | K15: 979806
A16: Attenuation | I16: 0
A17: Electrical Infrastructure | C17: =SUM(C18:C26) -> 18807511.46 | D17: 26092000 | E17: 26206386 | F17: 4730828.76 | G17: 8330250.94 | H17: 8735464.64 | I17: 405213.7 | J17: 0.04638719481 | K17: =SUM(K18:K26) -> 26206386
A18: Power Plants | I18: 0
A19: HV Substations | I19: 0
A20: HV Switching Station | I20: 0
A21: HV Transmission Conductors | I21: 0
A22: MV Substations | C22: 0 | D22: 0 | E22: 0 | F22: 0 | G22: 0 | H22: 0 | I22: 0 | K22: 0
A23: MV Switching Stations | I23: 0
A24: MV Networks | C24: 18807511.46 | D24: 26092000 | E24: 26092000 | F24: 4730828.76 | G24: 8230785.57 | H24: 8697336 | I24: 466550.43 | J24: 0.05364291204 | K24: 26092000
A25: LV Networks | C25: 0 | D25: 0 | E25: 114386 | F25: 0 | G25: 99465.37 | H25: 38128.64 | I25: -61336.73 | J25: -1.608678673 | K25: 114386
A26: Capital Spares | I26: 0
A27: Water Supply Infrastructure | C27: =SUM(C28:C37) -> 4548257.41 | D27: 0 | E27: 2918792 | F27: 0 | G27: 2538079.65 | H27: 583758.4 | I27: -1954321.25 | J27: -3.347825487 | K27: =SUM(K28:K37) -> 2918792
A28: Dams and Weirs | I28: 0
A29: Boreholes | C29: 843377.48 | D29: 0 | E29: 0 | F29: 0 | G29: 0 | H29: 0 | I29: 0 | K29: 0
A30: Reservoirs | I30: 0
A31: Pump Stations | I31: 0
A32: Water Treatment Works | I32: 0
A33: Bulk Mains | I33: 0
A34: Distribution | C34: 2190103.64 | D34: 0 | E34: 425042 | F34: 0 | G34: 2538079.69 | H34: 85008.4 | I34: -2453071.29 | J34: -28.8568105 | K34: 425042
A35: Distribution Points | I35: 0
A36: PRV Stations | I36: 0
A37: Capital Spares | C37: 1514776.29 | D37: 0 | E37: 2493750 | F37: 0 | G37: -0.04 | H37: 498750 | I37: 498750.04 | J37: 1.00000008 | K37: 2493750
A38: Sanitation Infrastructure | C38: =SUM(C39:C44) -> 21139781.84 | D38: 42631575 | E38: 37402530 | F38: 0 | G38: 0 | H38: 12800017 | I38: 12800017 | J38: 1 | K38: =SUM(K39:K44) -> 37402530
A39: Pump Station | C39: 0 | D39: 15044981 | E39: 15044981 | F39: 0 | G39: 0 | H39: 5014996 | I39: 5014996 | J39: 1 | K39: 15044981
A40: Reticulation | C40: 14374111.15 | D40: 17968000 | E40: 17968000 | F40: 0 | G40: 0 | H40: 5989336 | I40: =H40-G40 -> 5989336 | J40: =IF(I40=0,"",I40/H40) -> 1 | K40: 17968000
A41: Waste Water Treatment Works | C41: 6765670.69 | D41: 9618594 | E41: 4389549 | F41: 0 | G41: 0 | H41: 1795685 | I41: =H41-G41 -> 1795685 | J41: =IF(I41=0,"",I41/H41) -> 1 | K41: 4389549
A42: Outfall Sewers | C42: 0 | D42: 0 | E42: 0 | F42: 0 | G42: 0 | H42: 0 | I42: =H42-G42 -> 0 | J42: =IF(I42=0,"",I42/H42) ->  | K42: 0
A43: Toilet Facilities | I43: 0
A44: Capital Spares | I44: 0
A45: Solid Waste Infrastructure | C45: =SUM(C46:C52) -> 0 | D45: 0 | E45: 0 | F45: 0 | G45: 0 | H45: 0 | I45: 0 | K45: =SUM(K46:K52) -> 0
A46: Landfill Sites | C46: 0 | D46: 0 | E46: 0 | F46: 0 | G46: 0 | H46: 0 | I46: 0 | K46: 0
A47: Waste Transfer Stations | I47: 0
A48: Waste Processing Facilities | I48: =H48-G48 -> 0 | J48: =IF(I48=0,"",I48/H48) -> 
A49: Waste Drop-off Points | I49: 0
A50: Waste Separation Facilities | I50: 0
A51: Electricity Generation Facilities | I51: 0
A52: Capital Spares | I52: 0
A53: Rail Infrastructure | C53: =SUM(C54:C62) -> 0 | D53: 0 | E53: 0 | F53: 0 | G53: 0 | H53: 0 | I53: 0 | K53: =SUM(K54:K62) -> 0
A54: Rail Lines | I54: 0
A55: Rail Structures | I55: 0
A56: Rail Furniture | I56: 0
A57: Drainage Collection | I57: 0
A58: Storm water Conveyance | I58: 0
A59: Attenuation | I59: 0
A60: MV Substations | I60: 0
A61: LV Networks | I61: 0
A62: Capital Spares | I62: 0
A63: Coastal Infrastructure | C63: =SUM(C64:C68) -> 0 | D63: 0 | E63: 0 | F63: 0 | G63: 0 | H63: 0 | I63: 0 | K63: =SUM(K64:K68) -> 0
A64: Sand Pumps | I64: 0
A65: Piers | I65: 0
A66: Revetments | I66: 0
A67: Promenades | I67: 0
A68: Capital Spares | I68: 0
A69: Information and Communication Infrastructure | C69: =SUM(C70:C73) -> 0 | D69: 0 | E69: 0 | F69: 0 | G69: 0 | H69: 0 | I69: =H69-G69 -> 0 | K69: =SUM(K70:K73) -> 0
A70: Data Centres | I70: =H70-G70 -> 0
A71: Core Layers | I71: =H71-G71 -> 0 | J71: =IF(I71=0,"",I71/H71) -> 
A72: Distribution Layers | I72: =H72-G72 -> 0
A73: Capital Spares | I73: =H73-G73 -> 0
A75: Community Assets | C75: =+C76+C99 -> 3395574.43 | D75: 3527413 | E75: 7117246 | F75: 2085866.1 | G75: 3276952.56 | H75: 1574678.33 | I75: =H75-G75 -> -1702274.23 | J75: -1.081029819 | K75: =+K76+K99 -> 7117246
A76: Community Facilities | C76: =SUM(C77:C98) -> 0 | D76: 0 | E76: 3589833 | F76: 2085866.1 | G76: 3276952.56 | H76: 398870.33 | I76: =H76-G76 -> -2878082.23 | J76: -7.215583646 | K76: =SUM(K77:K98) -> 3589833
A77: Halls | I77: 0
A78: Centres | C78: 0 | D78: 0 | E78: 3589833 | F78: 2085866.1 | G78: 3276952.56 | H78: 398870.33 | I78: -2878082.23 | J78: -7.215583646 | K78: 3589833
A79: Crèches | I79: 0
A80: Clinics/Care Centres | I80: 0
A81: Fire/Ambulance Stations | I81: 0
A82: Testing Stations | I82: 0
A83: Museums | I83: 0
A84: Galleries | I84: 0
A85: Theatres | I85: 0
A86: Libraries | I86: 0
A87: Cemeteries/Crematoria | C87: 0 | D87: 0 | E87: 0 | F87: 0 | G87: 0 | H87: 0 | I87: 0 | K87: 0
A88: Police | I88: 0
A89: Purls | I89: 0
A90: Public Open Space | I90: 0
A91: Nature Reserves | I91: 0
A92: Public Ablution Facilities | I92: 0
A93: Markets | I93: 0
A94: Stalls | I94: 0
A95: Abattoirs | I95: 0
A96: Airports | I96: 0
A97: Taxi Ranks/Bus Terminals | C97: 0 | D97: 0 | E97: 0 | F97: 0 | G97: 0 | H97: 0 | I97: 0 | K97: 0
A98: Capital Spares | I98: 0
A99: Sport and Recreation Facilities | C99: =SUM(C100:C102) -> 3395574.43 | D99: 3527413 | E99: 3527413 | F99: 0 | G99: 0 | H99: 1175808 | I99: 1175808 | J99: 1 | K99: =SUM(K100:K102) -> 3527413
A100: Indoor Facilities | C100: 3395574.43 | D100: 3527413 | E100: 3527413 | F100: 0 | G100: 0 | H100: 1175808 | I100: 1175808 | J100: 1 | K100: 3527413
A101: Outdoor Facilities | C101: 0 | D101: 0 | E101: 0 | F101: 0 | G101: 0 | H101: 0 | I101: 0 | K101: 0
A102: Capital Spares | I102: 0
A103: Heritage assets | C103: =SUM(C104:C108) -> 0 | D103: 0 | E103: 0 | F103: 0 | G103: 0 | H103: 0 | I103: 0 | K103: =SUM(K104:K108) -> 0
A104: Monuments | I104: 0
A105: Historic Buildings | I105: 0
A106: Works of Art | I106: 0
A107: Conservation Areas | I107: 0
A108: Other Heritage | I108: 0
I109: 0
A110: Investment properties | C110: =+C111+C114 -> 0 | D110: 0 | E110: 0 | F110: 0 | G110: 0 | H110: 0 | I110: 0 | K110: =+K111+K114 -> 0
A111: Revenue Generating | C111: =SUM(C112:C113) -> 0 | D111: 0 | E111: 0 | F111: 0 | G111: 0 | H111: 0 | I111: 0 | K111: =SUM(K112:K113) -> 0
A112: Improved Property | I112: 0
A113: Unimproved Property | I113: 0
A114: Non-revenue Generating | C114: =SUM(C115:C116) -> 0 | D114: 0 | E114: 0 | F114: 0 | G114: 0 | H114: 0 | I114: 0 | K114: =SUM(K115:K116) -> 0
A115: Improved Property | I115: 0
A116: Unimproved Property | I116: 0
A117: Other assets | C117: =+C118+C130 -> 0 | D117: 0 | E117: 0 | F117: 0 | G117: 0 | H117: 0 | I117: 0 | K117: =+K118+K130 -> 0
A118: Operational Buildings | C118: =SUM(C119:C129) -> 0 | D118: 0 | E118: 0 | F118: 0 | G118: 0 | H118: 0 | I118: 0 | K118: =SUM(K119:K129) -> 0
A119: Municipal Offices | I119: 0
A120: Pay/Enquiry Points | I120: 0
A121: Building Plan Offices | I121: 0
A122: Workshops | I122: 0
A123: Yards | I123: 0
A124: Stores | I124: 0
A125: Laboratories | I125: 0
A126: Training Centres | I126: 0
A127: Manufacturing Plant | I127: 0
A128: Depots | I128: 0
A129: Capital Spares | I129: 0
A130: Housing | C130: =SUM(C131:C133) -> 0 | D130: 0 | E130: 0 | F130: 0 | G130: 0 | H130: 0 | I130: 0 | K130: =SUM(K131:K133) -> 0
A131: Staff Housing | I131: 0
A132: Social Housing | I132: 0
A133: Capital Spares | I133: 0
A135: Biological or Cultivated Assets | C135: =SUM(C136:C136) -> 0 | D135: 0 | E135: 0 | F135: 0 | G135: 0 | H135: 0 | I135: =H135-G135 -> 0 | J135: =IF(I135=0,"",I135/H135) ->  | K135: =SUM(K136) -> 0
A136: Biological or Cultivated Assets | I136: =H136-G136 -> 0
A138: Intangible Assets | C138: =SUM(C139:C140) -> 0 | D138: 0 | E138: 0 | F138: 0 | G138: 0 | H138: 0 | I138: =H138-G138 -> 0 | K138: =SUM(K139:K140) -> 0
A139: Servitudes | I139: 0
A140: Licences and Rights | C140: =SUM(C141:C146) -> 0 | D140: 0 | E140: 0 | F140: 0 | G140: 0 | H140: 0 | I140: 0 | K140: =SUM(K141:K146) -> 0
A141: Water Rights | I141: 0
A142: Effluent Licenses | I142: 0
A143: Solid Waste Licenses | I143: 0
A144: Computer Software and Applications | I144: 0
A145: Load Settlement Software Applications | I145: 0
A146: Unspecified | I146: 0
A148: Computer Equipment | C148: =SUM(C149:C149) -> 860291.03 | D148: 0 | E148: 592691 | F148: 0 | G148: 74600.62 | H148: 197563.56 | I148: =H148-G148 -> 122962.94 | J148: =IF(I148=0,"",I148/H148) -> 0.6223968631 | K148: =SUM(K149) -> 592691
A149: Computer Equipment | C149: 860291.03 | D149: 0 | E149: 592691 | F149: 0 | G149: 74600.62 | H149: 197563.56 | I149: =H149-G149 -> 122962.94 | J149: =IF(I149=0,"",I149/H149) -> 0.6223968631 | K149: 592691
A151: Furniture and Office Equipment | C151: =SUM(C152:C152) -> 490398.17 | D151: 0 | E151: 144972 | F151: 34600 | G151: 64799 | H151: 41880.35 | I151: =H151-G151 -> -22918.65 | J151: =IF(I151=0,"",I151/H151) -> -0.5472411286 | K151: =SUM(K152) -> 144972
A152: Furniture and Office Equipment | C152: 490398.17 | D152: 0 | E152: 144972 | F152: 34600 | G152: 64799 | H152: 41880.35 | I152: =H152-G152 -> -22918.65 | J152: =IF(I152=0,"",I152/H152) -> -0.5472411286 | K152: 144972
J153: =IF(I153=0,"",I153/H153) -> 
A154: Machinery and Equipment | C154: =SUM(C155:C155) -> 6139760.73 | D154: 7000000 | E154: 10220403 | F154: 0 | G154: 1368153 | H154: 2920353.14 | I154: =H154-G154 -> 1552200.14 | J154: =IF(I154=0,"",I154/H154) -> 0.5315111103 | K154: =SUM(K155) -> 10220403
A155: Machinery and Equipment | C155: 6139760.73 | D155: 7000000 | E155: 10220403 | F155: 0 | G155: 1368153 | H155: 2920353.14 | I155: =H155-G155 -> 1552200.14 | J155: =IF(I155=0,"",I155/H155) -> 0.5315111103 | K155: 10220403
A157: Transport Assets | C157: =SUM(C158:C158) -> 47083311 | D157: 16842373 | E157: 16842373 | F157: 0 | G157: 3069822.36 | H157: 5614128 | I157: =H157-G157 -> 2544305.64 | J157: =IF(I157=0,"",I157/H157) -> 0.4531969417 | K157: =SUM(K158) -> 16842373
A158: Transport Assets | C158: 47083311 | D158: 16842373 | E158: 16842373 | F158: 0 | G158: 3069822.36 | H158: 5614128 | I158: =H158-G158 -> 2544305.64 | J158: =IF(I158=0,"",I158/H158) -> 0.4531969417 | K158: 16842373
A160: Land | C160: =SUM(C161:C161) -> 0 | D160: 0 | E160: 0 | F160: 0 | G160: 0 | H160: 0 | I160: =H160-G160 -> 0 | J160: =IF(I160=0,"",I160/H160) ->  | K160: =SUM(K161) -> 0
A161: Land | C161: 0 | D161: 0 | E161: 0 | F161: 0 | G161: 0 | H161: 0 | I161: =H161-G161 -> 0 | J161: =IF(I161=0,"",I161/H161) ->  | K161: 0
A163: Zoo's, Marine and Non-biological Animals | C163: =SUM(C164:C164) -> 0 | D163: 0 | E163: 0 | F163: 0 | G163: 0 | H163: 0 | I163: =H163-G163 -> 0 | J163: =IF(I163=0,"",I163/H163) ->  | K163: =SUM(K164) -> 0
A164: Zoo's, Marine and Non-biological Animals | I164: =H164-G164 -> 0 | J164: =IF(I164=0,"",I164/H164) -> 
A166: Living resources | C166: =+C167+C170 -> 0 | D166: 0 | E166: 0 | F166: 0 | G166: 0 | H166: 0 | I166: =H166-G166 -> 0 | J166: =IF(I166=0,"",I166/H166) ->  | K166: 0
A167: Mature | C167: =+C168+C169 -> 0 | D167: 0 | E167: 0 | F167: 0 | G167: 0 | H167: 0 | I167: 0 | K167: 0
A168: Policing and Protection | I168: 0
A169: Zoological plants and animals | I169: 0
A170: Immature | C170: =+C171+C172 -> 0 | D170: =+D171+D172 -> 0 | E170: 0 | F170: 0 | G170: 0 | H170: 0 | I170: 0 | K170: =+K171+K172 -> 0
A171: Policing and Protection | I171: 0
A172: Zoological plants and animals | I172: 0
A173: Total Capital Expenditure on new assets | B173: 1 | C173: =C7+C75+C103+C110+C117+C135+C138+C148+C151+C154+C157+C160+C163+C166 -> 167239396.3 | D173: 97073167 | E173: 139179687 | F173: 26303190.98 | G173: 53740948.94 | H173: 40647371.68 | I173: =H173-G173 -> -13093577.26 | J173: =IF(I173=0,"",I173/H173) -> -0.3221260495 | K173: =K7+K75+K103+K110+K117+K135+K138+K148+K151+K154+K157+K160+K163+K166 -> 139179687
A175: =head27a -> References
A176: 1. Total Capital Expenditure on new assets (SC13a) plus Total Capital Expenditure on renewal of existing assets (SC13b) plus Total Capital Expenditure on upgrading of existing assets (SC13e) must reconcile to total capital expenditure in Table C5
A178: check balance | C178: =C173+SC13b!C173+SC13e!C173-'C5-Capex'!C40 -> 0 | D178: =D173+SC13b!D173+SC13e!D173-'C5-Capex'!D40 -> 0 | E178: =E173+SC13b!E173+SC13e!E173-'C5-Capex'!E40 -> 0 | F178: =F173+SC13b!F173+SC13e!F173-'C5-Capex'!F40 -> 0 | G178: =G173+SC13b!G173+SC13e!G173-'C5-Capex'!G40 -> 0 | H178: =H173+SC13b!H173+SC13e!H173-'C5-Capex'!H40 -> 0 | K178: =K173+SC13b!K173+SC13e!K173-'C5-Capex'!K40 -> 0

Sheet SC13b
A1: =muni& " - "&S71Sb& " - "&Head57 -> FS184 Matjhabeng - Supporting Table SC13b Monthly Budget Statement - capital expenditure on renewal of existing assets by asset class - M04 October
A2: =desc -> Description | B2: =head27 -> Ref | C2: =Head1 -> 2023/24 | D2: =Head2 -> Budget Year 2024/25
C3: =Head5 -> Audited Outcome | D3: =Head6 -> Original Budget | E3: =Head7 -> Adjusted Budget | F3: =Head38 -> Monthly actual | G3: =Head39 -> YearTD actual | H3: =Head40 -> YearTD budget | I3: =Head41 -> YTD variance | J3: =Head41 -> YTD variance | K3: =Head8 -> Full Year Forecast
A4: R thousands | B4: 1 | J4: %
A5: Capital expenditure on renewal of existing assets by Asset Class/Sub-class
A7: Infrastructure | C7: =C8+C13+C17+C27+C38+C45+C53+C63+C69 -> 0 | D7: 103500833 | E7: 62374430 | F7: 0 | G7: 0 | H7: 26059169.91 | I7: =H7-G7 -> 26059169.91 | J7: =IF(I7=0,"",I7/H7) -> 1 | K7: =K8+K13+K17+K27+K38+K45+K53+K63+K69 -> 62374430
A8: Roads Infrastructure | C8: =SUM(C9:C12) -> 0 | D8: 103500833 | E8: 62374430 | F8: 0 | G8: 0 | H8: 26059169.91 | I8: 26059169.91 | J8: 1 | K8: =SUM(K9:K12) -> 62374430
A9: Roads | C9: 0 | D9: 103500833 | E9: 62374430 | F9: 0 | G9: 0 | H9: 26059169.91 | I9: 26059169.91 | J9: 1 | K9: 62374430
A10: Road Structures | I10: 0
A11: Road Furniture | I11: 0
A12: Capital Spares | I12: 0
A13: Storm water Infrastructure | C13: =SUM(C14:C16) -> 0 | D13: 0 | E13: 0 | F13: 0 | G13: 0 | H13: 0 | I13: 0 | K13: =SUM(K14:K16) -> 0
A14: Drainage Collection | I14: 0
A15: Storm water Conveyance | I15: 0
A16: Attenuation | I16: 0
A17: Electrical Infrastructure | C17: =SUM(C18:C26) -> 0 | D17: 0 | E17: 0 | F17: 0 | G17: 0 | H17: 0 | I17: 0 | K17: =SUM(K18:K26) -> 0
A18: Power Plants | I18: 0
A19: HV Substations | I19: 0
A20: HV Switching Station | I20: 0
A21: HV Transmission Conductors | I21: 0
A22: MV Substations | I22: 0
A23: MV Switching Stations | I23: 0
A24: MV Networks | I24: 0
A25: LV Networks | I25: 0
A26: Capital Spares | I26: 0
A27: Water Supply Infrastructure | C27: =SUM(C28:C37) -> 0 | D27: 0 | E27: 0 | F27: 0 | G27: 0 | H27: 0 | I27: 0 | K27: =SUM(K28:K37) -> 0
A28: Dams and Weirs | I28: 0
A29: Boreholes | I29: 0
A30: Reservoirs | I30: 0
A31: Pump Stations | I31: 0
A32: Water Treatment Works | I32: 0
A33: Bulk Mains | I33: 0
A34: Distribution | I34: 0
A35: Distribution Points | I35: 0
A36: PRV Stations | I36: 0
A37: Capital Spares | I37: 0
A38: Sanitation Infrastructure | C38: =SUM(C39:C44) -> 0 | D38: 0 | E38: 0 | F38: 0 | G38: 0 | H38: 0 | I38: 0 | K38: =SUM(K39:K44) -> 0
A39: Pump Station | I39: 0
A40: Reticulation | I40: 0
A41: Waste Water Treatment Works | I41: 0
A42: Outfall Sewers | I42: 0
A43: Toilet Facilities | I43: 0
A44: Capital Spares | I44: 0
A45: Solid Waste Infrastructure | C45: =SUM(C46:C52) -> 0 | D45: 0 | E45: 0 | F45: 0 | G45: 0 | H45: 0 | I45: 0 | K45: =SUM(K46:K52) -> 0
A46: Landfill Sites | I46: 0
A47: Waste Transfer Stations | I47: 0
A48: Waste Processing Facilities | I48: 0
A49: Waste Drop-off Points | I49: 0
A50: Waste Separation Facilities | I50: 0
A51: Electricity Generation Facilities | I51: 0
A52: Capital Spares | I52: 0
A53: Rail Infrastructure | C53: =SUM(C54:C62) -> 0 | D53: 0 | E53: 0 | F53: 0 | G53: 0 | H53: 0 | I53: 0 | K53: =SUM(K54:K62) -> 0
A54: Rail Lines | I54: 0
A55: Rail Structures | I55: 0
A56: Rail Furniture | I56: 0
A57: Drainage Collection | I57: 0
A58: Storm water Conveyance | I58: 0
A59: Attenuation | I59: 0
A60: MV Substations | I60: 0
A61: LV Networks | I61: 0
A62: Capital Spares | I62: 0
A63: Coastal Infrastructure | C63: =SUM(C64:C68) -> 0 | D63: 0 | E63: 0 | F63: 0 | G63: 0 | H63: 0 | I63: 0 | K63: =SUM(K64:K68) -> 0
A64: Sand Pumps | I64: 0
A65: Piers | I65: 0
A66: Revetments | I66: 0
A67: Promenades | I67: 0
A68: Capital Spares | I68: 0
A69: Information and Communication Infrastructure | C69: =SUM(C70:C73) -> 0 | D69: 0 | E69: 0 | F69: 0 | G69: 0 | H69: 0 | I69: 0 | K69: =SUM(K70:K73) -> 0
A70: Data Centres | I70: 0
A71: Core Layers | I71: 0
A72: Distribution Layers | I72: 0
A73: Capital Spares | I73: 0
A75: Community Assets | C75: =+C76+C99 -> 0 | D75: 0 | E75: 0 | F75: 0 | G75: 0 | H75: 0 | I75: 0 | K75: =+K76+K99 -> 0
A76: Community Facilities | C76: =SUM(C77:C98) -> 0 | D76: 0 | E76: 0 | F76: 0 | G76: 0 | H76: 0 | I76: 0 | K76: =SUM(K77:K98) -> 0
A77: Halls | I77: 0
A78: Centres | I78: 0
A79: Crèches | I79: 0
A80: Clinics/Care Centres | I80: 0
A81: Fire/Ambulance Stations | I81: 0
A82: Testing Stations | I82: 0
A83: Museums | I83: 0
A84: Galleries | I84: 0
A85: Theatres | I85: 0
A86: Libraries | I86: 0
A87: Cemeteries/Crematoria | I87: 0
A88: Police | I88: 0
A89: Purls | I89: 0
A90: Public Open Space | I90: 0
A91: Nature Reserves | I91: 0
A92: Public Ablution Facilities | I92: 0
A93: Markets | I93: 0
A94: Stalls | I94: 0
A95: Abattoirs | I95: 0
A96: Airports | I96: 0
A97: Taxi Ranks/Bus Terminals | I97: 0
A98: Capital Spares | I98: 0
A99: Sport and Recreation Facilities | C99: =SUM(C100:C102) -> 0 | D99: 0 | E99: 0 | F99: 0 | G99: 0 | H99: 0 | I99: 0 | K99: =SUM(K100:K102) -> 0
A100: Indoor Facilities | I100: 0
A101: Outdoor Facilities | I101: =H101-G101 -> 0 | J101: =IF(I101=0,"",I101/H101) -> 
A102: Capital Spares | I102: 0
A103: Heritage assets | C103: =SUM(C104:C108) -> 0 | D103: 0 | E103: 0 | F103: 0 | G103: 0 | H103: 0 | I103: 0 | K103: =SUM(K104:K108) -> 0
A104: Monuments | I104: 0
A105: Historic Buildings | I105: 0
A106: Works of Art | I106: 0
A107: Conservation Areas | I107: 0
A108: Other Heritage | I108: 0
I109: 0
A110: Investment properties | C110: =+C111+C114 -> 0 | D110: 0 | E110: 0 | F110: 0 | G110: 0 | H110: 0 | I110: 0 | K110: =+K111+K114 -> 0
A111: Revenue Generating | C111: =SUM(C112:C113) -> 0 | D111: 0 | E111: 0 | F111: 0 | G111: 0 | H111: 0 | I111: 0 | K111: =SUM(K112:K113) -> 0
A112: Improved Property | I112: 0
A113: Unimproved Property | I113: 0
A114: Non-revenue Generating | C114: =SUM(C115:C116) -> 0 | D114: 0 | E114: 0 | F114: 0 | G114: 0 | H114: 0 | I114: 0 | K114: =SUM(K115:K116) -> 0
A115: Improved Property | I115: 0
A116: Unimproved Property | I116: =H116-G116 -> 0 | J116: =IF(I116=0,"",I116/H116) -> 
A117: Other assets | C117: =+C118+C130 -> 0 | D117: 0 | E117: 0 | F117: 0 | G117: 0 | H117: 0 | I117: 0 | K117: =+K118+K130 -> 0
A118: Operational Buildings | C118: =SUM(C119:C129) -> 0 | D118: 0 | E118: 0 | F118: 0 | G118: 0 | H118: 0 | I118: 0 | K118: =SUM(K119:K129) -> 0
A119: Municipal Offices | I119: 0
A120: Pay/Enquiry Points | I120: 0
A121: Building Plan Offices | I121: 0
A122: Workshops | I122: 0
A123: Yards | I123: 0
A124: Stores | I124: 0
A125: Laboratories | I125: 0
A126: Training Centres | I126: 0
A127: Manufacturing Plant | I127: 0
A128: Depots | I128: 0
A129: Capital Spares | I129: 0
A130: Housing | C130: =SUM(C131:C133) -> 0 | D130: 0 | E130: 0 | F130: 0 | G130: 0 | H130: 0 | I130: 0 | K130: =SUM(K131:K133) -> 0
A131: Staff Housing | I131: 0
A132: Social Housing | I132: 0
A133: Capital Spares | I133: 0
A135: Biological or Cultivated Assets | C135: =SUM(C136:C136) -> 0 | D135: 0 | E135: 0 | F135: 0 | G135: 0 | H135: 0 | I135: =H135-G135 -> 0 | K135: =SUM(K136) -> 0
A136: Biological or Cultivated Assets | I136: =H136-G136 -> 0
J137: =IF(I137=0,"",I137/H137) -> 
A138: Intangible Assets | C138: =SUM(C139:C140) -> 0 | D138: 0 | E138: 0 | F138: 0 | G138: 0 | H138: 0 | I138: =H138-G138 -> 0 | K138: =SUM(K139:K140) -> 0
A139: Servitudes | I139: 0
A140: Licences and Rights | C140: =SUM(C141:C146) -> 0 | D140: 0 | E140: 0 | F140: 0 | G140: 0 | H140: 0 | I140: 0 | K140: =SUM(K141:K146) -> 0
A141: Water Rights | I141: 0
A142: Effluent Licenses | I142: 0
A143: Solid Waste Licenses | I143: 0
A144: Computer Software and Applications | I144: 0
